Workbook

Sheet メニュー
C3: 学校別 情報入力シート
A90: 1
A91: 1

Sheet 基礎データ (hidden)
B3: 学校基礎データ | P3: 学校番号と、学校名、住所、電話番号 ＦＡＸ番号を入力してください。 このデータは、申し込み一覧表などに使用されます。 当日、審判をお願いできる先生は、□にチェックを入れてください。
B5: 学校番号 | C5: 学校名 | K5: 略称
C6: フリガナ | J6: ﾁｭｳｶﾞｯｺｳ
C7: 漢字 | J7: 中学校 | M7: 中
B9: 学校情報
B10: 郵便番号
B11: 住所
B12: 電話 | D12: － | F12: － | N12: =CONCATENATE(C12,D12,E12,F12,G12) -> －－
B13: FAX | D13: － | F13: － | N13: =CONCATENATE(C13,D13,E13,F13,G13) -> －－
B15: 顧問 | C15: 姓 | E15: 名 | G15: 連絡先 | M15: 審判 | N15: =CONCATENATE(G17,I17,J17,K17,L17) -> －－
B16: 学校長氏名 | N16: =C16&" "&E16 -> 
B17: 申込責任者 | I17: － | K17: － | N17: =C17&" "&E17 -> 
B18: 顧問 | N18: =C18&" "&E18 -> 
B19: 顧問 | N19: =C19&" "&E19 -> 
B20: 顧問 | N20: =C20&" "&E20 -> 
N21: FALSE
B22: 申し込み料 振込情報 | N22: FALSE
B23: 月 | C23: 日 | E23: 郵便局名 | N23: FALSE
K24: 郵便局 | N24: FALSE

Sheet 部員名簿 (hidden)
G2: 登録部員数 | H2: =COUNTIF(H6:H65538,">=0") -> 0 | I2: 名 | N2: １年 | P2: ２年 | Q2: ２年 | R2: ３年 | S2: ３年
N3: 男子 | O3: 女子 | P3: 男子 | Q3: 女子 | R3: 男子 | S3: 女子
B5: 年 | C5: 姓 | D5: 名 | E5: フリガナ(姓) | F5: フリガナ(名) | G5: 生年月日 | H5: 個人番号 | I5: 性別 | J5: 性別 | K5: 学年 | L5: 備考 | N5: =SUM(IF(学年=1,IF(性別="男",1,0))) -> 0 | O5: =SUM(IF(学年=1,IF(性別="女",1,0))) -> 0 | P5: =SUM(IF(学年=2,IF(性別="男",1,0))) -> 0 | Q5: =SUM(IF(学年=2,IF(性別="女",1,0))) -> 0 | R5: =SUM(IF(学年=3,IF(性別="男",1,0))) -> 0 | S5: =SUM(IF(学年=3,IF(性別="女",1,0))) -> 0
A6: =IF((H6=""),"",I6&DBCS(TEXT(H6,"００"))) ->  | J6: 男 | K6: 3
J7: 男 | K7: 3
J8: 男 | K8: 3
J9: 男 | K9: 3
J10: 男 | K10: 3
J11: 男 | K11: 3
J12: 男 | K12: 3
J13: 男 | K13: 3
J14: 男 | K14: 3
J15: 男 | K15: 3
J16: 男 | K16: 2
J17: 男 | K17: 2
J18: 男 | K18: 2
J19: 男 | K19: 2
J20: 男 | K20: 2
J21: 男 | K21: 2
J22: 男 | K22: 2
J23: 男 | K23: 2
J24: 男 | K24: 2
J25: 男 | K25: 2
J26: 男 | K26: 2
J27: 男 | K27: 2
J28: 男 | K28: 1
J29: 男 | K29: 1
J30: 男 | K30: 1
J31: 男 | K31: 1
J32: 男 | K32: 1
J33: 女 | K33: 3
J34: 女 | K34: 3
J35: 女 | K35: 3
J36: 女 | K36: 3
J37: 女 | K37: 3
A38: =IF((H38=""),"",I38&DBCS(TEXT(H38,"００"))) ->  | J38: 女 | K38: 2
J39: 女 | K39: 3
J40: 女 | K40: 1
J41: 女 | K41: 1
J42: 女 | K42: 1
J43: 女 | K43: 1
J44: =IF(A44="","",C44&" "&D44) ->  | K44: =IF(A44="","",E44&" "&F44) -> 
A70: =IF((H70=""),"",I70&DBCS(TEXT(H70,"００"))) ->  | J70: =IF(A70="","",C70&" "&D70) ->  | K70: =IF(A70="","",E70&" "&F70) -> 
A102: =IF((H102=""),"",I102&DBCS(TEXT(H102,"００"))) ->  | J102: =IF(A102="","",C102&" "&D102) ->  | K102: =IF(A102="","",E102&" "&F102) -> 
A134: =IF((H134=""),"",I134&DBCS(TEXT(H134,"００"))) ->  | J134: =IF(A134="","",C134&" "&D134) ->  | K134: =IF(A134="","",E134&" "&F134) -> 
A166: =IF((H166=""),"",I166&DBCS(TEXT(H166,"００"))) ->  | J166: =IF(A166="","",C166&" "&D166) ->  | K166: =IF(A166="","",E166&" "&F166) -> 
A198: =IF((H198=""),"",I198&DBCS(TEXT(H198,"００"))) ->  | J198: =IF(A198="","",C198&" "&D198) ->  | K198: =IF(A198="","",E198&" "&F198) -> 
J199: =IF(A199="","",C199&" "&D199) ->  | K199: =IF(A199="","",E199&" "&F199) -> 
J200: =IF(A200="","",C200&" "&D200) ->  | K200: =IF(A200="","",E200&" "&F200) -> 
J201: =IF(A201="","",C201&" "&D201) ->  | K201: =IF(A201="","",E201&" "&F201) -> 
J202: =IF(A202="","",C202&" "&D202) ->  | K202: =IF(A202="","",E202&" "&F202) -> 
J203: 個人番号 | K203: 性別
J204: 9 | K204: 男
J205: 10 | K205: 男
J206: 10 | K206: 男
J207: 11 | K207: 男
J208: 12 | K208: 男
J209: 13 | K209: 男
J210: 14 | K210: 男
J211: 15 | K211: 男
J212: 16 | K212: 男
J213: 17 | K213: 男
J214: 19 | K214: 男
J215: 20 | K215: 男
J216: 21 | K216: 男
J217: 22 | K217: 男
J218: 23 | K218: 男
J219: 24 | K219: 男
J220: 25 | K220: 男
J221: 26 | K221: 男
J222: 27 | K222: 男
J223: 28 | K223: 男
J224: 29 | K224: 男
J225: 30 | K225: 男
J226: 31 | K226: 男
J227: 40 | K227: 男
J228: 41 | K228: 男
J229: 42 | K229: 男
J230: 43 | K230: 男
J231: 44 | K231: 男
J232: 75 | K232: 女
J233: 76 | K233: 女
J234: 77 | K234: 女
J235: 78 | K235: 女
J236: 79 | K236: 女
J237: 80 | K237: 女
J238: 81 | K238: 女
J239: 90 | K239: 女
J240: 91 | K240: 女
J241: 92 | K241: 女
J242: 93 | K242: 女

Sheet 補助データ (hidden)
B2: 入力補助データ | E2: 大会コード | F2: 4000003 | H2: taikai | I2: スポーツ祭
B4: 出場種ID | C4: 出場種別 | K4: メニュー | L4: 数式バー | M4: Otoko | N4: =INDIRECT("D_参加" &taikai) -> FALSE
B5: 0 | C5: 共通 | D5: <=3 | L5: FALSE | M5: Onna | N5: =INDIRECT("J_参加" &taikai) -> FALSE
B6: 1 | C6: １年 | D6: 1 | E6: 1
B7: 2 | C7: ２年 | D7: 2 | E7: 2
B8: 3 | C8: ３年 | D8: =3 -> 3 | E8: 2
B9: 4 | C9: １．２年 | D9: <3
B10: 5 | C10: ２．３年 | D10: >1
B11: 6 | C11: 低学年 | D11: <3
B12: 7 | C12: その他 | D12: <=3
B14: 種目コード | C14: 種目名 | D14: 種目種別 | E14: 男上 | F14: 男下 | G14: 女下 | H14: 女上
B15: 001 | C15: １００ｍ | D15: 1 | E15: 10.00 | F15: 25.00 | G15: 11.00 | H15: 28.00
B16: 002 | C16: ２００ｍ | D16: 1 | E16: 20.50 | F16: 48.00 | G16: 22.00 | H16: 55.00
B17: 004 | C17: ４００ｍ | D17: 1 | E17: 42.00 | F17: 120.00 | G17: 48.00 | H17: 140.00
B18: 008 | C18: ８００ｍ | D18: 1 | E18: 150.00 | F18: 400.00 | G18: 200.00 | H18: 450.00
B19: 015 | C19: １５００ｍ | D19: 1 | E19: 340.00 | F19: 800.00 | G19: 400.00 | H19: 900.00
B20: 030 | C20: ３０００ｍ | D20: 1 | E20: 800.00 | F20: 2000.00 | G20: 900.00 | H20: 2000.00
B21: 110 | C21: １００ｍＨ | D21: 1 | G21: 12.00 | H21: 40.00
B22: 111 | C22: １１０ｍＨ | D22: 1 | E22: 12.00 | F22: 40.00
B23: 410 | C23: ４×１００ｍＲ | D23: 1 | E23: 38 | G23: 41
B24: 420 | C24: ４×２００ｍＲ | D24: 1
B25: 510 | C25: 走高跳 | D25: 2 | E25: 2.40 | F25: 1.00 | G25: 1.90 | H25: 1.00
B26: 520 | C26: 棒高跳 | D26: 2 | E26: 5.50 | F26: 1.00
B27: 530 | C27: 走幅跳 | D27: 2 | E27: 8.00 | F27: 2.00 | G27: 7.00 | H27: 2.00
B28: 540 | C28: 三段跳 | D28: 2 | E28: 17.00 | F28: 4.00
B29: 550 | C29: 円盤投 | D29: 2 | E29: 60.00 | G29: 45.00 | H29: 1.00
B30: 551 | C30: 円盤投(1.5㎏) | D30: 2 | E30: 70.00 | F30: 1.00
B31: 560 | C31: 砲丸投 | D31: 2 | G31: 18.00 | H31: 1.00
B32: 561 | C32: 砲丸投(2.7㎏) | D32: 2 | E32: 20.00 | F32: 2.00
B33: 562 | C33: 砲丸投(5.0㎏) | D33: 2 | E33: 20.00 | F33: 2.00
B34: 563 | C34: 砲丸投(4.0㎏) | D34: 2 | E34: 30.00 | F34: 2.00 | G34: 25.00 | H34: 1.00
B35: 570 | C35: ｼﾞｬﾍﾞﾘｯｸｽﾛｰ | D35: 2
B36: 710 | C36: 男子四種競技 | D36: 3 | E36: 3800
B37: 760 | C37: 女子四種競技 | D37: 3 | G37: 4000
B39: 種目種別ID | C39: 種目種別
B40: 1 | C40: トラック
B41: 2 | C41: フィールド
B42: 3 | C42: 混成
B44: 種目詳細 | C44: 種目１ | D44: 種目２ | E44: 種目３ | F44: 種目４
B45: 女子四種競技 | C45: １００ｍＨ | D45: 走高跳 | E45: 砲丸投 | F45: ２００ｍ
B46: 男子四種競技 | C46: １１０ｍＨ | D46: 砲丸投 | E46: 走高跳 | F46: ４００ｍ
B48: 性別ID | C48: 性別
B49: 0 | C49: 男
B50: 1 | C50: 女
B55: 読み込みデータフォルダ指定
B56: 中体連データ | C56: F:\地区マスタ\akasi01\2014
B59: 読み込み試合データ
B60: 3010012 | C60: 第２回明石市中学記録会
B63: 計測区分
B64: 0 | C64: 電気
B65: 1 | C65: 手動

Sheet 陸連データ書出シート (hidden)
A1: 生年月日（西暦） | B1: 生年月日（月） | C1: 生年月日（日） | D1: 登録番号 | E1: 姓 | F1: 名 | G1: 姓（カナ） | H1: 名（カナ） | I1: 性別 | J1: 学年 | K1: 備考
A2: =IF(部員名簿!A6="","",YEAR(部員名簿!G6)) ->  | B2: =IF(部員名簿!A6="","",MONTH(部員名簿!G6)) ->  | C2: =IF(部員名簿!A6="","",DAY(部員名簿!G6)) ->  | D2: =IF(部員名簿!A6="","",学校番号*100+部員名簿!H6) ->  | E2: =IF(部員名簿!A6="","",部員名簿!C6) ->  | F2: =IF(部員名簿!A6="","",部員名簿!D6) ->  | G2: =IF(部員名簿!A6="","",部員名簿!E6) ->  | H2: =IF(部員名簿!A6="","",部員名簿!F6) ->  | I2: =IF(部員名簿!A6="","",部員名簿!I6) ->  | J2: =IF(部員名簿!A6="","",部員名簿!B6) -> 
A3: =IF(部員名簿!A7="","",YEAR(部員名簿!G7)) ->  | B3: =IF(部員名簿!A7="","",MONTH(部員名簿!G7)) ->  | C3: =IF(部員名簿!A7="","",DAY(部員名簿!G7)) ->  | D3: =IF(部員名簿!A7="","",学校番号*100+部員名簿!H7) ->  | E3: =IF(部員名簿!A7="","",部員名簿!C7) ->  | F3: =IF(部員名簿!A7="","",部員名簿!D7) ->  | G3: =IF(部員名簿!A7="","",部員名簿!E7) ->  | H3: =IF(部員名簿!A7="","",部員名簿!F7) ->  | I3: =IF(部員名簿!A7="","",部員名簿!I7) ->  | J3: =IF(部員名簿!A7="","",部員名簿!B7) -> 
A4: =IF(部員名簿!A8="","",YEAR(部員名簿!G8)) ->  | B4: =IF(部員名簿!A8="","",MONTH(部員名簿!G8)) ->  | C4: =IF(部員名簿!A8="","",DAY(部員名簿!G8)) ->  | D4: =IF(部員名簿!A8="","",学校番号*100+部員名簿!H8) ->  | E4: =IF(部員名簿!A8="","",部員名簿!C8) ->  | F4: =IF(部員名簿!A8="","",部員名簿!D8) ->  | G4: =IF(部員名簿!A8="","",部員名簿!E8) ->  | H4: =IF(部員名簿!A8="","",部員名簿!F8) ->  | I4: =IF(部員名簿!A8="","",部員名簿!I8) ->  | J4: =IF(部員名簿!A8="","",部員名簿!B8) -> 
A5: =IF(部員名簿!A9="","",YEAR(部員名簿!G9)) ->  | B5: =IF(部員名簿!A9="","",MONTH(部員名簿!G9)) ->  | C5: =IF(部員名簿!A9="","",DAY(部員名簿!G9)) ->  | D5: =IF(部員名簿!A9="","",学校番号*100+部員名簿!H9) ->  | E5: =IF(部員名簿!A9="","",部員名簿!C9) ->  | F5: =IF(部員名簿!A9="","",部員名簿!D9) ->  | G5: =IF(部員名簿!A9="","",部員名簿!E9) ->  | H5: =IF(部員名簿!A9="","",部員名簿!F9) ->  | I5: =IF(部員名簿!A9="","",部員名簿!I9) ->  | J5: =IF(部員名簿!A9="","",部員名簿!B9) -> 
A6: =IF(部員名簿!A10="","",YEAR(部員名簿!G10)) ->  | B6: =IF(部員名簿!A10="","",MONTH(部員名簿!G10)) ->  | C6: =IF(部員名簿!A10="","",DAY(部員名簿!G10)) ->  | D6: =IF(部員名簿!A10="","",学校番号*100+部員名簿!H10) ->  | E6: =IF(部員名簿!A10="","",部員名簿!C10) ->  | F6: =IF(部員名簿!A10="","",部員名簿!D10) ->  | G6: =IF(部員名簿!A10="","",部員名簿!E10) ->  | H6: =IF(部員名簿!A10="","",部員名簿!F10) ->  | I6: =IF(部員名簿!A10="","",部員名簿!I10) ->  | J6: =IF(部員名簿!A10="","",部員名簿!B10) -> 
A7: =IF(部員名簿!A11="","",YEAR(部員名簿!G11)) ->  | B7: =IF(部員名簿!A11="","",MONTH(部員名簿!G11)) ->  | C7: =IF(部員名簿!A11="","",DAY(部員名簿!G11)) ->  | D7: =IF(部員名簿!A11="","",学校番号*100+部員名簿!H11) ->  | E7: =IF(部員名簿!A11="","",部員名簿!C11) ->  | F7: =IF(部員名簿!A11="","",部員名簿!D11) ->  | G7: =IF(部員名簿!A11="","",部員名簿!E11) ->  | H7: =IF(部員名簿!A11="","",部員名簿!F11) ->  | I7: =IF(部員名簿!A11="","",部員名簿!I11) ->  | J7: =IF(部員名簿!A11="","",部員名簿!B11) -> 
A8: =IF(部員名簿!A12="","",YEAR(部員名簿!G12)) ->  | B8: =IF(部員名簿!A12="","",MONTH(部員名簿!G12)) ->  | C8: =IF(部員名簿!A12="","",DAY(部員名簿!G12)) ->  | D8: =IF(部員名簿!A12="","",学校番号*100+部員名簿!H12) ->  | E8: =IF(部員名簿!A12="","",部員名簿!C12) ->  | F8: =IF(部員名簿!A12="","",部員名簿!D12) ->  | G8: =IF(部員名簿!A12="","",部員名簿!E12) ->  | H8: =IF(部員名簿!A12="","",部員名簿!F12) ->  | I8: =IF(部員名簿!A12="","",部員名簿!I12) ->  | J8: =IF(部員名簿!A12="","",部員名簿!B12) -> 
A9: =IF(部員名簿!A13="","",YEAR(部員名簿!G13)) ->  | B9: =IF(部員名簿!A13="","",MONTH(部員名簿!G13)) ->  | C9: =IF(部員名簿!A13="","",DAY(部員名簿!G13)) ->  | D9: =IF(部員名簿!A13="","",学校番号*100+部員名簿!H13) ->  | E9: =IF(部員名簿!A13="","",部員名簿!C13) ->  | F9: =IF(部員名簿!A13="","",部員名簿!D13) ->  | G9: =IF(部員名簿!A13="","",部員名簿!E13) ->  | H9: =IF(部員名簿!A13="","",部員名簿!F13) ->  | I9: =IF(部員名簿!A13="","",部員名簿!I13) ->  | J9: =IF(部員名簿!A13="","",部員名簿!B13) -> 
A10: =IF(部員名簿!A14="","",YEAR(部員名簿!G14)) ->  | B10: =IF(部員名簿!A14="","",MONTH(部員名簿!G14)) ->  | C10: =IF(部員名簿!A14="","",DAY(部員名簿!G14)) ->  | D10: =IF(部員名簿!A14="","",学校番号*100+部員名簿!H14) ->  | E10: =IF(部員名簿!A14="","",部員名簿!C14) ->  | F10: =IF(部員名簿!A14="","",部員名簿!D14) ->  | G10: =IF(部員名簿!A14="","",部員名簿!E14) ->  | H10: =IF(部員名簿!A14="","",部員名簿!F14) ->  | I10: =IF(部員名簿!A14="","",部員名簿!I14) ->  | J10: =IF(部員名簿!A14="","",部員名簿!B14) -> 
A11: =IF(部員名簿!A15="","",YEAR(部員名簿!G15)) ->  | B11: =IF(部員名簿!A15="","",MONTH(部員名簿!G15)) ->  | C11: =IF(部員名簿!A15="","",DAY(部員名簿!G15)) ->  | D11: =IF(部員名簿!A15="","",学校番号*100+部員名簿!H15) ->  | E11: =IF(部員名簿!A15="","",部員名簿!C15) ->  | F11: =IF(部員名簿!A15="","",部員名簿!D15) ->  | G11: =IF(部員名簿!A15="","",部員名簿!E15) ->  | H11: =IF(部員名簿!A15="","",部員名簿!F15) ->  | I11: =IF(部員名簿!A15="","",部員名簿!I15) ->  | J11: =IF(部員名簿!A15="","",部員名簿!B15) -> 
A12: =IF(部員名簿!A16="","",YEAR(部員名簿!G16)) ->  | B12: =IF(部員名簿!A16="","",MONTH(部員名簿!G16)) ->  | C12: =IF(部員名簿!A16="","",DAY(部員名簿!G16)) ->  | D12: =IF(部員名簿!A16="","",学校番号*100+部員名簿!H16) ->  | E12: =IF(部員名簿!A16="","",部員名簿!C16) ->  | F12: =IF(部員名簿!A16="","",部員名簿!D16) ->  | G12: =IF(部員名簿!A16="","",部員名簿!E16) ->  | H12: =IF(部員名簿!A16="","",部員名簿!F16) ->  | I12: =IF(部員名簿!A16="","",部員名簿!I16) ->  | J12: =IF(部員名簿!A16="","",部員名簿!B16) -> 
A13: =IF(部員名簿!A17="","",YEAR(部員名簿!G17)) ->  | B13: =IF(部員名簿!A17="","",MONTH(部員名簿!G17)) ->  | C13: =IF(部員名簿!A17="","",DAY(部員名簿!G17)) ->  | D13: =IF(部員名簿!A17="","",学校番号*100+部員名簿!H17) ->  | E13: =IF(部員名簿!A17="","",部員名簿!C17) ->  | F13: =IF(部員名簿!A17="","",部員名簿!D17) ->  | G13: =IF(部員名簿!A17="","",部員名簿!E17) ->  | H13: =IF(部員名簿!A17="","",部員名簿!F17) ->  | I13: =IF(部員名簿!A17="","",部員名簿!I17) ->  | J13: =IF(部員名簿!A17="","",部員名簿!B17) -> 
A14: =IF(部員名簿!A18="","",YEAR(部員名簿!G18)) ->  | B14: =IF(部員名簿!A18="","",MONTH(部員名簿!G18)) ->  | C14: =IF(部員名簿!A18="","",DAY(部員名簿!G18)) ->  | D14: =IF(部員名簿!A18="","",学校番号*100+部員名簿!H18) ->  | E14: =IF(部員名簿!A18="","",部員名簿!C18) ->  | F14: =IF(部員名簿!A18="","",部員名簿!D18) ->  | G14: =IF(部員名簿!A18="","",部員名簿!E18) ->  | H14: =IF(部員名簿!A18="","",部員名簿!F18) ->  | I14: =IF(部員名簿!A18="","",部員名簿!I18) ->  | J14: =IF(部員名簿!A18="","",部員名簿!B18) -> 
A15: =IF(部員名簿!A19="","",YEAR(部員名簿!G19)) ->  | B15: =IF(部員名簿!A19="","",MONTH(部員名簿!G19)) ->  | C15: =IF(部員名簿!A19="","",DAY(部員名簿!G19)) ->  | D15: =IF(部員名簿!A19="","",学校番号*100+部員名簿!H19) ->  | E15: =IF(部員名簿!A19="","",部員名簿!C19) ->  | F15: =IF(部員名簿!A19="","",部員名簿!D19) ->  | G15: =IF(部員名簿!A19="","",部員名簿!E19) ->  | H15: =IF(部員名簿!A19="","",部員名簿!F19) ->  | I15: =IF(部員名簿!A19="","",部員名簿!I19) ->  | J15: =IF(部員名簿!A19="","",部員名簿!B19) -> 
A16: =IF(部員名簿!A20="","",YEAR(部員名簿!G20)) ->  | B16: =IF(部員名簿!A20="","",MONTH(部員名簿!G20)) ->  | C16: =IF(部員名簿!A20="","",DAY(部員名簿!G20)) ->  | D16: =IF(部員名簿!A20="","",学校番号*100+部員名簿!H20) ->  | E16: =IF(部員名簿!A20="","",部員名簿!C20) ->  | F16: =IF(部員名簿!A20="","",部員名簿!D20) ->  | G16: =IF(部員名簿!A20="","",部員名簿!E20) ->  | H16: =IF(部員名簿!A20="","",部員名簿!F20) ->  | I16: =IF(部員名簿!A20="","",部員名簿!I20) ->  | J16: =IF(部員名簿!A20="","",部員名簿!B20) -> 
A17: =IF(部員名簿!A21="","",YEAR(部員名簿!G21)) ->  | B17: =IF(部員名簿!A21="","",MONTH(部員名簿!G21)) ->  | C17: =IF(部員名簿!A21="","",DAY(部員名簿!G21)) ->  | D17: =IF(部員名簿!A21="","",学校番号*100+部員名簿!H21) ->  | E17: =IF(部員名簿!A21="","",部員名簿!C21) ->  | F17: =IF(部員名簿!A21="","",部員名簿!D21) ->  | G17: =IF(部員名簿!A21="","",部員名簿!E21) ->  | H17: =IF(部員名簿!A21="","",部員名簿!F21) ->  | I17: =IF(部員名簿!A21="","",部員名簿!I21) ->  | J17: =IF(部員名簿!A21="","",部員名簿!B21) -> 
A18: =IF(部員名簿!A22="","",YEAR(部員名簿!G22)) ->  | B18: =IF(部員名簿!A22="","",MONTH(部員名簿!G22)) ->  | C18: =IF(部員名簿!A22="","",DAY(部員名簿!G22)) ->  | D18: =IF(部員名簿!A22="","",学校番号*100+部員名簿!H22) ->  | E18: =IF(部員名簿!A22="","",部員名簿!C22) ->  | F18: =IF(部員名簿!A22="","",部員名簿!D22) ->  | G18: =IF(部員名簿!A22="","",部員名簿!E22) ->  | H18: =IF(部員名簿!A22="","",部員名簿!F22) ->  | I18: =IF(部員名簿!A22="","",部員名簿!I22) ->  | J18: =IF(部員名簿!A22="","",部員名簿!B22) -> 
A19: =IF(部員名簿!A23="","",YEAR(部員名簿!G23)) ->  | B19: =IF(部員名簿!A23="","",MONTH(部員名簿!G23)) ->  | C19: =IF(部員名簿!A23="","",DAY(部員名簿!G23)) ->  | D19: =IF(部員名簿!A23="","",学校番号*100+部員名簿!H23) ->  | E19: =IF(部員名簿!A23="","",部員名簿!C23) ->  | F19: =IF(部員名簿!A23="","",部員名簿!D23) ->  | G19: =IF(部員名簿!A23="","",部員名簿!E23) ->  | H19: =IF(部員名簿!A23="","",部員名簿!F23) ->  | I19: =IF(部員名簿!A23="","",部員名簿!I23) ->  | J19: =IF(部員名簿!A23="","",部員名簿!B23) -> 
A20: =IF(部員名簿!A24="","",YEAR(部員名簿!G24)) ->  | B20: =IF(部員名簿!A24="","",MONTH(部員名簿!G24)) ->  | C20: =IF(部員名簿!A24="","",DAY(部員名簿!G24)) ->  | D20: =IF(部員名簿!A24="","",学校番号*100+部員名簿!H24) ->  | E20: =IF(部員名簿!A24="","",部員名簿!C24) ->  | F20: =IF(部員名簿!A24="","",部員名簿!D24) ->  | G20: =IF(部員名簿!A24="","",部員名簿!E24) ->  | H20: =IF(部員名簿!A24="","",部員名簿!F24) ->  | I20: =IF(部員名簿!A24="","",部員名簿!I24) ->  | J20: =IF(部員名簿!A24="","",部員名簿!B24) -> 
A21: =IF(部員名簿!A25="","",YEAR(部員名簿!G25)) ->  | B21: =IF(部員名簿!A25="","",MONTH(部員名簿!G25)) ->  | C21: =IF(部員名簿!A25="","",DAY(部員名簿!G25)) ->  | D21: =IF(部員名簿!A25="","",学校番号*100+部員名簿!H25) ->  | E21: =IF(部員名簿!A25="","",部員名簿!C25) ->  | F21: =IF(部員名簿!A25="","",部員名簿!D25) ->  | G21: =IF(部員名簿!A25="","",部員名簿!E25) ->  | H21: =IF(部員名簿!A25="","",部員名簿!F25) ->  | I21: =IF(部員名簿!A25="","",部員名簿!I25) ->  | J21: =IF(部員名簿!A25="","",部員名簿!B25) -> 
A22: =IF(部員名簿!A26="","",YEAR(部員名簿!G26)) ->  | B22: =IF(部員名簿!A26="","",MONTH(部員名簿!G26)) ->  | C22: =IF(部員名簿!A26="","",DAY(部員名簿!G26)) ->  | D22: =IF(部員名簿!A26="","",学校番号*100+部員名簿!H26) ->  | E22: =IF(部員名簿!A26="","",部員名簿!C26) ->  | F22: =IF(部員名簿!A26="","",部員名簿!D26) ->  | G22: =IF(部員名簿!A26="","",部員名簿!E26) ->  | H22: =IF(部員名簿!A26="","",部員名簿!F26) ->  | I22: =IF(部員名簿!A26="","",部員名簿!I26) ->  | J22: =IF(部員名簿!A26="","",部員名簿!B26) -> 
A23: =IF(部員名簿!A27="","",YEAR(部員名簿!G27)) ->  | B23: =IF(部員名簿!A27="","",MONTH(部員名簿!G27)) ->  | C23: =IF(部員名簿!A27="","",DAY(部員名簿!G27)) ->  | D23: =IF(部員名簿!A27="","",学校番号*100+部員名簿!H27) ->  | E23: =IF(部員名簿!A27="","",部員名簿!C27) ->  | F23: =IF(部員名簿!A27="","",部員名簿!D27) ->  | G23: =IF(部員名簿!A27="","",部員名簿!E27) ->  | H23: =IF(部員名簿!A27="","",部員名簿!F27) ->  | I23: =IF(部員名簿!A27="","",部員名簿!I27) ->  | J23: =IF(部員名簿!A27="","",部員名簿!B27) -> 
A24: =IF(部員名簿!A28="","",YEAR(部員名簿!G28)) ->  | B24: =IF(部員名簿!A28="","",MONTH(部員名簿!G28)) ->  | C24: =IF(部員名簿!A28="","",DAY(部員名簿!G28)) ->  | D24: =IF(部員名簿!A28="","",学校番号*100+部員名簿!H28) ->  | E24: =IF(部員名簿!A28="","",部員名簿!C28) ->  | F24: =IF(部員名簿!A28="","",部員名簿!D28) ->  | G24: =IF(部員名簿!A28="","",部員名簿!E28) ->  | H24: =IF(部員名簿!A28="","",部員名簿!F28) ->  | I24: =IF(部員名簿!A28="","",部員名簿!I28) ->  | J24: =IF(部員名簿!A28="","",部員名簿!B28) -> 
A25: =IF(部員名簿!A29="","",YEAR(部員名簿!G29)) ->  | B25: =IF(部員名簿!A29="","",MONTH(部員名簿!G29)) ->  | C25: =IF(部員名簿!A29="","",DAY(部員名簿!G29)) ->  | D25: =IF(部員名簿!A29="","",学校番号*100+部員名簿!H29) ->  | E25: =IF(部員名簿!A29="","",部員名簿!C29) ->  | F25: =IF(部員名簿!A29="","",部員名簿!D29) ->  | G25: =IF(部員名簿!A29="","",部員名簿!E29) ->  | H25: =IF(部員名簿!A29="","",部員名簿!F29) ->  | I25: =IF(部員名簿!A29="","",部員名簿!I29) ->  | J25: =IF(部員名簿!A29="","",部員名簿!B29) -> 
A26: =IF(部員名簿!A30="","",YEAR(部員名簿!G30)) ->  | B26: =IF(部員名簿!A30="","",MONTH(部員名簿!G30)) ->  | C26: =IF(部員名簿!A30="","",DAY(部員名簿!G30)) ->  | D26: =IF(部員名簿!A30="","",学校番号*100+部員名簿!H30) ->  | E26: =IF(部員名簿!A30="","",部員名簿!C30) ->  | F26: =IF(部員名簿!A30="","",部員名簿!D30) ->  | G26: =IF(部員名簿!A30="","",部員名簿!E30) ->  | H26: =IF(部員名簿!A30="","",部員名簿!F30) ->  | I26: =IF(部員名簿!A30="","",部員名簿!I30) ->  | J26: =IF(部員名簿!A30="","",部員名簿!B30) -> 
A27: =IF(部員名簿!A31="","",YEAR(部員名簿!G31)) ->  | B27: =IF(部員名簿!A31="","",MONTH(部員名簿!G31)) ->  | C27: =IF(部員名簿!A31="","",DAY(部員名簿!G31)) ->  | D27: =IF(部員名簿!A31="","",学校番号*100+部員名簿!H31) ->  | E27: =IF(部員名簿!A31="","",部員名簿!C31) ->  | F27: =IF(部員名簿!A31="","",部員名簿!D31) ->  | G27: =IF(部員名簿!A31="","",部員名簿!E31) ->  | H27: =IF(部員名簿!A31="","",部員名簿!F31) ->  | I27: =IF(部員名簿!A31="","",部員名簿!I31) ->  | J27: =IF(部員名簿!A31="","",部員名簿!B31) -> 
A28: =IF(部員名簿!A32="","",YEAR(部員名簿!G32)) ->  | B28: =IF(部員名簿!A32="","",MONTH(部員名簿!G32)) ->  | C28: =IF(部員名簿!A32="","",DAY(部員名簿!G32)) ->  | D28: =IF(部員名簿!A32="","",学校番号*100+部員名簿!H32) ->  | E28: =IF(部員名簿!A32="","",部員名簿!C32) ->  | F28: =IF(部員名簿!A32="","",部員名簿!D32) ->  | G28: =IF(部員名簿!A32="","",部員名簿!E32) ->  | H28: =IF(部員名簿!A32="","",部員名簿!F32) ->  | I28: =IF(部員名簿!A32="","",部員名簿!I32) ->  | J28: =IF(部員名簿!A32="","",部員名簿!B32) -> 
A29: =IF(部員名簿!A33="","",YEAR(部員名簿!G33)) ->  | B29: =IF(部員名簿!A33="","",MONTH(部員名簿!G33)) ->  | C29: =IF(部員名簿!A33="","",DAY(部員名簿!G33)) ->  | D29: =IF(部員名簿!A33="","",学校番号*100+部員名簿!H33) ->  | E29: =IF(部員名簿!A33="","",部員名簿!C33) ->  | F29: =IF(部員名簿!A33="","",部員名簿!D33) ->  | G29: =IF(部員名簿!A33="","",部員名簿!E33) ->  | H29: =IF(部員名簿!A33="","",部員名簿!F33) ->  | I29: =IF(部員名簿!A33="","",部員名簿!I33) ->  | J29: =IF(部員名簿!A33="","",部員名簿!B33) -> 
A30: =IF(部員名簿!A34="","",YEAR(部員名簿!G34)) ->  | B30: =IF(部員名簿!A34="","",MONTH(部員名簿!G34)) ->  | C30: =IF(部員名簿!A34="","",DAY(部員名簿!G34)) ->  | D30: =IF(部員名簿!A34="","",学校番号*100+部員名簿!H34) ->  | E30: =IF(部員名簿!A34="","",部員名簿!C34) ->  | F30: =IF(部員名簿!A34="","",部員名簿!D34) ->  | G30: =IF(部員名簿!A34="","",部員名簿!E34) ->  | H30: =IF(部員名簿!A34="","",部員名簿!F34) ->  | I30: =IF(部員名簿!A34="","",部員名簿!I34) ->  | J30: =IF(部員名簿!A34="","",部員名簿!B34) -> 
A31: =IF(部員名簿!A35="","",YEAR(部員名簿!G35)) ->  | B31: =IF(部員名簿!A35="","",MONTH(部員名簿!G35)) ->  | C31: =IF(部員名簿!A35="","",DAY(部員名簿!G35)) ->  | D31: =IF(部員名簿!A35="","",学校番号*100+部員名簿!H35) ->  | E31: =IF(部員名簿!A35="","",部員名簿!C35) ->  | F31: =IF(部員名簿!A35="","",部員名簿!D35) ->  | G31: =IF(部員名簿!A35="","",部員名簿!E35) ->  | H31: =IF(部員名簿!A35="","",部員名簿!F35) ->  | I31: =IF(部員名簿!A35="","",部員名簿!I35) ->  | J31: =IF(部員名簿!A35="","",部員名簿!B35) -> 
A32: =IF(部員名簿!A36="","",YEAR(部員名簿!G36)) ->  | B32: =IF(部員名簿!A36="","",MONTH(部員名簿!G36)) ->  | C32: =IF(部員名簿!A36="","",DAY(部員名簿!G36)) ->  | D32: =IF(部員名簿!A36="","",学校番号*100+部員名簿!H36) ->  | E32: =IF(部員名簿!A36="","",部員名簿!C36) ->  | F32: =IF(部員名簿!A36="","",部員名簿!D36) ->  | G32: =IF(部員名簿!A36="","",部員名簿!E36) ->  | H32: =IF(部員名簿!A36="","",部員名簿!F36) ->  | I32: =IF(部員名簿!A36="","",部員名簿!I36) ->  | J32: =IF(部員名簿!A36="","",部員名簿!B36) -> 
A33: =IF(部員名簿!A37="","",YEAR(部員名簿!G37)) ->  | B33: =IF(部員名簿!A37="","",MONTH(部員名簿!G37)) ->  | C33: =IF(部員名簿!A37="","",DAY(部員名簿!G37)) ->  | D33: =IF(部員名簿!A37="","",学校番号*100+部員名簿!H37) ->  | E33: =IF(部員名簿!A37="","",部員名簿!C37) ->  | F33: =IF(部員名簿!A37="","",部員名簿!D37) ->  | G33: =IF(部員名簿!A37="","",部員名簿!E37) ->  | H33: =IF(部員名簿!A37="","",部員名簿!F37) ->  | I33: =IF(部員名簿!A37="","",部員名簿!I37) ->  | J33: =IF(部員名簿!A37="","",部員名簿!B37) -> 
A34: =IF(部員名簿!A38="","",YEAR(部員名簿!G38)) ->  | B34: =IF(部員名簿!A38="","",MONTH(部員名簿!G38)) ->  | C34: =IF(部員名簿!A38="","",DAY(部員名簿!G38)) ->  | D34: =IF(部員名簿!A38="","",学校番号*100+部員名簿!H38) ->  | E34: =IF(部員名簿!A38="","",部員名簿!C38) ->  | F34: =IF(部員名簿!A38="","",部員名簿!D38) ->  | G34: =IF(部員名簿!A38="","",部員名簿!E38) ->  | H34: =IF(部員名簿!A38="","",部員名簿!F38) ->  | I34: =IF(部員名簿!A38="","",部員名簿!I38) ->  | J34: =IF(部員名簿!A38="","",部員名簿!B38) -> 
A35: =IF(部員名簿!A39="","",YEAR(部員名簿!G39)) ->  | B35: =IF(部員名簿!A39="","",MONTH(部員名簿!G39)) ->  | C35: =IF(部員名簿!A39="","",DAY(部員名簿!G39)) ->  | D35: =IF(部員名簿!A39="","",学校番号*100+部員名簿!H39) ->  | E35: =IF(部員名簿!A39="","",部員名簿!C39) ->  | F35: =IF(部員名簿!A39="","",部員名簿!D39) ->  | G35: =IF(部員名簿!A39="","",部員名簿!E39) ->  | H35: =IF(部員名簿!A39="","",部員名簿!F39) ->  | I35: =IF(部員名簿!A39="","",部員名簿!I39) ->  | J35: =IF(部員名簿!A39="","",部員名簿!B39) -> 
A36: =IF(部員名簿!A40="","",YEAR(部員名簿!G40)) ->  | B36: =IF(部員名簿!A40="","",MONTH(部員名簿!G40)) ->  | C36: =IF(部員名簿!A40="","",DAY(部員名簿!G40)) ->  | D36: =IF(部員名簿!A40="","",学校番号*100+部員名簿!H40) ->  | E36: =IF(部員名簿!A40="","",部員名簿!C40) ->  | F36: =IF(部員名簿!A40="","",部員名簿!D40) ->  | G36: =IF(部員名簿!A40="","",部員名簿!E40) ->  | H36: =IF(部員名簿!A40="","",部員名簿!F40) ->  | I36: =IF(部員名簿!A40="","",部員名簿!I40) ->  | J36: =IF(部員名簿!A40="","",部員名簿!B40) -> 
A37: =IF(部員名簿!A41="","",YEAR(部員名簿!G41)) ->  | B37: =IF(部員名簿!A41="","",MONTH(部員名簿!G41)) ->  | C37: =IF(部員名簿!A41="","",DAY(部員名簿!G41)) ->  | D37: =IF(部員名簿!A41="","",学校番号*100+部員名簿!H41) ->  | E37: =IF(部員名簿!A41="","",部員名簿!C41) ->  | F37: =IF(部員名簿!A41="","",部員名簿!D41) ->  | G37: =IF(部員名簿!A41="","",部員名簿!E41) ->  | H37: =IF(部員名簿!A41="","",部員名簿!F41) ->  | I37: =IF(部員名簿!A41="","",部員名簿!I41) ->  | J37: =IF(部員名簿!A41="","",部員名簿!B41) -> 
A38: =IF(部員名簿!A42="","",YEAR(部員名簿!G42)) ->  | B38: =IF(部員名簿!A42="","",MONTH(部員名簿!G42)) ->  | C38: =IF(部員名簿!A42="","",DAY(部員名簿!G42)) ->  | D38: =IF(部員名簿!A42="","",学校番号*100+部員名簿!H42) ->  | E38: =IF(部員名簿!A42="","",部員名簿!C42) ->  | F38: =IF(部員名簿!A42="","",部員名簿!D42) ->  | G38: =IF(部員名簿!A42="","",部員名簿!E42) ->  | H38: =IF(部員名簿!A42="","",部員名簿!F42) ->  | I38: =IF(部員名簿!A42="","",部員名簿!I42) ->  | J38: =IF(部員名簿!A42="","",部員名簿!B42) -> 
A39: =IF(部員名簿!A43="","",YEAR(部員名簿!G43)) ->  | B39: =IF(部員名簿!A43="","",MONTH(部員名簿!G43)) ->  | C39: =IF(部員名簿!A43="","",DAY(部員名簿!G43)) ->  | D39: =IF(部員名簿!A43="","",学校番号*100+部員名簿!H43) ->  | E39: =IF(部員名簿!A43="","",部員名簿!C43) ->  | F39: =IF(部員名簿!A43="","",部員名簿!D43) ->  | G39: =IF(部員名簿!A43="","",部員名簿!E43) ->  | H39: =IF(部員名簿!A43="","",部員名簿!F43) ->  | I39: =IF(部員名簿!A43="","",部員名簿!I43) ->  | J39: =IF(部員名簿!A43="","",部員名簿!B43) -> 
A40: =IF(部員名簿!A44="","",YEAR(部員名簿!G44)) ->  | B40: =IF(部員名簿!A44="","",MONTH(部員名簿!G44)) ->  | C40: =IF(部員名簿!A44="","",DAY(部員名簿!G44)) ->  | D40: =IF(部員名簿!A44="","",学校番号*100+部員名簿!H44) ->  | E40: =IF(部員名簿!A44="","",部員名簿!C44) ->  | F40: =IF(部員名簿!A44="","",部員名簿!D44) ->  | G40: =IF(部員名簿!A44="","",部員名簿!E44) ->  | H40: =IF(部員名簿!A44="","",部員名簿!F44) ->  | I40: =IF(部員名簿!A44="","",部員名簿!I44) ->  | J40: =IF(部員名簿!A44="","",部員名簿!B44) -> 
A41: =IF(部員名簿!A45="","",YEAR(部員名簿!G45)) ->  | B41: =IF(部員名簿!A45="","",MONTH(部員名簿!G45)) ->  | C41: =IF(部員名簿!A45="","",DAY(部員名簿!G45)) ->  | D41: =IF(部員名簿!A45="","",学校番号*100+部員名簿!H45) ->  | E41: =IF(部員名簿!A45="","",部員名簿!C45) ->  | F41: =IF(部員名簿!A45="","",部員名簿!D45) ->  | G41: =IF(部員名簿!A45="","",部員名簿!E45) ->  | H41: =IF(部員名簿!A45="","",部員名簿!F45) ->  | I41: =IF(部員名簿!A45="","",部員名簿!I45) ->  | J41: =IF(部員名簿!A45="","",部員名簿!B45) -> 
A42: =IF(部員名簿!A46="","",YEAR(部員名簿!G46)) ->  | B42: =IF(部員名簿!A46="","",MONTH(部員名簿!G46)) ->  | C42: =IF(部員名簿!A46="","",DAY(部員名簿!G46)) ->  | D42: =IF(部員名簿!A46="","",学校番号*100+部員名簿!H46) ->  | E42: =IF(部員名簿!A46="","",部員名簿!C46) ->  | F42: =IF(部員名簿!A46="","",部員名簿!D46) ->  | G42: =IF(部員名簿!A46="","",部員名簿!E46) ->  | H42: =IF(部員名簿!A46="","",部員名簿!F46) ->  | I42: =IF(部員名簿!A46="","",部員名簿!I46) ->  | J42: =IF(部員名簿!A46="","",部員名簿!B46) -> 
A43: =IF(部員名簿!A47="","",YEAR(部員名簿!G47)) ->  | B43: =IF(部員名簿!A47="","",MONTH(部員名簿!G47)) ->  | C43: =IF(部員名簿!A47="","",DAY(部員名簿!G47)) ->  | D43: =IF(部員名簿!A47="","",学校番号*100+部員名簿!H47) ->  | E43: =IF(部員名簿!A47="","",部員名簿!C47) ->  | F43: =IF(部員名簿!A47="","",部員名簿!D47) ->  | G43: =IF(部員名簿!A47="","",部員名簿!E47) ->  | H43: =IF(部員名簿!A47="","",部員名簿!F47) ->  | I43: =IF(部員名簿!A47="","",部員名簿!I47) ->  | J43: =IF(部員名簿!A47="","",部員名簿!B47) -> 
A44: =IF(部員名簿!A48="","",YEAR(部員名簿!G48)) ->  | B44: =IF(部員名簿!A48="","",MONTH(部員名簿!G48)) ->  | C44: =IF(部員名簿!A48="","",DAY(部員名簿!G48)) ->  | D44: =IF(部員名簿!A48="","",学校番号*100+部員名簿!H48) ->  | E44: =IF(部員名簿!A48="","",部員名簿!C48) ->  | F44: =IF(部員名簿!A48="","",部員名簿!D48) ->  | G44: =IF(部員名簿!A48="","",部員名簿!E48) ->  | H44: =IF(部員名簿!A48="","",部員名簿!F48) ->  | I44: =IF(部員名簿!A48="","",部員名簿!I48) ->  | J44: =IF(部員名簿!A48="","",部員名簿!B48) -> 
A45: =IF(部員名簿!A49="","",YEAR(部員名簿!G49)) ->  | B45: =IF(部員名簿!A49="","",MONTH(部員名簿!G49)) ->  | C45: =IF(部員名簿!A49="","",DAY(部員名簿!G49)) ->  | D45: =IF(部員名簿!A49="","",学校番号*100+部員名簿!H49) ->  | E45: =IF(部員名簿!A49="","",部員名簿!C49) ->  | F45: =IF(部員名簿!A49="","",部員名簿!D49) ->  | G45: =IF(部員名簿!A49="","",部員名簿!E49) ->  | H45: =IF(部員名簿!A49="","",部員名簿!F49) ->  | I45: =IF(部員名簿!A49="","",部員名簿!I49) ->  | J45: =IF(部員名簿!A49="","",部員名簿!B49) -> 
A46: =IF(部員名簿!A50="","",YEAR(部員名簿!G50)) ->  | B46: =IF(部員名簿!A50="","",MONTH(部員名簿!G50)) ->  | C46: =IF(部員名簿!A50="","",DAY(部員名簿!G50)) ->  | D46: =IF(部員名簿!A50="","",学校番号*100+部員名簿!H50) ->  | E46: =IF(部員名簿!A50="","",部員名簿!C50) ->  | F46: =IF(部員名簿!A50="","",部員名簿!D50) ->  | G46: =IF(部員名簿!A50="","",部員名簿!E50) ->  | H46: =IF(部員名簿!A50="","",部員名簿!F50) ->  | I46: =IF(部員名簿!A50="","",部員名簿!I50) ->  | J46: =IF(部員名簿!A50="","",部員名簿!B50) -> 
A47: =IF(部員名簿!A51="","",YEAR(部員名簿!G51)) ->  | B47: =IF(部員名簿!A51="","",MONTH(部員名簿!G51)) ->  | C47: =IF(部員名簿!A51="","",DAY(部員名簿!G51)) ->  | D47: =IF(部員名簿!A51="","",学校番号*100+部員名簿!H51) ->  | E47: =IF(部員名簿!A51="","",部員名簿!C51) ->  | F47: =IF(部員名簿!A51="","",部員名簿!D51) ->  | G47: =IF(部員名簿!A51="","",部員名簿!E51) ->  | H47: =IF(部員名簿!A51="","",部員名簿!F51) ->  | I47: =IF(部員名簿!A51="","",部員名簿!I51) ->  | J47: =IF(部員名簿!A51="","",部員名簿!B51) -> 
A48: =IF(部員名簿!A52="","",YEAR(部員名簿!G52)) ->  | B48: =IF(部員名簿!A52="","",MONTH(部員名簿!G52)) ->  | C48: =IF(部員名簿!A52="","",DAY(部員名簿!G52)) ->  | D48: =IF(部員名簿!A52="","",学校番号*100+部員名簿!H52) ->  | E48: =IF(部員名簿!A52="","",部員名簿!C52) ->  | F48: =IF(部員名簿!A52="","",部員名簿!D52) ->  | G48: =IF(部員名簿!A52="","",部員名簿!E52) ->  | H48: =IF(部員名簿!A52="","",部員名簿!F52) ->  | I48: =IF(部員名簿!A52="","",部員名簿!I52) ->  | J48: =IF(部員名簿!A52="","",部員名簿!B52) -> 
A49: =IF(部員名簿!A53="","",YEAR(部員名簿!G53)) ->  | B49: =IF(部員名簿!A53="","",MONTH(部員名簿!G53)) ->  | C49: =IF(部員名簿!A53="","",DAY(部員名簿!G53)) ->  | D49: =IF(部員名簿!A53="","",学校番号*100+部員名簿!H53) ->  | E49: =IF(部員名簿!A53="","",部員名簿!C53) ->  | F49: =IF(部員名簿!A53="","",部員名簿!D53) ->  | G49: =IF(部員名簿!A53="","",部員名簿!E53) ->  | H49: =IF(部員名簿!A53="","",部員名簿!F53) ->  | I49: =IF(部員名簿!A53="","",部員名簿!I53) ->  | J49: =IF(部員名簿!A53="","",部員名簿!B53) -> 
A50: =IF(部員名簿!A54="","",YEAR(部員名簿!G54)) ->  | B50: =IF(部員名簿!A54="","",MONTH(部員名簿!G54)) ->  | C50: =IF(部員名簿!A54="","",DAY(部員名簿!G54)) ->  | D50: =IF(部員名簿!A54="","",学校番号*100+部員名簿!H54) ->  | E50: =IF(部員名簿!A54="","",部員名簿!C54) ->  | F50: =IF(部員名簿!A54="","",部員名簿!D54) ->  | G50: =IF(部員名簿!A54="","",部員名簿!E54) ->  | H50: =IF(部員名簿!A54="","",部員名簿!F54) ->  | I50: =IF(部員名簿!A54="","",部員名簿!I54) ->  | J50: =IF(部員名簿!A54="","",部員名簿!B54) -> 
A51: =IF(部員名簿!A55="","",YEAR(部員名簿!G55)) ->  | B51: =IF(部員名簿!A55="","",MONTH(部員名簿!G55)) ->  | C51: =IF(部員名簿!A55="","",DAY(部員名簿!G55)) ->  | D51: =IF(部員名簿!A55="","",学校番号*100+部員名簿!H55) ->  | E51: =IF(部員名簿!A55="","",部員名簿!C55) ->  | F51: =IF(部員名簿!A55="","",部員名簿!D55) ->  | G51: =IF(部員名簿!A55="","",部員名簿!E55) ->  | H51: =IF(部員名簿!A55="","",部員名簿!F55) ->  | I51: =IF(部員名簿!A55="","",部員名簿!I55) ->  | J51: =IF(部員名簿!A55="","",部員名簿!B55) -> 
A52: =IF(部員名簿!A56="","",YEAR(部員名簿!G56)) ->  | B52: =IF(部員名簿!A56="","",MONTH(部員名簿!G56)) ->  | C52: =IF(部員名簿!A56="","",DAY(部員名簿!G56)) ->  | D52: =IF(部員名簿!A56="","",学校番号*100+部員名簿!H56) ->  | E52: =IF(部員名簿!A56="","",部員名簿!C56) ->  | F52: =IF(部員名簿!A56="","",部員名簿!D56) ->  | G52: =IF(部員名簿!A56="","",部員名簿!E56) ->  | H52: =IF(部員名簿!A56="","",部員名簿!F56) ->  | I52: =IF(部員名簿!A56="","",部員名簿!I56) ->  | J52: =IF(部員名簿!A56="","",部員名簿!B56) -> 
A53: =IF(部員名簿!A57="","",YEAR(部員名簿!G57)) ->  | B53: =IF(部員名簿!A57="","",MONTH(部員名簿!G57)) ->  | C53: =IF(部員名簿!A57="","",DAY(部員名簿!G57)) ->  | D53: =IF(部員名簿!A57="","",学校番号*100+部員名簿!H57) ->  | E53: =IF(部員名簿!A57="","",部員名簿!C57) ->  | F53: =IF(部員名簿!A57="","",部員名簿!D57) ->  | G53: =IF(部員名簿!A57="","",部員名簿!E57) ->  | H53: =IF(部員名簿!A57="","",部員名簿!F57) ->  | I53: =IF(部員名簿!A57="","",部員名簿!I57) ->  | J53: =IF(部員名簿!A57="","",部員名簿!B57) -> 
A54: =IF(部員名簿!A58="","",YEAR(部員名簿!G58)) ->  | B54: =IF(部員名簿!A58="","",MONTH(部員名簿!G58)) ->  | C54: =IF(部員名簿!A58="","",DAY(部員名簿!G58)) ->  | D54: =IF(部員名簿!A58="","",学校番号*100+部員名簿!H58) ->  | E54: =IF(部員名簿!A58="","",部員名簿!C58) ->  | F54: =IF(部員名簿!A58="","",部員名簿!D58) ->  | G54: =IF(部員名簿!A58="","",部員名簿!E58) ->  | H54: =IF(部員名簿!A58="","",部員名簿!F58) ->  | I54: =IF(部員名簿!A58="","",部員名簿!I58) ->  | J54: =IF(部員名簿!A58="","",部員名簿!B58) -> 
A55: =IF(部員名簿!A59="","",YEAR(部員名簿!G59)) ->  | B55: =IF(部員名簿!A59="","",MONTH(部員名簿!G59)) ->  | C55: =IF(部員名簿!A59="","",DAY(部員名簿!G59)) ->  | D55: =IF(部員名簿!A59="","",学校番号*100+部員名簿!H59) ->  | E55: =IF(部員名簿!A59="","",部員名簿!C59) ->  | F55: =IF(部員名簿!A59="","",部員名簿!D59) ->  | G55: =IF(部員名簿!A59="","",部員名簿!E59) ->  | H55: =IF(部員名簿!A59="","",部員名簿!F59) ->  | I55: =IF(部員名簿!A59="","",部員名簿!I59) ->  | J55: =IF(部員名簿!A59="","",部員名簿!B59) -> 
A56: =IF(部員名簿!A60="","",YEAR(部員名簿!G60)) ->  | B56: =IF(部員名簿!A60="","",MONTH(部員名簿!G60)) ->  | C56: =IF(部員名簿!A60="","",DAY(部員名簿!G60)) ->  | D56: =IF(部員名簿!A60="","",学校番号*100+部員名簿!H60) ->  | E56: =IF(部員名簿!A60="","",部員名簿!C60) ->  | F56: =IF(部員名簿!A60="","",部員名簿!D60) ->  | G56: =IF(部員名簿!A60="","",部員名簿!E60) ->  | H56: =IF(部員名簿!A60="","",部員名簿!F60) ->  | I56: =IF(部員名簿!A60="","",部員名簿!I60) ->  | J56: =IF(部員名簿!A60="","",部員名簿!B60) -> 
A57: =IF(部員名簿!A61="","",YEAR(部員名簿!G61)) ->  | B57: =IF(部員名簿!A61="","",MONTH(部員名簿!G61)) ->  | C57: =IF(部員名簿!A61="","",DAY(部員名簿!G61)) ->  | D57: =IF(部員名簿!A61="","",学校番号*100+部員名簿!H61) ->  | E57: =IF(部員名簿!A61="","",部員名簿!C61) ->  | F57: =IF(部員名簿!A61="","",部員名簿!D61) ->  | G57: =IF(部員名簿!A61="","",部員名簿!E61) ->  | H57: =IF(部員名簿!A61="","",部員名簿!F61) ->  | I57: =IF(部員名簿!A61="","",部員名簿!I61) ->  | J57: =IF(部員名簿!A61="","",部員名簿!B61) -> 
A58: =IF(部員名簿!A62="","",YEAR(部員名簿!G62)) ->  | B58: =IF(部員名簿!A62="","",MONTH(部員名簿!G62)) ->  | C58: =IF(部員名簿!A62="","",DAY(部員名簿!G62)) ->  | D58: =IF(部員名簿!A62="","",学校番号*100+部員名簿!H62) ->  | E58: =IF(部員名簿!A62="","",部員名簿!C62) ->  | F58: =IF(部員名簿!A62="","",部員名簿!D62) ->  | G58: =IF(部員名簿!A62="","",部員名簿!E62) ->  | H58: =IF(部員名簿!A62="","",部員名簿!F62) ->  | I58: =IF(部員名簿!A62="","",部員名簿!I62) ->  | J58: =IF(部員名簿!A62="","",部員名簿!B62) -> 
A59: =IF(部員名簿!A63="","",YEAR(部員名簿!G63)) ->  | B59: =IF(部員名簿!A63="","",MONTH(部員名簿!G63)) ->  | C59: =IF(部員名簿!A63="","",DAY(部員名簿!G63)) ->  | D59: =IF(部員名簿!A63="","",学校番号*100+部員名簿!H63) ->  | E59: =IF(部員名簿!A63="","",部員名簿!C63) ->  | F59: =IF(部員名簿!A63="","",部員名簿!D63) ->  | G59: =IF(部員名簿!A63="","",部員名簿!E63) ->  | H59: =IF(部員名簿!A63="","",部員名簿!F63) ->  | I59: =IF(部員名簿!A63="","",部員名簿!I63) ->  | J59: =IF(部員名簿!A63="","",部員名簿!B63) -> 
A60: =IF(部員名簿!A64="","",YEAR(部員名簿!G64)) ->  | B60: =IF(部員名簿!A64="","",MONTH(部員名簿!G64)) ->  | C60: =IF(部員名簿!A64="","",DAY(部員名簿!G64)) ->  | D60: =IF(部員名簿!A64="","",学校番号*100+部員名簿!H64) ->  | E60: =IF(部員名簿!A64="","",部員名簿!C64) ->  | F60: =IF(部員名簿!A64="","",部員名簿!D64) ->  | G60: =IF(部員名簿!A64="","",部員名簿!E64) ->  | H60: =IF(部員名簿!A64="","",部員名簿!F64) ->  | I60: =IF(部員名簿!A64="","",部員名簿!I64) ->  | J60: =IF(部員名簿!A64="","",部員名簿!B64) -> 
A61: =IF(部員名簿!A65="","",YEAR(部員名簿!G65)) ->  | B61: =IF(部員名簿!A65="","",MONTH(部員名簿!G65)) ->  | C61: =IF(部員名簿!A65="","",DAY(部員名簿!G65)) ->  | D61: =IF(部員名簿!A65="","",学校番号*100+部員名簿!H65) ->  | E61: =IF(部員名簿!A65="","",部員名簿!C65) ->  | F61: =IF(部員名簿!A65="","",部員名簿!D65) ->  | G61: =IF(部員名簿!A65="","",部員名簿!E65) ->  | H61: =IF(部員名簿!A65="","",部員名簿!F65) ->  | I61: =IF(部員名簿!A65="","",部員名簿!I65) ->  | J61: =IF(部員名簿!A65="","",部員名簿!B65) -> 
A62: =IF(部員名簿!A66="","",YEAR(部員名簿!G66)) ->  | B62: =IF(部員名簿!A66="","",MONTH(部員名簿!G66)) ->  | C62: =IF(部員名簿!A66="","",DAY(部員名簿!G66)) ->  | D62: =IF(部員名簿!A66="","",学校番号*100+部員名簿!H66) ->  | E62: =IF(部員名簿!A66="","",部員名簿!C66) ->  | F62: =IF(部員名簿!A66="","",部員名簿!D66) ->  | G62: =IF(部員名簿!A66="","",部員名簿!E66) ->  | H62: =IF(部員名簿!A66="","",部員名簿!F66) ->  | I62: =IF(部員名簿!A66="","",部員名簿!I66) ->  | J62: =IF(部員名簿!A66="","",部員名簿!B66) -> 
A63: =IF(部員名簿!A67="","",YEAR(部員名簿!G67)) ->  | B63: =IF(部員名簿!A67="","",MONTH(部員名簿!G67)) ->  | C63: =IF(部員名簿!A67="","",DAY(部員名簿!G67)) ->  | D63: =IF(部員名簿!A67="","",学校番号*100+部員名簿!H67) ->  | E63: =IF(部員名簿!A67="","",部員名簿!C67) ->  | F63: =IF(部員名簿!A67="","",部員名簿!D67) ->  | G63: =IF(部員名簿!A67="","",部員名簿!E67) ->  | H63: =IF(部員名簿!A67="","",部員名簿!F67) ->  | I63: =IF(部員名簿!A67="","",部員名簿!I67) ->  | J63: =IF(部員名簿!A67="","",部員名簿!B67) -> 
A64: =IF(部員名簿!A68="","",YEAR(部員名簿!G68)) ->  | B64: =IF(部員名簿!A68="","",MONTH(部員名簿!G68)) ->  | C64: =IF(部員名簿!A68="","",DAY(部員名簿!G68)) ->  | D64: =IF(部員名簿!A68="","",学校番号*100+部員名簿!H68) ->  | E64: =IF(部員名簿!A68="","",部員名簿!C68) ->  | F64: =IF(部員名簿!A68="","",部員名簿!D68) ->  | G64: =IF(部員名簿!A68="","",部員名簿!E68) ->  | H64: =IF(部員名簿!A68="","",部員名簿!F68) ->  | I64: =IF(部員名簿!A68="","",部員名簿!I68) ->  | J64: =IF(部員名簿!A68="","",部員名簿!B68) -> 
A65: =IF(部員名簿!A69="","",YEAR(部員名簿!G69)) ->  | B65: =IF(部員名簿!A69="","",MONTH(部員名簿!G69)) ->  | C65: =IF(部員名簿!A69="","",DAY(部員名簿!G69)) ->  | D65: =IF(部員名簿!A69="","",学校番号*100+部員名簿!H69) ->  | E65: =IF(部員名簿!A69="","",部員名簿!C69) ->  | F65: =IF(部員名簿!A69="","",部員名簿!D69) ->  | G65: =IF(部員名簿!A69="","",部員名簿!E69) ->  | H65: =IF(部員名簿!A69="","",部員名簿!F69) ->  | I65: =IF(部員名簿!A69="","",部員名簿!I69) ->  | J65: =IF(部員名簿!A69="","",部員名簿!B69) -> 
A66: =IF(部員名簿!A70="","",YEAR(部員名簿!G70)) ->  | B66: =IF(部員名簿!A70="","",MONTH(部員名簿!G70)) ->  | C66: =IF(部員名簿!A70="","",DAY(部員名簿!G70)) ->  | D66: =IF(部員名簿!A70="","",学校番号*100+部員名簿!H70) ->  | E66: =IF(部員名簿!A70="","",部員名簿!C70) ->  | F66: =IF(部員名簿!A70="","",部員名簿!D70) ->  | G66: =IF(部員名簿!A70="","",部員名簿!E70) ->  | H66: =IF(部員名簿!A70="","",部員名簿!F70) ->  | I66: =IF(部員名簿!A70="","",部員名簿!I70) ->  | J66: =IF(部員名簿!A70="","",部員名簿!B70) -> 
A67: =IF(部員名簿!A71="","",YEAR(部員名簿!G71)) ->  | B67: =IF(部員名簿!A71="","",MONTH(部員名簿!G71)) ->  | C67: =IF(部員名簿!A71="","",DAY(部員名簿!G71)) ->  | D67: =IF(部員名簿!A71="","",学校番号*100+部員名簿!H71) ->  | E67: =IF(部員名簿!A71="","",部員名簿!C71) ->  | F67: =IF(部員名簿!A71="","",部員名簿!D71) ->  | G67: =IF(部員名簿!A71="","",部員名簿!E71) ->  | H67: =IF(部員名簿!A71="","",部員名簿!F71) ->  | I67: =IF(部員名簿!A71="","",部員名簿!I71) ->  | J67: =IF(部員名簿!A71="","",部員名簿!B71) -> 
A68: =IF(部員名簿!A72="","",YEAR(部員名簿!G72)) ->  | B68: =IF(部員名簿!A72="","",MONTH(部員名簿!G72)) ->  | C68: =IF(部員名簿!A72="","",DAY(部員名簿!G72)) ->  | D68: =IF(部員名簿!A72="","",学校番号*100+部員名簿!H72) ->  | E68: =IF(部員名簿!A72="","",部員名簿!C72) ->  | F68: =IF(部員名簿!A72="","",部員名簿!D72) ->  | G68: =IF(部員名簿!A72="","",部員名簿!E72) ->  | H68: =IF(部員名簿!A72="","",部員名簿!F72) ->  | I68: =IF(部員名簿!A72="","",部員名簿!I72) ->  | J68: =IF(部員名簿!A72="","",部員名簿!B72) -> 
A69: =IF(部員名簿!A73="","",YEAR(部員名簿!G73)) ->  | B69: =IF(部員名簿!A73="","",MONTH(部員名簿!G73)) ->  | C69: =IF(部員名簿!A73="","",DAY(部員名簿!G73)) ->  | D69: =IF(部員名簿!A73="","",学校番号*100+部員名簿!H73) ->  | E69: =IF(部員名簿!A73="","",部員名簿!C73) ->  | F69: =IF(部員名簿!A73="","",部員名簿!D73) ->  | G69: =IF(部員名簿!A73="","",部員名簿!E73) ->  | H69: =IF(部員名簿!A73="","",部員名簿!F73) ->  | I69: =IF(部員名簿!A73="","",部員名簿!I73) ->  | J69: =IF(部員名簿!A73="","",部員名簿!B73) -> 
A70: =IF(部員名簿!A74="","",YEAR(部員名簿!G74)) ->  | B70: =IF(部員名簿!A74="","",MONTH(部員名簿!G74)) ->  | C70: =IF(部員名簿!A74="","",DAY(部員名簿!G74)) ->  | D70: =IF(部員名簿!A74="","",学校番号*100+部員名簿!H74) ->  | E70: =IF(部員名簿!A74="","",部員名簿!C74) ->  | F70: =IF(部員名簿!A74="","",部員名簿!D74) ->  | G70: =IF(部員名簿!A74="","",部員名簿!E74) ->  | H70: =IF(部員名簿!A74="","",部員名簿!F74) ->  | I70: =IF(部員名簿!A74="","",部員名簿!I74) ->  | J70: =IF(部員名簿!A74="","",部員名簿!B74) -> 
A71: =IF(部員名簿!A75="","",YEAR(部員名簿!G75)) ->  | B71: =IF(部員名簿!A75="","",MONTH(部員名簿!G75)) ->  | C71: =IF(部員名簿!A75="","",DAY(部員名簿!G75)) ->  | D71: =IF(部員名簿!A75="","",学校番号*100+部員名簿!H75) ->  | E71: =IF(部員名簿!A75="","",部員名簿!C75) ->  | F71: =IF(部員名簿!A75="","",部員名簿!D75) ->  | G71: =IF(部員名簿!A75="","",部員名簿!E75) ->  | H71: =IF(部員名簿!A75="","",部員名簿!F75) ->  | I71: =IF(部員名簿!A75="","",部員名簿!I75) ->  | J71: =IF(部員名簿!A75="","",部員名簿!B75) -> 
A72: =IF(部員名簿!A76="","",YEAR(部員名簿!G76)) ->  | B72: =IF(部員名簿!A76="","",MONTH(部員名簿!G76)) ->  | C72: =IF(部員名簿!A76="","",DAY(部員名簿!G76)) ->  | D72: =IF(部員名簿!A76="","",学校番号*100+部員名簿!H76) ->  | E72: =IF(部員名簿!A76="","",部員名簿!C76) ->  | F72: =IF(部員名簿!A76="","",部員名簿!D76) ->  | G72: =IF(部員名簿!A76="","",部員名簿!E76) ->  | H72: =IF(部員名簿!A76="","",部員名簿!F76) ->  | I72: =IF(部員名簿!A76="","",部員名簿!I76) ->  | J72: =IF(部員名簿!A76="","",部員名簿!B76) -> 
A73: =IF(部員名簿!A77="","",YEAR(部員名簿!G77)) ->  | B73: =IF(部員名簿!A77="","",MONTH(部員名簿!G77)) ->  | C73: =IF(部員名簿!A77="","",DAY(部員名簿!G77)) ->  | D73: =IF(部員名簿!A77="","",学校番号*100+部員名簿!H77) ->  | E73: =IF(部員名簿!A77="","",部員名簿!C77) ->  | F73: =IF(部員名簿!A77="","",部員名簿!D77) ->  | G73: =IF(部員名簿!A77="","",部員名簿!E77) ->  | H73: =IF(部員名簿!A77="","",部員名簿!F77) ->  | I73: =IF(部員名簿!A77="","",部員名簿!I77) ->  | J73: =IF(部員名簿!A77="","",部員名簿!B77) -> 
A74: =IF(部員名簿!A78="","",YEAR(部員名簿!G78)) ->  | B74: =IF(部員名簿!A78="","",MONTH(部員名簿!G78)) ->  | C74: =IF(部員名簿!A78="","",DAY(部員名簿!G78)) ->  | D74: =IF(部員名簿!A78="","",学校番号*100+部員名簿!H78) ->  | E74: =IF(部員名簿!A78="","",部員名簿!C78) ->  | F74: =IF(部員名簿!A78="","",部員名簿!D78) ->  | G74: =IF(部員名簿!A78="","",部員名簿!E78) ->  | H74: =IF(部員名簿!A78="","",部員名簿!F78) ->  | I74: =IF(部員名簿!A78="","",部員名簿!I78) ->  | J74: =IF(部員名簿!A78="","",部員名簿!B78) -> 
A75: =IF(部員名簿!A79="","",YEAR(部員名簿!G79)) ->  | B75: =IF(部員名簿!A79="","",MONTH(部員名簿!G79)) ->  | C75: =IF(部員名簿!A79="","",DAY(部員名簿!G79)) ->  | D75: =IF(部員名簿!A79="","",学校番号*100+部員名簿!H79) ->  | E75: =IF(部員名簿!A79="","",部員名簿!C79) ->  | F75: =IF(部員名簿!A79="","",部員名簿!D79) ->  | G75: =IF(部員名簿!A79="","",部員名簿!E79) ->  | H75: =IF(部員名簿!A79="","",部員名簿!F79) ->  | I75: =IF(部員名簿!A79="","",部員名簿!I79) ->  | J75: =IF(部員名簿!A79="","",部員名簿!B79) -> 
A76: =IF(部員名簿!A80="","",YEAR(部員名簿!G80)) ->  | B76: =IF(部員名簿!A80="","",MONTH(部員名簿!G80)) ->  | C76: =IF(部員名簿!A80="","",DAY(部員名簿!G80)) ->  | D76: =IF(部員名簿!A80="","",学校番号*100+部員名簿!H80) ->  | E76: =IF(部員名簿!A80="","",部員名簿!C80) ->  | F76: =IF(部員名簿!A80="","",部員名簿!D80) ->  | G76: =IF(部員名簿!A80="","",部員名簿!E80) ->  | H76: =IF(部員名簿!A80="","",部員名簿!F80) ->  | I76: =IF(部員名簿!A80="","",部員名簿!I80) ->  | J76: =IF(部員名簿!A80="","",部員名簿!B80) -> 
A77: =IF(部員名簿!A81="","",YEAR(部員名簿!G81)) ->  | B77: =IF(部員名簿!A81="","",MONTH(部員名簿!G81)) ->  | C77: =IF(部員名簿!A81="","",DAY(部員名簿!G81)) ->  | D77: =IF(部員名簿!A81="","",学校番号*100+部員名簿!H81) ->  | E77: =IF(部員名簿!A81="","",部員名簿!C81) ->  | F77: =IF(部員名簿!A81="","",部員名簿!D81) ->  | G77: =IF(部員名簿!A81="","",部員名簿!E81) ->  | H77: =IF(部員名簿!A81="","",部員名簿!F81) ->  | I77: =IF(部員名簿!A81="","",部員名簿!I81) ->  | J77: =IF(部員名簿!A81="","",部員名簿!B81) -> 
A78: =IF(部員名簿!A82="","",YEAR(部員名簿!G82)) ->  | B78: =IF(部員名簿!A82="","",MONTH(部員名簿!G82)) ->  | C78: =IF(部員名簿!A82="","",DAY(部員名簿!G82)) ->  | D78: =IF(部員名簿!A82="","",学校番号*100+部員名簿!H82) ->  | E78: =IF(部員名簿!A82="","",部員名簿!C82) ->  | F78: =IF(部員名簿!A82="","",部員名簿!D82) ->  | G78: =IF(部員名簿!A82="","",部員名簿!E82) ->  | H78: =IF(部員名簿!A82="","",部員名簿!F82) ->  | I78: =IF(部員名簿!A82="","",部員名簿!I82) ->  | J78: =IF(部員名簿!A82="","",部員名簿!B82) -> 
A79: =IF(部員名簿!A83="","",YEAR(部員名簿!G83)) ->  | B79: =IF(部員名簿!A83="","",MONTH(部員名簿!G83)) ->  | C79: =IF(部員名簿!A83="","",DAY(部員名簿!G83)) ->  | D79: =IF(部員名簿!A83="","",学校番号*100+部員名簿!H83) ->  | E79: =IF(部員名簿!A83="","",部員名簿!C83) ->  | F79: =IF(部員名簿!A83="","",部員名簿!D83) ->  | G79: =IF(部員名簿!A83="","",部員名簿!E83) ->  | H79: =IF(部員名簿!A83="","",部員名簿!F83) ->  | I79: =IF(部員名簿!A83="","",部員名簿!I83) ->  | J79: =IF(部員名簿!A83="","",部員名簿!B83) -> 
A80: =IF(部員名簿!A84="","",YEAR(部員名簿!G84)) ->  | B80: =IF(部員名簿!A84="","",MONTH(部員名簿!G84)) ->  | C80: =IF(部員名簿!A84="","",DAY(部員名簿!G84)) ->  | D80: =IF(部員名簿!A84="","",学校番号*100+部員名簿!H84) ->  | E80: =IF(部員名簿!A84="","",部員名簿!C84) ->  | F80: =IF(部員名簿!A84="","",部員名簿!D84) ->  | G80: =IF(部員名簿!A84="","",部員名簿!E84) ->  | H80: =IF(部員名簿!A84="","",部員名簿!F84) ->  | I80: =IF(部員名簿!A84="","",部員名簿!I84) ->  | J80: =IF(部員名簿!A84="","",部員名簿!B84) -> 
A81: =IF(部員名簿!A85="","",YEAR(部員名簿!G85)) ->  | B81: =IF(部員名簿!A85="","",MONTH(部員名簿!G85)) ->  | C81: =IF(部員名簿!A85="","",DAY(部員名簿!G85)) ->  | D81: =IF(部員名簿!A85="","",学校番号*100+部員名簿!H85) ->  | E81: =IF(部員名簿!A85="","",部員名簿!C85) ->  | F81: =IF(部員名簿!A85="","",部員名簿!D85) ->  | G81: =IF(部員名簿!A85="","",部員名簿!E85) ->  | H81: =IF(部員名簿!A85="","",部員名簿!F85) ->  | I81: =IF(部員名簿!A85="","",部員名簿!I85) ->  | J81: =IF(部員名簿!A85="","",部員名簿!B85) -> 
A82: =IF(部員名簿!A86="","",YEAR(部員名簿!G86)) ->  | B82: =IF(部員名簿!A86="","",MONTH(部員名簿!G86)) ->  | C82: =IF(部員名簿!A86="","",DAY(部員名簿!G86)) ->  | D82: =IF(部員名簿!A86="","",学校番号*100+部員名簿!H86) ->  | E82: =IF(部員名簿!A86="","",部員名簿!C86) ->  | F82: =IF(部員名簿!A86="","",部員名簿!D86) ->  | G82: =IF(部員名簿!A86="","",部員名簿!E86) ->  | H82: =IF(部員名簿!A86="","",部員名簿!F86) ->  | I82: =IF(部員名簿!A86="","",部員名簿!I86) ->  | J82: =IF(部員名簿!A86="","",部員名簿!B86) -> 
A83: =IF(部員名簿!A87="","",YEAR(部員名簿!G87)) ->  | B83: =IF(部員名簿!A87="","",MONTH(部員名簿!G87)) ->  | C83: =IF(部員名簿!A87="","",DAY(部員名簿!G87)) ->  | D83: =IF(部員名簿!A87="","",学校番号*100+部員名簿!H87) ->  | E83: =IF(部員名簿!A87="","",部員名簿!C87) ->  | F83: =IF(部員名簿!A87="","",部員名簿!D87) ->  | G83: =IF(部員名簿!A87="","",部員名簿!E87) ->  | H83: =IF(部員名簿!A87="","",部員名簿!F87) ->  | I83: =IF(部員名簿!A87="","",部員名簿!I87) ->  | J83: =IF(部員名簿!A87="","",部員名簿!B87) -> 
A84: =IF(部員名簿!A88="","",YEAR(部員名簿!G88)) ->  | B84: =IF(部員名簿!A88="","",MONTH(部員名簿!G88)) ->  | C84: =IF(部員名簿!A88="","",DAY(部員名簿!G88)) ->  | D84: =IF(部員名簿!A88="","",学校番号*100+部員名簿!H88) ->  | E84: =IF(部員名簿!A88="","",部員名簿!C88) ->  | F84: =IF(部員名簿!A88="","",部員名簿!D88) ->  | G84: =IF(部員名簿!A88="","",部員名簿!E88) ->  | H84: =IF(部員名簿!A88="","",部員名簿!F88) ->  | I84: =IF(部員名簿!A88="","",部員名簿!I88) ->  | J84: =IF(部員名簿!A88="","",部員名簿!B88) -> 
A85: =IF(部員名簿!A89="","",YEAR(部員名簿!G89)) ->  | B85: =IF(部員名簿!A89="","",MONTH(部員名簿!G89)) ->  | C85: =IF(部員名簿!A89="","",DAY(部員名簿!G89)) ->  | D85: =IF(部員名簿!A89="","",学校番号*100+部員名簿!H89) ->  | E85: =IF(部員名簿!A89="","",部員名簿!C89) ->  | F85: =IF(部員名簿!A89="","",部員名簿!D89) ->  | G85: =IF(部員名簿!A89="","",部員名簿!E89) ->  | H85: =IF(部員名簿!A89="","",部員名簿!F89) ->  | I85: =IF(部員名簿!A89="","",部員名簿!I89) ->  | J85: =IF(部員名簿!A89="","",部員名簿!B89) -> 
A86: =IF(部員名簿!A90="","",YEAR(部員名簿!G90)) ->  | B86: =IF(部員名簿!A90="","",MONTH(部員名簿!G90)) ->  | C86: =IF(部員名簿!A90="","",DAY(部員名簿!G90)) ->  | D86: =IF(部員名簿!A90="","",学校番号*100+部員名簿!H90) ->  | E86: =IF(部員名簿!A90="","",部員名簿!C90) ->  | F86: =IF(部員名簿!A90="","",部員名簿!D90) ->  | G86: =IF(部員名簿!A90="","",部員名簿!E90) ->  | H86: =IF(部員名簿!A90="","",部員名簿!F90) ->  | I86: =IF(部員名簿!A90="","",部員名簿!I90) ->  | J86: =IF(部員名簿!A90="","",部員名簿!B90) -> 
A87: =IF(部員名簿!A91="","",YEAR(部員名簿!G91)) ->  | B87: =IF(部員名簿!A91="","",MONTH(部員名簿!G91)) ->  | C87: =IF(部員名簿!A91="","",DAY(部員名簿!G91)) ->  | D87: =IF(部員名簿!A91="","",学校番号*100+部員名簿!H91) ->  | E87: =IF(部員名簿!A91="","",部員名簿!C91) ->  | F87: =IF(部員名簿!A91="","",部員名簿!D91) ->  | G87: =IF(部員名簿!A91="","",部員名簿!E91) ->  | H87: =IF(部員名簿!A91="","",部員名簿!F91) ->  | I87: =IF(部員名簿!A91="","",部員名簿!I91) ->  | J87: =IF(部員名簿!A91="","",部員名簿!B91) -> 
A88: =IF(部員名簿!A92="","",YEAR(部員名簿!G92)) ->  | B88: =IF(部員名簿!A92="","",MONTH(部員名簿!G92)) ->  | C88: =IF(部員名簿!A92="","",DAY(部員名簿!G92)) ->  | D88: =IF(部員名簿!A92="","",学校番号*100+部員名簿!H92) ->  | E88: =IF(部員名簿!A92="","",部員名簿!C92) ->  | F88: =IF(部員名簿!A92="","",部員名簿!D92) ->  | G88: =IF(部員名簿!A92="","",部員名簿!E92) ->  | H88: =IF(部員名簿!A92="","",部員名簿!F92) ->  | I88: =IF(部員名簿!A92="","",部員名簿!I92) ->  | J88: =IF(部員名簿!A92="","",部員名簿!B92) -> 
A89: =IF(部員名簿!A93="","",YEAR(部員名簿!G93)) ->  | B89: =IF(部員名簿!A93="","",MONTH(部員名簿!G93)) ->  | C89: =IF(部員名簿!A93="","",DAY(部員名簿!G93)) ->  | D89: =IF(部員名簿!A93="","",学校番号*100+部員名簿!H93) ->  | E89: =IF(部員名簿!A93="","",部員名簿!C93) ->  | F89: =IF(部員名簿!A93="","",部員名簿!D93) ->  | G89: =IF(部員名簿!A93="","",部員名簿!E93) ->  | H89: =IF(部員名簿!A93="","",部員名簿!F93) ->  | I89: =IF(部員名簿!A93="","",部員名簿!I93) ->  | J89: =IF(部員名簿!A93="","",部員名簿!B93) -> 
A90: =IF(部員名簿!A94="","",YEAR(部員名簿!G94)) ->  | B90: =IF(部員名簿!A94="","",MONTH(部員名簿!G94)) ->  | C90: =IF(部員名簿!A94="","",DAY(部員名簿!G94)) ->  | D90: =IF(部員名簿!A94="","",学校番号*100+部員名簿!H94) ->  | E90: =IF(部員名簿!A94="","",部員名簿!C94) ->  | F90: =IF(部員名簿!A94="","",部員名簿!D94) ->  | G90: =IF(部員名簿!A94="","",部員名簿!E94) ->  | H90: =IF(部員名簿!A94="","",部員名簿!F94) ->  | I90: =IF(部員名簿!A94="","",部員名簿!I94) ->  | J90: =IF(部員名簿!A94="","",部員名簿!B94) -> 
A91: =IF(部員名簿!A95="","",YEAR(部員名簿!G95)) ->  | B91: =IF(部員名簿!A95="","",MONTH(部員名簿!G95)) ->  | C91: =IF(部員名簿!A95="","",DAY(部員名簿!G95)) ->  | D91: =IF(部員名簿!A95="","",学校番号*100+部員名簿!H95) ->  | E91: =IF(部員名簿!A95="","",部員名簿!C95) ->  | F91: =IF(部員名簿!A95="","",部員名簿!D95) ->  | G91: =IF(部員名簿!A95="","",部員名簿!E95) ->  | H91: =IF(部員名簿!A95="","",部員名簿!F95) ->  | I91: =IF(部員名簿!A95="","",部員名簿!I95) ->  | J91: =IF(部員名簿!A95="","",部員名簿!B95) -> 
A92: =IF(部員名簿!A96="","",YEAR(部員名簿!G96)) ->  | B92: =IF(部員名簿!A96="","",MONTH(部員名簿!G96)) ->  | C92: =IF(部員名簿!A96="","",DAY(部員名簿!G96)) ->  | D92: =IF(部員名簿!A96="","",学校番号*100+部員名簿!H96) ->  | E92: =IF(部員名簿!A96="","",部員名簿!C96) ->  | F92: =IF(部員名簿!A96="","",部員名簿!D96) ->  | G92: =IF(部員名簿!A96="","",部員名簿!E96) ->  | H92: =IF(部員名簿!A96="","",部員名簿!F96) ->  | I92: =IF(部員名簿!A96="","",部員名簿!I96) ->  | J92: =IF(部員名簿!A96="","",部員名簿!B96) -> 
A93: =IF(部員名簿!A97="","",YEAR(部員名簿!G97)) ->  | B93: =IF(部員名簿!A97="","",MONTH(部員名簿!G97)) ->  | C93: =IF(部員名簿!A97="","",DAY(部員名簿!G97)) ->  | D93: =IF(部員名簿!A97="","",学校番号*100+部員名簿!H97) ->  | E93: =IF(部員名簿!A97="","",部員名簿!C97) ->  | F93: =IF(部員名簿!A97="","",部員名簿!D97) ->  | G93: =IF(部員名簿!A97="","",部員名簿!E97) ->  | H93: =IF(部員名簿!A97="","",部員名簿!F97) ->  | I93: =IF(部員名簿!A97="","",部員名簿!I97) ->  | J93: =IF(部員名簿!A97="","",部員名簿!B97) -> 
A94: =IF(部員名簿!A98="","",YEAR(部員名簿!G98)) ->  | B94: =IF(部員名簿!A98="","",MONTH(部員名簿!G98)) ->  | C94: =IF(部員名簿!A98="","",DAY(部員名簿!G98)) ->  | D94: =IF(部員名簿!A98="","",学校番号*100+部員名簿!H98) ->  | E94: =IF(部員名簿!A98="","",部員名簿!C98) ->  | F94: =IF(部員名簿!A98="","",部員名簿!D98) ->  | G94: =IF(部員名簿!A98="","",部員名簿!E98) ->  | H94: =IF(部員名簿!A98="","",部員名簿!F98) ->  | I94: =IF(部員名簿!A98="","",部員名簿!I98) ->  | J94: =IF(部員名簿!A98="","",部員名簿!B98) -> 
A95: =IF(部員名簿!A99="","",YEAR(部員名簿!G99)) ->  | B95: =IF(部員名簿!A99="","",MONTH(部員名簿!G99)) ->  | C95: =IF(部員名簿!A99="","",DAY(部員名簿!G99)) ->  | D95: =IF(部員名簿!A99="","",学校番号*100+部員名簿!H99) ->  | E95: =IF(部員名簿!A99="","",部員名簿!C99) ->  | F95: =IF(部員名簿!A99="","",部員名簿!D99) ->  | G95: =IF(部員名簿!A99="","",部員名簿!E99) ->  | H95: =IF(部員名簿!A99="","",部員名簿!F99) ->  | I95: =IF(部員名簿!A99="","",部員名簿!I99) ->  | J95: =IF(部員名簿!A99="","",部員名簿!B99) -> 
A96: =IF(部員名簿!A100="","",YEAR(部員名簿!G100)) ->  | B96: =IF(部員名簿!A100="","",MONTH(部員名簿!G100)) ->  | C96: =IF(部員名簿!A100="","",DAY(部員名簿!G100)) ->  | D96: =IF(部員名簿!A100="","",学校番号*100+部員名簿!H100) ->  | E96: =IF(部員名簿!A100="","",部員名簿!C100) ->  | F96: =IF(部員名簿!A100="","",部員名簿!D100) ->  | G96: =IF(部員名簿!A100="","",部員名簿!E100) ->  | H96: =IF(部員名簿!A100="","",部員名簿!F100) ->  | I96: =IF(部員名簿!A100="","",部員名簿!I100) ->  | J96: =IF(部員名簿!A100="","",部員名簿!B100) -> 
A97: =IF(部員名簿!A101="","",YEAR(部員名簿!G101)) ->  | B97: =IF(部員名簿!A101="","",MONTH(部員名簿!G101)) ->  | C97: =IF(部員名簿!A101="","",DAY(部員名簿!G101)) ->  | D97: =IF(部員名簿!A101="","",学校番号*100+部員名簿!H101) ->  | E97: =IF(部員名簿!A101="","",部員名簿!C101) ->  | F97: =IF(部員名簿!A101="","",部員名簿!D101) ->  | G97: =IF(部員名簿!A101="","",部員名簿!E101) ->  | H97: =IF(部員名簿!A101="","",部員名簿!F101) ->  | I97: =IF(部員名簿!A101="","",部員名簿!I101) ->  | J97: =IF(部員名簿!A101="","",部員名簿!B101) -> 
A98: =IF(部員名簿!A102="","",YEAR(部員名簿!G102)) ->  | B98: =IF(部員名簿!A102="","",MONTH(部員名簿!G102)) ->  | C98: =IF(部員名簿!A102="","",DAY(部員名簿!G102)) ->  | D98: =IF(部員名簿!A102="","",学校番号*100+部員名簿!H102) ->  | E98: =IF(部員名簿!A102="","",部員名簿!C102) ->  | F98: =IF(部員名簿!A102="","",部員名簿!D102) ->  | G98: =IF(部員名簿!A102="","",部員名簿!E102) ->  | H98: =IF(部員名簿!A102="","",部員名簿!F102) ->  | I98: =IF(部員名簿!A102="","",部員名簿!I102) ->  | J98: =IF(部員名簿!A102="","",部員名簿!B102) -> 
A99: =IF(部員名簿!A103="","",YEAR(部員名簿!G103)) ->  | B99: =IF(部員名簿!A103="","",MONTH(部員名簿!G103)) ->  | C99: =IF(部員名簿!A103="","",DAY(部員名簿!G103)) ->  | D99: =IF(部員名簿!A103="","",学校番号*100+部員名簿!H103) ->  | E99: =IF(部員名簿!A103="","",部員名簿!C103) ->  | F99: =IF(部員名簿!A103="","",部員名簿!D103) ->  | G99: =IF(部員名簿!A103="","",部員名簿!E103) ->  | H99: =IF(部員名簿!A103="","",部員名簿!F103) ->  | I99: =IF(部員名簿!A103="","",部員名簿!I103) ->  | J99: =IF(部員名簿!A103="","",部員名簿!B103) -> 
A100: =IF(部員名簿!A104="","",YEAR(部員名簿!G104)) ->  | B100: =IF(部員名簿!A104="","",MONTH(部員名簿!G104)) ->  | C100: =IF(部員名簿!A104="","",DAY(部員名簿!G104)) ->  | D100: =IF(部員名簿!A104="","",学校番号*100+部員名簿!H104) ->  | E100: =IF(部員名簿!A104="","",部員名簿!C104) ->  | F100: =IF(部員名簿!A104="","",部員名簿!D104) ->  | G100: =IF(部員名簿!A104="","",部員名簿!E104) ->  | H100: =IF(部員名簿!A104="","",部員名簿!F104) ->  | I100: =IF(部員名簿!A104="","",部員名簿!I104) ->  | J100: =IF(部員名簿!A104="","",部員名簿!B104) -> 
A101: =IF(部員名簿!A105="","",YEAR(部員名簿!G105)) ->  | B101: =IF(部員名簿!A105="","",MONTH(部員名簿!G105)) ->  | C101: =IF(部員名簿!A105="","",DAY(部員名簿!G105)) ->  | D101: =IF(部員名簿!A105="","",学校番号*100+部員名簿!H105) ->  | E101: =IF(部員名簿!A105="","",部員名簿!C105) ->  | F101: =IF(部員名簿!A105="","",部員名簿!D105) ->  | G101: =IF(部員名簿!A105="","",部員名簿!E105) ->  | H101: =IF(部員名簿!A105="","",部員名簿!F105) ->  | I101: =IF(部員名簿!A105="","",部員名簿!I105) ->  | J101: =IF(部員名簿!A105="","",部員名簿!B105) -> 
A102: =IF(部員名簿!A106="","",YEAR(部員名簿!G106)) ->  | B102: =IF(部員名簿!A106="","",MONTH(部員名簿!G106)) ->  | C102: =IF(部員名簿!A106="","",DAY(部員名簿!G106)) ->  | D102: =IF(部員名簿!A106="","",学校番号*100+部員名簿!H106) ->  | E102: =IF(部員名簿!A106="","",部員名簿!C106) ->  | F102: =IF(部員名簿!A106="","",部員名簿!D106) ->  | G102: =IF(部員名簿!A106="","",部員名簿!E106) ->  | H102: =IF(部員名簿!A106="","",部員名簿!F106) ->  | I102: =IF(部員名簿!A106="","",部員名簿!I106) ->  | J102: =IF(部員名簿!A106="","",部員名簿!B106) -> 
A103: =IF(部員名簿!A107="","",YEAR(部員名簿!G107)) ->  | B103: =IF(部員名簿!A107="","",MONTH(部員名簿!G107)) ->  | C103: =IF(部員名簿!A107="","",DAY(部員名簿!G107)) ->  | D103: =IF(部員名簿!A107="","",学校番号*100+部員名簿!H107) ->  | E103: =IF(部員名簿!A107="","",部員名簿!C107) ->  | F103: =IF(部員名簿!A107="","",部員名簿!D107) ->  | G103: =IF(部員名簿!A107="","",部員名簿!E107) ->  | H103: =IF(部員名簿!A107="","",部員名簿!F107) ->  | I103: =IF(部員名簿!A107="","",部員名簿!I107) ->  | J103: =IF(部員名簿!A107="","",部員名簿!B107) -> 
A104: =IF(部員名簿!A108="","",YEAR(部員名簿!G108)) ->  | B104: =IF(部員名簿!A108="","",MONTH(部員名簿!G108)) ->  | C104: =IF(部員名簿!A108="","",DAY(部員名簿!G108)) ->  | D104: =IF(部員名簿!A108="","",学校番号*100+部員名簿!H108) ->  | E104: =IF(部員名簿!A108="","",部員名簿!C108) ->  | F104: =IF(部員名簿!A108="","",部員名簿!D108) ->  | G104: =IF(部員名簿!A108="","",部員名簿!E108) ->  | H104: =IF(部員名簿!A108="","",部員名簿!F108) ->  | I104: =IF(部員名簿!A108="","",部員名簿!I108) ->  | J104: =IF(部員名簿!A108="","",部員名簿!B108) -> 
A105: =IF(部員名簿!A109="","",YEAR(部員名簿!G109)) ->  | B105: =IF(部員名簿!A109="","",MONTH(部員名簿!G109)) ->  | C105: =IF(部員名簿!A109="","",DAY(部員名簿!G109)) ->  | D105: =IF(部員名簿!A109="","",学校番号*100+部員名簿!H109) ->  | E105: =IF(部員名簿!A109="","",部員名簿!C109) ->  | F105: =IF(部員名簿!A109="","",部員名簿!D109) ->  | G105: =IF(部員名簿!A109="","",部員名簿!E109) ->  | H105: =IF(部員名簿!A109="","",部員名簿!F109) ->  | I105: =IF(部員名簿!A109="","",部員名簿!I109) ->  | J105: =IF(部員名簿!A109="","",部員名簿!B109) -> 
A106: =IF(部員名簿!A110="","",YEAR(部員名簿!G110)) ->  | B106: =IF(部員名簿!A110="","",MONTH(部員名簿!G110)) ->  | C106: =IF(部員名簿!A110="","",DAY(部員名簿!G110)) ->  | D106: =IF(部員名簿!A110="","",学校番号*100+部員名簿!H110) ->  | E106: =IF(部員名簿!A110="","",部員名簿!C110) ->  | F106: =IF(部員名簿!A110="","",部員名簿!D110) ->  | G106: =IF(部員名簿!A110="","",部員名簿!E110) ->  | H106: =IF(部員名簿!A110="","",部員名簿!F110) ->  | I106: =IF(部員名簿!A110="","",部員名簿!I110) ->  | J106: =IF(部員名簿!A110="","",部員名簿!B110) -> 
A107: =IF(部員名簿!A111="","",YEAR(部員名簿!G111)) ->  | B107: =IF(部員名簿!A111="","",MONTH(部員名簿!G111)) ->  | C107: =IF(部員名簿!A111="","",DAY(部員名簿!G111)) ->  | D107: =IF(部員名簿!A111="","",学校番号*100+部員名簿!H111) ->  | E107: =IF(部員名簿!A111="","",部員名簿!C111) ->  | F107: =IF(部員名簿!A111="","",部員名簿!D111) ->  | G107: =IF(部員名簿!A111="","",部員名簿!E111) ->  | H107: =IF(部員名簿!A111="","",部員名簿!F111) ->  | I107: =IF(部員名簿!A111="","",部員名簿!I111) ->  | J107: =IF(部員名簿!A111="","",部員名簿!B111) -> 
A108: =IF(部員名簿!A112="","",YEAR(部員名簿!G112)) ->  | B108: =IF(部員名簿!A112="","",MONTH(部員名簿!G112)) ->  | C108: =IF(部員名簿!A112="","",DAY(部員名簿!G112)) ->  | D108: =IF(部員名簿!A112="","",学校番号*100+部員名簿!H112) ->  | E108: =IF(部員名簿!A112="","",部員名簿!C112) ->  | F108: =IF(部員名簿!A112="","",部員名簿!D112) ->  | G108: =IF(部員名簿!A112="","",部員名簿!E112) ->  | H108: =IF(部員名簿!A112="","",部員名簿!F112) ->  | I108: =IF(部員名簿!A112="","",部員名簿!I112) ->  | J108: =IF(部員名簿!A112="","",部員名簿!B112) -> 
A109: =IF(部員名簿!A113="","",YEAR(部員名簿!G113)) ->  | B109: =IF(部員名簿!A113="","",MONTH(部員名簿!G113)) ->  | C109: =IF(部員名簿!A113="","",DAY(部員名簿!G113)) ->  | D109: =IF(部員名簿!A113="","",学校番号*100+部員名簿!H113) ->  | E109: =IF(部員名簿!A113="","",部員名簿!C113) ->  | F109: =IF(部員名簿!A113="","",部員名簿!D113) ->  | G109: =IF(部員名簿!A113="","",部員名簿!E113) ->  | H109: =IF(部員名簿!A113="","",部員名簿!F113) ->  | I109: =IF(部員名簿!A113="","",部員名簿!I113) ->  | J109: =IF(部員名簿!A113="","",部員名簿!B113) -> 
A110: =IF(部員名簿!A114="","",YEAR(部員名簿!G114)) ->  | B110: =IF(部員名簿!A114="","",MONTH(部員名簿!G114)) ->  | C110: =IF(部員名簿!A114="","",DAY(部員名簿!G114)) ->  | D110: =IF(部員名簿!A114="","",学校番号*100+部員名簿!H114) ->  | E110: =IF(部員名簿!A114="","",部員名簿!C114) ->  | F110: =IF(部員名簿!A114="","",部員名簿!D114) ->  | G110: =IF(部員名簿!A114="","",部員名簿!E114) ->  | H110: =IF(部員名簿!A114="","",部員名簿!F114) ->  | I110: =IF(部員名簿!A114="","",部員名簿!I114) ->  | J110: =IF(部員名簿!A114="","",部員名簿!B114) -> 
A111: =IF(部員名簿!A115="","",YEAR(部員名簿!G115)) ->  | B111: =IF(部員名簿!A115="","",MONTH(部員名簿!G115)) ->  | C111: =IF(部員名簿!A115="","",DAY(部員名簿!G115)) ->  | D111: =IF(部員名簿!A115="","",学校番号*100+部員名簿!H115) ->  | E111: =IF(部員名簿!A115="","",部員名簿!C115) ->  | F111: =IF(部員名簿!A115="","",部員名簿!D115) ->  | G111: =IF(部員名簿!A115="","",部員名簿!E115) ->  | H111: =IF(部員名簿!A115="","",部員名簿!F115) ->  | I111: =IF(部員名簿!A115="","",部員名簿!I115) ->  | J111: =IF(部員名簿!A115="","",部員名簿!B115) -> 
A112: =IF(部員名簿!A116="","",YEAR(部員名簿!G116)) ->  | B112: =IF(部員名簿!A116="","",MONTH(部員名簿!G116)) ->  | C112: =IF(部員名簿!A116="","",DAY(部員名簿!G116)) ->  | D112: =IF(部員名簿!A116="","",学校番号*100+部員名簿!H116) ->  | E112: =IF(部員名簿!A116="","",部員名簿!C116) ->  | F112: =IF(部員名簿!A116="","",部員名簿!D116) ->  | G112: =IF(部員名簿!A116="","",部員名簿!E116) ->  | H112: =IF(部員名簿!A116="","",部員名簿!F116) ->  | I112: =IF(部員名簿!A116="","",部員名簿!I116) ->  | J112: =IF(部員名簿!A116="","",部員名簿!B116) -> 
A113: =IF(部員名簿!A117="","",YEAR(部員名簿!G117)) ->  | B113: =IF(部員名簿!A117="","",MONTH(部員名簿!G117)) ->  | C113: =IF(部員名簿!A117="","",DAY(部員名簿!G117)) ->  | D113: =IF(部員名簿!A117="","",学校番号*100+部員名簿!H117) ->  | E113: =IF(部員名簿!A117="","",部員名簿!C117) ->  | F113: =IF(部員名簿!A117="","",部員名簿!D117) ->  | G113: =IF(部員名簿!A117="","",部員名簿!E117) ->  | H113: =IF(部員名簿!A117="","",部員名簿!F117) ->  | I113: =IF(部員名簿!A117="","",部員名簿!I117) ->  | J113: =IF(部員名簿!A117="","",部員名簿!B117) -> 
A114: =IF(部員名簿!A118="","",YEAR(部員名簿!G118)) ->  | B114: =IF(部員名簿!A118="","",MONTH(部員名簿!G118)) ->  | C114: =IF(部員名簿!A118="","",DAY(部員名簿!G118)) ->  | D114: =IF(部員名簿!A118="","",学校番号*100+部員名簿!H118) ->  | E114: =IF(部員名簿!A118="","",部員名簿!C118) ->  | F114: =IF(部員名簿!A118="","",部員名簿!D118) ->  | G114: =IF(部員名簿!A118="","",部員名簿!E118) ->  | H114: =IF(部員名簿!A118="","",部員名簿!F118) ->  | I114: =IF(部員名簿!A118="","",部員名簿!I118) ->  | J114: =IF(部員名簿!A118="","",部員名簿!B118) -> 
A115: =IF(部員名簿!A119="","",YEAR(部員名簿!G119)) ->  | B115: =IF(部員名簿!A119="","",MONTH(部員名簿!G119)) ->  | C115: =IF(部員名簿!A119="","",DAY(部員名簿!G119)) ->  | D115: =IF(部員名簿!A119="","",学校番号*100+部員名簿!H119) ->  | E115: =IF(部員名簿!A119="","",部員名簿!C119) ->  | F115: =IF(部員名簿!A119="","",部員名簿!D119) ->  | G115: =IF(部員名簿!A119="","",部員名簿!E119) ->  | H115: =IF(部員名簿!A119="","",部員名簿!F119) ->  | I115: =IF(部員名簿!A119="","",部員名簿!I119) ->  | J115: =IF(部員名簿!A119="","",部員名簿!B119) -> 
A116: =IF(部員名簿!A120="","",YEAR(部員名簿!G120)) ->  | B116: =IF(部員名簿!A120="","",MONTH(部員名簿!G120)) ->  | C116: =IF(部員名簿!A120="","",DAY(部員名簿!G120)) ->  | D116: =IF(部員名簿!A120="","",学校番号*100+部員名簿!H120) ->  | E116: =IF(部員名簿!A120="","",部員名簿!C120) ->  | F116: =IF(部員名簿!A120="","",部員名簿!D120) ->  | G116: =IF(部員名簿!A120="","",部員名簿!E120) ->  | H116: =IF(部員名簿!A120="","",部員名簿!F120) ->  | I116: =IF(部員名簿!A120="","",部員名簿!I120) ->  | J116: =IF(部員名簿!A120="","",部員名簿!B120) -> 
A117: =IF(部員名簿!A121="","",YEAR(部員名簿!G121)) ->  | B117: =IF(部員名簿!A121="","",MONTH(部員名簿!G121)) ->  | C117: =IF(部員名簿!A121="","",DAY(部員名簿!G121)) ->  | D117: =IF(部員名簿!A121="","",学校番号*100+部員名簿!H121) ->  | E117: =IF(部員名簿!A121="","",部員名簿!C121) ->  | F117: =IF(部員名簿!A121="","",部員名簿!D121) ->  | G117: =IF(部員名簿!A121="","",部員名簿!E121) ->  | H117: =IF(部員名簿!A121="","",部員名簿!F121) ->  | I117: =IF(部員名簿!A121="","",部員名簿!I121) ->  | J117: =IF(部員名簿!A121="","",部員名簿!B121) -> 
A118: =IF(部員名簿!A122="","",YEAR(部員名簿!G122)) ->  | B118: =IF(部員名簿!A122="","",MONTH(部員名簿!G122)) ->  | C118: =IF(部員名簿!A122="","",DAY(部員名簿!G122)) ->  | D118: =IF(部員名簿!A122="","",学校番号*100+部員名簿!H122) ->  | E118: =IF(部員名簿!A122="","",部員名簿!C122) ->  | F118: =IF(部員名簿!A122="","",部員名簿!D122) ->  | G118: =IF(部員名簿!A122="","",部員名簿!E122) ->  | H118: =IF(部員名簿!A122="","",部員名簿!F122) ->  | I118: =IF(部員名簿!A122="","",部員名簿!I122) ->  | J118: =IF(部員名簿!A122="","",部員名簿!B122) -> 
A119: =IF(部員名簿!A123="","",YEAR(部員名簿!G123)) ->  | B119: =IF(部員名簿!A123="","",MONTH(部員名簿!G123)) ->  | C119: =IF(部員名簿!A123="","",DAY(部員名簿!G123)) ->  | D119: =IF(部員名簿!A123="","",学校番号*100+部員名簿!H123) ->  | E119: =IF(部員名簿!A123="","",部員名簿!C123) ->  | F119: =IF(部員名簿!A123="","",部員名簿!D123) ->  | G119: =IF(部員名簿!A123="","",部員名簿!E123) ->  | H119: =IF(部員名簿!A123="","",部員名簿!F123) ->  | I119: =IF(部員名簿!A123="","",部員名簿!I123) ->  | J119: =IF(部員名簿!A123="","",部員名簿!B123) -> 
A120: =IF(部員名簿!A124="","",YEAR(部員名簿!G124)) ->  | B120: =IF(部員名簿!A124="","",MONTH(部員名簿!G124)) ->  | C120: =IF(部員名簿!A124="","",DAY(部員名簿!G124)) ->  | D120: =IF(部員名簿!A124="","",学校番号*100+部員名簿!H124) ->  | E120: =IF(部員名簿!A124="","",部員名簿!C124) ->  | F120: =IF(部員名簿!A124="","",部員名簿!D124) ->  | G120: =IF(部員名簿!A124="","",部員名簿!E124) ->  | H120: =IF(部員名簿!A124="","",部員名簿!F124) ->  | I120: =IF(部員名簿!A124="","",部員名簿!I124) ->  | J120: =IF(部員名簿!A124="","",部員名簿!B124) -> 
A121: =IF(部員名簿!A125="","",YEAR(部員名簿!G125)) ->  | B121: =IF(部員名簿!A125="","",MONTH(部員名簿!G125)) ->  | C121: =IF(部員名簿!A125="","",DAY(部員名簿!G125)) ->  | D121: =IF(部員名簿!A125="","",学校番号*100+部員名簿!H125) ->  | E121: =IF(部員名簿!A125="","",部員名簿!C125) ->  | F121: =IF(部員名簿!A125="","",部員名簿!D125) ->  | G121: =IF(部員名簿!A125="","",部員名簿!E125) ->  | H121: =IF(部員名簿!A125="","",部員名簿!F125) ->  | I121: =IF(部員名簿!A125="","",部員名簿!I125) ->  | J121: =IF(部員名簿!A125="","",部員名簿!B125) -> 
A122: =IF(部員名簿!A126="","",YEAR(部員名簿!G126)) ->  | B122: =IF(部員名簿!A126="","",MONTH(部員名簿!G126)) ->  | C122: =IF(部員名簿!A126="","",DAY(部員名簿!G126)) ->  | D122: =IF(部員名簿!A126="","",学校番号*100+部員名簿!H126) ->  | E122: =IF(部員名簿!A126="","",部員名簿!C126) ->  | F122: =IF(部員名簿!A126="","",部員名簿!D126) ->  | G122: =IF(部員名簿!A126="","",部員名簿!E126) ->  | H122: =IF(部員名簿!A126="","",部員名簿!F126) ->  | I122: =IF(部員名簿!A126="","",部員名簿!I126) ->  | J122: =IF(部員名簿!A126="","",部員名簿!B126) -> 
A123: =IF(部員名簿!A127="","",YEAR(部員名簿!G127)) ->  | B123: =IF(部員名簿!A127="","",MONTH(部員名簿!G127)) ->  | C123: =IF(部員名簿!A127="","",DAY(部員名簿!G127)) ->  | D123: =IF(部員名簿!A127="","",学校番号*100+部員名簿!H127) ->  | E123: =IF(部員名簿!A127="","",部員名簿!C127) ->  | F123: =IF(部員名簿!A127="","",部員名簿!D127) ->  | G123: =IF(部員名簿!A127="","",部員名簿!E127) ->  | H123: =IF(部員名簿!A127="","",部員名簿!F127) ->  | I123: =IF(部員名簿!A127="","",部員名簿!I127) ->  | J123: =IF(部員名簿!A127="","",部員名簿!B127) -> 
A124: =IF(部員名簿!A128="","",YEAR(部員名簿!G128)) ->  | B124: =IF(部員名簿!A128="","",MONTH(部員名簿!G128)) ->  | C124: =IF(部員名簿!A128="","",DAY(部員名簿!G128)) ->  | D124: =IF(部員名簿!A128="","",学校番号*100+部員名簿!H128) ->  | E124: =IF(部員名簿!A128="","",部員名簿!C128) ->  | F124: =IF(部員名簿!A128="","",部員名簿!D128) ->  | G124: =IF(部員名簿!A128="","",部員名簿!E128) ->  | H124: =IF(部員名簿!A128="","",部員名簿!F128) ->  | I124: =IF(部員名簿!A128="","",部員名簿!I128) ->  | J124: =IF(部員名簿!A128="","",部員名簿!B128) -> 
A125: =IF(部員名簿!A129="","",YEAR(部員名簿!G129)) ->  | B125: =IF(部員名簿!A129="","",MONTH(部員名簿!G129)) ->  | C125: =IF(部員名簿!A129="","",DAY(部員名簿!G129)) ->  | D125: =IF(部員名簿!A129="","",学校番号*100+部員名簿!H129) ->  | E125: =IF(部員名簿!A129="","",部員名簿!C129) ->  | F125: =IF(部員名簿!A129="","",部員名簿!D129) ->  | G125: =IF(部員名簿!A129="","",部員名簿!E129) ->  | H125: =IF(部員名簿!A129="","",部員名簿!F129) ->  | I125: =IF(部員名簿!A129="","",部員名簿!I129) ->  | J125: =IF(部員名簿!A129="","",部員名簿!B129) -> 
A126: =IF(部員名簿!A130="","",YEAR(部員名簿!G130)) ->  | B126: =IF(部員名簿!A130="","",MONTH(部員名簿!G130)) ->  | C126: =IF(部員名簿!A130="","",DAY(部員名簿!G130)) ->  | D126: =IF(部員名簿!A130="","",学校番号*100+部員名簿!H130) ->  | E126: =IF(部員名簿!A130="","",部員名簿!C130) ->  | F126: =IF(部員名簿!A130="","",部員名簿!D130) ->  | G126: =IF(部員名簿!A130="","",部員名簿!E130) ->  | H126: =IF(部員名簿!A130="","",部員名簿!F130) ->  | I126: =IF(部員名簿!A130="","",部員名簿!I130) ->  | J126: =IF(部員名簿!A130="","",部員名簿!B130) -> 
A127: =IF(部員名簿!A131="","",YEAR(部員名簿!G131)) ->  | B127: =IF(部員名簿!A131="","",MONTH(部員名簿!G131)) ->  | C127: =IF(部員名簿!A131="","",DAY(部員名簿!G131)) ->  | D127: =IF(部員名簿!A131="","",学校番号*100+部員名簿!H131) ->  | E127: =IF(部員名簿!A131="","",部員名簿!C131) ->  | F127: =IF(部員名簿!A131="","",部員名簿!D131) ->  | G127: =IF(部員名簿!A131="","",部員名簿!E131) ->  | H127: =IF(部員名簿!A131="","",部員名簿!F131) ->  | I127: =IF(部員名簿!A131="","",部員名簿!I131) ->  | J127: =IF(部員名簿!A131="","",部員名簿!B131) -> 
A128: =IF(部員名簿!A132="","",YEAR(部員名簿!G132)) ->  | B128: =IF(部員名簿!A132="","",MONTH(部員名簿!G132)) ->  | C128: =IF(部員名簿!A132="","",DAY(部員名簿!G132)) ->  | D128: =IF(部員名簿!A132="","",学校番号*100+部員名簿!H132) ->  | E128: =IF(部員名簿!A132="","",部員名簿!C132) ->  | F128: =IF(部員名簿!A132="","",部員名簿!D132) ->  | G128: =IF(部員名簿!A132="","",部員名簿!E132) ->  | H128: =IF(部員名簿!A132="","",部員名簿!F132) ->  | I128: =IF(部員名簿!A132="","",部員名簿!I132) ->  | J128: =IF(部員名簿!A132="","",部員名簿!B132) -> 
A129: =IF(部員名簿!A133="","",YEAR(部員名簿!G133)) ->  | B129: =IF(部員名簿!A133="","",MONTH(部員名簿!G133)) ->  | C129: =IF(部員名簿!A133="","",DAY(部員名簿!G133)) ->  | D129: =IF(部員名簿!A133="","",学校番号*100+部員名簿!H133) ->  | E129: =IF(部員名簿!A133="","",部員名簿!C133) ->  | F129: =IF(部員名簿!A133="","",部員名簿!D133) ->  | G129: =IF(部員名簿!A133="","",部員名簿!E133) ->  | H129: =IF(部員名簿!A133="","",部員名簿!F133) ->  | I129: =IF(部員名簿!A133="","",部員名簿!I133) ->  | J129: =IF(部員名簿!A133="","",部員名簿!B133) -> 
A130: =IF(部員名簿!A134="","",YEAR(部員名簿!G134)) ->  | B130: =IF(部員名簿!A134="","",MONTH(部員名簿!G134)) ->  | C130: =IF(部員名簿!A134="","",DAY(部員名簿!G134)) ->  | D130: =IF(部員名簿!A134="","",学校番号*100+部員名簿!H134) ->  | E130: =IF(部員名簿!A134="","",部員名簿!C134) ->  | F130: =IF(部員名簿!A134="","",部員名簿!D134) ->  | G130: =IF(部員名簿!A134="","",部員名簿!E134) ->  | H130: =IF(部員名簿!A134="","",部員名簿!F134) ->  | I130: =IF(部員名簿!A134="","",部員名簿!I134) ->  | J130: =IF(部員名簿!A134="","",部員名簿!B134) -> 
A131: =IF(部員名簿!A135="","",YEAR(部員名簿!G135)) ->  | B131: =IF(部員名簿!A135="","",MONTH(部員名簿!G135)) ->  | C131: =IF(部員名簿!A135="","",DAY(部員名簿!G135)) ->  | D131: =IF(部員名簿!A135="","",学校番号*100+部員名簿!H135) ->  | E131: =IF(部員名簿!A135="","",部員名簿!C135) ->  | F131: =IF(部員名簿!A135="","",部員名簿!D135) ->  | G131: =IF(部員名簿!A135="","",部員名簿!E135) ->  | H131: =IF(部員名簿!A135="","",部員名簿!F135) ->  | I131: =IF(部員名簿!A135="","",部員名簿!I135) ->  | J131: =IF(部員名簿!A135="","",部員名簿!B135) -> 
A132: =IF(部員名簿!A136="","",YEAR(部員名簿!G136)) ->  | B132: =IF(部員名簿!A136="","",MONTH(部員名簿!G136)) ->  | C132: =IF(部員名簿!A136="","",DAY(部員名簿!G136)) ->  | D132: =IF(部員名簿!A136="","",学校番号*100+部員名簿!H136) ->  | E132: =IF(部員名簿!A136="","",部員名簿!C136) ->  | F132: =IF(部員名簿!A136="","",部員名簿!D136) ->  | G132: =IF(部員名簿!A136="","",部員名簿!E136) ->  | H132: =IF(部員名簿!A136="","",部員名簿!F136) ->  | I132: =IF(部員名簿!A136="","",部員名簿!I136) ->  | J132: =IF(部員名簿!A136="","",部員名簿!B136) -> 
A133: =IF(部員名簿!A137="","",YEAR(部員名簿!G137)) ->  | B133: =IF(部員名簿!A137="","",MONTH(部員名簿!G137)) ->  | C133: =IF(部員名簿!A137="","",DAY(部員名簿!G137)) ->  | D133: =IF(部員名簿!A137="","",学校番号*100+部員名簿!H137) ->  | E133: =IF(部員名簿!A137="","",部員名簿!C137) ->  | F133: =IF(部員名簿!A137="","",部員名簿!D137) ->  | G133: =IF(部員名簿!A137="","",部員名簿!E137) ->  | H133: =IF(部員名簿!A137="","",部員名簿!F137) ->  | I133: =IF(部員名簿!A137="","",部員名簿!I137) ->  | J133: =IF(部員名簿!A137="","",部員名簿!B137) -> 
A134: =IF(部員名簿!A138="","",YEAR(部員名簿!G138)) ->  | B134: =IF(部員名簿!A138="","",MONTH(部員名簿!G138)) ->  | C134: =IF(部員名簿!A138="","",DAY(部員名簿!G138)) ->  | D134: =IF(部員名簿!A138="","",学校番号*100+部員名簿!H138) ->  | E134: =IF(部員名簿!A138="","",部員名簿!C138) ->  | F134: =IF(部員名簿!A138="","",部員名簿!D138) ->  | G134: =IF(部員名簿!A138="","",部員名簿!E138) ->  | H134: =IF(部員名簿!A138="","",部員名簿!F138) ->  | I134: =IF(部員名簿!A138="","",部員名簿!I138) ->  | J134: =IF(部員名簿!A138="","",部員名簿!B138) -> 
A135: =IF(部員名簿!A139="","",YEAR(部員名簿!G139)) ->  | B135: =IF(部員名簿!A139="","",MONTH(部員名簿!G139)) ->  | C135: =IF(部員名簿!A139="","",DAY(部員名簿!G139)) ->  | D135: =IF(部員名簿!A139="","",学校番号*100+部員名簿!H139) ->  | E135: =IF(部員名簿!A139="","",部員名簿!C139) ->  | F135: =IF(部員名簿!A139="","",部員名簿!D139) ->  | G135: =IF(部員名簿!A139="","",部員名簿!E139) ->  | H135: =IF(部員名簿!A139="","",部員名簿!F139) ->  | I135: =IF(部員名簿!A139="","",部員名簿!I139) ->  | J135: =IF(部員名簿!A139="","",部員名簿!B139) -> 
A136: =IF(部員名簿!A140="","",YEAR(部員名簿!G140)) ->  | B136: =IF(部員名簿!A140="","",MONTH(部員名簿!G140)) ->  | C136: =IF(部員名簿!A140="","",DAY(部員名簿!G140)) ->  | D136: =IF(部員名簿!A140="","",学校番号*100+部員名簿!H140) ->  | E136: =IF(部員名簿!A140="","",部員名簿!C140) ->  | F136: =IF(部員名簿!A140="","",部員名簿!D140) ->  | G136: =IF(部員名簿!A140="","",部員名簿!E140) ->  | H136: =IF(部員名簿!A140="","",部員名簿!F140) ->  | I136: =IF(部員名簿!A140="","",部員名簿!I140) ->  | J136: =IF(部員名簿!A140="","",部員名簿!B140) -> 
A137: =IF(部員名簿!A141="","",YEAR(部員名簿!G141)) ->  | B137: =IF(部員名簿!A141="","",MONTH(部員名簿!G141)) ->  | C137: =IF(部員名簿!A141="","",DAY(部員名簿!G141)) ->  | D137: =IF(部員名簿!A141="","",学校番号*100+部員名簿!H141) ->  | E137: =IF(部員名簿!A141="","",部員名簿!C141) ->  | F137: =IF(部員名簿!A141="","",部員名簿!D141) ->  | G137: =IF(部員名簿!A141="","",部員名簿!E141) ->  | H137: =IF(部員名簿!A141="","",部員名簿!F141) ->  | I137: =IF(部員名簿!A141="","",部員名簿!I141) ->  | J137: =IF(部員名簿!A141="","",部員名簿!B141) -> 
A138: =IF(部員名簿!A142="","",YEAR(部員名簿!G142)) ->  | B138: =IF(部員名簿!A142="","",MONTH(部員名簿!G142)) ->  | C138: =IF(部員名簿!A142="","",DAY(部員名簿!G142)) ->  | D138: =IF(部員名簿!A142="","",学校番号*100+部員名簿!H142) ->  | E138: =IF(部員名簿!A142="","",部員名簿!C142) ->  | F138: =IF(部員名簿!A142="","",部員名簿!D142) ->  | G138: =IF(部員名簿!A142="","",部員名簿!E142) ->  | H138: =IF(部員名簿!A142="","",部員名簿!F142) ->  | I138: =IF(部員名簿!A142="","",部員名簿!I142) ->  | J138: =IF(部員名簿!A142="","",部員名簿!B142) -> 
A139: =IF(部員名簿!A143="","",YEAR(部員名簿!G143)) ->  | B139: =IF(部員名簿!A143="","",MONTH(部員名簿!G143)) ->  | C139: =IF(部員名簿!A143="","",DAY(部員名簿!G143)) ->  | D139: =IF(部員名簿!A143="","",学校番号*100+部員名簿!H143) ->  | E139: =IF(部員名簿!A143="","",部員名簿!C143) ->  | F139: =IF(部員名簿!A143="","",部員名簿!D143) ->  | G139: =IF(部員名簿!A143="","",部員名簿!E143) ->  | H139: =IF(部員名簿!A143="","",部員名簿!F143) ->  | I139: =IF(部員名簿!A143="","",部員名簿!I143) ->  | J139: =IF(部員名簿!A143="","",部員名簿!B143) -> 
A140: =IF(部員名簿!A144="","",YEAR(部員名簿!G144)) ->  | B140: =IF(部員名簿!A144="","",MONTH(部員名簿!G144)) ->  | C140: =IF(部員名簿!A144="","",DAY(部員名簿!G144)) ->  | D140: =IF(部員名簿!A144="","",学校番号*100+部員名簿!H144) ->  | E140: =IF(部員名簿!A144="","",部員名簿!C144) ->  | F140: =IF(部員名簿!A144="","",部員名簿!D144) ->  | G140: =IF(部員名簿!A144="","",部員名簿!E144) ->  | H140: =IF(部員名簿!A144="","",部員名簿!F144) ->  | I140: =IF(部員名簿!A144="","",部員名簿!I144) ->  | J140: =IF(部員名簿!A144="","",部員名簿!B144) -> 
A141: =IF(部員名簿!A145="","",YEAR(部員名簿!G145)) ->  | B141: =IF(部員名簿!A145="","",MONTH(部員名簿!G145)) ->  | C141: =IF(部員名簿!A145="","",DAY(部員名簿!G145)) ->  | D141: =IF(部員名簿!A145="","",学校番号*100+部員名簿!H145) ->  | E141: =IF(部員名簿!A145="","",部員名簿!C145) ->  | F141: =IF(部員名簿!A145="","",部員名簿!D145) ->  | G141: =IF(部員名簿!A145="","",部員名簿!E145) ->  | H141: =IF(部員名簿!A145="","",部員名簿!F145) ->  | I141: =IF(部員名簿!A145="","",部員名簿!I145) ->  | J141: =IF(部員名簿!A145="","",部員名簿!B145) -> 
A142: =IF(部員名簿!A146="","",YEAR(部員名簿!G146)) ->  | B142: =IF(部員名簿!A146="","",MONTH(部員名簿!G146)) ->  | C142: =IF(部員名簿!A146="","",DAY(部員名簿!G146)) ->  | D142: =IF(部員名簿!A146="","",学校番号*100+部員名簿!H146) ->  | E142: =IF(部員名簿!A146="","",部員名簿!C146) ->  | F142: =IF(部員名簿!A146="","",部員名簿!D146) ->  | G142: =IF(部員名簿!A146="","",部員名簿!E146) ->  | H142: =IF(部員名簿!A146="","",部員名簿!F146) ->  | I142: =IF(部員名簿!A146="","",部員名簿!I146) ->  | J142: =IF(部員名簿!A146="","",部員名簿!B146) -> 
A143: =IF(部員名簿!A147="","",YEAR(部員名簿!G147)) ->  | B143: =IF(部員名簿!A147="","",MONTH(部員名簿!G147)) ->  | C143: =IF(部員名簿!A147="","",DAY(部員名簿!G147)) ->  | D143: =IF(部員名簿!A147="","",学校番号*100+部員名簿!H147) ->  | E143: =IF(部員名簿!A147="","",部員名簿!C147) ->  | F143: =IF(部員名簿!A147="","",部員名簿!D147) ->  | G143: =IF(部員名簿!A147="","",部員名簿!E147) ->  | H143: =IF(部員名簿!A147="","",部員名簿!F147) ->  | I143: =IF(部員名簿!A147="","",部員名簿!I147) ->  | J143: =IF(部員名簿!A147="","",部員名簿!B147) -> 
A144: =IF(部員名簿!A148="","",YEAR(部員名簿!G148)) ->  | B144: =IF(部員名簿!A148="","",MONTH(部員名簿!G148)) ->  | C144: =IF(部員名簿!A148="","",DAY(部員名簿!G148)) ->  | D144: =IF(部員名簿!A148="","",学校番号*100+部員名簿!H148) ->  | E144: =IF(部員名簿!A148="","",部員名簿!C148) ->  | F144: =IF(部員名簿!A148="","",部員名簿!D148) ->  | G144: =IF(部員名簿!A148="","",部員名簿!E148) ->  | H144: =IF(部員名簿!A148="","",部員名簿!F148) ->  | I144: =IF(部員名簿!A148="","",部員名簿!I148) ->  | J144: =IF(部員名簿!A148="","",部員名簿!B148) -> 
A145: =IF(部員名簿!A149="","",YEAR(部員名簿!G149)) ->  | B145: =IF(部員名簿!A149="","",MONTH(部員名簿!G149)) ->  | C145: =IF(部員名簿!A149="","",DAY(部員名簿!G149)) ->  | D145: =IF(部員名簿!A149="","",学校番号*100+部員名簿!H149) ->  | E145: =IF(部員名簿!A149="","",部員名簿!C149) ->  | F145: =IF(部員名簿!A149="","",部員名簿!D149) ->  | G145: =IF(部員名簿!A149="","",部員名簿!E149) ->  | H145: =IF(部員名簿!A149="","",部員名簿!F149) ->  | I145: =IF(部員名簿!A149="","",部員名簿!I149) ->  | J145: =IF(部員名簿!A149="","",部員名簿!B149) -> 
A146: =IF(部員名簿!A150="","",YEAR(部員名簿!G150)) ->  | B146: =IF(部員名簿!A150="","",MONTH(部員名簿!G150)) ->  | C146: =IF(部員名簿!A150="","",DAY(部員名簿!G150)) ->  | D146: =IF(部員名簿!A150="","",学校番号*100+部員名簿!H150) ->  | E146: =IF(部員名簿!A150="","",部員名簿!C150) ->  | F146: =IF(部員名簿!A150="","",部員名簿!D150) ->  | G146: =IF(部員名簿!A150="","",部員名簿!E150) ->  | H146: =IF(部員名簿!A150="","",部員名簿!F150) ->  | I146: =IF(部員名簿!A150="","",部員名簿!I150) ->  | J146: =IF(部員名簿!A150="","",部員名簿!B150) -> 
A147: =IF(部員名簿!A151="","",YEAR(部員名簿!G151)) ->  | B147: =IF(部員名簿!A151="","",MONTH(部員名簿!G151)) ->  | C147: =IF(部員名簿!A151="","",DAY(部員名簿!G151)) ->  | D147: =IF(部員名簿!A151="","",学校番号*100+部員名簿!H151) ->  | E147: =IF(部員名簿!A151="","",部員名簿!C151) ->  | F147: =IF(部員名簿!A151="","",部員名簿!D151) ->  | G147: =IF(部員名簿!A151="","",部員名簿!E151) ->  | H147: =IF(部員名簿!A151="","",部員名簿!F151) ->  | I147: =IF(部員名簿!A151="","",部員名簿!I151) ->  | J147: =IF(部員名簿!A151="","",部員名簿!B151) -> 
A148: =IF(部員名簿!A152="","",YEAR(部員名簿!G152)) ->  | B148: =IF(部員名簿!A152="","",MONTH(部員名簿!G152)) ->  | C148: =IF(部員名簿!A152="","",DAY(部員名簿!G152)) ->  | D148: =IF(部員名簿!A152="","",学校番号*100+部員名簿!H152) ->  | E148: =IF(部員名簿!A152="","",部員名簿!C152) ->  | F148: =IF(部員名簿!A152="","",部員名簿!D152) ->  | G148: =IF(部員名簿!A152="","",部員名簿!E152) ->  | H148: =IF(部員名簿!A152="","",部員名簿!F152) ->  | I148: =IF(部員名簿!A152="","",部員名簿!I152) ->  | J148: =IF(部員名簿!A152="","",部員名簿!B152) -> 
A149: =IF(部員名簿!A153="","",YEAR(部員名簿!G153)) ->  | B149: =IF(部員名簿!A153="","",MONTH(部員名簿!G153)) ->  | C149: =IF(部員名簿!A153="","",DAY(部員名簿!G153)) ->  | D149: =IF(部員名簿!A153="","",学校番号*100+部員名簿!H153) ->  | E149: =IF(部員名簿!A153="","",部員名簿!C153) ->  | F149: =IF(部員名簿!A153="","",部員名簿!D153) ->  | G149: =IF(部員名簿!A153="","",部員名簿!E153) ->  | H149: =IF(部員名簿!A153="","",部員名簿!F153) ->  | I149: =IF(部員名簿!A153="","",部員名簿!I153) ->  | J149: =IF(部員名簿!A153="","",部員名簿!B153) -> 
A150: =IF(部員名簿!A154="","",YEAR(部員名簿!G154)) ->  | B150: =IF(部員名簿!A154="","",MONTH(部員名簿!G154)) ->  | C150: =IF(部員名簿!A154="","",DAY(部員名簿!G154)) ->  | D150: =IF(部員名簿!A154="","",学校番号*100+部員名簿!H154) ->  | E150: =IF(部員名簿!A154="","",部員名簿!C154) ->  | F150: =IF(部員名簿!A154="","",部員名簿!D154) ->  | G150: =IF(部員名簿!A154="","",部員名簿!E154) ->  | H150: =IF(部員名簿!A154="","",部員名簿!F154) ->  | I150: =IF(部員名簿!A154="","",部員名簿!I154) ->  | J150: =IF(部員名簿!A154="","",部員名簿!B154) -> 
A151: =IF(部員名簿!A155="","",YEAR(部員名簿!G155)) ->  | B151: =IF(部員名簿!A155="","",MONTH(部員名簿!G155)) ->  | C151: =IF(部員名簿!A155="","",DAY(部員名簿!G155)) ->  | D151: =IF(部員名簿!A155="","",学校番号*100+部員名簿!H155) ->  | E151: =IF(部員名簿!A155="","",部員名簿!C155) ->  | F151: =IF(部員名簿!A155="","",部員名簿!D155) ->  | G151: =IF(部員名簿!A155="","",部員名簿!E155) ->  | H151: =IF(部員名簿!A155="","",部員名簿!F155) ->  | I151: =IF(部員名簿!A155="","",部員名簿!I155) ->  | J151: =IF(部員名簿!A155="","",部員名簿!B155) -> 
A152: =IF(部員名簿!A156="","",YEAR(部員名簿!G156)) ->  | B152: =IF(部員名簿!A156="","",MONTH(部員名簿!G156)) ->  | C152: =IF(部員名簿!A156="","",DAY(部員名簿!G156)) ->  | D152: =IF(部員名簿!A156="","",学校番号*100+部員名簿!H156) ->  | E152: =IF(部員名簿!A156="","",部員名簿!C156) ->  | F152: =IF(部員名簿!A156="","",部員名簿!D156) ->  | G152: =IF(部員名簿!A156="","",部員名簿!E156) ->  | H152: =IF(部員名簿!A156="","",部員名簿!F156) ->  | I152: =IF(部員名簿!A156="","",部員名簿!I156) ->  | J152: =IF(部員名簿!A156="","",部員名簿!B156) -> 
A153: =IF(部員名簿!A157="","",YEAR(部員名簿!G157)) ->  | B153: =IF(部員名簿!A157="","",MONTH(部員名簿!G157)) ->  | C153: =IF(部員名簿!A157="","",DAY(部員名簿!G157)) ->  | D153: =IF(部員名簿!A157="","",学校番号*100+部員名簿!H157) ->  | E153: =IF(部員名簿!A157="","",部員名簿!C157) ->  | F153: =IF(部員名簿!A157="","",部員名簿!D157) ->  | G153: =IF(部員名簿!A157="","",部員名簿!E157) ->  | H153: =IF(部員名簿!A157="","",部員名簿!F157) ->  | I153: =IF(部員名簿!A157="","",部員名簿!I157) ->  | J153: =IF(部員名簿!A157="","",部員名簿!B157) -> 
A154: =IF(部員名簿!A158="","",YEAR(部員名簿!G158)) ->  | B154: =IF(部員名簿!A158="","",MONTH(部員名簿!G158)) ->  | C154: =IF(部員名簿!A158="","",DAY(部員名簿!G158)) ->  | D154: =IF(部員名簿!A158="","",学校番号*100+部員名簿!H158) ->  | E154: =IF(部員名簿!A158="","",部員名簿!C158) ->  | F154: =IF(部員名簿!A158="","",部員名簿!D158) ->  | G154: =IF(部員名簿!A158="","",部員名簿!E158) ->  | H154: =IF(部員名簿!A158="","",部員名簿!F158) ->  | I154: =IF(部員名簿!A158="","",部員名簿!I158) ->  | J154: =IF(部員名簿!A158="","",部員名簿!B158) -> 
A155: =IF(部員名簿!A159="","",YEAR(部員名簿!G159)) ->  | B155: =IF(部員名簿!A159="","",MONTH(部員名簿!G159)) ->  | C155: =IF(部員名簿!A159="","",DAY(部員名簿!G159)) ->  | D155: =IF(部員名簿!A159="","",学校番号*100+部員名簿!H159) ->  | E155: =IF(部員名簿!A159="","",部員名簿!C159) ->  | F155: =IF(部員名簿!A159="","",部員名簿!D159) ->  | G155: =IF(部員名簿!A159="","",部員名簿!E159) ->  | H155: =IF(部員名簿!A159="","",部員名簿!F159) ->  | I155: =IF(部員名簿!A159="","",部員名簿!I159) ->  | J155: =IF(部員名簿!A159="","",部員名簿!B159) -> 
A156: =IF(部員名簿!A160="","",YEAR(部員名簿!G160)) ->  | B156: =IF(部員名簿!A160="","",MONTH(部員名簿!G160)) ->  | C156: =IF(部員名簿!A160="","",DAY(部員名簿!G160)) ->  | D156: =IF(部員名簿!A160="","",学校番号*100+部員名簿!H160) ->  | E156: =IF(部員名簿!A160="","",部員名簿!C160) ->  | F156: =IF(部員名簿!A160="","",部員名簿!D160) ->  | G156: =IF(部員名簿!A160="","",部員名簿!E160) ->  | H156: =IF(部員名簿!A160="","",部員名簿!F160) ->  | I156: =IF(部員名簿!A160="","",部員名簿!I160) ->  | J156: =IF(部員名簿!A160="","",部員名簿!B160) -> 
A157: =IF(部員名簿!A161="","",YEAR(部員名簿!G161)) ->  | B157: =IF(部員名簿!A161="","",MONTH(部員名簿!G161)) ->  | C157: =IF(部員名簿!A161="","",DAY(部員名簿!G161)) ->  | D157: =IF(部員名簿!A161="","",学校番号*100+部員名簿!H161) ->  | E157: =IF(部員名簿!A161="","",部員名簿!C161) ->  | F157: =IF(部員名簿!A161="","",部員名簿!D161) ->  | G157: =IF(部員名簿!A161="","",部員名簿!E161) ->  | H157: =IF(部員名簿!A161="","",部員名簿!F161) ->  | I157: =IF(部員名簿!A161="","",部員名簿!I161) ->  | J157: =IF(部員名簿!A161="","",部員名簿!B161) -> 
A158: =IF(部員名簿!A162="","",YEAR(部員名簿!G162)) ->  | B158: =IF(部員名簿!A162="","",MONTH(部員名簿!G162)) ->  | C158: =IF(部員名簿!A162="","",DAY(部員名簿!G162)) ->  | D158: =IF(部員名簿!A162="","",学校番号*100+部員名簿!H162) ->  | E158: =IF(部員名簿!A162="","",部員名簿!C162) ->  | F158: =IF(部員名簿!A162="","",部員名簿!D162) ->  | G158: =IF(部員名簿!A162="","",部員名簿!E162) ->  | H158: =IF(部員名簿!A162="","",部員名簿!F162) ->  | I158: =IF(部員名簿!A162="","",部員名簿!I162) ->  | J158: =IF(部員名簿!A162="","",部員名簿!B162) -> 
A159: =IF(部員名簿!A163="","",YEAR(部員名簿!G163)) ->  | B159: =IF(部員名簿!A163="","",MONTH(部員名簿!G163)) ->  | C159: =IF(部員名簿!A163="","",DAY(部員名簿!G163)) ->  | D159: =IF(部員名簿!A163="","",学校番号*100+部員名簿!H163) ->  | E159: =IF(部員名簿!A163="","",部員名簿!C163) ->  | F159: =IF(部員名簿!A163="","",部員名簿!D163) ->  | G159: =IF(部員名簿!A163="","",部員名簿!E163) ->  | H159: =IF(部員名簿!A163="","",部員名簿!F163) ->  | I159: =IF(部員名簿!A163="","",部員名簿!I163) ->  | J159: =IF(部員名簿!A163="","",部員名簿!B163) -> 
A160: =IF(部員名簿!A164="","",YEAR(部員名簿!G164)) ->  | B160: =IF(部員名簿!A164="","",MONTH(部員名簿!G164)) ->  | C160: =IF(部員名簿!A164="","",DAY(部員名簿!G164)) ->  | D160: =IF(部員名簿!A164="","",学校番号*100+部員名簿!H164) ->  | E160: =IF(部員名簿!A164="","",部員名簿!C164) ->  | F160: =IF(部員名簿!A164="","",部員名簿!D164) ->  | G160: =IF(部員名簿!A164="","",部員名簿!E164) ->  | H160: =IF(部員名簿!A164="","",部員名簿!F164) ->  | I160: =IF(部員名簿!A164="","",部員名簿!I164) ->  | J160: =IF(部員名簿!A164="","",部員名簿!B164) -> 
A161: =IF(部員名簿!A165="","",YEAR(部員名簿!G165)) ->  | B161: =IF(部員名簿!A165="","",MONTH(部員名簿!G165)) ->  | C161: =IF(部員名簿!A165="","",DAY(部員名簿!G165)) ->  | D161: =IF(部員名簿!A165="","",学校番号*100+部員名簿!H165) ->  | E161: =IF(部員名簿!A165="","",部員名簿!C165) ->  | F161: =IF(部員名簿!A165="","",部員名簿!D165) ->  | G161: =IF(部員名簿!A165="","",部員名簿!E165) ->  | H161: =IF(部員名簿!A165="","",部員名簿!F165) ->  | I161: =IF(部員名簿!A165="","",部員名簿!I165) ->  | J161: =IF(部員名簿!A165="","",部員名簿!B165) -> 
A162: =IF(部員名簿!A166="","",YEAR(部員名簿!G166)) ->  | B162: =IF(部員名簿!A166="","",MONTH(部員名簿!G166)) ->  | C162: =IF(部員名簿!A166="","",DAY(部員名簿!G166)) ->  | D162: =IF(部員名簿!A166="","",学校番号*100+部員名簿!H166) ->  | E162: =IF(部員名簿!A166="","",部員名簿!C166) ->  | F162: =IF(部員名簿!A166="","",部員名簿!D166) ->  | G162: =IF(部員名簿!A166="","",部員名簿!E166) ->  | H162: =IF(部員名簿!A166="","",部員名簿!F166) ->  | I162: =IF(部員名簿!A166="","",部員名簿!I166) ->  | J162: =IF(部員名簿!A166="","",部員名簿!B166) -> 
A163: =IF(部員名簿!A167="","",YEAR(部員名簿!G167)) ->  | B163: =IF(部員名簿!A167="","",MONTH(部員名簿!G167)) ->  | C163: =IF(部員名簿!A167="","",DAY(部員名簿!G167)) ->  | D163: =IF(部員名簿!A167="","",学校番号*100+部員名簿!H167) ->  | E163: =IF(部員名簿!A167="","",部員名簿!C167) ->  | F163: =IF(部員名簿!A167="","",部員名簿!D167) ->  | G163: =IF(部員名簿!A167="","",部員名簿!E167) ->  | H163: =IF(部員名簿!A167="","",部員名簿!F167) ->  | I163: =IF(部員名簿!A167="","",部員名簿!I167) ->  | J163: =IF(部員名簿!A167="","",部員名簿!B167) -> 
A164: =IF(部員名簿!A168="","",YEAR(部員名簿!G168)) ->  | B164: =IF(部員名簿!A168="","",MONTH(部員名簿!G168)) ->  | C164: =IF(部員名簿!A168="","",DAY(部員名簿!G168)) ->  | D164: =IF(部員名簿!A168="","",学校番号*100+部員名簿!H168) ->  | E164: =IF(部員名簿!A168="","",部員名簿!C168) ->  | F164: =IF(部員名簿!A168="","",部員名簿!D168) ->  | G164: =IF(部員名簿!A168="","",部員名簿!E168) ->  | H164: =IF(部員名簿!A168="","",部員名簿!F168) ->  | I164: =IF(部員名簿!A168="","",部員名簿!I168) ->  | J164: =IF(部員名簿!A168="","",部員名簿!B168) -> 
A165: =IF(部員名簿!A169="","",YEAR(部員名簿!G169)) ->  | B165: =IF(部員名簿!A169="","",MONTH(部員名簿!G169)) ->  | C165: =IF(部員名簿!A169="","",DAY(部員名簿!G169)) ->  | D165: =IF(部員名簿!A169="","",学校番号*100+部員名簿!H169) ->  | E165: =IF(部員名簿!A169="","",部員名簿!C169) ->  | F165: =IF(部員名簿!A169="","",部員名簿!D169) ->  | G165: =IF(部員名簿!A169="","",部員名簿!E169) ->  | H165: =IF(部員名簿!A169="","",部員名簿!F169) ->  | I165: =IF(部員名簿!A169="","",部員名簿!I169) ->  | J165: =IF(部員名簿!A169="","",部員名簿!B169) -> 
A166: =IF(部員名簿!A170="","",YEAR(部員名簿!G170)) ->  | B166: =IF(部員名簿!A170="","",MONTH(部員名簿!G170)) ->  | C166: =IF(部員名簿!A170="","",DAY(部員名簿!G170)) ->  | D166: =IF(部員名簿!A170="","",学校番号*100+部員名簿!H170) ->  | E166: =IF(部員名簿!A170="","",部員名簿!C170) ->  | F166: =IF(部員名簿!A170="","",部員名簿!D170) ->  | G166: =IF(部員名簿!A170="","",部員名簿!E170) ->  | H166: =IF(部員名簿!A170="","",部員名簿!F170) ->  | I166: =IF(部員名簿!A170="","",部員名簿!I170) ->  | J166: =IF(部員名簿!A170="","",部員名簿!B170) -> 
A167: =IF(部員名簿!A171="","",YEAR(部員名簿!G171)) ->  | B167: =IF(部員名簿!A171="","",MONTH(部員名簿!G171)) ->  | C167: =IF(部員名簿!A171="","",DAY(部員名簿!G171)) ->  | D167: =IF(部員名簿!A171="","",学校番号*100+部員名簿!H171) ->  | E167: =IF(部員名簿!A171="","",部員名簿!C171) ->  | F167: =IF(部員名簿!A171="","",部員名簿!D171) ->  | G167: =IF(部員名簿!A171="","",部員名簿!E171) ->  | H167: =IF(部員名簿!A171="","",部員名簿!F171) ->  | I167: =IF(部員名簿!A171="","",部員名簿!I171) ->  | J167: =IF(部員名簿!A171="","",部員名簿!B171) -> 
A168: =IF(部員名簿!A172="","",YEAR(部員名簿!G172)) ->  | B168: =IF(部員名簿!A172="","",MONTH(部員名簿!G172)) ->  | C168: =IF(部員名簿!A172="","",DAY(部員名簿!G172)) ->  | D168: =IF(部員名簿!A172="","",学校番号*100+部員名簿!H172) ->  | E168: =IF(部員名簿!A172="","",部員名簿!C172) ->  | F168: =IF(部員名簿!A172="","",部員名簿!D172) ->  | G168: =IF(部員名簿!A172="","",部員名簿!E172) ->  | H168: =IF(部員名簿!A172="","",部員名簿!F172) ->  | I168: =IF(部員名簿!A172="","",部員名簿!I172) ->  | J168: =IF(部員名簿!A172="","",部員名簿!B172) -> 
A169: =IF(部員名簿!A173="","",YEAR(部員名簿!G173)) ->  | B169: =IF(部員名簿!A173="","",MONTH(部員名簿!G173)) ->  | C169: =IF(部員名簿!A173="","",DAY(部員名簿!G173)) ->  | D169: =IF(部員名簿!A173="","",学校番号*100+部員名簿!H173) ->  | E169: =IF(部員名簿!A173="","",部員名簿!C173) ->  | F169: =IF(部員名簿!A173="","",部員名簿!D173) ->  | G169: =IF(部員名簿!A173="","",部員名簿!E173) ->  | H169: =IF(部員名簿!A173="","",部員名簿!F173) ->  | I169: =IF(部員名簿!A173="","",部員名簿!I173) ->  | J169: =IF(部員名簿!A173="","",部員名簿!B173) -> 
A170: =IF(部員名簿!A174="","",YEAR(部員名簿!G174)) ->  | B170: =IF(部員名簿!A174="","",MONTH(部員名簿!G174)) ->  | C170: =IF(部員名簿!A174="","",DAY(部員名簿!G174)) ->  | D170: =IF(部員名簿!A174="","",学校番号*100+部員名簿!H174) ->  | E170: =IF(部員名簿!A174="","",部員名簿!C174) ->  | F170: =IF(部員名簿!A174="","",部員名簿!D174) ->  | G170: =IF(部員名簿!A174="","",部員名簿!E174) ->  | H170: =IF(部員名簿!A174="","",部員名簿!F174) ->  | I170: =IF(部員名簿!A174="","",部員名簿!I174) ->  | J170: =IF(部員名簿!A174="","",部員名簿!B174) -> 
A171: =IF(部員名簿!A175="","",YEAR(部員名簿!G175)) ->  | B171: =IF(部員名簿!A175="","",MONTH(部員名簿!G175)) ->  | C171: =IF(部員名簿!A175="","",DAY(部員名簿!G175)) ->  | D171: =IF(部員名簿!A175="","",学校番号*100+部員名簿!H175) ->  | E171: =IF(部員名簿!A175="","",部員名簿!C175) ->  | F171: =IF(部員名簿!A175="","",部員名簿!D175) ->  | G171: =IF(部員名簿!A175="","",部員名簿!E175) ->  | H171: =IF(部員名簿!A175="","",部員名簿!F175) ->  | I171: =IF(部員名簿!A175="","",部員名簿!I175) ->  | J171: =IF(部員名簿!A175="","",部員名簿!B175) -> 
A172: =IF(部員名簿!A176="","",YEAR(部員名簿!G176)) ->  | B172: =IF(部員名簿!A176="","",MONTH(部員名簿!G176)) ->  | C172: =IF(部員名簿!A176="","",DAY(部員名簿!G176)) ->  | D172: =IF(部員名簿!A176="","",学校番号*100+部員名簿!H176) ->  | E172: =IF(部員名簿!A176="","",部員名簿!C176) ->  | F172: =IF(部員名簿!A176="","",部員名簿!D176) ->  | G172: =IF(部員名簿!A176="","",部員名簿!E176) ->  | H172: =IF(部員名簿!A176="","",部員名簿!F176) ->  | I172: =IF(部員名簿!A176="","",部員名簿!I176) ->  | J172: =IF(部員名簿!A176="","",部員名簿!B176) -> 
A173: =IF(部員名簿!A177="","",YEAR(部員名簿!G177)) ->  | B173: =IF(部員名簿!A177="","",MONTH(部員名簿!G177)) ->  | C173: =IF(部員名簿!A177="","",DAY(部員名簿!G177)) ->  | D173: =IF(部員名簿!A177="","",学校番号*100+部員名簿!H177) ->  | E173: =IF(部員名簿!A177="","",部員名簿!C177) ->  | F173: =IF(部員名簿!A177="","",部員名簿!D177) ->  | G173: =IF(部員名簿!A177="","",部員名簿!E177) ->  | H173: =IF(部員名簿!A177="","",部員名簿!F177) ->  | I173: =IF(部員名簿!A177="","",部員名簿!I177) ->  | J173: =IF(部員名簿!A177="","",部員名簿!B177) -> 
A174: =IF(部員名簿!A178="","",YEAR(部員名簿!G178)) ->  | B174: =IF(部員名簿!A178="","",MONTH(部員名簿!G178)) ->  | C174: =IF(部員名簿!A178="","",DAY(部員名簿!G178)) ->  | D174: =IF(部員名簿!A178="","",学校番号*100+部員名簿!H178) ->  | E174: =IF(部員名簿!A178="","",部員名簿!C178) ->  | F174: =IF(部員名簿!A178="","",部員名簿!D178) ->  | G174: =IF(部員名簿!A178="","",部員名簿!E178) ->  | H174: =IF(部員名簿!A178="","",部員名簿!F178) ->  | I174: =IF(部員名簿!A178="","",部員名簿!I178) ->  | J174: =IF(部員名簿!A178="","",部員名簿!B178) -> 
A175: =IF(部員名簿!A179="","",YEAR(部員名簿!G179)) ->  | B175: =IF(部員名簿!A179="","",MONTH(部員名簿!G179)) ->  | C175: =IF(部員名簿!A179="","",DAY(部員名簿!G179)) ->  | D175: =IF(部員名簿!A179="","",学校番号*100+部員名簿!H179) ->  | E175: =IF(部員名簿!A179="","",部員名簿!C179) ->  | F175: =IF(部員名簿!A179="","",部員名簿!D179) ->  | G175: =IF(部員名簿!A179="","",部員名簿!E179) ->  | H175: =IF(部員名簿!A179="","",部員名簿!F179) ->  | I175: =IF(部員名簿!A179="","",部員名簿!I179) ->  | J175: =IF(部員名簿!A179="","",部員名簿!B179) -> 
A176: =IF(部員名簿!A180="","",YEAR(部員名簿!G180)) ->  | B176: =IF(部員名簿!A180="","",MONTH(部員名簿!G180)) ->  | C176: =IF(部員名簿!A180="","",DAY(部員名簿!G180)) ->  | D176: =IF(部員名簿!A180="","",学校番号*100+部員名簿!H180) ->  | E176: =IF(部員名簿!A180="","",部員名簿!C180) ->  | F176: =IF(部員名簿!A180="","",部員名簿!D180) ->  | G176: =IF(部員名簿!A180="","",部員名簿!E180) ->  | H176: =IF(部員名簿!A180="","",部員名簿!F180) ->  | I176: =IF(部員名簿!A180="","",部員名簿!I180) ->  | J176: =IF(部員名簿!A180="","",部員名簿!B180) -> 
A177: =IF(部員名簿!A181="","",YEAR(部員名簿!G181)) ->  | B177: =IF(部員名簿!A181="","",MONTH(部員名簿!G181)) ->  | C177: =IF(部員名簿!A181="","",DAY(部員名簿!G181)) ->  | D177: =IF(部員名簿!A181="","",学校番号*100+部員名簿!H181) ->  | E177: =IF(部員名簿!A181="","",部員名簿!C181) ->  | F177: =IF(部員名簿!A181="","",部員名簿!D181) ->  | G177: =IF(部員名簿!A181="","",部員名簿!E181) ->  | H177: =IF(部員名簿!A181="","",部員名簿!F181) ->  | I177: =IF(部員名簿!A181="","",部員名簿!I181) ->  | J177: =IF(部員名簿!A181="","",部員名簿!B181) -> 
A178: =IF(部員名簿!A182="","",YEAR(部員名簿!G182)) ->  | B178: =IF(部員名簿!A182="","",MONTH(部員名簿!G182)) ->  | C178: =IF(部員名簿!A182="","",DAY(部員名簿!G182)) ->  | D178: =IF(部員名簿!A182="","",学校番号*100+部員名簿!H182) ->  | E178: =IF(部員名簿!A182="","",部員名簿!C182) ->  | F178: =IF(部員名簿!A182="","",部員名簿!D182) ->  | G178: =IF(部員名簿!A182="","",部員名簿!E182) ->  | H178: =IF(部員名簿!A182="","",部員名簿!F182) ->  | I178: =IF(部員名簿!A182="","",部員名簿!I182) ->  | J178: =IF(部員名簿!A182="","",部員名簿!B182) -> 
A179: =IF(部員名簿!A183="","",YEAR(部員名簿!G183)) ->  | B179: =IF(部員名簿!A183="","",MONTH(部員名簿!G183)) ->  | C179: =IF(部員名簿!A183="","",DAY(部員名簿!G183)) ->  | D179: =IF(部員名簿!A183="","",学校番号*100+部員名簿!H183) ->  | E179: =IF(部員名簿!A183="","",部員名簿!C183) ->  | F179: =IF(部員名簿!A183="","",部員名簿!D183) ->  | G179: =IF(部員名簿!A183="","",部員名簿!E183) ->  | H179: =IF(部員名簿!A183="","",部員名簿!F183) ->  | I179: =IF(部員名簿!A183="","",部員名簿!I183) ->  | J179: =IF(部員名簿!A183="","",部員名簿!B183) -> 
A180: =IF(部員名簿!A184="","",YEAR(部員名簿!G184)) ->  | B180: =IF(部員名簿!A184="","",MONTH(部員名簿!G184)) ->  | C180: =IF(部員名簿!A184="","",DAY(部員名簿!G184)) ->  | D180: =IF(部員名簿!A184="","",学校番号*100+部員名簿!H184) ->  | E180: =IF(部員名簿!A184="","",部員名簿!C184) ->  | F180: =IF(部員名簿!A184="","",部員名簿!D184) ->  | G180: =IF(部員名簿!A184="","",部員名簿!E184) ->  | H180: =IF(部員名簿!A184="","",部員名簿!F184) ->  | I180: =IF(部員名簿!A184="","",部員名簿!I184) ->  | J180: =IF(部員名簿!A184="","",部員名簿!B184) -> 
A181: =IF(部員名簿!A185="","",YEAR(部員名簿!G185)) ->  | B181: =IF(部員名簿!A185="","",MONTH(部員名簿!G185)) ->  | C181: =IF(部員名簿!A185="","",DAY(部員名簿!G185)) ->  | D181: =IF(部員名簿!A185="","",学校番号*100+部員名簿!H185) ->  | E181: =IF(部員名簿!A185="","",部員名簿!C185) ->  | F181: =IF(部員名簿!A185="","",部員名簿!D185) ->  | G181: =IF(部員名簿!A185="","",部員名簿!E185) ->  | H181: =IF(部員名簿!A185="","",部員名簿!F185) ->  | I181: =IF(部員名簿!A185="","",部員名簿!I185) ->  | J181: =IF(部員名簿!A185="","",部員名簿!B185) -> 
A182: =IF(部員名簿!A186="","",YEAR(部員名簿!G186)) ->  | B182: =IF(部員名簿!A186="","",MONTH(部員名簿!G186)) ->  | C182: =IF(部員名簿!A186="","",DAY(部員名簿!G186)) ->  | D182: =IF(部員名簿!A186="","",学校番号*100+部員名簿!H186) ->  | E182: =IF(部員名簿!A186="","",部員名簿!C186) ->  | F182: =IF(部員名簿!A186="","",部員名簿!D186) ->  | G182: =IF(部員名簿!A186="","",部員名簿!E186) ->  | H182: =IF(部員名簿!A186="","",部員名簿!F186) ->  | I182: =IF(部員名簿!A186="","",部員名簿!I186) ->  | J182: =IF(部員名簿!A186="","",部員名簿!B186) -> 
A183: =IF(部員名簿!A187="","",YEAR(部員名簿!G187)) ->  | B183: =IF(部員名簿!A187="","",MONTH(部員名簿!G187)) ->  | C183: =IF(部員名簿!A187="","",DAY(部員名簿!G187)) ->  | D183: =IF(部員名簿!A187="","",学校番号*100+部員名簿!H187) ->  | E183: =IF(部員名簿!A187="","",部員名簿!C187) ->  | F183: =IF(部員名簿!A187="","",部員名簿!D187) ->  | G183: =IF(部員名簿!A187="","",部員名簿!E187) ->  | H183: =IF(部員名簿!A187="","",部員名簿!F187) ->  | I183: =IF(部員名簿!A187="","",部員名簿!I187) ->  | J183: =IF(部員名簿!A187="","",部員名簿!B187) -> 
A184: =IF(部員名簿!A188="","",YEAR(部員名簿!G188)) ->  | B184: =IF(部員名簿!A188="","",MONTH(部員名簿!G188)) ->  | C184: =IF(部員名簿!A188="","",DAY(部員名簿!G188)) ->  | D184: =IF(部員名簿!A188="","",学校番号*100+部員名簿!H188) ->  | E184: =IF(部員名簿!A188="","",部員名簿!C188) ->  | F184: =IF(部員名簿!A188="","",部員名簿!D188) ->  | G184: =IF(部員名簿!A188="","",部員名簿!E188) ->  | H184: =IF(部員名簿!A188="","",部員名簿!F188) ->  | I184: =IF(部員名簿!A188="","",部員名簿!I188) ->  | J184: =IF(部員名簿!A188="","",部員名簿!B188) -> 
A185: =IF(部員名簿!A189="","",YEAR(部員名簿!G189)) ->  | B185: =IF(部員名簿!A189="","",MONTH(部員名簿!G189)) ->  | C185: =IF(部員名簿!A189="","",DAY(部員名簿!G189)) ->  | D185: =IF(部員名簿!A189="","",学校番号*100+部員名簿!H189) ->  | E185: =IF(部員名簿!A189="","",部員名簿!C189) ->  | F185: =IF(部員名簿!A189="","",部員名簿!D189) ->  | G185: =IF(部員名簿!A189="","",部員名簿!E189) ->  | H185: =IF(部員名簿!A189="","",部員名簿!F189) ->  | I185: =IF(部員名簿!A189="","",部員名簿!I189) ->  | J185: =IF(部員名簿!A189="","",部員名簿!B189) -> 
A186: =IF(部員名簿!A190="","",YEAR(部員名簿!G190)) ->  | B186: =IF(部員名簿!A190="","",MONTH(部員名簿!G190)) ->  | C186: =IF(部員名簿!A190="","",DAY(部員名簿!G190)) ->  | D186: =IF(部員名簿!A190="","",学校番号*100+部員名簿!H190) ->  | E186: =IF(部員名簿!A190="","",部員名簿!C190) ->  | F186: =IF(部員名簿!A190="","",部員名簿!D190) ->  | G186: =IF(部員名簿!A190="","",部員名簿!E190) ->  | H186: =IF(部員名簿!A190="","",部員名簿!F190) ->  | I186: =IF(部員名簿!A190="","",部員名簿!I190) ->  | J186: =IF(部員名簿!A190="","",部員名簿!B190) -> 
A187: =IF(部員名簿!A191="","",YEAR(部員名簿!G191)) ->  | B187: =IF(部員名簿!A191="","",MONTH(部員名簿!G191)) ->  | C187: =IF(部員名簿!A191="","",DAY(部員名簿!G191)) ->  | D187: =IF(部員名簿!A191="","",学校番号*100+部員名簿!H191) ->  | E187: =IF(部員名簿!A191="","",部員名簿!C191) ->  | F187: =IF(部員名簿!A191="","",部員名簿!D191) ->  | G187: =IF(部員名簿!A191="","",部員名簿!E191) ->  | H187: =IF(部員名簿!A191="","",部員名簿!F191) ->  | I187: =IF(部員名簿!A191="","",部員名簿!I191) ->  | J187: =IF(部員名簿!A191="","",部員名簿!B191) -> 
A188: =IF(部員名簿!A192="","",YEAR(部員名簿!G192)) ->  | B188: =IF(部員名簿!A192="","",MONTH(部員名簿!G192)) ->  | C188: =IF(部員名簿!A192="","",DAY(部員名簿!G192)) ->  | D188: =IF(部員名簿!A192="","",学校番号*100+部員名簿!H192) ->  | E188: =IF(部員名簿!A192="","",部員名簿!C192) ->  | F188: =IF(部員名簿!A192="","",部員名簿!D192) ->  | G188: =IF(部員名簿!A192="","",部員名簿!E192) ->  | H188: =IF(部員名簿!A192="","",部員名簿!F192) ->  | I188: =IF(部員名簿!A192="","",部員名簿!I192) ->  | J188: =IF(部員名簿!A192="","",部員名簿!B192) -> 
A189: =IF(部員名簿!A193="","",YEAR(部員名簿!G193)) ->  | B189: =IF(部員名簿!A193="","",MONTH(部員名簿!G193)) ->  | C189: =IF(部員名簿!A193="","",DAY(部員名簿!G193)) ->  | D189: =IF(部員名簿!A193="","",学校番号*100+部員名簿!H193) ->  | E189: =IF(部員名簿!A193="","",部員名簿!C193) ->  | F189: =IF(部員名簿!A193="","",部員名簿!D193) ->  | G189: =IF(部員名簿!A193="","",部員名簿!E193) ->  | H189: =IF(部員名簿!A193="","",部員名簿!F193) ->  | I189: =IF(部員名簿!A193="","",部員名簿!I193) ->  | J189: =IF(部員名簿!A193="","",部員名簿!B193) -> 
A190: =IF(部員名簿!A194="","",YEAR(部員名簿!G194)) ->  | B190: =IF(部員名簿!A194="","",MONTH(部員名簿!G194)) ->  | C190: =IF(部員名簿!A194="","",DAY(部員名簿!G194)) ->  | D190: =IF(部員名簿!A194="","",学校番号*100+部員名簿!H194) ->  | E190: =IF(部員名簿!A194="","",部員名簿!C194) ->  | F190: =IF(部員名簿!A194="","",部員名簿!D194) ->  | G190: =IF(部員名簿!A194="","",部員名簿!E194) ->  | H190: =IF(部員名簿!A194="","",部員名簿!F194) ->  | I190: =IF(部員名簿!A194="","",部員名簿!I194) ->  | J190: =IF(部員名簿!A194="","",部員名簿!B194) -> 
A191: =IF(部員名簿!A195="","",YEAR(部員名簿!G195)) ->  | B191: =IF(部員名簿!A195="","",MONTH(部員名簿!G195)) ->  | C191: =IF(部員名簿!A195="","",DAY(部員名簿!G195)) ->  | D191: =IF(部員名簿!A195="","",学校番号*100+部員名簿!H195) ->  | E191: =IF(部員名簿!A195="","",部員名簿!C195) ->  | F191: =IF(部員名簿!A195="","",部員名簿!D195) ->  | G191: =IF(部員名簿!A195="","",部員名簿!E195) ->  | H191: =IF(部員名簿!A195="","",部員名簿!F195) ->  | I191: =IF(部員名簿!A195="","",部員名簿!I195) ->  | J191: =IF(部員名簿!A195="","",部員名簿!B195) -> 
A192: =IF(部員名簿!A196="","",YEAR(部員名簿!G196)) ->  | B192: =IF(部員名簿!A196="","",MONTH(部員名簿!G196)) ->  | C192: =IF(部員名簿!A196="","",DAY(部員名簿!G196)) ->  | D192: =IF(部員名簿!A196="","",学校番号*100+部員名簿!H196) ->  | E192: =IF(部員名簿!A196="","",部員名簿!C196) ->  | F192: =IF(部員名簿!A196="","",部員名簿!D196) ->  | G192: =IF(部員名簿!A196="","",部員名簿!E196) ->  | H192: =IF(部員名簿!A196="","",部員名簿!F196) ->  | I192: =IF(部員名簿!A196="","",部員名簿!I196) ->  | J192: =IF(部員名簿!A196="","",部員名簿!B196) -> 
A193: =IF(部員名簿!A197="","",YEAR(部員名簿!G197)) ->  | B193: =IF(部員名簿!A197="","",MONTH(部員名簿!G197)) ->  | C193: =IF(部員名簿!A197="","",DAY(部員名簿!G197)) ->  | D193: =IF(部員名簿!A197="","",学校番号*100+部員名簿!H197) ->  | E193: =IF(部員名簿!A197="","",部員名簿!C197) ->  | F193: =IF(部員名簿!A197="","",部員名簿!D197) ->  | G193: =IF(部員名簿!A197="","",部員名簿!E197) ->  | H193: =IF(部員名簿!A197="","",部員名簿!F197) ->  | I193: =IF(部員名簿!A197="","",部員名簿!I197) ->  | J193: =IF(部員名簿!A197="","",部員名簿!B197) -> 
A194: =IF(部員名簿!A198="","",YEAR(部員名簿!G198)) ->  | B194: =IF(部員名簿!A198="","",MONTH(部員名簿!G198)) ->  | C194: =IF(部員名簿!A198="","",DAY(部員名簿!G198)) ->  | D194: =IF(部員名簿!A198="","",学校番号*100+部員名簿!H198) ->  | E194: =IF(部員名簿!A198="","",部員名簿!C198) ->  | F194: =IF(部員名簿!A198="","",部員名簿!D198) ->  | G194: =IF(部員名簿!A198="","",部員名簿!E198) ->  | H194: =IF(部員名簿!A198="","",部員名簿!F198) ->  | I194: =IF(部員名簿!A198="","",部員名簿!I198) ->  | J194: =IF(部員名簿!A198="","",部員名簿!B198) -> 
A195: =IF(部員名簿!A199="","",YEAR(部員名簿!G199)) ->  | B195: =IF(部員名簿!A199="","",MONTH(部員名簿!G199)) ->  | C195: =IF(部員名簿!A199="","",DAY(部員名簿!G199)) ->  | D195: =IF(部員名簿!A199="","",学校番号*100+部員名簿!H199) ->  | E195: =IF(部員名簿!A199="","",部員名簿!C199) ->  | F195: =IF(部員名簿!A199="","",部員名簿!D199) ->  | G195: =IF(部員名簿!A199="","",部員名簿!E199) ->  | H195: =IF(部員名簿!A199="","",部員名簿!F199) ->  | I195: =IF(部員名簿!A199="","",部員名簿!I199) ->  | J195: =IF(部員名簿!A199="","",部員名簿!B199) -> 
A196: =IF(部員名簿!A200="","",YEAR(部員名簿!G200)) ->  | B196: =IF(部員名簿!A200="","",MONTH(部員名簿!G200)) ->  | C196: =IF(部員名簿!A200="","",DAY(部員名簿!G200)) ->  | D196: =IF(部員名簿!A200="","",学校番号*100+部員名簿!H200) ->  | E196: =IF(部員名簿!A200="","",部員名簿!C200) ->  | F196: =IF(部員名簿!A200="","",部員名簿!D200) ->  | G196: =IF(部員名簿!A200="","",部員名簿!E200) ->  | H196: =IF(部員名簿!A200="","",部員名簿!F200) ->  | I196: =IF(部員名簿!A200="","",部員名簿!I200) ->  | J196: =IF(部員名簿!A200="","",部員名簿!B200) -> 
A197: =IF(部員名簿!A201="","",YEAR(部員名簿!G201)) ->  | B197: =IF(部員名簿!A201="","",MONTH(部員名簿!G201)) ->  | C197: =IF(部員名簿!A201="","",DAY(部員名簿!G201)) ->  | D197: =IF(部員名簿!A201="","",学校番号*100+部員名簿!H201) ->  | E197: =IF(部員名簿!A201="","",部員名簿!C201) ->  | F197: =IF(部員名簿!A201="","",部員名簿!D201) ->  | G197: =IF(部員名簿!A201="","",部員名簿!E201) ->  | H197: =IF(部員名簿!A201="","",部員名簿!F201) ->  | I197: =IF(部員名簿!A201="","",部員名簿!I201) ->  | J197: =IF(部員名簿!A201="","",部員名簿!B201) -> 
A198: =IF(部員名簿!A202="","",YEAR(部員名簿!G202)) ->  | B198: =IF(部員名簿!A202="","",MONTH(部員名簿!G202)) ->  | C198: =IF(部員名簿!A202="","",DAY(部員名簿!G202)) ->  | D198: =IF(部員名簿!A202="","",学校番号*100+部員名簿!H202) ->  | E198: =IF(部員名簿!A202="","",部員名簿!C202) ->  | F198: =IF(部員名簿!A202="","",部員名簿!D202) ->  | G198: =IF(部員名簿!A202="","",部員名簿!E202) ->  | H198: =IF(部員名簿!A202="","",部員名簿!F202) ->  | I198: =IF(部員名簿!A202="","",部員名簿!I202) ->  | J198: =IF(部員名簿!A202="","",部員名簿!B202) -> 
A199: =IF(部員名簿!A203="","",YEAR(部員名簿!G203)) ->  | B199: =IF(部員名簿!A203="","",MONTH(部員名簿!G203)) ->  | C199: =IF(部員名簿!A203="","",DAY(部員名簿!G203)) ->  | D199: =IF(部員名簿!A203="","",学校番号*100+部員名簿!H203) ->  | E199: =IF(部員名簿!A203="","",部員名簿!C203) ->  | F199: =IF(部員名簿!A203="","",部員名簿!D203) ->  | G199: =IF(部員名簿!A203="","",部員名簿!E203) ->  | H199: =IF(部員名簿!A203="","",部員名簿!F203) ->  | I199: =IF(部員名簿!A203="","",部員名簿!I203) ->  | J199: =IF(部員名簿!A203="","",部員名簿!B203) -> 
A200: =IF(部員名簿!A204="","",YEAR(部員名簿!G204)) ->  | B200: =IF(部員名簿!A204="","",MONTH(部員名簿!G204)) ->  | C200: =IF(部員名簿!A204="","",DAY(部員名簿!G204)) ->  | D200: =IF(部員名簿!A204="","",学校番号*100+部員名簿!H204) ->  | E200: =IF(部員名簿!A204="","",部員名簿!C204) ->  | F200: =IF(部員名簿!A204="","",部員名簿!D204) ->  | G200: =IF(部員名簿!A204="","",部員名簿!E204) ->  | H200: =IF(部員名簿!A204="","",部員名簿!F204) ->  | I200: =IF(部員名簿!A204="","",部員名簿!I204) ->  | J200: =IF(部員名簿!A204="","",部員名簿!B204) -> 
... 109 more rows

Sheet 陸連データ取込シート (hidden)
A1: 生年月日（西暦） | B1: 生年月日（月） | C1: 生年月日（日） | D1: 登録番号 | E1: 姓 | F1: 名 | G1: 姓（カナ） | H1: 名（カナ） | I1: 性別 | J1: 学年 | K1: 備考 | M1: 年 | N1: 姓 | O1: 名 | P1: フリガナ(姓) | Q1: フリガナ(名) | R1: 生年月日 | S1: 個人番号 | T1: 性別
A2: 2001 | B2: 5 | C2: 14 | D2: 45810 | E2: 井上 | F2: 銀河 | G2: イノウエ | H2: ギンガ | I2: 男 | J2: 3 | M2: =IF(J2="","",J2) -> 3 | N2: =IF(E2="","",E2) -> 井上 | O2: =IF(F2="","",F2) -> 銀河 | P2: =IF(G2="","",G2) -> イノウエ | Q2: =IF(H2="","",H2) -> ギンガ | R2: =IF(D2="","",DATE(A2,B2,C2)) -> 2001-05-14 | S2: =IF(D2="","",RIGHT(D2,2)*1) -> 10 | T2: =IF(I2="","",I2) -> 男
A3: 2001 | B3: 11 | C3: 30 | D3: 45811 | E3: 白矢 | F3: 昂汰 | G3: シラヤ | H3: コウタ | I3: 男 | J3: 3 | M3: =IF(J3="","",J3) -> 3 | N3: =IF(E3="","",E3) -> 白矢 | O3: 昂汰 | P3: シラヤ | Q3: コウタ | R3: =IF(D3="","",DATE(A3,B3,C3)) -> 2001-11-30 | S3: =IF(D3="","",RIGHT(D3,2)*1) -> 11 | T3: =IF(I3="","",I3) -> 男
A4: 2002 | B4: 1 | C4: 6 | D4: 45812 | E4: 松岡 | F4: 泰貴 | G4: マツオカ | H4: タイキ | I4: 男 | J4: 3 | M4: 3 | N4: 松岡 | O4: 泰貴 | P4: マツオカ | Q4: タイキ | R4: 2002-01-06 | S4: 12 | T4: 男
A5: 2001 | B5: 9 | C5: 28 | D5: 45813 | E5: 鷲尾 | F5: 猛 | G5: ワシオ | H5: タケル | I5: 男 | J5: 3 | M5: 3 | N5: 鷲尾 | O5: 猛 | P5: ワシオ | Q5: タケル | R5: 2001-09-28 | S5: 13 | T5: 男
A6: 2002 | B6: 12 | C6: 20 | D6: 45821 | E6: 田淵 | F6: 俊丞 | G6: タブチ | H6: シュンスケ | I6: 男 | J6: 2 | M6: 2 | N6: 田淵 | O6: 俊丞 | P6: タブチ | Q6: シュンスケ | R6: 2002-12-20 | S6: 21 | T6: 男
A7: 2002 | B7: 7 | C7: 9 | D7: 45822 | E7: 西澤 | F7: 昴 | G7: ニシザワ | H7: スバル | I7: 男 | J7: 2 | M7: 2 | N7: 西澤 | O7: 昴 | P7: ニシザワ | Q7: スバル | R7: 2002-07-09 | S7: 22 | T7: 男
A8: 2002 | B8: 5 | C8: 8 | D8: 45823 | E8: 豊島 | F8: 廉執 | G8: トヨシマ | H8: ユキト | I8: 男 | J8: 2 | M8: 2 | N8: 豊島 | O8: 廉執 | P8: トヨシマ | Q8: ユキト | R8: 2002-05-08 | S8: 23 | T8: 男
A9: 2002 | B9: 5 | C9: 7 | D9: 45824 | E9: 小山 | F9: 夢空 | G9: コヤマ | H9: ユア | I9: 男 | J9: 2 | M9: 2 | N9: 小山 | O9: 夢空 | P9: コヤマ | Q9: ユア | R9: 2002-05-07 | S9: 24 | T9: 男
A10: 2002 | B10: 9 | C10: 13 | D10: 45825 | E10: 前田 | F10: 馬杜 | G10: マエダ | H10: マナト | I10: 男 | J10: 2 | M10: 2 | N10: 前田 | O10: 馬杜 | P10: マエダ | Q10: マナト | R10: 2002-09-13 | S10: 25 | T10: 男
A11: 2003 | B11: 7 | C11: 27 | D11: 45830 | E11: 水野 | F11: 蒼士 | G11: ミズノ | H11: ソウシ | I11: 男 | J11: 1 | M11: 1 | N11: 水野 | O11: 蒼士 | P11: ミズノ | Q11: ソウシ | R11: 2003-07-27 | S11: 30 | T11: 男
A12: 2004 | B12: 1 | C12: 1 | D12: 45831 | E12: 豊島 | F12: 聖生 | G12: トヨシマ | H12: セイキ | I12: 男 | J12: 1 | M12: 1 | N12: 豊島 | O12: 聖生 | P12: トヨシマ | Q12: セイキ | R12: 2004-01-01 | S12: 31 | T12: 男
A13: 2003 | B13: 11 | C13: 4 | D13: 45832 | E13: 渡辺 | F13: 翔馬 | G13: ワタナベ | H13: ショウマ | I13: 男 | J13: 1 | M13: 1 | N13: 渡辺 | O13: 翔馬 | P13: ワタナベ | Q13: ショウマ | R13: 2003-11-04 | S13: 32 | T13: 男
A14: 2003 | B14: 4 | C14: 20 | D14: 45833 | E14: 毛利 | F14: 洸晴 | G14: モウリ | H14: コウセイ | I14: 男 | J14: 1 | M14: 1 | N14: 毛利 | O14: 洸晴 | P14: モウリ | Q14: コウセイ | R14: 2003-04-20 | S14: 33 | T14: 男
A15: 2003 | B15: 7 | C15: 27 | D15: 45834 | E15: 久保 | F15: 航貴 | G15: クボ | H15: コウキ | I15: 男 | J15: 1 | M15: 1 | N15: 久保 | O15: 航貴 | P15: クボ | Q15: コウキ | R15: 2003-07-27 | S15: 34 | T15: 男
A16: 2003 | B16: 5 | C16: 8 | D16: 45835 | E16: 伊藤 | F16: 清竜 | G16: イトウ | H16: セイリュウ | I16: 男 | J16: 1 | M16: 1 | N16: 伊藤 | O16: 清竜 | P16: イトウ | Q16: セイリュウ | R16: 2003-05-08 | S16: 35 | T16: 男
A17: 2003 | B17: 11 | C17: 27 | D17: 45836 | E17: 藤田 | F17: 裕 | G17: フジタ | H17: ユウ | I17: 男 | J17: 1 | M17: 1 | N17: 藤田 | O17: 裕 | P17: フジタ | Q17: ユウ | R17: 2003-11-27 | S17: 36 | T17: 男
A18: 2003 | B18: 2 | C18: 21 | D18: 45810 | E18: 高尾 | F18: 美咲 | G18: タカオ | H18: ミサキ | I18: 女 | J18: 2 | M18: 2 | N18: 高尾 | O18: 美咲 | P18: タカオ | Q18: ミサキ | R18: 2003-02-21 | S18: 10 | T18: 女
A19: 2003 | B19: 1 | C19: 15 | D19: 45811 | E19: 藤井 | F19: 乃々華 | G19: フジイ | H19: ノノカ | I19: 女 | J19: 2 | M19: 2 | N19: 藤井 | O19: 乃々華 | P19: フジイ | Q19: ノノカ | R19: 2003-01-15 | S19: 11 | T19: 女
A20: 2002 | B20: 8 | C20: 7 | D20: 45814 | E20: 柳田 | F20: 菜緒 | G20: ヤナギタ | H20: ナオ | I20: 女 | J20: 2 | M20: 2 | N20: 柳田 | O20: 菜緒 | P20: ヤナギタ | Q20: ナオ | R20: 2002-08-07 | S20: 14 | T20: 女
A21: 2003 | B21: 4 | C21: 6 | D21: 45821 | E21: 髙嶋 | F21: 紗莉 | G21: タカシマ | H21: サリ | I21: 女 | J21: 1 | M21: 1 | N21: 髙嶋 | O21: 紗莉 | P21: タカシマ | Q21: サリ | R21: 2003-04-06 | S21: 21 | T21: 女
A22: 2003 | B22: 10 | C22: 4 | D22: 45822 | E22: 久保 | F22: 舞依 | G22: クボ | H22: マイ | I22: 女 | J22: 1 | M22: 1 | N22: 久保 | O22: 舞依 | P22: クボ | Q22: マイ | R22: 2003-10-04 | S22: 22 | T22: 女
A23: 2003 | B23: 7 | C23: 15 | D23: 45823 | E23: 豊島 | F23: 輝夕 | G23: トヨシマ | H23: キセキ | I23: 女 | J23: 1 | M23: 1 | N23: 豊島 | O23: 輝夕 | P23: トヨシマ | Q23: キセキ | R23: 2003-07-15 | S23: 23 | T23: 女
Q66: =IF(H66="","",H66) -> 
M67: =IF(J67="","",J67) ->  | N67: =IF(E67="","",E67) ->  | R67: =IF(D67="","",DATE(A67,B67,C67)) ->  | S67: =IF(D67="","",RIGHT(D67,2)*1) ->  | T67: =IF(I67="","",I67) -> 
M131: =IF(J131="","",J131) ->  | N131: =IF(E131="","",E131) ->  | R131: =IF(D131="","",DATE(A131,B131,C131)) ->  | S131: =IF(D131="","",RIGHT(D131,2)*1) ->  | T131: =IF(I131="","",I131) -> 
Q194: =IF(H194="","",H194) -> 
M195: =IF(J195="","",J195) ->  | N195: =IF(E195="","",E195) ->  | R195: =IF(D195="","",DATE(A195,B195,C195)) ->  | S195: =IF(D195="","",RIGHT(D195,2)*1) ->  | T195: =IF(I195="","",I195) -> 

Sheet 標準記録 (hidden)
B3: 男子
B4: 種目 | C4: 共通 | D4: １年 | E4: ２年 | F4: ３年 | G4: １．２年 | H4: ２．３年 | I4: 低学年 | J4: その他
A5: 001 | B5: １００ｍ
A6: 002 | B6: ２００ｍ
A7: 004 | B7: ４００ｍ
A8: 008 | B8: ８００ｍ
A9: 015 | B9: １５００ｍ
A10: 030 | B10: ３０００ｍ
A11: 111 | B11: １１０ｍＨ
A12: 410 | B12: ４×１００ｍＲ
A13: 510 | B13: 走高跳
A14: 520 | B14: 棒高跳
A15: 530 | B15: 走幅跳
A16: 540 | B16: 三段跳
A17: 551 | B17: 円盤投(1.5㎏)
A18: 562 | B18: 砲丸投(5.0㎏)
A19: 563 | B19: 砲丸投(4.0㎏)
A20: 570 | B20: ｼﾞｬﾍﾞﾘｯｸｽﾛｰ
A21: 710 | B21: 四種競技
B23: 女子
B24: 種目 | C24: 共通 | D24: １年 | E24: ２年 | F24: ３年 | G24: １．２年 | H24: ２．３年 | I24: 低学年 | J24: その他
A25: 001 | B25: １００ｍ
A26: 002 | B26: ２００ｍ
A27: 004 | B27: ４００ｍ
A28: 008 | B28: ８００ｍ
A29: 015 | B29: １５００ｍ
A30: 030 | B30: ３０００ｍ
A31: 110 | B31: １００ｍＨ
A32: 410 | B32: ４×１００ｍＲ
A33: 510 | B33: 走高跳
A34: 530 | B34: 走幅跳
A35: 550 | B35: 円盤投
A36: 560 | B36: 砲丸投
A37: 563 | B37: 砲丸投(4.0㎏)
A38: 570 | B38: ｼﾞｬﾍﾞﾘｯｸｽﾛｰ
A39: 760 | B39: 四種競技

Sheet 入力シート(記録会) (hidden)
A1: 性別 | B1: 性別 | C1: 種別コード | D1: 種別 | E1: 種目コード | F1: 種目 | G1: 学校番号 | H1: 個人番号 | I1: 氏名 | J1: 学年 | K1: 申込記録 | L1: 計測区分 | M1: 大会名
A2: 男子 | B2: 男 | C2: 0 | D2: =VLOOKUP(C2,出場種別,2,FALSE) -> 共通 | E2: 001 | F2: =VLOOKUP(E2,種目コード,2,FALSE) -> １００ｍ | G2: =学校番号 -> 0 | I2: =IF(H2="","",VLOOKUP(P2,部員データ,3,FALSE)&" "&VLOOKUP(P2,部員データ,4,FALSE)) ->  | J2: =IF(H2="","",VLOOKUP(P2,部員データ,2,FALSE)) ->  | P2: =IF(H2="","",B2&DBCS(TEXT(H2,"００"))) ->  | Q2: =COUNTIF($P$2:$P$43,P2) -> 42 | R2: =IF(VLOOKUP(E2,男子標準記録,C2+3,FALSE)="","",VLOOKUP(E2,男子標準記録,C2+3,FALSE)) ->  | S2: =VLOOKUP(E2,種目コード,4,FALSE) -> 10 | T2: =IF(FIND(".",TEXT(K2,"#.00"))>3,MID(TEXT(K2,"#.00"),FIND(".",TEXT(K2,"#.00"))-2,2)/1,"") -> 
B3: 男 | C3: 0 | D3: 共通 | E3: 001 | F3: １００ｍ | G3: 0 | I3: =IF(H3="","",VLOOKUP(P3,部員データ,3,FALSE)&" "&VLOOKUP(P3,部員データ,4,FALSE)) ->  | Q3: 42 | S3: 10 | T3: =IF(FIND(".",TEXT(K3,"#.00"))>3,MID(TEXT(K3,"#.00"),FIND(".",TEXT(K3,"#.00"))-2,2)/1,"") -> 
B4: 男 | C4: 0 | D4: 共通 | E4: 001 | F4: １００ｍ | G4: 0 | I4: =IF(H4="","",VLOOKUP(P4,部員データ,3,FALSE)&" "&VLOOKUP(P4,部員データ,4,FALSE)) ->  | Q4: 42 | S4: 10
B5: 男 | C5: 0 | D5: 共通 | E5: 001 | F5: １００ｍ | G5: 0 | Q5: 42 | S5: 10
B6: 男 | C6: 0 | D6: 共通 | E6: 002 | F6: ２００ｍ | G6: 0 | Q6: 42 | S6: 20.5
B7: 男 | C7: 0 | D7: 共通 | E7: 002 | F7: ２００ｍ | G7: 0 | Q7: 42 | S7: 20.5
B8: 男 | C8: 0 | D8: 共通 | E8: 004 | F8: ４００ｍ | G8: 0 | Q8: 42 | S8: 42
B9: 男 | C9: 0 | D9: 共通 | E9: 004 | F9: ４００ｍ | G9: 0 | Q9: 42 | S9: 42
B10: 男 | C10: 0 | D10: 共通 | E10: 008 | F10: ８００ｍ | G10: 0 | Q10: 42 | S10: 150
B11: 男 | C11: 0 | D11: 共通 | E11: 008 | F11: ８００ｍ | G11: 0 | Q11: 42 | S11: 150
B12: 男 | C12: 0 | D12: 共通 | E12: 015 | F12: １５００ｍ | G12: 0 | Q12: 42 | S12: 340
B13: 男 | C13: 0 | D13: 共通 | E13: 015 | F13: １５００ｍ | G13: 0 | Q13: 42 | S13: 340
B14: 男 | C14: 0 | D14: 共通 | E14: 030 | F14: ３０００ｍ | G14: 0 | Q14: 42 | S14: 800
B15: 男 | C15: 0 | D15: 共通 | E15: 030 | F15: ３０００ｍ | G15: 0 | Q15: 42 | S15: 800
B16: 男 | C16: 0 | D16: 共通 | E16: 030 | F16: ３０００ｍ | G16: 0 | Q16: 42 | S16: 800
B17: 男 | C17: 0 | D17: 共通 | E17: 030 | F17: ３０００ｍ | G17: 0 | Q17: 42 | S17: 800
B18: 男 | C18: 0 | D18: 共通 | E18: 030 | F18: ３０００ｍ | G18: 0 | Q18: 42 | S18: =VLOOKUP(E18,種目コード,4,FALSE) -> 800
B19: 男 | C19: 0 | D19: 共通 | E19: 030 | F19: ３０００ｍ | G19: 0 | Q19: 42 | S19: 800
B20: 男 | C20: 0 | D20: 共通 | E20: 111 | F20: １１０ｍＨ | G20: 0 | Q20: 42 | S20: 12
B21: 男 | C21: 0 | D21: 共通 | E21: 111 | F21: １１０ｍＨ | G21: 0 | Q21: 42 | S21: 12
B22: 男 | C22: 0 | D22: 共通 | E22: 510 | F22: 走高跳 | G22: 0 | Q22: 42 | S22: 2.4
B23: 男 | C23: 0 | D23: 共通 | E23: 510 | F23: 走高跳 | G23: 0 | Q23: 42 | S23: 2.4
B24: 男 | C24: 0 | D24: 共通 | E24: 520 | F24: 棒高跳 | G24: 0 | Q24: 42 | R24: =IF(VLOOKUP(E24,男子標準記録,C24+3,FALSE)="","",VLOOKUP(E24,男子標準記録,C24+3,FALSE)) ->  | S24: 5.5
B25: 男 | C25: 0 | D25: 共通 | E25: 520 | F25: 棒高跳 | G25: 0 | Q25: 42 | S25: 5.5
B26: 男 | C26: 0 | D26: 共通 | E26: 530 | F26: 走幅跳 | G26: 0 | Q26: 42 | S26: 8
B27: 男 | C27: 0 | D27: 共通 | E27: 530 | F27: 走幅跳 | G27: 0 | Q27: 42 | S27: 8
B28: 男 | C28: 0 | D28: 共通 | E28: 540 | F28: 三段跳 | G28: 0 | Q28: 42 | S28: 17
B29: 男 | C29: 0 | D29: 共通 | E29: 540 | F29: 三段跳 | G29: 0 | Q29: 42 | S29: 17
B30: 男 | C30: 0 | D30: 共通 | E30: 562 | F30: 砲丸投(5.0㎏) | G30: 0 | Q30: 42 | S30: 20
B31: 男 | C31: 0 | D31: 共通 | E31: 562 | F31: 砲丸投(5.0㎏) | G31: 0 | Q31: 42 | S31: 20
B32: 男 | C32: 0 | D32: 共通 | E32: 551 | F32: 円盤投(1.5㎏) | G32: 0 | Q32: 42 | S32: 70
B33: 男 | C33: 0 | D33: 共通 | E33: 551 | F33: 円盤投(1.5㎏) | G33: 0 | Q33: 42 | S33: 70
B34: 男 | C34: 0 | D34: 共通 | E34: 710 | F34: 男子四種競技 | G34: 0 | Q34: 42 | S34: 3800
I35: １１０ｍH
I36: 砲丸投げ
I37: 走高跳
I38: ４００ｍ
B39: 男 | C39: 0 | D39: =VLOOKUP(C39,出場種別,2,FALSE) -> 共通 | E39: 710 | F39: =VLOOKUP(E39,種目コード,2,FALSE) -> 男子四種競技 | G39: =学校番号 -> 0 | I39: =IF(H39="","",VLOOKUP(P39,部員データ,3,FALSE)&" "&VLOOKUP(P39,部員データ,4,FALSE)) ->  | J39: =IF(H39="","",VLOOKUP(P39,部員データ,2,FALSE)) ->  | Q39: 42 | R39: =IF(VLOOKUP(E39,男子標準記録,C39+3,FALSE)="","",VLOOKUP(E39,男子標準記録,C39+3,FALSE)) ->  | S39: =VLOOKUP(E39,種目コード,4,FALSE) -> 3800
I40: １１０ｍH
I41: 砲丸投げ
I42: 走高跳
I43: ４００ｍ
A44: 女子 | B44: 女 | C44: 0 | D44: =VLOOKUP(C44,出場種別,2,FALSE) -> 共通 | E44: 001 | F44: =VLOOKUP(E44,種目コード,2,FALSE) -> １００ｍ | G44: =学校番号 -> 0 | I44: =IF(H44="","",VLOOKUP(P44,部員データ,3,FALSE)&" "&VLOOKUP(P44,部員データ,4,FALSE)) ->  | J44: =IF(H44="","",VLOOKUP(P44,部員データ,2,FALSE)) ->  | Q44: =COUNTIF($P$44:$P$83,P44) -> 40 | R44: =IF(VLOOKUP(E44,女子標準記録,C44+3,FALSE)="","",VLOOKUP(E44,女子標準記録,C44+3,FALSE)) ->  | S44: =VLOOKUP(E44,種目コード,6,FALSE) -> 11
B45: 女 | C45: 0 | D45: 共通 | E45: 001 | F45: １００ｍ | G45: 0 | Q45: 40 | S45: 11
B46: 女 | C46: 0 | D46: 共通 | E46: 001 | F46: １００ｍ | G46: 0 | Q46: 40 | S46: 11
B47: 女 | C47: 0 | D47: 共通 | E47: 001 | F47: １００ｍ | G47: 0 | Q47: 40 | S47: 11
B48: 女 | C48: 0 | D48: 共通 | E48: 002 | F48: ２００ｍ | G48: 0 | Q48: 40 | S48: 22
B49: 女 | C49: 0 | D49: 共通 | E49: 002 | F49: ２００ｍ | G49: 0 | Q49: 40 | S49: 22
B50: 女 | C50: 0 | D50: 共通 | E50: 008 | F50: ８００ｍ | G50: 0 | Q50: 40 | S50: 200
B51: 女 | C51: 0 | D51: 共通 | E51: 008 | F51: ８００ｍ | G51: 0 | Q51: 40 | S51: 200
B52: 女 | C52: 0 | D52: 共通 | E52: 015 | F52: １５００ｍ | G52: 0 | Q52: 40 | S52: 400
B53: 女 | C53: 0 | D53: 共通 | E53: 015 | F53: １５００ｍ | G53: 0 | Q53: 40 | S53: 400
B54: 女 | C54: 0 | D54: 共通 | E54: 015 | F54: １５００ｍ | G54: 0 | Q54: 40 | S54: 400
B55: 女 | C55: 0 | D55: 共通 | E55: 015 | F55: １５００ｍ | G55: 0 | Q55: 40 | S55: 400
B56: 女 | C56: 0 | D56: 共通 | E56: 015 | F56: １５００ｍ | G56: 0 | Q56: 40 | S56: =VLOOKUP(E56,種目コード,6,FALSE) -> 400
B57: 女 | C57: 0 | D57: 共通 | E57: 015 | F57: １５００ｍ | G57: 0 | Q57: 40 | S57: 400
B58: 女 | C58: 0 | D58: 共通 | E58: 030 | F58: ３０００ｍ | G58: 0 | Q58: 40 | S58: 900
B59: 女 | C59: 0 | D59: 共通 | E59: 030 | F59: ３０００ｍ | G59: 0 | Q59: 40 | S59: 900
B60: 女 | C60: 0 | D60: 共通 | E60: 030 | F60: ３０００ｍ | G60: 0 | Q60: 40 | S60: 900
B61: 女 | C61: 0 | D61: 共通 | E61: 030 | F61: ３０００ｍ | G61: 0 | Q61: 40 | S61: 900
B62: 女 | C62: 0 | D62: 共通 | E62: 030 | F62: ３０００ｍ | G62: 0 | Q62: 40 | S62: 900
B63: 女 | C63: 0 | D63: 共通 | E63: 030 | F63: ３０００ｍ | G63: 0 | Q63: 40 | S63: 900
B64: 女 | C64: 0 | D64: =VLOOKUP(C64,出場種別,2,FALSE) -> 共通 | E64: 110 | F64: =VLOOKUP(E64,種目コード,2,FALSE) -> １００ｍＨ | G64: 0 | I64: =IF(H64="","",VLOOKUP(P64,部員データ,3,FALSE)&" "&VLOOKUP(P64,部員データ,4,FALSE)) ->  | J64: =IF(H64="","",VLOOKUP(P64,部員データ,2,FALSE)) ->  | Q64: 40 | R64: =IF(VLOOKUP(E64,女子標準記録,C64+3,FALSE)="","",VLOOKUP(E64,女子標準記録,C64+3,FALSE)) ->  | S64: 12 | T64: =IF(FIND(".",TEXT(K64,"#.00"))>3,MID(TEXT(K64,"#.00"),FIND(".",TEXT(K64,"#.00"))-2,2)/1,"") -> 
B65: 女 | C65: 0 | D65: =VLOOKUP(C65,出場種別,2,FALSE) -> 共通 | E65: 110 | F65: =VLOOKUP(E65,種目コード,2,FALSE) -> １００ｍＨ | G65: 0 | I65: =IF(H65="","",VLOOKUP(P65,部員データ,3,FALSE)&" "&VLOOKUP(P65,部員データ,4,FALSE)) ->  | J65: =IF(H65="","",VLOOKUP(P65,部員データ,2,FALSE)) ->  | Q65: 40 | R65: =IF(VLOOKUP(E65,女子標準記録,C65+3,FALSE)="","",VLOOKUP(E65,女子標準記録,C65+3,FALSE)) ->  | S65: 12 | T65: =IF(FIND(".",TEXT(K65,"#.00"))>3,MID(TEXT(K65,"#.00"),FIND(".",TEXT(K65,"#.00"))-2,2)/1,"") -> 
B66: 女 | C66: 0 | D66: 共通 | E66: 510 | F66: 走高跳 | G66: 0 | P66: =IF(H66="","",B66&DBCS(TEXT(H66,"００"))) ->  | Q66: 40 | S66: 1.9
B67: 女 | C67: 0 | D67: 共通 | E67: 510 | F67: 走高跳 | G67: 0 | Q67: 40 | S67: 1.9 | T67: =IF(FIND(".",TEXT(K67,"#.00"))>3,MID(TEXT(K67,"#.00"),FIND(".",TEXT(K67,"#.00"))-2,2)/1,"") -> 
B68: 女 | C68: 0 | D68: 共通 | E68: 530 | F68: 走幅跳 | G68: 0 | Q68: 40 | S68: 7
B69: 女 | C69: 0 | D69: 共通 | E69: 530 | F69: 走幅跳 | G69: 0 | Q69: 40 | S69: 7
B70: 女 | C70: 0 | D70: =VLOOKUP(C70,出場種別,2,FALSE) -> 共通 | E70: 560 | F70: =VLOOKUP(E70,種目コード,2,FALSE) -> 砲丸投 | G70: 0 | I70: =IF(H70="","",VLOOKUP(P70,部員データ,3,FALSE)&" "&VLOOKUP(P70,部員データ,4,FALSE)) ->  | J70: =IF(H70="","",VLOOKUP(P70,部員データ,2,FALSE)) ->  | P70: =IF(H70="","",B70&DBCS(TEXT(H70,"００"))) ->  | Q70: 40 | R70: =IF(VLOOKUP(E70,女子標準記録,C70+3,FALSE)="","",VLOOKUP(E70,女子標準記録,C70+3,FALSE)) ->  | S70: 18 | T70: =IF(FIND(".",TEXT(K70,"#.00"))>3,MID(TEXT(K70,"#.00"),FIND(".",TEXT(K70,"#.00"))-2,2)/1,"") -> 
B71: 女 | C71: 0 | D71: =VLOOKUP(C71,出場種別,2,FALSE) -> 共通 | E71: 560 | F71: =VLOOKUP(E71,種目コード,2,FALSE) -> 砲丸投 | G71: 0 | I71: =IF(H71="","",VLOOKUP(P71,部員データ,3,FALSE)&" "&VLOOKUP(P71,部員データ,4,FALSE)) ->  | J71: =IF(H71="","",VLOOKUP(P71,部員データ,2,FALSE)) ->  | P71: =IF(H71="","",B71&DBCS(TEXT(H71,"００"))) ->  | Q71: 40 | R71: =IF(VLOOKUP(E71,女子標準記録,C71+3,FALSE)="","",VLOOKUP(E71,女子標準記録,C71+3,FALSE)) ->  | S71: 18 | T71: =IF(FIND(".",TEXT(K71,"#.00"))>3,MID(TEXT(K71,"#.00"),FIND(".",TEXT(K71,"#.00"))-2,2)/1,"") -> 
B72: 女 | C72: 0 | D72: 共通 | E72: 550 | F72: 円盤投 | G72: 0 | Q72: 40 | S72: 45
B73: 女 | C73: 0 | D73: 共通 | E73: 550 | F73: 円盤投 | G73: 0 | Q73: 40 | S73: 45
B74: 女 | C74: 0 | D74: 共通 | E74: 760 | F74: 女子四種競技 | G74: 0 | Q74: 40 | S74: 4000
I75: １００ｍH | Q75: 0
I76: 走高跳 | Q76: 0
I77: 砲丸投 | Q77: 0
I78: ２００ｍ | Q78: 0
B79: 女 | C79: 0 | D79: =VLOOKUP(C79,出場種別,2,FALSE) -> 共通 | E79: 760 | F79: =VLOOKUP(E79,種目コード,2,FALSE) -> 女子四種競技 | G79: =学校番号 -> 0 | I79: =IF(H79="","",VLOOKUP(P79,部員データ,3,FALSE)&" "&VLOOKUP(P79,部員データ,4,FALSE)) ->  | J79: =IF(H79="","",VLOOKUP(P79,部員データ,2,FALSE)) ->  | Q79: 40 | R79: =IF(VLOOKUP(E79,女子標準記録,C79+3,FALSE)="","",VLOOKUP(E79,女子標準記録,C79+3,FALSE)) ->  | S79: =VLOOKUP(E79,種目コード,6,FALSE) -> 4000
I80: １００ｍH | Q80: 0
I81: 走高跳 | Q81: 0
I82: 砲丸投 | Q82: 0
I83: ２００ｍ | Q83: 0

Sheet 秋季記録会 (hidden)
A1: 1 | B1: 2 | C1: 3 | D1: 4 | E1: 5 | F1: 6 | G1: 7 | H1: 8 | I1: 9 | J1: 10 | K1: 11 | L1: 12 | M1: 13 | N1: 14 | O1: 15 | P1: 16 | Q1: 17 | R1: 18 | S1: 19 | T1: 20 | U1: 21 | V1: 22 | W1: 23 | X1: 24 | Y1: 25 | Z1: 26 | AA1: 27 | AB1: 28 | AC1: 29 | AD1: 30 | AE1: 31 | AF1: 32 | AG1: 33 | AH1: 34 | AI1: 35 | AJ1: 36 | AK1: 37 | AL1: 38 | AM1: 39 | AN1: 40 | AO1: 41 | AP1: 42 | AQ1: 43 | AR1: 44 | AS1: 45 | AT1: 46 | AU1: 47 | AV1: 48 | AW1: 49 | AX1: 50 | AY1: 51 | AZ1: 52 | BA1: 53 | BB1: 54 | BC1: 55 | BD1: 56 | BE1: 57 | BF1: 58 | BG1: 59 | BH1: 60 | BI1: 61 | BJ1: 62 | BK1: 63 | BL1: 64 | BM1: 65 | BN1: 66 | BO1: 67 | BP1: 68 | BQ1: 69 | BR1: 70 | BS1: 71 | BT1: 72 | BU1: 73 | BV1: 74 | BW1: 75 | BX1: 76 | BY1: 77 | BZ1: 78 | CA1: 79 | CB1: 80 | CC1: 81 | CD1: 82 | CE1: 83 | CF1: 84 | CG1: 85 | CH1: 86 | CI1: 87 | CJ1: 88 | CK1: 89 | CL1: 90 | CM1: 91 | CN1: 92 | CO1: 93 | CP1: 94 | CQ1: 95 | CR1: 96 | CS1: 97 | CT1: 98 | CU1: 99 | CV1: 100 | CW1: 101 | CX1: 102 | CY1: 103 | CZ1: 104 | DA1: 105 | DB1: 106 | DC1: 107 | DD1: 108 | DE1: 109 | DF1: 110 | DG1: 111 | DH1: 112 | DI1: 113 | DJ1: 114 | DK1: 115 | DL1: 116 | DM1: 117 | DN1: 118 | DO1: 119 | DP1: 120 | DQ1: 121 | DR1: 122 | DS1: 123 | DT1: 124 | DU1: 125 | DV1: 126 | DW1: 127 | DX1: 128 | DY1: 129 | DZ1: 130 | EA1: 131 | EB1: 132 | EC1: 133 | ED1: 134 | EE1: 135 | EF1: 136 | EG1: 137 | EH1: 138 | EI1: 139 | EJ1: 140
B2: 平成２７年度 中播地区中学校秋季陸上競技記録会
B3: 申込一覧表 （Ａ）
DN4: 2部提出
C5: （全種目とも全学年共通） | BW5: 学校番号 | CI5: （ | CJ5: =学校番号 -> 0 | CV5: ） | CY5: 学 校 名 | DJ5: （ | DK5: =略称 -> 0 | EF5: ）
C6: １日目実施● | BT6: １日目実施●
B8: 男子種目 | L8: 個人 番号 | R8: 名 前 | AJ8: 学年 | AN8: 個人 番号 | AT8: 名 前 | BL8: 学年 | BS8: 女子種目 | CC8: 個人 番号 | CI8: 名 前 | DA8: 学年 | DE8: 個人 番号 | DK8: 名 前 | EC8: 学年
B9: ●100m | L9: =IF('入力シート(記録会)'!$H2="","",'入力シート(記録会)'!$H2) ->  | R9: =IF(L9<>"",VLOOKUP(EM9,部員データ,3,FALSE)&" "&VLOOKUP(EM9,部員データ,4,FALSE),"") ->  | AJ9: =IF(L9<>"",VLOOKUP(EM9,部員データ,2,FALSE),"") ->  | AN9: =IF('入力シート(記録会)'!$H3="","",'入力シート(記録会)'!$H3) ->  | AT9: =IF(AN9<>"",VLOOKUP(EN9,部員データ,3,FALSE)&" "&VLOOKUP(EN9,部員データ,4,FALSE),"") ->  | BL9: =IF(AN9<>"",VLOOKUP(EN9,部員データ,2,FALSE),"") ->  | BS9: ●100m | CC9: =IF('入力シート(記録会)'!$H44="","",'入力シート(記録会)'!$H44) ->  | CI9: =IF(CC9<>"",VLOOKUP(EO9,部員データ,3,FALSE)&" "&VLOOKUP(EO9,部員データ,4,FALSE),"") ->  | DA9: =IF(CC9<>"",VLOOKUP(EO9,部員データ,2,FALSE),"") ->  | DE9: =IF('入力シート(記録会)'!$H45="","",'入力シート(記録会)'!$H45) ->  | DK9: =IF(DE9<>"",VLOOKUP(EP9,部員データ,3,FALSE)&" "&VLOOKUP(EP9,部員データ,4,FALSE),"") ->  | EC9: =IF(DE9<>"",VLOOKUP(EP9,部員データ,2,FALSE),"") ->  | EM9: ="男"&DBCS(TEXT(L9,"00")) -> 男 | EN9: ="男"&DBCS(TEXT(AN9,"00")) -> 男 | EO9: ="女"&DBCS(TEXT(CC9,"00")) -> 女 | EP9: ="女"&DBCS(TEXT(DE9,"00")) -> 女 | EQ9: =IF(OR(EM9="男",EM9=""),"",COUNTIF($EM$9:$EN$42,EM9)) ->  | ER9: =IF(OR(EN9="男",EN9=""),"",COUNTIF($EM$9:$EN$42,EN9)) ->  | ES9: =IF(OR(EO9="女",EO9=""),"",COUNTIF($EO$9:$EP$39,EO9)) ->  | ET9: =IF(OR(EP9="女",EP9=""),"",COUNTIF($EO$9:$EP$39,EP9)) -> 
R10: =IF(L9="","",IF('入力シート(記録会)'!$K2="","",format_kiroku('入力シート(記録会)'!$K2,B9))) ->  | AT10: =IF(AN9="","",IF('入力シート(記録会)'!$K3="","",format_kiroku('入力シート(記録会)'!$K3,$B9))) ->  | CI10: =IF(CC9="","",IF('入力シート(記録会)'!$K44="","",format_kiroku('入力シート(記録会)'!$K44,$BS9))) ->  | DK10: =IF(DE9="","",IF('入力シート(記録会)'!$K45="","",format_kiroku('入力シート(記録会)'!$K45,$BS9))) ->  | EQ10: =IF(OR(EM10="男",EM10=""),"",COUNTIF($EM$9:$EN$42,EM10)) ->  | ES10: =IF(OR(EO10="女",EO10=""),"",COUNTIF($EO$9:$EP$39,EO10)) -> 
L11: =IF('入力シート(記録会)'!$H4="","",'入力シート(記録会)'!$H4) ->  | R11: =IF(L11<>"",VLOOKUP(EM11,部員データ,3,FALSE)&" "&VLOOKUP(EM11,部員データ,4,FALSE),"") ->  | AJ11: =IF(L11<>"",VLOOKUP(EM11,部員データ,2,FALSE),"") ->  | AN11: =IF('入力シート(記録会)'!$H5="","",'入力シート(記録会)'!$H5) ->  | AT11: =IF(AN11<>"",VLOOKUP(EN11,部員データ,3,FALSE)&" "&VLOOKUP(EN11,部員データ,4,FALSE),"") ->  | BL11: =IF(AN11<>"",VLOOKUP(EN11,部員データ,2,FALSE),"") ->  | CC11: =IF('入力シート(記録会)'!$H46="","",'入力シート(記録会)'!$H46) ->  | CI11: =IF(CC11<>"",VLOOKUP(EO11,部員データ,3,FALSE)&" "&VLOOKUP(EO11,部員データ,4,FALSE),"") ->  | DA11: =IF(CC11<>"",VLOOKUP(EO11,部員データ,2,FALSE),"") ->  | DE11: =IF('入力シート(記録会)'!$H47="","",'入力シート(記録会)'!$H47) ->  | DK11: =IF(DE11<>"",VLOOKUP(EP11,部員データ,3,FALSE)&" "&VLOOKUP(EP11,部員データ,4,FALSE),"") ->  | EC11: =IF(DE11<>"",VLOOKUP(EP11,部員データ,2,FALSE),"") ->  | EM11: ="男"&DBCS(TEXT(L11,"00")) -> 男 | EN11: ="男"&DBCS(TEXT(AN11,"00")) -> 男 | EO11: ="女"&DBCS(TEXT(CC11,"00")) -> 女 | EP11: ="女"&DBCS(TEXT(DE11,"00")) -> 女
R12: =IF(L11="","",IF('入力シート(記録会)'!$K4="","",format_kiroku('入力シート(記録会)'!$K4,$B9))) ->  | AT12: =IF(AN11="","",IF('入力シート(記録会)'!$K5="","",format_kiroku('入力シート(記録会)'!$K5,$B9))) ->  | CI12: =IF(CC11="","",IF('入力シート(記録会)'!$K46="","",format_kiroku('入力シート(記録会)'!$K46,$BS9))) ->  | DK12: =IF(DE11="","",IF('入力シート(記録会)'!$K47="","",format_kiroku('入力シート(記録会)'!$K47,$BS9))) -> 
B13: 200m | L13: =IF('入力シート(記録会)'!$H6="","",'入力シート(記録会)'!$H6) ->  | R13: =IF(L13<>"",VLOOKUP(EM13,部員データ,3,FALSE)&" "&VLOOKUP(EM13,部員データ,4,FALSE),"") ->  | AJ13: =IF(L13<>"",VLOOKUP(EM13,部員データ,2,FALSE),"") ->  | AN13: =IF('入力シート(記録会)'!$H7="","",'入力シート(記録会)'!$H7) ->  | AT13: =IF(AN13<>"",VLOOKUP(EN13,部員データ,3,FALSE)&" "&VLOOKUP(EN13,部員データ,4,FALSE),"") ->  | BL13: =IF(AN13<>"",VLOOKUP(EN13,部員データ,2,FALSE),"") ->  | BS13: 200m | CC13: =IF('入力シート(記録会)'!$H48="","",'入力シート(記録会)'!$H48) ->  | CI13: =IF(CC13<>"",VLOOKUP(EO13,部員データ,3,FALSE)&" "&VLOOKUP(EO13,部員データ,4,FALSE),"") ->  | DA13: =IF(CC13<>"",VLOOKUP(EO13,部員データ,2,FALSE),"") ->  | DE13: =IF('入力シート(記録会)'!$H49="","",'入力シート(記録会)'!$H49) ->  | DK13: =IF(DE13<>"",VLOOKUP(EP13,部員データ,3,FALSE)&" "&VLOOKUP(EP13,部員データ,4,FALSE),"") ->  | EC13: =IF(DE13<>"",VLOOKUP(EP13,部員データ,2,FALSE),"") ->  | EM13: 男 | EN13: 男 | EO13: 女 | EP13: 女
R14: =IF(L13="","",IF('入力シート(記録会)'!$K6="","",format_kiroku('入力シート(記録会)'!$K6,B13))) ->  | AT14: =IF(AN13="","",IF('入力シート(記録会)'!$K7="","",format_kiroku('入力シート(記録会)'!$K7,B13))) ->  | CI14: =IF(CC13="","",IF('入力シート(記録会)'!$K48="","",format_kiroku('入力シート(記録会)'!$K48,$BS13))) ->  | DK14: =IF(DE13="","",IF('入力シート(記録会)'!$K49="","",format_kiroku('入力シート(記録会)'!$K49,$BS13))) -> 
B15: ●400m | L15: =IF('入力シート(記録会)'!$H8="","",'入力シート(記録会)'!$H8) ->  | R15: =IF(L15<>"",VLOOKUP(EM15,部員データ,3,FALSE)&" "&VLOOKUP(EM15,部員データ,4,FALSE),"") ->  | AJ15: =IF(L15<>"",VLOOKUP(EM15,部員データ,2,FALSE),"") ->  | AN15: =IF('入力シート(記録会)'!$H9="","",'入力シート(記録会)'!$H9) ->  | AT15: =IF(AN15<>"",VLOOKUP(EN15,部員データ,3,FALSE)&" "&VLOOKUP(EN15,部員データ,4,FALSE),"") ->  | BL15: =IF(AN15<>"",VLOOKUP(EN15,部員データ,2,FALSE),"") ->  | BS15: 800m | CC15: =IF('入力シート(記録会)'!$H50="","",'入力シート(記録会)'!$H50) ->  | CI15: =IF(CC15<>"",VLOOKUP(EO15,部員データ,3,FALSE)&" "&VLOOKUP(EO15,部員データ,4,FALSE),"") ->  | DA15: =IF(CC15<>"",VLOOKUP(EO15,部員データ,2,FALSE),"") ->  | DE15: =IF('入力シート(記録会)'!$H51="","",'入力シート(記録会)'!$H51) ->  | DK15: =IF(DE15<>"",VLOOKUP(EP15,部員データ,3,FALSE)&" "&VLOOKUP(EP15,部員データ,4,FALSE),"") ->  | EC15: =IF(DE15<>"",VLOOKUP(EP15,部員データ,2,FALSE),"") ->  | EM15: 男 | EN15: 男 | EO15: 女 | EP15: 女
R16: =IF(L15="","",IF('入力シート(記録会)'!$K8="","",format_kiroku('入力シート(記録会)'!$K8,B15))) ->  | AT16: =IF(AN15="","",IF('入力シート(記録会)'!$K9="","",format_kiroku('入力シート(記録会)'!$K9,B15))) ->  | CI16: =IF(CC15="","",IF('入力シート(記録会)'!$K50="","",format_kiroku('入力シート(記録会)'!$K50,$BS15))) ->  | DK16: =IF(DE15="","",IF('入力シート(記録会)'!$K51="","",format_kiroku('入力シート(記録会)'!$K51,$BS15))) -> 
B17: 800m | L17: =IF('入力シート(記録会)'!$H10="","",'入力シート(記録会)'!$H10) ->  | R17: =IF(L17<>"",VLOOKUP(EM17,部員データ,3,FALSE)&" "&VLOOKUP(EM17,部員データ,4,FALSE),"") ->  | AJ17: =IF(L17<>"",VLOOKUP(EM17,部員データ,2,FALSE),"") ->  | AN17: =IF('入力シート(記録会)'!$H11="","",'入力シート(記録会)'!$H11) ->  | AT17: =IF(AN17<>"",VLOOKUP(EN17,部員データ,3,FALSE)&" "&VLOOKUP(EN17,部員データ,4,FALSE),"") ->  | BL17: =IF(AN17<>"",VLOOKUP(EN17,部員データ,2,FALSE),"") ->  | BS17: ●1500m | CC17: =IF('入力シート(記録会)'!$H52="","",'入力シート(記録会)'!$H52) ->  | CI17: =IF(CC17<>"",VLOOKUP(EO17,部員データ,3,FALSE)&" "&VLOOKUP(EO17,部員データ,4,FALSE),"") ->  | DA17: =IF(CC17<>"",VLOOKUP(EO17,部員データ,2,FALSE),"") ->  | DE17: =IF('入力シート(記録会)'!$H53="","",'入力シート(記録会)'!$H53) ->  | DK17: =IF(DE17<>"",VLOOKUP(EP17,部員データ,3,FALSE)&" "&VLOOKUP(EP17,部員データ,4,FALSE),"") ->  | EC17: =IF(DE17<>"",VLOOKUP(EP17,部員データ,2,FALSE),"") ->  | EM17: 男 | EN17: 男 | EO17: 女 | EP17: 女
R18: =IF(L17="","",IF('入力シート(記録会)'!$K10="","",format_kiroku('入力シート(記録会)'!$K10,B17))) ->  | AT18: =IF(AN17="","",IF('入力シート(記録会)'!$K11="","",format_kiroku('入力シート(記録会)'!$K11,B17))) ->  | CI18: =IF(CC17="","",IF('入力シート(記録会)'!$K52="","",format_kiroku('入力シート(記録会)'!$K52,$BS17))) ->  | DK18: =IF(DE17="","",IF('入力シート(記録会)'!$K53="","",format_kiroku('入力シート(記録会)'!$K53,$BS17))) -> 
B19: ●1500m | L19: =IF('入力シート(記録会)'!$H12="","",'入力シート(記録会)'!$H12) ->  | R19: =IF(L19<>"",VLOOKUP(EM19,部員データ,3,FALSE)&" "&VLOOKUP(EM19,部員データ,4,FALSE),"") ->  | AJ19: =IF(L19<>"",VLOOKUP(EM19,部員データ,2,FALSE),"") ->  | AN19: =IF('入力シート(記録会)'!$H13="","",'入力シート(記録会)'!$H13) ->  | AT19: =IF(AN19<>"",VLOOKUP(EN19,部員データ,3,FALSE)&" "&VLOOKUP(EN19,部員データ,4,FALSE),"") ->  | BL19: =IF(AN19<>"",VLOOKUP(EN19,部員データ,2,FALSE),"") ->  | CC19: =IF('入力シート(記録会)'!$H54="","",'入力シート(記録会)'!$H54) ->  | CI19: =IF(CC19<>"",VLOOKUP(EO19,部員データ,3,FALSE)&" "&VLOOKUP(EO19,部員データ,4,FALSE),"") ->  | DA19: =IF(CC19<>"",VLOOKUP(EO19,部員データ,2,FALSE),"") ->  | DE19: =IF('入力シート(記録会)'!$H55="","",'入力シート(記録会)'!$H55) ->  | DK19: =IF(DE19<>"",VLOOKUP(EP19,部員データ,3,FALSE)&" "&VLOOKUP(EP19,部員データ,4,FALSE),"") ->  | EC19: =IF(DE19<>"",VLOOKUP(EP19,部員データ,2,FALSE),"") ->  | EM19: 男 | EN19: 男 | EO19: 女 | EP19: 女
R20: =IF(L19="","",IF('入力シート(記録会)'!$K12="","",format_kiroku('入力シート(記録会)'!$K12,B19))) ->  | AT20: =IF(AN19="","",IF('入力シート(記録会)'!$K13="","",format_kiroku('入力シート(記録会)'!$K13,B19))) ->  | CI20: =IF(CC19="","",IF('入力シート(記録会)'!$K54="","",format_kiroku('入力シート(記録会)'!$K54,$BS17))) ->  | DK20: =IF(DE19="","",IF('入力シート(記録会)'!$K55="","",format_kiroku('入力シート(記録会)'!$K55,$BS17))) -> 
B21: 3000m | L21: =IF('入力シート(記録会)'!$H14="","",'入力シート(記録会)'!$H14) ->  | R21: =IF(L21<>"",VLOOKUP(EM21,部員データ,3,FALSE)&" "&VLOOKUP(EM21,部員データ,4,FALSE),"") ->  | AJ21: =IF(L21<>"",VLOOKUP(EM21,部員データ,2,FALSE),"") ->  | AN21: =IF('入力シート(記録会)'!$H15="","",'入力シート(記録会)'!$H15) ->  | AT21: =IF(AN21<>"",VLOOKUP(EN21,部員データ,3,FALSE)&" "&VLOOKUP(EN21,部員データ,4,FALSE),"") ->  | BL21: =IF(AN21<>"",VLOOKUP(EN21,部員データ,2,FALSE),"") ->  | CC21: =IF('入力シート(記録会)'!$H56="","",'入力シート(記録会)'!$H56) ->  | CI21: =IF(CC21<>"",VLOOKUP(EO21,部員データ,3,FALSE)&" "&VLOOKUP(EO21,部員データ,4,FALSE),"") ->  | DA21: =IF(CC21<>"",VLOOKUP(EO21,部員データ,2,FALSE),"") ->  | DE21: =IF('入力シート(記録会)'!$H57="","",'入力シート(記録会)'!$H57) ->  | DK21: =IF(DE21<>"",VLOOKUP(EP21,部員データ,3,FALSE)&" "&VLOOKUP(EP21,部員データ,4,FALSE),"") ->  | EC21: =IF(DE21<>"",VLOOKUP(EP21,部員データ,2,FALSE),"") ->  | EM21: 男 | EN21: 男 | EO21: 女 | EP21: 女
R22: =IF(L21="","",IF('入力シート(記録会)'!$K14="","",format_kiroku('入力シート(記録会)'!$K14,B21))) ->  | AT22: =IF(AN21="","",IF('入力シート(記録会)'!$K15="","",format_kiroku('入力シート(記録会)'!$K15,B21))) ->  | CI22: =IF(CC21="","",IF('入力シート(記録会)'!$K56="","",format_kiroku('入力シート(記録会)'!$K56,$BS17))) ->  | DK22: =IF(DE21="","",IF('入力シート(記録会)'!$K57="","",format_kiroku('入力シート(記録会)'!$K57,$BS17))) -> 
L23: =IF('入力シート(記録会)'!$H16="","",'入力シート(記録会)'!$H16) ->  | R23: =IF(L23<>"",VLOOKUP(EM23,部員データ,3,FALSE)&" "&VLOOKUP(EM23,部員データ,4,FALSE),"") ->  | AJ23: =IF(L23<>"",VLOOKUP(EM23,部員データ,2,FALSE),"") ->  | AN23: =IF('入力シート(記録会)'!$H17="","",'入力シート(記録会)'!$H17) ->  | AT23: =IF(AN23<>"",VLOOKUP(EN23,部員データ,3,FALSE)&" "&VLOOKUP(EN23,部員データ,4,FALSE),"") ->  | BL23: =IF(AN23<>"",VLOOKUP(EN23,部員データ,2,FALSE),"") ->  | BS23: 3000m | CC23: =IF('入力シート(記録会)'!$H58="","",'入力シート(記録会)'!$H58) ->  | CI23: =IF(CC23<>"",VLOOKUP(EO23,部員データ,3,FALSE)&" "&VLOOKUP(EO23,部員データ,4,FALSE),"") ->  | DA23: =IF(CC23<>"",VLOOKUP(EO23,部員データ,2,FALSE),"") ->  | DE23: =IF('入力シート(記録会)'!$H59="","",'入力シート(記録会)'!$H59) ->  | DK23: =IF(DE23<>"",VLOOKUP(EP23,部員データ,3,FALSE)&" "&VLOOKUP(EP23,部員データ,4,FALSE),"") ->  | EC23: =IF(DE23<>"",VLOOKUP(EP23,部員データ,2,FALSE),"") ->  | EM23: 男 | EN23: 男 | EO23: 女 | EP23: 女
R24: =IF(L23="","",IF('入力シート(記録会)'!$K16="","",format_kiroku('入力シート(記録会)'!$K16,B21))) ->  | AT24: =IF(AN23="","",IF('入力シート(記録会)'!$K17="","",format_kiroku('入力シート(記録会)'!$K17,B21))) ->  | CI24: =IF(CC23="","",IF('入力シート(記録会)'!$K58="","",format_kiroku('入力シート(記録会)'!$K58,$BS23))) ->  | DK24: =IF(DE23="","",IF('入力シート(記録会)'!$K59="","",format_kiroku('入力シート(記録会)'!$K59,$BS23))) -> 
L25: =IF('入力シート(記録会)'!$H18="","",'入力シート(記録会)'!$H18) ->  | R25: =IF(L25<>"",VLOOKUP(EM25,部員データ,3,FALSE)&" "&VLOOKUP(EM25,部員データ,4,FALSE),"") ->  | AJ25: =IF(L25<>"",VLOOKUP(EM25,部員データ,2,FALSE),"") ->  | AN25: =IF('入力シート(記録会)'!$H19="","",'入力シート(記録会)'!$H19) ->  | AT25: =IF(AN25<>"",VLOOKUP(EN25,部員データ,3,FALSE)&" "&VLOOKUP(EN25,部員データ,4,FALSE),"") ->  | BL25: =IF(AN25<>"",VLOOKUP(EN25,部員データ,2,FALSE),"") ->  | CC25: =IF('入力シート(記録会)'!$H60="","",'入力シート(記録会)'!$H60) ->  | CI25: =IF(CC25<>"",VLOOKUP(EO25,部員データ,3,FALSE)&" "&VLOOKUP(EO25,部員データ,4,FALSE),"") ->  | DA25: =IF(CC25<>"",VLOOKUP(EO25,部員データ,2,FALSE),"") ->  | DE25: =IF('入力シート(記録会)'!$H61="","",'入力シート(記録会)'!$H61) ->  | DK25: =IF(DE25<>"",VLOOKUP(EP25,部員データ,3,FALSE)&" "&VLOOKUP(EP25,部員データ,4,FALSE),"") ->  | EC25: =IF(DE25<>"",VLOOKUP(EP25,部員データ,2,FALSE),"") ->  | EM25: 男 | EN25: 男 | EO25: 女 | EP25: 女
R26: =IF(L25="","",IF('入力シート(記録会)'!$K18="","",format_kiroku('入力シート(記録会)'!$K18,B21))) ->  | AT26: =IF(AN25="","",IF('入力シート(記録会)'!$K19="","",format_kiroku('入力シート(記録会)'!$K19,B21))) ->  | CI26: =IF(CC25="","",IF('入力シート(記録会)'!$K60="","",format_kiroku('入力シート(記録会)'!$K60,$BS23))) ->  | DK26: =IF(DE25="","",IF('入力シート(記録会)'!$K61="","",format_kiroku('入力シート(記録会)'!$K61,$BS23))) -> 
B27: 110mＨ | L27: =IF('入力シート(記録会)'!$H20="","",'入力シート(記録会)'!$H20) ->  | R27: =IF(L27<>"",VLOOKUP(EM27,部員データ,3,FALSE)&" "&VLOOKUP(EM27,部員データ,4,FALSE),"") ->  | AJ27: =IF(L27<>"",VLOOKUP(EM27,部員データ,2,FALSE),"") ->  | AN27: =IF('入力シート(記録会)'!$H21="","",'入力シート(記録会)'!$H21) ->  | AT27: =IF(AN27<>"",VLOOKUP(EN27,部員データ,3,FALSE)&" "&VLOOKUP(EN27,部員データ,4,FALSE),"") ->  | BL27: =IF(AN27<>"",VLOOKUP(EN27,部員データ,2,FALSE),"") ->  | CC27: =IF('入力シート(記録会)'!$H62="","",'入力シート(記録会)'!$H62) ->  | CI27: =IF(CC27<>"",VLOOKUP(EO27,部員データ,3,FALSE)&" "&VLOOKUP(EO27,部員データ,4,FALSE),"") ->  | DA27: =IF(CC27<>"",VLOOKUP(EO27,部員データ,2,FALSE),"") ->  | DE27: =IF('入力シート(記録会)'!$H63="","",'入力シート(記録会)'!$H63) ->  | DK27: =IF(DE27<>"",VLOOKUP(EP27,部員データ,3,FALSE)&" "&VLOOKUP(EP27,部員データ,4,FALSE),"") ->  | EC27: =IF(DE27<>"",VLOOKUP(EP27,部員データ,2,FALSE),"") ->  | EM27: 男 | EN27: 男 | EO27: 女 | EP27: 女
R28: =IF(L27="","",IF('入力シート(記録会)'!$K20="","",format_kiroku('入力シート(記録会)'!$K20,B27))) ->  | AT28: =IF(AN27="","",IF('入力シート(記録会)'!$K21="","",format_kiroku('入力シート(記録会)'!$K21,B27))) ->  | CI28: =IF(CC27="","",IF('入力シート(記録会)'!$K62="","",format_kiroku('入力シート(記録会)'!$K62,$BS23))) ->  | DK28: =IF(DE27="","",IF('入力シート(記録会)'!$K63="","",format_kiroku('入力シート(記録会)'!$K63,$BS23))) -> 
B29: 走高跳 | L29: =IF('入力シート(記録会)'!$H22="","",'入力シート(記録会)'!$H22) ->  | R29: =IF(L29<>"",VLOOKUP(EM29,部員データ,3,FALSE)&" "&VLOOKUP(EM29,部員データ,4,FALSE),"") ->  | AJ29: =IF(L29<>"",VLOOKUP(EM29,部員データ,2,FALSE),"") ->  | AN29: =IF('入力シート(記録会)'!$H23="","",'入力シート(記録会)'!$H23) ->  | AT29: =IF(AN29<>"",VLOOKUP(EN29,部員データ,3,FALSE)&" "&VLOOKUP(EN29,部員データ,4,FALSE),"") ->  | BL29: =IF(AN29<>"",VLOOKUP(EN29,部員データ,2,FALSE),"") ->  | BS29: 100mＨ | CC29: =IF('入力シート(記録会)'!$H64="","",'入力シート(記録会)'!$H64) ->  | CI29: =IF(CC29<>"",VLOOKUP(EO29,部員データ,3,FALSE)&" "&VLOOKUP(EO29,部員データ,4,FALSE),"") ->  | DA29: =IF(CC29<>"",VLOOKUP(EO29,部員データ,2,FALSE),"") ->  | DE29: =IF('入力シート(記録会)'!$H65="","",'入力シート(記録会)'!$H65) ->  | DK29: =IF(DE29<>"",VLOOKUP(EP29,部員データ,3,FALSE)&" "&VLOOKUP(EP29,部員データ,4,FALSE),"") ->  | EC29: =IF(DE29<>"",VLOOKUP(EP29,部員データ,2,FALSE),"") ->  | EM29: 男 | EN29: 男 | EO29: 女 | EP29: 女
R30: =IF(L29="","",IF('入力シート(記録会)'!$K22="","",format_kiroku('入力シート(記録会)'!$K22,B29))) ->  | AT30: =IF(AN29="","",IF('入力シート(記録会)'!$K23="","",format_kiroku('入力シート(記録会)'!$K23,B29))) ->  | CI30: =IF(CC29="","",IF('入力シート(記録会)'!$K64="","",format_kiroku('入力シート(記録会)'!$K64,$BS29))) ->  | DK30: =IF(DE29="","",IF('入力シート(記録会)'!$K65="","",format_kiroku('入力シート(記録会)'!$K65,$BS29))) -> 
B31: ●棒高跳 | L31: =IF('入力シート(記録会)'!$H24="","",'入力シート(記録会)'!$H24) ->  | R31: =IF(L31<>"",VLOOKUP(EM31,部員データ,3,FALSE)&" "&VLOOKUP(EM31,部員データ,4,FALSE),"") ->  | AJ31: =IF(L31<>"",VLOOKUP(EM31,部員データ,2,FALSE),"") ->  | AN31: =IF('入力シート(記録会)'!$H25="","",'入力シート(記録会)'!$H25) ->  | AT31: =IF(AN31<>"",VLOOKUP(EN31,部員データ,3,FALSE)&" "&VLOOKUP(EN31,部員データ,4,FALSE),"") ->  | BL31: =IF(AN31<>"",VLOOKUP(EN31,部員データ,2,FALSE),"") ->  | BS31: 走高跳 | CC31: =IF('入力シート(記録会)'!$H66="","",'入力シート(記録会)'!$H66) ->  | CI31: =IF(CC31<>"",VLOOKUP(EO31,部員データ,3,FALSE)&" "&VLOOKUP(EO31,部員データ,4,FALSE),"") ->  | DA31: =IF(CC31<>"",VLOOKUP(EO31,部員データ,2,FALSE),"") ->  | DE31: =IF('入力シート(記録会)'!$H67="","",'入力シート(記録会)'!$H67) ->  | DK31: =IF(DE31<>"",VLOOKUP(EP31,部員データ,3,FALSE)&" "&VLOOKUP(EP31,部員データ,4,FALSE),"") ->  | EC31: =IF(DE31<>"",VLOOKUP(EP31,部員データ,2,FALSE),"") ->  | EM31: 男 | EN31: 男 | EO31: 女 | EP31: 女
R32: =IF(L31="","",IF('入力シート(記録会)'!$K24="","",format_kiroku('入力シート(記録会)'!$K24,B31))) ->  | AT32: =IF(AN31="","",IF('入力シート(記録会)'!$K25="","",format_kiroku('入力シート(記録会)'!$K25,B31))) ->  | CI32: =IF(CC31="","",IF('入力シート(記録会)'!$K66="","",format_kiroku('入力シート(記録会)'!$K66,$BS31))) ->  | DK32: =IF(DE31="","",IF('入力シート(記録会)'!$K67="","",format_kiroku('入力シート(記録会)'!$K67,$BS31))) -> 
B33: 走幅跳 | L33: =IF('入力シート(記録会)'!$H26="","",'入力シート(記録会)'!$H26) ->  | R33: =IF(L33<>"",VLOOKUP(EM33,部員データ,3,FALSE)&" "&VLOOKUP(EM33,部員データ,4,FALSE),"") ->  | AJ33: =IF(L33<>"",VLOOKUP(EM33,部員データ,2,FALSE),"") ->  | AN33: =IF('入力シート(記録会)'!$H27="","",'入力シート(記録会)'!$H27) ->  | AT33: =IF(AN33<>"",VLOOKUP(EN33,部員データ,3,FALSE)&" "&VLOOKUP(EN33,部員データ,4,FALSE),"") ->  | BL33: =IF(AN33<>"",VLOOKUP(EN33,部員データ,2,FALSE),"") ->  | BS33: 走幅跳 | CC33: =IF('入力シート(記録会)'!$H68="","",'入力シート(記録会)'!$H68) ->  | CI33: =IF(CC33<>"",VLOOKUP(EO33,部員データ,3,FALSE)&" "&VLOOKUP(EO33,部員データ,4,FALSE),"") ->  | DA33: =IF(CC33<>"",VLOOKUP(EO33,部員データ,2,FALSE),"") ->  | DE33: =IF('入力シート(記録会)'!$H69="","",'入力シート(記録会)'!$H69) ->  | DK33: =IF(DE33<>"",VLOOKUP(EP33,部員データ,3,FALSE)&" "&VLOOKUP(EP33,部員データ,4,FALSE),"") ->  | EC33: =IF(DE33<>"",VLOOKUP(EP33,部員データ,2,FALSE),"") ->  | EM33: 男 | EN33: 男 | EO33: 女 | EP33: 女
R34: =IF(L33="","",IF('入力シート(記録会)'!$K26="","",format_kiroku('入力シート(記録会)'!$K26,B33))) ->  | AT34: =IF(AN33="","",IF('入力シート(記録会)'!$K27="","",format_kiroku('入力シート(記録会)'!$K27,B33))) ->  | CI34: =IF(CC33="","",IF('入力シート(記録会)'!$K68="","",format_kiroku('入力シート(記録会)'!$K68,$BS33))) ->  | DK34: =IF(DE33="","",IF('入力シート(記録会)'!$K69="","",format_kiroku('入力シート(記録会)'!$K69,$BS33))) -> 
B35: 三段跳 | L35: =IF('入力シート(記録会)'!$H28="","",'入力シート(記録会)'!$H28) ->  | R35: =IF(L35<>"",VLOOKUP(EM35,部員データ,3,FALSE)&" "&VLOOKUP(EM35,部員データ,4,FALSE),"") ->  | AJ35: =IF(L35<>"",VLOOKUP(EM35,部員データ,2,FALSE),"") ->  | AN35: =IF('入力シート(記録会)'!$H29="","",'入力シート(記録会)'!$H29) ->  | AT35: =IF(AN35<>"",VLOOKUP(EN35,部員データ,3,FALSE)&" "&VLOOKUP(EN35,部員データ,4,FALSE),"") ->  | BL35: =IF(AN35<>"",VLOOKUP(EN35,部員データ,2,FALSE),"") ->  | BS35: 砲丸投 | CC35: =IF('入力シート(記録会)'!$H70="","",'入力シート(記録会)'!$H70) ->  | CI35: =IF(CC35<>"",VLOOKUP(EO35,部員データ,3,FALSE)&" "&VLOOKUP(EO35,部員データ,4,FALSE),"") ->  | DA35: =IF(CC35<>"",VLOOKUP(EO35,部員データ,2,FALSE),"") ->  | DE35: =IF('入力シート(記録会)'!$H71="","",'入力シート(記録会)'!$H71) ->  | DK35: =IF(DE35<>"",VLOOKUP(EP35,部員データ,3,FALSE)&" "&VLOOKUP(EP35,部員データ,4,FALSE),"") ->  | EC35: =IF(DE35<>"",VLOOKUP(EP35,部員データ,2,FALSE),"") ->  | EM35: 男 | EN35: 男 | EO35: 女 | EP35: 女
R36: =IF(L35="","",IF('入力シート(記録会)'!$K28="","",format_kiroku('入力シート(記録会)'!$K28,B35))) ->  | AT36: =IF(AN35="","",IF('入力シート(記録会)'!$K29="","",format_kiroku('入力シート(記録会)'!$K29,B35))) ->  | CI36: =IF(CC35="","",IF('入力シート(記録会)'!$K70="","",format_kiroku('入力シート(記録会)'!$K70,$BS35))) ->  | DK36: =IF(DE35="","",IF('入力シート(記録会)'!$K71="","",format_kiroku('入力シート(記録会)'!$K71,$BS35))) -> 
B37: 砲丸投 | L37: =IF('入力シート(記録会)'!$H30="","",'入力シート(記録会)'!$H30) ->  | R37: =IF(L37<>"",VLOOKUP(EM37,部員データ,3,FALSE)&" "&VLOOKUP(EM37,部員データ,4,FALSE),"") ->  | AJ37: =IF(L37<>"",VLOOKUP(EM37,部員データ,2,FALSE),"") ->  | AN37: =IF('入力シート(記録会)'!$H31="","",'入力シート(記録会)'!$H31) ->  | AT37: =IF(AN37<>"",VLOOKUP(EN37,部員データ,3,FALSE)&" "&VLOOKUP(EN37,部員データ,4,FALSE),"") ->  | BL37: =IF(AN37<>"",VLOOKUP(EN37,部員データ,2,FALSE),"") ->  | BS37: ●円盤投 | CC37: =IF('入力シート(記録会)'!$H72="","",'入力シート(記録会)'!$H72) ->  | CI37: =IF(CC37<>"",VLOOKUP(EO37,部員データ,3,FALSE)&" "&VLOOKUP(EO37,部員データ,4,FALSE),"") ->  | DA37: =IF(CC37<>"",VLOOKUP(EO37,部員データ,2,FALSE),"") ->  | DE37: =IF('入力シート(記録会)'!$H73="","",'入力シート(記録会)'!$H73) ->  | DK37: =IF(DE37<>"",VLOOKUP(EP37,部員データ,3,FALSE)&" "&VLOOKUP(EP37,部員データ,4,FALSE),"") ->  | EC37: =IF(DE37<>"",VLOOKUP(EP37,部員データ,2,FALSE),"") ->  | EM37: 男 | EN37: 男 | EO37: 女 | EP37: 女
R38: =IF(L37="","",IF('入力シート(記録会)'!$K30="","",format_kiroku('入力シート(記録会)'!$K30,B37))) ->  | AT38: =IF(AN37="","",IF('入力シート(記録会)'!$K31="","",format_kiroku('入力シート(記録会)'!$K31,B37))) ->  | CI38: =IF(CC37="","",IF('入力シート(記録会)'!$K72="","",format_kiroku('入力シート(記録会)'!$K72,$BS37))) ->  | DK38: =IF(DE37="","",IF('入力シート(記録会)'!$K73="","",format_kiroku('入力シート(記録会)'!$K73,$BS37))) -> 
B39: ●円盤投 | L39: =IF('入力シート(記録会)'!$H32="","",'入力シート(記録会)'!$H32) ->  | R39: =IF(L39<>"",VLOOKUP(EM39,部員データ,3,FALSE)&" "&VLOOKUP(EM39,部員データ,4,FALSE),"") ->  | AJ39: =IF(L39<>"",VLOOKUP(EM39,部員データ,2,FALSE),"") ->  | AN39: =IF('入力シート(記録会)'!$H33="","",'入力シート(記録会)'!$H33) ->  | AT39: =IF(AN39<>"",VLOOKUP(EN39,部員データ,3,FALSE)&" "&VLOOKUP(EN39,部員データ,4,FALSE),"") ->  | BL39: =IF(AN39<>"",VLOOKUP(EN39,部員データ,2,FALSE),"") ->  | BS39: 共通 ●四種競技 | CC39: =IF('入力シート(記録会)'!$H74="","",'入力シート(記録会)'!$H74) ->  | CI39: =IF(CC39<>"",VLOOKUP(EO39,部員データ,3,FALSE)&" "&VLOOKUP(EO39,部員データ,4,FALSE),"") ->  | DA39: =IF(CC39<>"",VLOOKUP(EO39,部員データ,2,FALSE),"") ->  | DE39: =IF('入力シート(記録会)'!$H79="","",'入力シート(記録会)'!$H79) ->  | DK39: =IF(DE39<>"",VLOOKUP(EP39,部員データ,3,FALSE)&" "&VLOOKUP(EP39,部員データ,4,FALSE),"") ->  | EC39: =IF(DE39<>"",VLOOKUP(EP39,部員データ,2,FALSE),"") ->  | EM39: 男 | EN39: 男 | EO39: ="女"&DBCS(TEXT(CC39,"00")) -> 女 | EP39: ="女"&DBCS(TEXT(DE39,"00")) -> 女
R40: =IF(L39="","",IF('入力シート(記録会)'!$K32="","",format_kiroku('入力シート(記録会)'!$K32,B39))) ->  | AT40: =IF(AN39="","",IF('入力シート(記録会)'!$K33="","",format_kiroku('入力シート(記録会)'!$K33,B39))) ->  | CI40: =IF(CC39="","",IF('入力シート(記録会)'!$K74="","",format_kiroku('入力シート(記録会)'!$K74,$BS39))) ->  | DK40: =IF(DE39="","",IF('入力シート(記録会)'!$K79="","",format_kiroku('入力シート(記録会)'!$K79,$BS39))) -> 
B41: 共通 ●四種競技 | L41: =IF('入力シート(記録会)'!$H34="","",'入力シート(記録会)'!$H34) ->  | R41: =IF(L41<>"",VLOOKUP(EM41,部員データ,3,FALSE)&" "&VLOOKUP(EM41,部員データ,4,FALSE),"") ->  | AJ41: =IF(L41<>"",VLOOKUP(EM41,部員データ,2,FALSE),"") ->  | AN41: =IF('入力シート(記録会)'!$H39="","",'入力シート(記録会)'!$H39) ->  | AT41: =IF(AN41<>"",VLOOKUP(EN41,部員データ,3,FALSE)&" "&VLOOKUP(EN41,部員データ,4,FALSE),"") ->  | BL41: =IF(AN41<>"",VLOOKUP(EN41,部員データ,2,FALSE),"") ->  | BU41: =振込月 -> 0 | CB41: 月 | CI41: =振込日 -> 0 | CP41: 日 | CW41: =郵便局 -> 0 | DN41: 郵便局振込 | EM41: 男 | EN41: 男
R42: =IF(L41="","",IF('入力シート(記録会)'!$K34="","",format_kiroku('入力シート(記録会)'!$K34,$B41))) ->  | AT42: =IF(AN41="","",IF('入力シート(記録会)'!$K39="","",format_kiroku('入力シート(記録会)'!$K39,$B41))) -> 
BU43: 振込受領書貼り付け | EQ43: =COUNTIF($EQ$9:$ER$41,">0") -> 0 | ER43: =COUNTIF($EQ$9:$ER$41,"2") -> 0 | ES43: =COUNTIF($ES$9:$ET$39,">0") -> 0 | ET43: =COUNTIF($ES$9:$ET$39,"2") -> 0
ER44: =COUNTIF($EQ$9:$ER$41,"3") -> 0 | ET44: =COUNTIF($ES$9:$ET$39,"3") -> 0
L45: 男子 | Y45: 女子 | AL45: 合計 | AY45: 申込料 | ER45: =COUNTIF($EQ$9:$ER$41,"4") -> 0 | ET45: =COUNTIF($ES$9:$ET$39,"4") -> 0
B46: 個人種目 | L46: =COUNTIF(L9:Q40,">=0")+COUNTIF(AN9:AS40,">=0") -> 0 | S46: 枚 | Y46: =COUNTIF(CC9:CH38,">=0")+COUNTIF(DE9:DJ38,">=0") -> 0 | AF46: 枚 | AL46: =L46+Y46 -> 0 | AS46: 枚 | AY46: 400円 | BE46: × | BH46: =AL46 -> 0 | BO46: 枚 | BR46: ＝ | BU46: =400*BH46 -> 0 | CE46: 円 | EQ46: =EQ43-ER43/2 -> 0 | ES46: =ES43-ET43/2-ET44/3-ET45/4 -> 0
B47: 四種競技 | L47: =COUNTIF(L41,">=0")+COUNTIF(AN41,">=0") -> 0 | S47: 枚 | Y47: =COUNTIF(CC39,">=0")+COUNTIF(DE39,">=0") -> 0 | AF47: 枚 | AL47: =L47+Y47 -> 0 | AS47: 枚 | AY47: 600円 | BE47: × | BH47: =AL47 -> 0 | BO47: 枚 | BR47: ＝ | BU47: =600*BH47 -> 0 | CE47: 円
B48: リレー種目 | S48: チーム | Y48: =COUNTIF(CC11:CH40,">=0")+COUNTIF(DE11:DJ40,">=0") -> 0 | AF48: チーム | AL48: =L48+Y48 -> 0 | AS48: チーム | AY48: 600円 | BE48: × | BH48: =IF((EI48)=0,"",(EI48)) ->  | BO48: 枚 | BR48: ＝ | BU48: =IF((EK48)=0,"",(EK48)) ->  | CE48: 円
B49: 実参加人数 | L49: =D_参加 -> 0 | S49: 人 | Y49: =J_参加 -> 0 | AF49: 人 | AL49: =L49+Y49 -> 0 | AS49: 人 | AY49: 合計金額 | BJ49: =BU46+BU47 -> 0 | CE49: 円
E52: 上記の生徒を本校代表として、参加を認めます。また、本競技大会の参加申し込みに際し、大会要項記載内容を確認し、個人情報の取り扱いについて同意を得ています。
E54: 平成 | K54: =TEXT(TODAY(),"e") -> 28 | Q54: 年 | U54: =TEXT(TODAY(),"m") -> 8 | AC54: 月 | AG54: =TEXT(TODAY(),"d") -> 17 | AQ54: 日 | AW54: =学校名 -> 0 | BR54: 中学校 | CD54: 学校長 | CQ54: =学校長 ->  | DY54: 印
C56: 審判員 | L56: （ | N56: =IF(基礎データ!$N21=TRUE,基礎データ!$N17,"") ->  | AM56: ） | AQ56: （ | AS56: =IF(基礎データ!$N22=TRUE,基礎データ!$N18,"") ->  | BR56: ） | BV56: （ | BX56: =IF(基礎データ!$N23=TRUE,基礎データ!$N19,"") ->  | CW56: ） | DA56: （ | DC56: =IF(基礎データ!$N24=TRUE,基礎データ!$N20,"") ->  | EB56: ）
D58: 注 審判員が不足していますので、顧問全員の方に審判を依頼します。審判員の箇所には顧問全員の氏名を記入してください。

Sheet 送信データ(記録会) (hidden)
A1: 大会コード | B1: 性別 | C1: 学年 | D1: 競技種目コード | E1: 学校コード | F1: 性別1 | G1: 選手コード | H1: 組 | I1: レーン | J1: エントリ記録 | K1: 当日記録 | L1: 順位 | M1: 条件項目 | N1: 計測区分 | O1: 未記録区分 | P1: 大会順位
A2: =IF('入力シート(記録会)'!$H2="","","4000006") ->  | B2: =IF('入力シート(記録会)'!$H2="","",IF('入力シート(記録会)'!$B2="男",0,1)) ->  | C2: =IF('入力シート(記録会)'!$H2="","",'入力シート(記録会)'!C2) ->  | D2: =IF('入力シート(記録会)'!$H2="","",TEXT('入力シート(記録会)'!$E2,"000")) ->  | E2: =IF('入力シート(記録会)'!$H2="","",学校番号) ->  | F2: =IF('入力シート(記録会)'!$H2="","",B2) ->  | G2: =IF('入力シート(記録会)'!$H2="","",TEXT('入力シート(記録会)'!$H2,"00")) ->  | J2: =IF('入力シート(記録会)'!$H2="","",IF('入力シート(記録会)'!K2="","",'入力シート(記録会)'!K2)) ->  | N2: =IF('入力シート(記録会)'!$H2="","",IF('入力シート(記録会)'!L2="","",IF('入力シート(記録会)'!L2="電気",0,1))) -> 
A3: =IF('入力シート(記録会)'!$H3="","","4000006") ->  | B3: =IF('入力シート(記録会)'!$H3="","",IF('入力シート(記録会)'!$B3="男",0,1)) ->  | C3: =IF('入力シート(記録会)'!$H3="","",'入力シート(記録会)'!C3) ->  | D3: =IF('入力シート(記録会)'!$H3="","",TEXT('入力シート(記録会)'!$E3,"000")) ->  | E3: =IF('入力シート(記録会)'!$H3="","",学校番号) ->  | F3: =IF('入力シート(記録会)'!$H3="","",B3) ->  | G3: =IF('入力シート(記録会)'!$H3="","",TEXT('入力シート(記録会)'!$H3,"00")) ->  | J3: =IF('入力シート(記録会)'!$H3="","",IF('入力シート(記録会)'!K3="","",'入力シート(記録会)'!K3)) ->  | N3: =IF('入力シート(記録会)'!$H3="","",IF('入力シート(記録会)'!L3="","",IF('入力シート(記録会)'!L3="電気",0,1))) -> 
A4: =IF('入力シート(記録会)'!$H4="","","4000006") ->  | B4: =IF('入力シート(記録会)'!$H4="","",IF('入力シート(記録会)'!$B4="男",0,1)) ->  | C4: =IF('入力シート(記録会)'!$H4="","",'入力シート(記録会)'!C4) ->  | D4: =IF('入力シート(記録会)'!$H4="","",TEXT('入力シート(記録会)'!$E4,"000")) ->  | E4: =IF('入力シート(記録会)'!$H4="","",学校番号) ->  | F4: =IF('入力シート(記録会)'!$H4="","",B4) ->  | G4: =IF('入力シート(記録会)'!$H4="","",TEXT('入力シート(記録会)'!$H4,"00")) ->  | J4: =IF('入力シート(記録会)'!$H4="","",IF('入力シート(記録会)'!K4="","",'入力シート(記録会)'!K4)) ->  | N4: =IF('入力シート(記録会)'!$H4="","",IF('入力シート(記録会)'!L4="","",IF('入力シート(記録会)'!L4="電気",0,1))) -> 
A5: =IF('入力シート(記録会)'!$H5="","","4000006") ->  | B5: =IF('入力シート(記録会)'!$H5="","",IF('入力シート(記録会)'!$B5="男",0,1)) ->  | C5: =IF('入力シート(記録会)'!$H5="","",'入力シート(記録会)'!C5) ->  | D5: =IF('入力シート(記録会)'!$H5="","",TEXT('入力シート(記録会)'!$E5,"000")) ->  | E5: =IF('入力シート(記録会)'!$H5="","",学校番号) ->  | F5: =IF('入力シート(記録会)'!$H5="","",B5) ->  | G5: =IF('入力シート(記録会)'!$H5="","",TEXT('入力シート(記録会)'!$H5,"00")) ->  | J5: =IF('入力シート(記録会)'!$H5="","",IF('入力シート(記録会)'!K5="","",'入力シート(記録会)'!K5)) ->  | N5: =IF('入力シート(記録会)'!$H5="","",IF('入力シート(記録会)'!L5="","",IF('入力シート(記録会)'!L5="電気",0,1))) -> 
A6: =IF('入力シート(記録会)'!$H6="","","4000006") ->  | B6: =IF('入力シート(記録会)'!$H6="","",IF('入力シート(記録会)'!$B6="男",0,1)) ->  | C6: =IF('入力シート(記録会)'!$H6="","",'入力シート(記録会)'!C6) ->  | D6: =IF('入力シート(記録会)'!$H6="","",TEXT('入力シート(記録会)'!$E6,"000")) ->  | E6: =IF('入力シート(記録会)'!$H6="","",学校番号) ->  | F6: =IF('入力シート(記録会)'!$H6="","",B6) ->  | G6: =IF('入力シート(記録会)'!$H6="","",TEXT('入力シート(記録会)'!$H6,"00")) ->  | J6: =IF('入力シート(記録会)'!$H6="","",IF('入力シート(記録会)'!K6="","",'入力シート(記録会)'!K6)) ->  | N6: =IF('入力シート(記録会)'!$H6="","",IF('入力シート(記録会)'!L6="","",IF('入力シート(記録会)'!L6="電気",0,1))) -> 
A7: =IF('入力シート(記録会)'!$H7="","","4000006") ->  | B7: =IF('入力シート(記録会)'!$H7="","",IF('入力シート(記録会)'!$B7="男",0,1)) ->  | C7: =IF('入力シート(記録会)'!$H7="","",'入力シート(記録会)'!C7) ->  | D7: =IF('入力シート(記録会)'!$H7="","",TEXT('入力シート(記録会)'!$E7,"000")) ->  | E7: =IF('入力シート(記録会)'!$H7="","",学校番号) ->  | F7: =IF('入力シート(記録会)'!$H7="","",B7) ->  | G7: =IF('入力シート(記録会)'!$H7="","",TEXT('入力シート(記録会)'!$H7,"00")) ->  | J7: =IF('入力シート(記録会)'!$H7="","",IF('入力シート(記録会)'!K7="","",'入力シート(記録会)'!K7)) ->  | N7: =IF('入力シート(記録会)'!$H7="","",IF('入力シート(記録会)'!L7="","",IF('入力シート(記録会)'!L7="電気",0,1))) -> 
A8: =IF('入力シート(記録会)'!$H8="","","4000006") ->  | B8: =IF('入力シート(記録会)'!$H8="","",IF('入力シート(記録会)'!$B8="男",0,1)) ->  | C8: =IF('入力シート(記録会)'!$H8="","",'入力シート(記録会)'!C8) ->  | D8: =IF('入力シート(記録会)'!$H8="","",TEXT('入力シート(記録会)'!$E8,"000")) ->  | E8: =IF('入力シート(記録会)'!$H8="","",学校番号) ->  | F8: =IF('入力シート(記録会)'!$H8="","",B8) ->  | G8: =IF('入力シート(記録会)'!$H8="","",TEXT('入力シート(記録会)'!$H8,"00")) ->  | J8: =IF('入力シート(記録会)'!$H8="","",IF('入力シート(記録会)'!K8="","",'入力シート(記録会)'!K8)) ->  | N8: =IF('入力シート(記録会)'!$H8="","",IF('入力シート(記録会)'!L8="","",IF('入力シート(記録会)'!L8="電気",0,1))) -> 
A9: =IF('入力シート(記録会)'!$H9="","","4000006") ->  | B9: =IF('入力シート(記録会)'!$H9="","",IF('入力シート(記録会)'!$B9="男",0,1)) ->  | C9: =IF('入力シート(記録会)'!$H9="","",'入力シート(記録会)'!C9) ->  | D9: =IF('入力シート(記録会)'!$H9="","",TEXT('入力シート(記録会)'!$E9,"000")) ->  | E9: =IF('入力シート(記録会)'!$H9="","",学校番号) ->  | F9: =IF('入力シート(記録会)'!$H9="","",B9) ->  | G9: =IF('入力シート(記録会)'!$H9="","",TEXT('入力シート(記録会)'!$H9,"00")) ->  | J9: =IF('入力シート(記録会)'!$H9="","",IF('入力シート(記録会)'!K9="","",'入力シート(記録会)'!K9)) ->  | N9: =IF('入力シート(記録会)'!$H9="","",IF('入力シート(記録会)'!L9="","",IF('入力シート(記録会)'!L9="電気",0,1))) -> 
A10: =IF('入力シート(記録会)'!$H10="","","4000006") ->  | B10: =IF('入力シート(記録会)'!$H10="","",IF('入力シート(記録会)'!$B10="男",0,1)) ->  | C10: =IF('入力シート(記録会)'!$H10="","",'入力シート(記録会)'!C10) ->  | D10: =IF('入力シート(記録会)'!$H10="","",TEXT('入力シート(記録会)'!$E10,"000")) ->  | E10: =IF('入力シート(記録会)'!$H10="","",学校番号) ->  | F10: =IF('入力シート(記録会)'!$H10="","",B10) ->  | G10: =IF('入力シート(記録会)'!$H10="","",TEXT('入力シート(記録会)'!$H10,"00")) ->  | J10: =IF('入力シート(記録会)'!$H10="","",IF('入力シート(記録会)'!K10="","",'入力シート(記録会)'!K10)) ->  | N10: =IF('入力シート(記録会)'!$H10="","",IF('入力シート(記録会)'!L10="","",IF('入力シート(記録会)'!L10="電気",0,1))) -> 
A11: =IF('入力シート(記録会)'!$H11="","","4000006") ->  | B11: =IF('入力シート(記録会)'!$H11="","",IF('入力シート(記録会)'!$B11="男",0,1)) ->  | C11: =IF('入力シート(記録会)'!$H11="","",'入力シート(記録会)'!C11) ->  | D11: =IF('入力シート(記録会)'!$H11="","",TEXT('入力シート(記録会)'!$E11,"000")) ->  | E11: =IF('入力シート(記録会)'!$H11="","",学校番号) ->  | F11: =IF('入力シート(記録会)'!$H11="","",B11) ->  | G11: =IF('入力シート(記録会)'!$H11="","",TEXT('入力シート(記録会)'!$H11,"00")) ->  | J11: =IF('入力シート(記録会)'!$H11="","",IF('入力シート(記録会)'!K11="","",'入力シート(記録会)'!K11)) ->  | N11: =IF('入力シート(記録会)'!$H11="","",IF('入力シート(記録会)'!L11="","",IF('入力シート(記録会)'!L11="電気",0,1))) -> 
A12: =IF('入力シート(記録会)'!$H12="","","4000006") ->  | B12: =IF('入力シート(記録会)'!$H12="","",IF('入力シート(記録会)'!$B12="男",0,1)) ->  | C12: =IF('入力シート(記録会)'!$H12="","",'入力シート(記録会)'!C12) ->  | D12: =IF('入力シート(記録会)'!$H12="","",TEXT('入力シート(記録会)'!$E12,"000")) ->  | E12: =IF('入力シート(記録会)'!$H12="","",学校番号) ->  | F12: =IF('入力シート(記録会)'!$H12="","",B12) ->  | G12: =IF('入力シート(記録会)'!$H12="","",TEXT('入力シート(記録会)'!$H12,"00")) ->  | J12: =IF('入力シート(記録会)'!$H12="","",IF('入力シート(記録会)'!K12="","",'入力シート(記録会)'!K12)) ->  | N12: =IF('入力シート(記録会)'!$H12="","",IF('入力シート(記録会)'!L12="","",IF('入力シート(記録会)'!L12="電気",0,1))) -> 
A13: =IF('入力シート(記録会)'!$H13="","","4000006") ->  | B13: =IF('入力シート(記録会)'!$H13="","",IF('入力シート(記録会)'!$B13="男",0,1)) ->  | C13: =IF('入力シート(記録会)'!$H13="","",'入力シート(記録会)'!C13) ->  | D13: =IF('入力シート(記録会)'!$H13="","",TEXT('入力シート(記録会)'!$E13,"000")) ->  | E13: =IF('入力シート(記録会)'!$H13="","",学校番号) ->  | F13: =IF('入力シート(記録会)'!$H13="","",B13) ->  | G13: =IF('入力シート(記録会)'!$H13="","",TEXT('入力シート(記録会)'!$H13,"00")) ->  | J13: =IF('入力シート(記録会)'!$H13="","",IF('入力シート(記録会)'!K13="","",'入力シート(記録会)'!K13)) ->  | N13: =IF('入力シート(記録会)'!$H13="","",IF('入力シート(記録会)'!L13="","",IF('入力シート(記録会)'!L13="電気",0,1))) -> 
A14: =IF('入力シート(記録会)'!$H14="","","4000006") ->  | B14: =IF('入力シート(記録会)'!$H14="","",IF('入力シート(記録会)'!$B14="男",0,1)) ->  | C14: =IF('入力シート(記録会)'!$H14="","",'入力シート(記録会)'!C14) ->  | D14: =IF('入力シート(記録会)'!$H14="","",TEXT('入力シート(記録会)'!$E14,"000")) ->  | E14: =IF('入力シート(記録会)'!$H14="","",学校番号) ->  | F14: =IF('入力シート(記録会)'!$H14="","",B14) ->  | G14: =IF('入力シート(記録会)'!$H14="","",TEXT('入力シート(記録会)'!$H14,"00")) ->  | J14: =IF('入力シート(記録会)'!$H14="","",IF('入力シート(記録会)'!K14="","",'入力シート(記録会)'!K14)) ->  | N14: =IF('入力シート(記録会)'!$H14="","",IF('入力シート(記録会)'!L14="","",IF('入力シート(記録会)'!L14="電気",0,1))) -> 
A15: =IF('入力シート(記録会)'!$H15="","","4000006") ->  | B15: =IF('入力シート(記録会)'!$H15="","",IF('入力シート(記録会)'!$B15="男",0,1)) ->  | C15: =IF('入力シート(記録会)'!$H15="","",'入力シート(記録会)'!C15) ->  | D15: =IF('入力シート(記録会)'!$H15="","",TEXT('入力シート(記録会)'!$E15,"000")) ->  | E15: =IF('入力シート(記録会)'!$H15="","",学校番号) ->  | F15: =IF('入力シート(記録会)'!$H15="","",B15) ->  | G15: =IF('入力シート(記録会)'!$H15="","",TEXT('入力シート(記録会)'!$H15,"00")) ->  | J15: =IF('入力シート(記録会)'!$H15="","",IF('入力シート(記録会)'!K15="","",'入力シート(記録会)'!K15)) ->  | N15: =IF('入力シート(記録会)'!$H15="","",IF('入力シート(記録会)'!L15="","",IF('入力シート(記録会)'!L15="電気",0,1))) -> 
A16: =IF('入力シート(記録会)'!$H16="","","4000006") ->  | B16: =IF('入力シート(記録会)'!$H16="","",IF('入力シート(記録会)'!$B16="男",0,1)) ->  | C16: =IF('入力シート(記録会)'!$H16="","",'入力シート(記録会)'!C16) ->  | D16: =IF('入力シート(記録会)'!$H16="","",TEXT('入力シート(記録会)'!$E16,"000")) ->  | E16: =IF('入力シート(記録会)'!$H16="","",学校番号) ->  | F16: =IF('入力シート(記録会)'!$H16="","",B16) ->  | G16: =IF('入力シート(記録会)'!$H16="","",TEXT('入力シート(記録会)'!$H16,"00")) ->  | J16: =IF('入力シート(記録会)'!$H16="","",IF('入力シート(記録会)'!K16="","",'入力シート(記録会)'!K16)) ->  | N16: =IF('入力シート(記録会)'!$H16="","",IF('入力シート(記録会)'!L16="","",IF('入力シート(記録会)'!L16="電気",0,1))) -> 
A17: =IF('入力シート(記録会)'!$H17="","","4000006") ->  | B17: =IF('入力シート(記録会)'!$H17="","",IF('入力シート(記録会)'!$B17="男",0,1)) ->  | C17: =IF('入力シート(記録会)'!$H17="","",'入力シート(記録会)'!C17) ->  | D17: =IF('入力シート(記録会)'!$H17="","",TEXT('入力シート(記録会)'!$E17,"000")) ->  | E17: =IF('入力シート(記録会)'!$H17="","",学校番号) ->  | F17: =IF('入力シート(記録会)'!$H17="","",B17) ->  | G17: =IF('入力シート(記録会)'!$H17="","",TEXT('入力シート(記録会)'!$H17,"00")) ->  | J17: =IF('入力シート(記録会)'!$H17="","",IF('入力シート(記録会)'!K17="","",'入力シート(記録会)'!K17)) ->  | N17: =IF('入力シート(記録会)'!$H17="","",IF('入力シート(記録会)'!L17="","",IF('入力シート(記録会)'!L17="電気",0,1))) -> 
A18: =IF('入力シート(記録会)'!$H18="","","4000006") ->  | B18: =IF('入力シート(記録会)'!$H18="","",IF('入力シート(記録会)'!$B18="男",0,1)) ->  | C18: =IF('入力シート(記録会)'!$H18="","",'入力シート(記録会)'!C18) ->  | D18: =IF('入力シート(記録会)'!$H18="","",TEXT('入力シート(記録会)'!$E18,"000")) ->  | E18: =IF('入力シート(記録会)'!$H18="","",学校番号) ->  | F18: =IF('入力シート(記録会)'!$H18="","",B18) ->  | G18: =IF('入力シート(記録会)'!$H18="","",TEXT('入力シート(記録会)'!$H18,"00")) ->  | J18: =IF('入力シート(記録会)'!$H18="","",IF('入力シート(記録会)'!K18="","",'入力シート(記録会)'!K18)) ->  | N18: =IF('入力シート(記録会)'!$H18="","",IF('入力シート(記録会)'!L18="","",IF('入力シート(記録会)'!L18="電気",0,1))) -> 
A19: =IF('入力シート(記録会)'!$H19="","","4000006") ->  | B19: =IF('入力シート(記録会)'!$H19="","",IF('入力シート(記録会)'!$B19="男",0,1)) ->  | C19: =IF('入力シート(記録会)'!$H19="","",'入力シート(記録会)'!C19) ->  | D19: =IF('入力シート(記録会)'!$H19="","",TEXT('入力シート(記録会)'!$E19,"000")) ->  | E19: =IF('入力シート(記録会)'!$H19="","",学校番号) ->  | F19: =IF('入力シート(記録会)'!$H19="","",B19) ->  | G19: =IF('入力シート(記録会)'!$H19="","",TEXT('入力シート(記録会)'!$H19,"00")) ->  | J19: =IF('入力シート(記録会)'!$H19="","",IF('入力シート(記録会)'!K19="","",'入力シート(記録会)'!K19)) ->  | N19: =IF('入力シート(記録会)'!$H19="","",IF('入力シート(記録会)'!L19="","",IF('入力シート(記録会)'!L19="電気",0,1))) -> 
A20: =IF('入力シート(記録会)'!$H20="","","4000006") ->  | B20: =IF('入力シート(記録会)'!$H20="","",IF('入力シート(記録会)'!$B20="男",0,1)) ->  | C20: =IF('入力シート(記録会)'!$H20="","",'入力シート(記録会)'!C20) ->  | D20: =IF('入力シート(記録会)'!$H20="","",TEXT('入力シート(記録会)'!$E20,"000")) ->  | E20: =IF('入力シート(記録会)'!$H20="","",学校番号) ->  | F20: =IF('入力シート(記録会)'!$H20="","",B20) ->  | G20: =IF('入力シート(記録会)'!$H20="","",TEXT('入力シート(記録会)'!$H20,"00")) ->  | J20: =IF('入力シート(記録会)'!$H20="","",IF('入力シート(記録会)'!K20="","",'入力シート(記録会)'!K20)) ->  | N20: =IF('入力シート(記録会)'!$H20="","",IF('入力シート(記録会)'!L20="","",IF('入力シート(記録会)'!L20="電気",0,1))) -> 
A21: =IF('入力シート(記録会)'!$H21="","","4000006") ->  | B21: =IF('入力シート(記録会)'!$H21="","",IF('入力シート(記録会)'!$B21="男",0,1)) ->  | C21: =IF('入力シート(記録会)'!$H21="","",'入力シート(記録会)'!C21) ->  | D21: =IF('入力シート(記録会)'!$H21="","",TEXT('入力シート(記録会)'!$E21,"000")) ->  | E21: =IF('入力シート(記録会)'!$H21="","",学校番号) ->  | F21: =IF('入力シート(記録会)'!$H21="","",B21) ->  | G21: =IF('入力シート(記録会)'!$H21="","",TEXT('入力シート(記録会)'!$H21,"00")) ->  | J21: =IF('入力シート(記録会)'!$H21="","",IF('入力シート(記録会)'!K21="","",'入力シート(記録会)'!K21)) ->  | N21: =IF('入力シート(記録会)'!$H21="","",IF('入力シート(記録会)'!L21="","",IF('入力シート(記録会)'!L21="電気",0,1))) -> 
A22: =IF('入力シート(記録会)'!$H22="","","4000006") ->  | B22: =IF('入力シート(記録会)'!$H22="","",IF('入力シート(記録会)'!$B22="男",0,1)) ->  | C22: =IF('入力シート(記録会)'!$H22="","",'入力シート(記録会)'!C22) ->  | D22: =IF('入力シート(記録会)'!$H22="","",TEXT('入力シート(記録会)'!$E22,"000")) ->  | E22: =IF('入力シート(記録会)'!$H22="","",学校番号) ->  | F22: =IF('入力シート(記録会)'!$H22="","",B22) ->  | G22: =IF('入力シート(記録会)'!$H22="","",TEXT('入力シート(記録会)'!$H22,"00")) ->  | J22: =IF('入力シート(記録会)'!$H22="","",IF('入力シート(記録会)'!K22="","",'入力シート(記録会)'!K22)) ->  | N22: =IF('入力シート(記録会)'!$H22="","",IF('入力シート(記録会)'!L22="","",IF('入力シート(記録会)'!L22="電気",0,1))) -> 
A23: =IF('入力シート(記録会)'!$H23="","","4000006") ->  | B23: =IF('入力シート(記録会)'!$H23="","",IF('入力シート(記録会)'!$B23="男",0,1)) ->  | C23: =IF('入力シート(記録会)'!$H23="","",'入力シート(記録会)'!C23) ->  | D23: =IF('入力シート(記録会)'!$H23="","",TEXT('入力シート(記録会)'!$E23,"000")) ->  | E23: =IF('入力シート(記録会)'!$H23="","",学校番号) ->  | F23: =IF('入力シート(記録会)'!$H23="","",B23) ->  | G23: =IF('入力シート(記録会)'!$H23="","",TEXT('入力シート(記録会)'!$H23,"00")) ->  | J23: =IF('入力シート(記録会)'!$H23="","",IF('入力シート(記録会)'!K23="","",'入力シート(記録会)'!K23)) ->  | N23: =IF('入力シート(記録会)'!$H23="","",IF('入力シート(記録会)'!L23="","",IF('入力シート(記録会)'!L23="電気",0,1))) -> 
A24: =IF('入力シート(記録会)'!$H24="","","4000006") ->  | B24: =IF('入力シート(記録会)'!$H24="","",IF('入力シート(記録会)'!$B24="男",0,1)) ->  | C24: =IF('入力シート(記録会)'!$H24="","",'入力シート(記録会)'!C24) ->  | D24: =IF('入力シート(記録会)'!$H24="","",TEXT('入力シート(記録会)'!$E24,"000")) ->  | E24: =IF('入力シート(記録会)'!$H24="","",学校番号) ->  | F24: =IF('入力シート(記録会)'!$H24="","",B24) ->  | G24: =IF('入力シート(記録会)'!$H24="","",TEXT('入力シート(記録会)'!$H24,"00")) ->  | J24: =IF('入力シート(記録会)'!$H24="","",IF('入力シート(記録会)'!K24="","",'入力シート(記録会)'!K24)) ->  | N24: =IF('入力シート(記録会)'!$H24="","",IF('入力シート(記録会)'!L24="","",IF('入力シート(記録会)'!L24="電気",0,1))) -> 
A25: =IF('入力シート(記録会)'!$H25="","","4000006") ->  | B25: =IF('入力シート(記録会)'!$H25="","",IF('入力シート(記録会)'!$B25="男",0,1)) ->  | C25: =IF('入力シート(記録会)'!$H25="","",'入力シート(記録会)'!C25) ->  | D25: =IF('入力シート(記録会)'!$H25="","",TEXT('入力シート(記録会)'!$E25,"000")) ->  | E25: =IF('入力シート(記録会)'!$H25="","",学校番号) ->  | F25: =IF('入力シート(記録会)'!$H25="","",B25) ->  | G25: =IF('入力シート(記録会)'!$H25="","",TEXT('入力シート(記録会)'!$H25,"00")) ->  | J25: =IF('入力シート(記録会)'!$H25="","",IF('入力シート(記録会)'!K25="","",'入力シート(記録会)'!K25)) ->  | N25: =IF('入力シート(記録会)'!$H25="","",IF('入力シート(記録会)'!L25="","",IF('入力シート(記録会)'!L25="電気",0,1))) -> 
A26: =IF('入力シート(記録会)'!$H26="","","4000006") ->  | B26: =IF('入力シート(記録会)'!$H26="","",IF('入力シート(記録会)'!$B26="男",0,1)) ->  | C26: =IF('入力シート(記録会)'!$H26="","",'入力シート(記録会)'!C26) ->  | D26: =IF('入力シート(記録会)'!$H26="","",TEXT('入力シート(記録会)'!$E26,"000")) ->  | E26: =IF('入力シート(記録会)'!$H26="","",学校番号) ->  | F26: =IF('入力シート(記録会)'!$H26="","",B26) ->  | G26: =IF('入力シート(記録会)'!$H26="","",TEXT('入力シート(記録会)'!$H26,"00")) ->  | J26: =IF('入力シート(記録会)'!$H26="","",IF('入力シート(記録会)'!K26="","",'入力シート(記録会)'!K26)) ->  | N26: =IF('入力シート(記録会)'!$H26="","",IF('入力シート(記録会)'!L26="","",IF('入力シート(記録会)'!L26="電気",0,1))) -> 
A27: =IF('入力シート(記録会)'!$H27="","","4000006") ->  | B27: =IF('入力シート(記録会)'!$H27="","",IF('入力シート(記録会)'!$B27="男",0,1)) ->  | C27: =IF('入力シート(記録会)'!$H27="","",'入力シート(記録会)'!C27) ->  | D27: =IF('入力シート(記録会)'!$H27="","",TEXT('入力シート(記録会)'!$E27,"000")) ->  | E27: =IF('入力シート(記録会)'!$H27="","",学校番号) ->  | F27: =IF('入力シート(記録会)'!$H27="","",B27) ->  | G27: =IF('入力シート(記録会)'!$H27="","",TEXT('入力シート(記録会)'!$H27,"00")) ->  | J27: =IF('入力シート(記録会)'!$H27="","",IF('入力シート(記録会)'!K27="","",'入力シート(記録会)'!K27)) ->  | N27: =IF('入力シート(記録会)'!$H27="","",IF('入力シート(記録会)'!L27="","",IF('入力シート(記録会)'!L27="電気",0,1))) -> 
A28: =IF('入力シート(記録会)'!$H28="","","4000006") ->  | B28: =IF('入力シート(記録会)'!$H28="","",IF('入力シート(記録会)'!$B28="男",0,1)) ->  | C28: =IF('入力シート(記録会)'!$H28="","",'入力シート(記録会)'!C28) ->  | D28: =IF('入力シート(記録会)'!$H28="","",TEXT('入力シート(記録会)'!$E28,"000")) ->  | E28: =IF('入力シート(記録会)'!$H28="","",学校番号) ->  | F28: =IF('入力シート(記録会)'!$H28="","",B28) ->  | G28: =IF('入力シート(記録会)'!$H28="","",TEXT('入力シート(記録会)'!$H28,"00")) ->  | J28: =IF('入力シート(記録会)'!$H28="","",IF('入力シート(記録会)'!K28="","",'入力シート(記録会)'!K28)) ->  | N28: =IF('入力シート(記録会)'!$H28="","",IF('入力シート(記録会)'!L28="","",IF('入力シート(記録会)'!L28="電気",0,1))) -> 
A29: =IF('入力シート(記録会)'!$H29="","","4000006") ->  | B29: =IF('入力シート(記録会)'!$H29="","",IF('入力シート(記録会)'!$B29="男",0,1)) ->  | C29: =IF('入力シート(記録会)'!$H29="","",'入力シート(記録会)'!C29) ->  | D29: =IF('入力シート(記録会)'!$H29="","",TEXT('入力シート(記録会)'!$E29,"000")) ->  | E29: =IF('入力シート(記録会)'!$H29="","",学校番号) ->  | F29: =IF('入力シート(記録会)'!$H29="","",B29) ->  | G29: =IF('入力シート(記録会)'!$H29="","",TEXT('入力シート(記録会)'!$H29,"00")) ->  | J29: =IF('入力シート(記録会)'!$H29="","",IF('入力シート(記録会)'!K29="","",'入力シート(記録会)'!K29)) ->  | N29: =IF('入力シート(記録会)'!$H29="","",IF('入力シート(記録会)'!L29="","",IF('入力シート(記録会)'!L29="電気",0,1))) -> 
A30: =IF('入力シート(記録会)'!$H30="","","4000006") ->  | B30: =IF('入力シート(記録会)'!$H30="","",IF('入力シート(記録会)'!$B30="男",0,1)) ->  | C30: =IF('入力シート(記録会)'!$H30="","",'入力シート(記録会)'!C30) ->  | D30: =IF('入力シート(記録会)'!$H30="","",TEXT('入力シート(記録会)'!$E30,"000")) ->  | E30: =IF('入力シート(記録会)'!$H30="","",学校番号) ->  | F30: =IF('入力シート(記録会)'!$H30="","",B30) ->  | G30: =IF('入力シート(記録会)'!$H30="","",TEXT('入力シート(記録会)'!$H30,"00")) ->  | J30: =IF('入力シート(記録会)'!$H30="","",IF('入力シート(記録会)'!K30="","",'入力シート(記録会)'!K30)) ->  | N30: =IF('入力シート(記録会)'!$H30="","",IF('入力シート(記録会)'!L30="","",IF('入力シート(記録会)'!L30="電気",0,1))) -> 
A31: =IF('入力シート(記録会)'!$H31="","","4000006") ->  | B31: =IF('入力シート(記録会)'!$H31="","",IF('入力シート(記録会)'!$B31="男",0,1)) ->  | C31: =IF('入力シート(記録会)'!$H31="","",'入力シート(記録会)'!C31) ->  | D31: =IF('入力シート(記録会)'!$H31="","",TEXT('入力シート(記録会)'!$E31,"000")) ->  | E31: =IF('入力シート(記録会)'!$H31="","",学校番号) ->  | F31: =IF('入力シート(記録会)'!$H31="","",B31) ->  | G31: =IF('入力シート(記録会)'!$H31="","",TEXT('入力シート(記録会)'!$H31,"00")) ->  | J31: =IF('入力シート(記録会)'!$H31="","",IF('入力シート(記録会)'!K31="","",'入力シート(記録会)'!K31)) ->  | N31: =IF('入力シート(記録会)'!$H31="","",IF('入力シート(記録会)'!L31="","",IF('入力シート(記録会)'!L31="電気",0,1))) -> 
A32: =IF('入力シート(記録会)'!$H32="","","4000006") ->  | B32: =IF('入力シート(記録会)'!$H32="","",IF('入力シート(記録会)'!$B32="男",0,1)) ->  | C32: =IF('入力シート(記録会)'!$H32="","",'入力シート(記録会)'!C32) ->  | D32: =IF('入力シート(記録会)'!$H32="","",TEXT('入力シート(記録会)'!$E32,"000")) ->  | E32: =IF('入力シート(記録会)'!$H32="","",学校番号) ->  | F32: =IF('入力シート(記録会)'!$H32="","",B32) ->  | G32: =IF('入力シート(記録会)'!$H32="","",TEXT('入力シート(記録会)'!$H32,"00")) ->  | J32: =IF('入力シート(記録会)'!$H32="","",IF('入力シート(記録会)'!K32="","",'入力シート(記録会)'!K32)) ->  | N32: =IF('入力シート(記録会)'!$H32="","",IF('入力シート(記録会)'!L32="","",IF('入力シート(記録会)'!L32="電気",0,1))) -> 
A33: =IF('入力シート(記録会)'!$H33="","","4000006") ->  | B33: =IF('入力シート(記録会)'!$H33="","",IF('入力シート(記録会)'!$B33="男",0,1)) ->  | C33: =IF('入力シート(記録会)'!$H33="","",'入力シート(記録会)'!C33) ->  | D33: =IF('入力シート(記録会)'!$H33="","",TEXT('入力シート(記録会)'!$E33,"000")) ->  | E33: =IF('入力シート(記録会)'!$H33="","",学校番号) ->  | F33: =IF('入力シート(記録会)'!$H33="","",B33) ->  | G33: =IF('入力シート(記録会)'!$H33="","",TEXT('入力シート(記録会)'!$H33,"00")) ->  | J33: =IF('入力シート(記録会)'!$H33="","",IF('入力シート(記録会)'!K33="","",'入力シート(記録会)'!K33)) ->  | N33: =IF('入力シート(記録会)'!$H33="","",IF('入力シート(記録会)'!L33="","",IF('入力シート(記録会)'!L33="電気",0,1))) -> 
A34: =IF('入力シート(記録会)'!$H44="","","4000006") ->  | B34: =IF('入力シート(記録会)'!$H44="","",IF('入力シート(記録会)'!$B44="男",0,1)) ->  | C34: =IF('入力シート(記録会)'!$H44="","",'入力シート(記録会)'!C44) ->  | D34: =IF('入力シート(記録会)'!$H44="","",TEXT('入力シート(記録会)'!$E44,"000")) ->  | E34: =IF('入力シート(記録会)'!$H44="","",学校番号) ->  | F34: =IF('入力シート(記録会)'!$H44="","",B34) ->  | G34: =IF('入力シート(記録会)'!$H44="","",TEXT('入力シート(記録会)'!$H44,"00")) ->  | J34: =IF('入力シート(記録会)'!$H44="","",IF('入力シート(記録会)'!K44="","",'入力シート(記録会)'!K44)) ->  | N34: =IF('入力シート(記録会)'!$H44="","",IF('入力シート(記録会)'!L44="","",IF('入力シート(記録会)'!L44="電気",0,1))) -> 
A35: =IF('入力シート(記録会)'!$H45="","","4000006") ->  | B35: =IF('入力シート(記録会)'!$H45="","",IF('入力シート(記録会)'!$B45="男",0,1)) ->  | C35: =IF('入力シート(記録会)'!$H45="","",'入力シート(記録会)'!C45) ->  | D35: =IF('入力シート(記録会)'!$H45="","",TEXT('入力シート(記録会)'!$E45,"000")) ->  | E35: =IF('入力シート(記録会)'!$H45="","",学校番号) ->  | F35: =IF('入力シート(記録会)'!$H45="","",B35) ->  | G35: =IF('入力シート(記録会)'!$H45="","",TEXT('入力シート(記録会)'!$H45,"00")) ->  | J35: =IF('入力シート(記録会)'!$H45="","",IF('入力シート(記録会)'!K45="","",'入力シート(記録会)'!K45)) ->  | N35: =IF('入力シート(記録会)'!$H45="","",IF('入力シート(記録会)'!L45="","",IF('入力シート(記録会)'!L45="電気",0,1))) -> 
A36: =IF('入力シート(記録会)'!$H46="","","4000006") ->  | B36: =IF('入力シート(記録会)'!$H46="","",IF('入力シート(記録会)'!$B46="男",0,1)) ->  | C36: =IF('入力シート(記録会)'!$H46="","",'入力シート(記録会)'!C46) ->  | D36: =IF('入力シート(記録会)'!$H46="","",TEXT('入力シート(記録会)'!$E46,"000")) ->  | E36: =IF('入力シート(記録会)'!$H46="","",学校番号) ->  | F36: =IF('入力シート(記録会)'!$H46="","",B36) ->  | G36: =IF('入力シート(記録会)'!$H46="","",TEXT('入力シート(記録会)'!$H46,"00")) ->  | J36: =IF('入力シート(記録会)'!$H46="","",IF('入力シート(記録会)'!K46="","",'入力シート(記録会)'!K46)) ->  | N36: =IF('入力シート(記録会)'!$H46="","",IF('入力シート(記録会)'!L46="","",IF('入力シート(記録会)'!L46="電気",0,1))) -> 
A37: =IF('入力シート(記録会)'!$H47="","","4000006") ->  | B37: =IF('入力シート(記録会)'!$H47="","",IF('入力シート(記録会)'!$B47="男",0,1)) ->  | C37: =IF('入力シート(記録会)'!$H47="","",'入力シート(記録会)'!C47) ->  | D37: =IF('入力シート(記録会)'!$H47="","",TEXT('入力シート(記録会)'!$E47,"000")) ->  | E37: =IF('入力シート(記録会)'!$H47="","",学校番号) ->  | F37: =IF('入力シート(記録会)'!$H47="","",B37) ->  | G37: =IF('入力シート(記録会)'!$H47="","",TEXT('入力シート(記録会)'!$H47,"00")) ->  | J37: =IF('入力シート(記録会)'!$H47="","",IF('入力シート(記録会)'!K47="","",'入力シート(記録会)'!K47)) ->  | N37: =IF('入力シート(記録会)'!$H47="","",IF('入力シート(記録会)'!L47="","",IF('入力シート(記録会)'!L47="電気",0,1))) -> 
A38: =IF('入力シート(記録会)'!$H48="","","4000006") ->  | B38: =IF('入力シート(記録会)'!$H48="","",IF('入力シート(記録会)'!$B48="男",0,1)) ->  | C38: =IF('入力シート(記録会)'!$H48="","",'入力シート(記録会)'!C48) ->  | D38: =IF('入力シート(記録会)'!$H48="","",TEXT('入力シート(記録会)'!$E48,"000")) ->  | E38: =IF('入力シート(記録会)'!$H48="","",学校番号) ->  | F38: =IF('入力シート(記録会)'!$H48="","",B38) ->  | G38: =IF('入力シート(記録会)'!$H48="","",TEXT('入力シート(記録会)'!$H48,"00")) ->  | J38: =IF('入力シート(記録会)'!$H48="","",IF('入力シート(記録会)'!K48="","",'入力シート(記録会)'!K48)) ->  | N38: =IF('入力シート(記録会)'!$H48="","",IF('入力シート(記録会)'!L48="","",IF('入力シート(記録会)'!L48="電気",0,1))) -> 
A39: =IF('入力シート(記録会)'!$H49="","","4000006") ->  | B39: =IF('入力シート(記録会)'!$H49="","",IF('入力シート(記録会)'!$B49="男",0,1)) ->  | C39: =IF('入力シート(記録会)'!$H49="","",'入力シート(記録会)'!C49) ->  | D39: =IF('入力シート(記録会)'!$H49="","",TEXT('入力シート(記録会)'!$E49,"000")) ->  | E39: =IF('入力シート(記録会)'!$H49="","",学校番号) ->  | F39: =IF('入力シート(記録会)'!$H49="","",B39) ->  | G39: =IF('入力シート(記録会)'!$H49="","",TEXT('入力シート(記録会)'!$H49,"00")) ->  | J39: =IF('入力シート(記録会)'!$H49="","",IF('入力シート(記録会)'!K49="","",'入力シート(記録会)'!K49)) ->  | N39: =IF('入力シート(記録会)'!$H49="","",IF('入力シート(記録会)'!L49="","",IF('入力シート(記録会)'!L49="電気",0,1))) -> 
A40: =IF('入力シート(記録会)'!$H50="","","4000006") ->  | B40: =IF('入力シート(記録会)'!$H50="","",IF('入力シート(記録会)'!$B50="男",0,1)) ->  | C40: =IF('入力シート(記録会)'!$H50="","",'入力シート(記録会)'!C50) ->  | D40: =IF('入力シート(記録会)'!$H50="","",TEXT('入力シート(記録会)'!$E50,"000")) ->  | E40: =IF('入力シート(記録会)'!$H50="","",学校番号) ->  | F40: =IF('入力シート(記録会)'!$H50="","",B40) ->  | G40: =IF('入力シート(記録会)'!$H50="","",TEXT('入力シート(記録会)'!$H50,"00")) ->  | J40: =IF('入力シート(記録会)'!$H50="","",IF('入力シート(記録会)'!K50="","",'入力シート(記録会)'!K50)) ->  | N40: =IF('入力シート(記録会)'!$H50="","",IF('入力シート(記録会)'!L50="","",IF('入力シート(記録会)'!L50="電気",0,1))) -> 
A41: =IF('入力シート(記録会)'!$H51="","","4000006") ->  | B41: =IF('入力シート(記録会)'!$H51="","",IF('入力シート(記録会)'!$B51="男",0,1)) ->  | C41: =IF('入力シート(記録会)'!$H51="","",'入力シート(記録会)'!C51) ->  | D41: =IF('入力シート(記録会)'!$H51="","",TEXT('入力シート(記録会)'!$E51,"000")) ->  | E41: =IF('入力シート(記録会)'!$H51="","",学校番号) ->  | F41: =IF('入力シート(記録会)'!$H51="","",B41) ->  | G41: =IF('入力シート(記録会)'!$H51="","",TEXT('入力シート(記録会)'!$H51,"00")) ->  | J41: =IF('入力シート(記録会)'!$H51="","",IF('入力シート(記録会)'!K51="","",'入力シート(記録会)'!K51)) ->  | N41: =IF('入力シート(記録会)'!$H51="","",IF('入力シート(記録会)'!L51="","",IF('入力シート(記録会)'!L51="電気",0,1))) -> 
A42: =IF('入力シート(記録会)'!$H52="","","4000006") ->  | B42: =IF('入力シート(記録会)'!$H52="","",IF('入力シート(記録会)'!$B52="男",0,1)) ->  | C42: =IF('入力シート(記録会)'!$H52="","",'入力シート(記録会)'!C52) ->  | D42: =IF('入力シート(記録会)'!$H52="","",TEXT('入力シート(記録会)'!$E52,"000")) ->  | E42: =IF('入力シート(記録会)'!$H52="","",学校番号) ->  | F42: =IF('入力シート(記録会)'!$H52="","",B42) ->  | G42: =IF('入力シート(記録会)'!$H52="","",TEXT('入力シート(記録会)'!$H52,"00")) ->  | J42: =IF('入力シート(記録会)'!$H52="","",IF('入力シート(記録会)'!K52="","",'入力シート(記録会)'!K52)) ->  | N42: =IF('入力シート(記録会)'!$H52="","",IF('入力シート(記録会)'!L52="","",IF('入力シート(記録会)'!L52="電気",0,1))) -> 
A43: =IF('入力シート(記録会)'!$H53="","","4000006") ->  | B43: =IF('入力シート(記録会)'!$H53="","",IF('入力シート(記録会)'!$B53="男",0,1)) ->  | C43: =IF('入力シート(記録会)'!$H53="","",'入力シート(記録会)'!C53) ->  | D43: =IF('入力シート(記録会)'!$H53="","",TEXT('入力シート(記録会)'!$E53,"000")) ->  | E43: =IF('入力シート(記録会)'!$H53="","",学校番号) ->  | F43: =IF('入力シート(記録会)'!$H53="","",B43) ->  | G43: =IF('入力シート(記録会)'!$H53="","",TEXT('入力シート(記録会)'!$H53,"00")) ->  | J43: =IF('入力シート(記録会)'!$H53="","",IF('入力シート(記録会)'!K53="","",'入力シート(記録会)'!K53)) ->  | N43: =IF('入力シート(記録会)'!$H53="","",IF('入力シート(記録会)'!L53="","",IF('入力シート(記録会)'!L53="電気",0,1))) -> 
A44: =IF('入力シート(記録会)'!$H54="","","4000006") ->  | B44: =IF('入力シート(記録会)'!$H54="","",IF('入力シート(記録会)'!$B54="男",0,1)) ->  | C44: =IF('入力シート(記録会)'!$H54="","",'入力シート(記録会)'!C54) ->  | D44: =IF('入力シート(記録会)'!$H54="","",TEXT('入力シート(記録会)'!$E54,"000")) ->  | E44: =IF('入力シート(記録会)'!$H54="","",学校番号) ->  | F44: =IF('入力シート(記録会)'!$H54="","",B44) ->  | G44: =IF('入力シート(記録会)'!$H54="","",TEXT('入力シート(記録会)'!$H54,"00")) ->  | J44: =IF('入力シート(記録会)'!$H54="","",IF('入力シート(記録会)'!K54="","",'入力シート(記録会)'!K54)) ->  | N44: =IF('入力シート(記録会)'!$H54="","",IF('入力シート(記録会)'!L54="","",IF('入力シート(記録会)'!L54="電気",0,1))) -> 
A45: =IF('入力シート(記録会)'!$H55="","","4000006") ->  | B45: =IF('入力シート(記録会)'!$H55="","",IF('入力シート(記録会)'!$B55="男",0,1)) ->  | C45: =IF('入力シート(記録会)'!$H55="","",'入力シート(記録会)'!C55) ->  | D45: =IF('入力シート(記録会)'!$H55="","",TEXT('入力シート(記録会)'!$E55,"000")) ->  | E45: =IF('入力シート(記録会)'!$H55="","",学校番号) ->  | F45: =IF('入力シート(記録会)'!$H55="","",B45) ->  | G45: =IF('入力シート(記録会)'!$H55="","",TEXT('入力シート(記録会)'!$H55,"00")) ->  | J45: =IF('入力シート(記録会)'!$H55="","",IF('入力シート(記録会)'!K55="","",'入力シート(記録会)'!K55)) ->  | N45: =IF('入力シート(記録会)'!$H55="","",IF('入力シート(記録会)'!L55="","",IF('入力シート(記録会)'!L55="電気",0,1))) -> 
A46: =IF('入力シート(記録会)'!$H56="","","4000006") ->  | B46: =IF('入力シート(記録会)'!$H56="","",IF('入力シート(記録会)'!$B56="男",0,1)) ->  | C46: =IF('入力シート(記録会)'!$H56="","",'入力シート(記録会)'!C56) ->  | D46: =IF('入力シート(記録会)'!$H56="","",TEXT('入力シート(記録会)'!$E56,"000")) ->  | E46: =IF('入力シート(記録会)'!$H56="","",学校番号) ->  | F46: =IF('入力シート(記録会)'!$H56="","",B46) ->  | G46: =IF('入力シート(記録会)'!$H56="","",TEXT('入力シート(記録会)'!$H56,"00")) ->  | J46: =IF('入力シート(記録会)'!$H56="","",IF('入力シート(記録会)'!K56="","",'入力シート(記録会)'!K56)) ->  | N46: =IF('入力シート(記録会)'!$H56="","",IF('入力シート(記録会)'!L56="","",IF('入力シート(記録会)'!L56="電気",0,1))) -> 
A47: =IF('入力シート(記録会)'!$H57="","","4000006") ->  | B47: =IF('入力シート(記録会)'!$H57="","",IF('入力シート(記録会)'!$B57="男",0,1)) ->  | C47: =IF('入力シート(記録会)'!$H57="","",'入力シート(記録会)'!C57) ->  | D47: =IF('入力シート(記録会)'!$H57="","",TEXT('入力シート(記録会)'!$E57,"000")) ->  | E47: =IF('入力シート(記録会)'!$H57="","",学校番号) ->  | F47: =IF('入力シート(記録会)'!$H57="","",B47) ->  | G47: =IF('入力シート(記録会)'!$H57="","",TEXT('入力シート(記録会)'!$H57,"00")) ->  | J47: =IF('入力シート(記録会)'!$H57="","",IF('入力シート(記録会)'!K57="","",'入力シート(記録会)'!K57)) ->  | N47: =IF('入力シート(記録会)'!$H57="","",IF('入力シート(記録会)'!L57="","",IF('入力シート(記録会)'!L57="電気",0,1))) -> 
A48: =IF('入力シート(記録会)'!$H58="","","4000006") ->  | B48: =IF('入力シート(記録会)'!$H58="","",IF('入力シート(記録会)'!$B58="男",0,1)) ->  | C48: =IF('入力シート(記録会)'!$H58="","",'入力シート(記録会)'!C58) ->  | D48: =IF('入力シート(記録会)'!$H58="","",TEXT('入力シート(記録会)'!$E58,"000")) ->  | E48: =IF('入力シート(記録会)'!$H58="","",学校番号) ->  | F48: =IF('入力シート(記録会)'!$H58="","",B48) ->  | G48: =IF('入力シート(記録会)'!$H58="","",TEXT('入力シート(記録会)'!$H58,"00")) ->  | J48: =IF('入力シート(記録会)'!$H58="","",IF('入力シート(記録会)'!K58="","",'入力シート(記録会)'!K58)) ->  | N48: =IF('入力シート(記録会)'!$H58="","",IF('入力シート(記録会)'!L58="","",IF('入力シート(記録会)'!L58="電気",0,1))) -> 
A49: =IF('入力シート(記録会)'!$H59="","","4000006") ->  | B49: =IF('入力シート(記録会)'!$H59="","",IF('入力シート(記録会)'!$B59="男",0,1)) ->  | C49: =IF('入力シート(記録会)'!$H59="","",'入力シート(記録会)'!C59) ->  | D49: =IF('入力シート(記録会)'!$H59="","",TEXT('入力シート(記録会)'!$E59,"000")) ->  | E49: =IF('入力シート(記録会)'!$H59="","",学校番号) ->  | F49: =IF('入力シート(記録会)'!$H59="","",B49) ->  | G49: =IF('入力シート(記録会)'!$H59="","",TEXT('入力シート(記録会)'!$H59,"00")) ->  | J49: =IF('入力シート(記録会)'!$H59="","",IF('入力シート(記録会)'!K59="","",'入力シート(記録会)'!K59)) ->  | N49: =IF('入力シート(記録会)'!$H59="","",IF('入力シート(記録会)'!L59="","",IF('入力シート(記録会)'!L59="電気",0,1))) -> 
A50: =IF('入力シート(記録会)'!$H60="","","4000006") ->  | B50: =IF('入力シート(記録会)'!$H60="","",IF('入力シート(記録会)'!$B60="男",0,1)) ->  | C50: =IF('入力シート(記録会)'!$H60="","",'入力シート(記録会)'!C60) ->  | D50: =IF('入力シート(記録会)'!$H60="","",TEXT('入力シート(記録会)'!$E60,"000")) ->  | E50: =IF('入力シート(記録会)'!$H60="","",学校番号) ->  | F50: =IF('入力シート(記録会)'!$H60="","",B50) ->  | G50: =IF('入力シート(記録会)'!$H60="","",TEXT('入力シート(記録会)'!$H60,"00")) ->  | J50: =IF('入力シート(記録会)'!$H60="","",IF('入力シート(記録会)'!K60="","",'入力シート(記録会)'!K60)) ->  | N50: =IF('入力シート(記録会)'!$H60="","",IF('入力シート(記録会)'!L60="","",IF('入力シート(記録会)'!L60="電気",0,1))) -> 
A51: =IF('入力シート(記録会)'!$H61="","","4000006") ->  | B51: =IF('入力シート(記録会)'!$H61="","",IF('入力シート(記録会)'!$B61="男",0,1)) ->  | C51: =IF('入力シート(記録会)'!$H61="","",'入力シート(記録会)'!C61) ->  | D51: =IF('入力シート(記録会)'!$H61="","",TEXT('入力シート(記録会)'!$E61,"000")) ->  | E51: =IF('入力シート(記録会)'!$H61="","",学校番号) ->  | F51: =IF('入力シート(記録会)'!$H61="","",B51) ->  | G51: =IF('入力シート(記録会)'!$H61="","",TEXT('入力シート(記録会)'!$H61,"00")) ->  | J51: =IF('入力シート(記録会)'!$H61="","",IF('入力シート(記録会)'!K61="","",'入力シート(記録会)'!K61)) ->  | N51: =IF('入力シート(記録会)'!$H61="","",IF('入力シート(記録会)'!L61="","",IF('入力シート(記録会)'!L61="電気",0,1))) -> 
A52: =IF('入力シート(記録会)'!$H62="","","4000006") ->  | B52: =IF('入力シート(記録会)'!$H62="","",IF('入力シート(記録会)'!$B62="男",0,1)) ->  | C52: =IF('入力シート(記録会)'!$H62="","",'入力シート(記録会)'!C62) ->  | D52: =IF('入力シート(記録会)'!$H62="","",TEXT('入力シート(記録会)'!$E62,"000")) ->  | E52: =IF('入力シート(記録会)'!$H62="","",学校番号) ->  | F52: =IF('入力シート(記録会)'!$H62="","",B52) ->  | G52: =IF('入力シート(記録会)'!$H62="","",TEXT('入力シート(記録会)'!$H62,"00")) ->  | J52: =IF('入力シート(記録会)'!$H62="","",IF('入力シート(記録会)'!K62="","",'入力シート(記録会)'!K62)) ->  | N52: =IF('入力シート(記録会)'!$H62="","",IF('入力シート(記録会)'!L62="","",IF('入力シート(記録会)'!L62="電気",0,1))) -> 
A53: =IF('入力シート(記録会)'!$H63="","","4000006") ->  | B53: =IF('入力シート(記録会)'!$H63="","",IF('入力シート(記録会)'!$B63="男",0,1)) ->  | C53: =IF('入力シート(記録会)'!$H63="","",'入力シート(記録会)'!C63) ->  | D53: =IF('入力シート(記録会)'!$H63="","",TEXT('入力シート(記録会)'!$E63,"000")) ->  | E53: =IF('入力シート(記録会)'!$H63="","",学校番号) ->  | F53: =IF('入力シート(記録会)'!$H63="","",B53) ->  | G53: =IF('入力シート(記録会)'!$H63="","",TEXT('入力シート(記録会)'!$H63,"00")) ->  | J53: =IF('入力シート(記録会)'!$H63="","",IF('入力シート(記録会)'!K63="","",'入力シート(記録会)'!K63)) ->  | N53: =IF('入力シート(記録会)'!$H63="","",IF('入力シート(記録会)'!L63="","",IF('入力シート(記録会)'!L63="電気",0,1))) -> 
A54: =IF('入力シート(記録会)'!$H64="","","4000006") ->  | B54: =IF('入力シート(記録会)'!$H64="","",IF('入力シート(記録会)'!$B64="男",0,1)) ->  | C54: =IF('入力シート(記録会)'!$H64="","",'入力シート(記録会)'!C64) ->  | D54: =IF('入力シート(記録会)'!$H64="","",TEXT('入力シート(記録会)'!$E64,"000")) ->  | E54: =IF('入力シート(記録会)'!$H64="","",学校番号) ->  | F54: =IF('入力シート(記録会)'!$H64="","",B54) ->  | G54: =IF('入力シート(記録会)'!$H64="","",TEXT('入力シート(記録会)'!$H64,"00")) ->  | J54: =IF('入力シート(記録会)'!$H64="","",IF('入力シート(記録会)'!K64="","",'入力シート(記録会)'!K64)) ->  | N54: =IF('入力シート(記録会)'!$H64="","",IF('入力シート(記録会)'!L64="","",IF('入力シート(記録会)'!L64="電気",0,1))) -> 
A55: =IF('入力シート(記録会)'!$H65="","","4000006") ->  | B55: =IF('入力シート(記録会)'!$H65="","",IF('入力シート(記録会)'!$B65="男",0,1)) ->  | C55: =IF('入力シート(記録会)'!$H65="","",'入力シート(記録会)'!C65) ->  | D55: =IF('入力シート(記録会)'!$H65="","",TEXT('入力シート(記録会)'!$E65,"000")) ->  | E55: =IF('入力シート(記録会)'!$H65="","",学校番号) ->  | F55: =IF('入力シート(記録会)'!$H65="","",B55) ->  | G55: =IF('入力シート(記録会)'!$H65="","",TEXT('入力シート(記録会)'!$H65,"00")) ->  | J55: =IF('入力シート(記録会)'!$H65="","",IF('入力シート(記録会)'!K65="","",'入力シート(記録会)'!K65)) ->  | N55: =IF('入力シート(記録会)'!$H65="","",IF('入力シート(記録会)'!L65="","",IF('入力シート(記録会)'!L65="電気",0,1))) -> 
A56: =IF('入力シート(記録会)'!$H66="","","4000006") ->  | B56: =IF('入力シート(記録会)'!$H66="","",IF('入力シート(記録会)'!$B66="男",0,1)) ->  | C56: =IF('入力シート(記録会)'!$H66="","",'入力シート(記録会)'!C66) ->  | D56: =IF('入力シート(記録会)'!$H66="","",TEXT('入力シート(記録会)'!$E66,"000")) ->  | E56: =IF('入力シート(記録会)'!$H66="","",学校番号) ->  | F56: =IF('入力シート(記録会)'!$H66="","",B56) ->  | G56: =IF('入力シート(記録会)'!$H66="","",TEXT('入力シート(記録会)'!$H66,"00")) ->  | J56: =IF('入力シート(記録会)'!$H66="","",IF('入力シート(記録会)'!K66="","",'入力シート(記録会)'!K66)) ->  | N56: =IF('入力シート(記録会)'!$H66="","",IF('入力シート(記録会)'!L66="","",IF('入力シート(記録会)'!L66="電気",0,1))) -> 
A57: =IF('入力シート(記録会)'!$H67="","","4000006") ->  | B57: =IF('入力シート(記録会)'!$H67="","",IF('入力シート(記録会)'!$B67="男",0,1)) ->  | C57: =IF('入力シート(記録会)'!$H67="","",'入力シート(記録会)'!C67) ->  | D57: =IF('入力シート(記録会)'!$H67="","",TEXT('入力シート(記録会)'!$E67,"000")) ->  | E57: =IF('入力シート(記録会)'!$H67="","",学校番号) ->  | F57: =IF('入力シート(記録会)'!$H67="","",B57) ->  | G57: =IF('入力シート(記録会)'!$H67="","",TEXT('入力シート(記録会)'!$H67,"00")) ->  | J57: =IF('入力シート(記録会)'!$H67="","",IF('入力シート(記録会)'!K67="","",'入力シート(記録会)'!K67)) ->  | N57: =IF('入力シート(記録会)'!$H67="","",IF('入力シート(記録会)'!L67="","",IF('入力シート(記録会)'!L67="電気",0,1))) -> 
A58: =IF('入力シート(記録会)'!$H68="","","4000006") ->  | B58: =IF('入力シート(記録会)'!$H68="","",IF('入力シート(記録会)'!$B68="男",0,1)) ->  | C58: =IF('入力シート(記録会)'!$H68="","",'入力シート(記録会)'!C68) ->  | D58: =IF('入力シート(記録会)'!$H68="","",TEXT('入力シート(記録会)'!$E68,"000")) ->  | E58: =IF('入力シート(記録会)'!$H68="","",学校番号) ->  | F58: =IF('入力シート(記録会)'!$H68="","",B58) ->  | G58: =IF('入力シート(記録会)'!$H68="","",TEXT('入力シート(記録会)'!$H68,"00")) ->  | J58: =IF('入力シート(記録会)'!$H68="","",IF('入力シート(記録会)'!K68="","",'入力シート(記録会)'!K68)) ->  | N58: =IF('入力シート(記録会)'!$H68="","",IF('入力シート(記録会)'!L68="","",IF('入力シート(記録会)'!L68="電気",0,1))) -> 
A59: =IF('入力シート(記録会)'!$H69="","","4000006") ->  | B59: =IF('入力シート(記録会)'!$H69="","",IF('入力シート(記録会)'!$B69="男",0,1)) ->  | C59: =IF('入力シート(記録会)'!$H69="","",'入力シート(記録会)'!C69) ->  | D59: =IF('入力シート(記録会)'!$H69="","",TEXT('入力シート(記録会)'!$E69,"000")) ->  | E59: =IF('入力シート(記録会)'!$H69="","",学校番号) ->  | F59: =IF('入力シート(記録会)'!$H69="","",B59) ->  | G59: =IF('入力シート(記録会)'!$H69="","",TEXT('入力シート(記録会)'!$H69,"00")) ->  | J59: =IF('入力シート(記録会)'!$H69="","",IF('入力シート(記録会)'!K69="","",'入力シート(記録会)'!K69)) ->  | N59: =IF('入力シート(記録会)'!$H69="","",IF('入力シート(記録会)'!L69="","",IF('入力シート(記録会)'!L69="電気",0,1))) -> 
A60: =IF('入力シート(記録会)'!$H70="","","4000006") ->  | B60: =IF('入力シート(記録会)'!$H70="","",IF('入力シート(記録会)'!$B70="男",0,1)) ->  | C60: =IF('入力シート(記録会)'!$H70="","",'入力シート(記録会)'!C70) ->  | D60: =IF('入力シート(記録会)'!$H70="","",TEXT('入力シート(記録会)'!$E70,"000")) ->  | E60: =IF('入力シート(記録会)'!$H70="","",学校番号) ->  | F60: =IF('入力シート(記録会)'!$H70="","",B60) ->  | G60: =IF('入力シート(記録会)'!$H70="","",TEXT('入力シート(記録会)'!$H70,"00")) ->  | J60: =IF('入力シート(記録会)'!$H70="","",IF('入力シート(記録会)'!K70="","",'入力シート(記録会)'!K70)) ->  | N60: =IF('入力シート(記録会)'!$H70="","",IF('入力シート(記録会)'!L70="","",IF('入力シート(記録会)'!L70="電気",0,1))) -> 
A61: =IF('入力シート(記録会)'!$H71="","","4000006") ->  | B61: =IF('入力シート(記録会)'!$H71="","",IF('入力シート(記録会)'!$B71="男",0,1)) ->  | C61: =IF('入力シート(記録会)'!$H71="","",'入力シート(記録会)'!C71) ->  | D61: =IF('入力シート(記録会)'!$H71="","",TEXT('入力シート(記録会)'!$E71,"000")) ->  | E61: =IF('入力シート(記録会)'!$H71="","",学校番号) ->  | F61: =IF('入力シート(記録会)'!$H71="","",B61) ->  | G61: =IF('入力シート(記録会)'!$H71="","",TEXT('入力シート(記録会)'!$H71,"00")) ->  | J61: =IF('入力シート(記録会)'!$H71="","",IF('入力シート(記録会)'!K71="","",'入力シート(記録会)'!K71)) ->  | N61: =IF('入力シート(記録会)'!$H71="","",IF('入力シート(記録会)'!L71="","",IF('入力シート(記録会)'!L71="電気",0,1))) -> 
A62: =IF('入力シート(記録会)'!$H72="","","4000006") ->  | B62: =IF('入力シート(記録会)'!$H72="","",IF('入力シート(記録会)'!$B72="男",0,1)) ->  | C62: =IF('入力シート(記録会)'!$H72="","",'入力シート(記録会)'!C72) ->  | D62: =IF('入力シート(記録会)'!$H72="","",TEXT('入力シート(記録会)'!$E72,"000")) ->  | E62: =IF('入力シート(記録会)'!$H72="","",学校番号) ->  | F62: =IF('入力シート(記録会)'!$H72="","",B62) ->  | G62: =IF('入力シート(記録会)'!$H72="","",TEXT('入力シート(記録会)'!$H72,"00")) ->  | J62: =IF('入力シート(記録会)'!$H72="","",IF('入力シート(記録会)'!K72="","",'入力シート(記録会)'!K72)) ->  | N62: =IF('入力シート(記録会)'!$H72="","",IF('入力シート(記録会)'!L72="","",IF('入力シート(記録会)'!L72="電気",0,1))) -> 
A63: =IF('入力シート(記録会)'!$H73="","","4000006") ->  | B63: =IF('入力シート(記録会)'!$H73="","",IF('入力シート(記録会)'!$B73="男",0,1)) ->  | C63: =IF('入力シート(記録会)'!$H73="","",'入力シート(記録会)'!C73) ->  | D63: =IF('入力シート(記録会)'!$H73="","",TEXT('入力シート(記録会)'!$E73,"000")) ->  | E63: =IF('入力シート(記録会)'!$H73="","",学校番号) ->  | F63: =IF('入力シート(記録会)'!$H73="","",B63) ->  | G63: =IF('入力シート(記録会)'!$H73="","",TEXT('入力シート(記録会)'!$H73,"00")) ->  | J63: =IF('入力シート(記録会)'!$H73="","",IF('入力シート(記録会)'!K73="","",'入力シート(記録会)'!K73)) ->  | N63: =IF('入力シート(記録会)'!$H73="","",IF('入力シート(記録会)'!L73="","",IF('入力シート(記録会)'!L73="電気",0,1))) -> 
A100: 大会コード | B100: 性別 | C100: 学年 | D100: 競技種目コード | E100: 学校コード | F100: 性別1 | G100: 選手コード | H100: エントリ記録 | I100: 当日記録 | J100: 順位 | K100: 順番 | L100: 条件項目 | M100: 競技－１記録 | N100: 競技－１得点 | O100: 競技－１試技順番 | P100: 競技－１組 | Q100: 競技－１条件項目 | R100: 計測区分1 | S100: 未記録区分１ | T100: 最高記録１ | U100: 公認最高記録１ | V100: 三種最高記録１ | W100: 最高条件項目１ | X100: 公認最高条件項目１ | Y100: 三種最高条件項目１ | Z100: 競技－２記録 | AA100: 競技－２得点 | AB100: 競技－２試技順番 | AC100: 競技－２組 | AD100: 競技－２条件項目 | AE100: 計測区分２ | AF100: 未記録区分２ | AG100: 最高記録２ | AH100: 公認最高記録２ | AI100: 三種最高記録２ | AJ100: 最高条件項目２ | AK100: 公認最高条件項目２ | AL100: 三種最高条件項目２ | AM100: 競技－３記録 | AN100: 競技－３得点 | AO100: 競技－３試技順番 | AP100: 競技－３組 | AQ100: 競技－３条件項目 | AR100: 計測区分３ | AS100: 未記録区分３ | AT100: 最高記録３ | AU100: 公認最高記録３ | AV100: 三種最高記録３ | AW100: 最高条件項目３ | AX100: 公認最高条件項目３ | AY100: 三種最高条件項目３ | AZ100: 競技－４記録 | BA100: 競技－４得点 | BB100: 競技－４試技順番 | BC100: 競技－４組 | BD100: 競技－４条件項目 | BE100: 計測区分４ | BF100: 未記録区分４ | BG100: 最高記録４ | BH100: 公認最高記録４ | BI100: 三種最高記録４ | BJ100: 最高条件項目４ | BK100: 公認最高条件項目４ | BL100: 三種最高条件項目４ | BM100: 競技－５記録 | BN100: 競技－５得点 | BO100: 競技－５試技順番 | BP100: 競技－５組 | BQ100: 競技－５条件項目 | BR100: 大会順位 | BS100: 公認記録
A101: =IF('入力シート(記録会)'!$H34="","","4000006") ->  | B101: =IF('入力シート(記録会)'!$H34="","",IF('入力シート(記録会)'!$B34="男",0,1)) ->  | C101: =IF('入力シート(記録会)'!$H34="","",'入力シート(記録会)'!C34) ->  | D101: =IF('入力シート(記録会)'!$H34="","",TEXT('入力シート(記録会)'!$E34,"000")) ->  | E101: =IF('入力シート(記録会)'!$H34="","",学校番号) ->  | F101: =IF('入力シート(記録会)'!$H34="","",B101) ->  | G101: =IF('入力シート(記録会)'!$H34="","",TEXT('入力シート(記録会)'!$H34,"00")) ->  | H101: =IF('入力シート(記録会)'!$H34="","",IF('入力シート(記録会)'!$K34="","",'入力シート(記録会)'!$K34)) ->  | M101: =IF('入力シート(記録会)'!$H34="","",IF('入力シート(記録会)'!$K39="","",'入力シート(記録会)'!$K39)) ->  | Z101: =IF('入力シート(記録会)'!$H34="","",IF('入力シート(記録会)'!$K40="","",'入力シート(記録会)'!$K40)) ->  | AM101: =IF('入力シート(記録会)'!$H34="","",IF('入力シート(記録会)'!$K41="","",'入力シート(記録会)'!$K41)) ->  | AZ101: =IF('入力シート(記録会)'!$H34="","",IF('入力シート(記録会)'!$K42="","",'入力シート(記録会)'!$K42)) -> 
A102: =IF('入力シート(記録会)'!$H39="","","4000006") ->  | B102: =IF('入力シート(記録会)'!$H39="","",IF('入力シート(記録会)'!$B39="男",0,1)) ->  | C102: =IF('入力シート(記録会)'!$H39="","",'入力シート(記録会)'!C39) ->  | D102: =IF('入力シート(記録会)'!$H39="","",TEXT('入力シート(記録会)'!$E39,"000")) ->  | E102: =IF('入力シート(記録会)'!$H39="","",学校番号) ->  | F102: =IF('入力シート(記録会)'!$H39="","",B102) ->  | G102: =IF('入力シート(記録会)'!$H39="","",TEXT('入力シート(記録会)'!$H39,"00")) ->  | H102: =IF('入力シート(記録会)'!$H39="","",IF('入力シート(記録会)'!$K39="","",'入力シート(記録会)'!$K39)) ->  | M102: =IF('入力シート(記録会)'!$H39="","",IF('入力シート(記録会)'!$K44="","",'入力シート(記録会)'!$K44)) ->  | Z102: =IF('入力シート(記録会)'!$H39="","",IF('入力シート(記録会)'!$K45="","",'入力シート(記録会)'!$K45)) ->  | AM102: =IF('入力シート(記録会)'!$H39="","",IF('入力シート(記録会)'!$K46="","",'入力シート(記録会)'!$K46)) ->  | AZ102: =IF('入力シート(記録会)'!$H39="","",IF('入力シート(記録会)'!$K47="","",'入力シート(記録会)'!$K47)) -> 
A103: =IF('入力シート(記録会)'!$H74="","","4000006") ->  | B103: =IF('入力シート(記録会)'!$H74="","",IF('入力シート(記録会)'!$B74="男",0,1)) ->  | C103: =IF('入力シート(記録会)'!$H74="","",'入力シート(記録会)'!C74) ->  | D103: =IF('入力シート(記録会)'!$H74="","",TEXT('入力シート(記録会)'!$E74,"000")) ->  | E103: =IF('入力シート(記録会)'!$H74="","",学校番号) ->  | F103: =IF('入力シート(記録会)'!$H74="","",B103) ->  | G103: =IF('入力シート(記録会)'!$H74="","",TEXT('入力シート(記録会)'!$H74,"00")) ->  | H103: =IF('入力シート(記録会)'!$H74="","",IF('入力シート(記録会)'!$K74="","",'入力シート(記録会)'!$K74)) ->  | M103: =IF('入力シート(記録会)'!$H74="","",IF('入力シート(記録会)'!$K77="","",'入力シート(記録会)'!$K77)) ->  | Z103: =IF('入力シート(記録会)'!$H74="","",IF('入力シート(記録会)'!$K78="","",'入力シート(記録会)'!$K78)) ->  | AM103: =IF('入力シート(記録会)'!$H74="","",IF('入力シート(記録会)'!$K79="","",'入力シート(記録会)'!$K79)) ->  | AZ103: =IF('入力シート(記録会)'!$H74="","",IF('入力シート(記録会)'!$K80="","",'入力シート(記録会)'!$K80)) -> 
A104: =IF('入力シート(記録会)'!$H79="","","4000006") ->  | B104: =IF('入力シート(記録会)'!$H79="","",IF('入力シート(記録会)'!$B79="男",0,1)) ->  | C104: =IF('入力シート(記録会)'!$H79="","",'入力シート(記録会)'!C79) ->  | D104: =IF('入力シート(記録会)'!$H79="","",TEXT('入力シート(記録会)'!$E79,"000")) ->  | E104: =IF('入力シート(記録会)'!$H79="","",学校番号) ->  | F104: =IF('入力シート(記録会)'!$H79="","",B104) ->  | G104: =IF('入力シート(記録会)'!$H79="","",TEXT('入力シート(記録会)'!$H79,"00")) ->  | H104: =IF('入力シート(記録会)'!$H79="","",IF('入力シート(記録会)'!$K79="","",'入力シート(記録会)'!$K79)) ->  | M104: =IF('入力シート(記録会)'!$H79="","",IF('入力シート(記録会)'!$K82="","",'入力シート(記録会)'!$K82)) ->  | Z104: =IF('入力シート(記録会)'!$H79="","",IF('入力シート(記録会)'!$K83="","",'入力シート(記録会)'!$K83)) ->  | AM104: =IF('入力シート(記録会)'!$H79="","",IF('入力シート(記録会)'!$K84="","",'入力シート(記録会)'!$K84)) ->  | AZ104: =IF('入力シート(記録会)'!$H79="","",IF('入力シート(記録会)'!$K85="","",'入力シート(記録会)'!$K85)) -> 
A130: 大会コード | B130: 性別 | C130: 学年 | D130: 競技種目コード | E130: 組 | F130: レーン | G130: 学校コード | H130: エントリ記録 | I130: 当日記録 | J130: 順位 | K130: 条件項目 | L130: 選手コード１ | M130: 出場区分１ | N130: 選手コード２ | O130: 出場区分２ | P130: 選手コード３ | Q130: 出場区分３ | R130: 選手コード４ | S130: 出場区分４ | T130: 選手コード５ | U130: 出場区分５ | V130: 選手コード６ | W130: 出場区分６ | X130: 計測区分 | Y130: 未記録区分 | Z130: 大会順位
A212: =IF('入力シート(記録会)'!$H272="","","4000006") ->  | B212: =IF('入力シート(記録会)'!$H272="","",IF('入力シート(記録会)'!$B272="男",0,1)) ->  | C212: =IF('入力シート(記録会)'!$H272="","",'入力シート(記録会)'!C272) ->  | D212: =IF('入力シート(記録会)'!$H272="","",'入力シート(記録会)'!$E272) ->  | E212: =IF('入力シート(記録会)'!$H272="","",学校番号) ->  | F212: =IF('入力シート(記録会)'!$H272="","",B212) ->  | G212: =IF('入力シート(記録会)'!$H272="","",'入力シート(記録会)'!H272) ->  | J212: =IF('入力シート(記録会)'!$H272="","",IF('入力シート(記録会)'!K272="","",'入力シート(記録会)'!K272)) -> 
A213: =IF('入力シート(記録会)'!$H273="","","4000006") ->  | B213: =IF('入力シート(記録会)'!$H273="","",IF('入力シート(記録会)'!$B273="男",0,1)) ->  | C213: =IF('入力シート(記録会)'!$H273="","",'入力シート(記録会)'!C273) ->  | D213: =IF('入力シート(記録会)'!$H273="","",'入力シート(記録会)'!$E273) ->  | E213: =IF('入力シート(記録会)'!$H273="","",学校番号) ->  | F213: =IF('入力シート(記録会)'!$H273="","",B213) ->  | G213: =IF('入力シート(記録会)'!$H273="","",'入力シート(記録会)'!H273) ->  | J213: =IF('入力シート(記録会)'!$H273="","",IF('入力シート(記録会)'!K273="","",'入力シート(記録会)'!K273)) -> 
A214: =IF('入力シート(記録会)'!$H274="","","4000006") ->  | B214: =IF('入力シート(記録会)'!$H274="","",IF('入力シート(記録会)'!$B274="男",0,1)) ->  | C214: =IF('入力シート(記録会)'!$H274="","",'入力シート(記録会)'!C274) ->  | D214: =IF('入力シート(記録会)'!$H274="","",'入力シート(記録会)'!$E274) ->  | E214: =IF('入力シート(記録会)'!$H274="","",学校番号) ->  | F214: =IF('入力シート(記録会)'!$H274="","",B214) ->  | G214: =IF('入力シート(記録会)'!$H274="","",'入力シート(記録会)'!H274) ->  | J214: =IF('入力シート(記録会)'!$H274="","",IF('入力シート(記録会)'!K274="","",'入力シート(記録会)'!K274)) -> 
A215: =IF('入力シート(記録会)'!$H275="","","4000006") ->  | B215: =IF('入力シート(記録会)'!$H275="","",IF('入力シート(記録会)'!$B275="男",0,1)) ->  | C215: =IF('入力シート(記録会)'!$H275="","",'入力シート(記録会)'!C275) ->  | D215: =IF('入力シート(記録会)'!$H275="","",'入力シート(記録会)'!$E275) ->  | E215: =IF('入力シート(記録会)'!$H275="","",学校番号) ->  | F215: =IF('入力シート(記録会)'!$H275="","",B215) ->  | G215: =IF('入力シート(記録会)'!$H275="","",'入力シート(記録会)'!H275) ->  | J215: =IF('入力シート(記録会)'!$H275="","",IF('入力シート(記録会)'!K275="","",'入力シート(記録会)'!K275)) -> 
A216: =IF('入力シート(記録会)'!$H276="","","4000006") ->  | B216: =IF('入力シート(記録会)'!$H276="","",IF('入力シート(記録会)'!$B276="男",0,1)) ->  | C216: =IF('入力シート(記録会)'!$H276="","",'入力シート(記録会)'!C276) ->  | D216: =IF('入力シート(記録会)'!$H276="","",'入力シート(記録会)'!$E276) ->  | E216: =IF('入力シート(記録会)'!$H276="","",学校番号) ->  | F216: =IF('入力シート(記録会)'!$H276="","",B216) ->  | G216: =IF('入力シート(記録会)'!$H276="","",'入力シート(記録会)'!H276) ->  | J216: =IF('入力シート(記録会)'!$H276="","",IF('入力シート(記録会)'!K276="","",'入力シート(記録会)'!K276)) -> 
A217: =IF('入力シート(記録会)'!$H277="","","4000006") ->  | B217: =IF('入力シート(記録会)'!$H277="","",IF('入力シート(記録会)'!$B277="男",0,1)) ->  | C217: =IF('入力シート(記録会)'!$H277="","",'入力シート(記録会)'!C277) ->  | D217: =IF('入力シート(記録会)'!$H277="","",'入力シート(記録会)'!$E277) ->  | E217: =IF('入力シート(記録会)'!$H277="","",学校番号) ->  | F217: =IF('入力シート(記録会)'!$H277="","",B217) ->  | G217: =IF('入力シート(記録会)'!$H277="","",'入力シート(記録会)'!H277) ->  | J217: =IF('入力シート(記録会)'!$H277="","",IF('入力シート(記録会)'!K277="","",'入力シート(記録会)'!K277)) -> 
A218: =IF('入力シート(記録会)'!$H278="","","4000006") ->  | B218: =IF('入力シート(記録会)'!$H278="","",IF('入力シート(記録会)'!$B278="男",0,1)) ->  | C218: =IF('入力シート(記録会)'!$H278="","",'入力シート(記録会)'!C278) ->  | D218: =IF('入力シート(記録会)'!$H278="","",'入力シート(記録会)'!$E278) ->  | E218: =IF('入力シート(記録会)'!$H278="","",学校番号) ->  | F218: =IF('入力シート(記録会)'!$H278="","",B218) ->  | G218: =IF('入力シート(記録会)'!$H278="","",'入力シート(記録会)'!H278) ->  | J218: =IF('入力シート(記録会)'!$H278="","",IF('入力シート(記録会)'!K278="","",'入力シート(記録会)'!K278)) -> 
A219: =IF('入力シート(記録会)'!$H279="","","4000006") ->  | B219: =IF('入力シート(記録会)'!$H279="","",IF('入力シート(記録会)'!$B279="男",0,1)) ->  | C219: =IF('入力シート(記録会)'!$H279="","",'入力シート(記録会)'!C279) ->  | D219: =IF('入力シート(記録会)'!$H279="","",'入力シート(記録会)'!$E279) ->  | E219: =IF('入力シート(記録会)'!$H279="","",学校番号) ->  | F219: =IF('入力シート(記録会)'!$H279="","",B219) ->  | G219: =IF('入力シート(記録会)'!$H279="","",'入力シート(記録会)'!H279) ->  | J219: =IF('入力シート(記録会)'!$H279="","",IF('入力シート(記録会)'!K279="","",'入力シート(記録会)'!K279)) -> 
A220: =IF('入力シート(記録会)'!$H280="","","4000006") ->  | B220: =IF('入力シート(記録会)'!$H280="","",IF('入力シート(記録会)'!$B280="男",0,1)) ->  | C220: =IF('入力シート(記録会)'!$H280="","",'入力シート(記録会)'!C280) ->  | D220: =IF('入力シート(記録会)'!$H280="","",'入力シート(記録会)'!$E280) ->  | E220: =IF('入力シート(記録会)'!$H280="","",学校番号) ->  | F220: =IF('入力シート(記録会)'!$H280="","",B220) ->  | G220: =IF('入力シート(記録会)'!$H280="","",'入力シート(記録会)'!H280) ->  | J220: =IF('入力シート(記録会)'!$H280="","",IF('入力シート(記録会)'!K280="","",'入力シート(記録会)'!K280)) -> 
A221: =IF('入力シート(記録会)'!$H281="","","4000006") ->  | B221: =IF('入力シート(記録会)'!$H281="","",IF('入力シート(記録会)'!$B281="男",0,1)) ->  | C221: =IF('入力シート(記録会)'!$H281="","",'入力シート(記録会)'!C281) ->  | D221: =IF('入力シート(記録会)'!$H281="","",'入力シート(記録会)'!$E281) ->  | E221: =IF('入力シート(記録会)'!$H281="","",学校番号) ->  | F221: =IF('入力シート(記録会)'!$H281="","",B221) ->  | G221: =IF('入力シート(記録会)'!$H281="","",'入力シート(記録会)'!H281) ->  | J221: =IF('入力シート(記録会)'!$H281="","",IF('入力シート(記録会)'!K281="","",'入力シート(記録会)'!K281)) -> 
A222: =IF('入力シート(記録会)'!$H282="","","4000006") ->  | B222: =IF('入力シート(記録会)'!$H282="","",IF('入力シート(記録会)'!$B282="男",0,1)) ->  | C222: =IF('入力シート(記録会)'!$H282="","",'入力シート(記録会)'!C282) ->  | D222: =IF('入力シート(記録会)'!$H282="","",'入力シート(記録会)'!$E282) ->  | E222: =IF('入力シート(記録会)'!$H282="","",学校番号) ->  | F222: =IF('入力シート(記録会)'!$H282="","",B222) ->  | G222: =IF('入力シート(記録会)'!$H282="","",'入力シート(記録会)'!H282) ->  | J222: =IF('入力シート(記録会)'!$H282="","",IF('入力シート(記録会)'!K282="","",'入力シート(記録会)'!K282)) -> 
A223: =IF('入力シート(記録会)'!$H283="","","4000006") ->  | B223: =IF('入力シート(記録会)'!$H283="","",IF('入力シート(記録会)'!$B283="男",0,1)) ->  | C223: =IF('入力シート(記録会)'!$H283="","",'入力シート(記録会)'!C283) ->  | D223: =IF('入力シート(記録会)'!$H283="","",'入力シート(記録会)'!$E283) ->  | E223: =IF('入力シート(記録会)'!$H283="","",学校番号) ->  | F223: =IF('入力シート(記録会)'!$H283="","",B223) ->  | G223: =IF('入力シート(記録会)'!$H283="","",'入力シート(記録会)'!H283) ->  | J223: =IF('入力シート(記録会)'!$H283="","",IF('入力シート(記録会)'!K283="","",'入力シート(記録会)'!K283)) -> 
A224: =IF('入力シート(記録会)'!$H284="","","4000006") ->  | B224: =IF('入力シート(記録会)'!$H284="","",IF('入力シート(記録会)'!$B284="男",0,1)) ->  | C224: =IF('入力シート(記録会)'!$H284="","",'入力シート(記録会)'!C284) ->  | D224: =IF('入力シート(記録会)'!$H284="","",'入力シート(記録会)'!$E284) ->  | E224: =IF('入力シート(記録会)'!$H284="","",学校番号) ->  | F224: =IF('入力シート(記録会)'!$H284="","",B224) ->  | G224: =IF('入力シート(記録会)'!$H284="","",'入力シート(記録会)'!H284) ->  | J224: =IF('入力シート(記録会)'!$H284="","",IF('入力シート(記録会)'!K284="","",'入力シート(記録会)'!K284)) -> 
A225: =IF('入力シート(記録会)'!$H285="","","4000006") ->  | B225: =IF('入力シート(記録会)'!$H285="","",IF('入力シート(記録会)'!$B285="男",0,1)) ->  | C225: =IF('入力シート(記録会)'!$H285="","",'入力シート(記録会)'!C285) ->  | D225: =IF('入力シート(記録会)'!$H285="","",'入力シート(記録会)'!$E285) ->  | E225: =IF('入力シート(記録会)'!$H285="","",学校番号) ->  | F225: =IF('入力シート(記録会)'!$H285="","",B225) ->  | G225: =IF('入力シート(記録会)'!$H285="","",'入力シート(記録会)'!H285) ->  | J225: =IF('入力シート(記録会)'!$H285="","",IF('入力シート(記録会)'!K285="","",'入力シート(記録会)'!K285)) -> 
A226: =IF('入力シート(記録会)'!$H286="","","4000006") ->  | B226: =IF('入力シート(記録会)'!$H286="","",IF('入力シート(記録会)'!$B286="男",0,1)) ->  | C226: =IF('入力シート(記録会)'!$H286="","",'入力シート(記録会)'!C286) ->  | D226: =IF('入力シート(記録会)'!$H286="","",'入力シート(記録会)'!$E286) ->  | E226: =IF('入力シート(記録会)'!$H286="","",学校番号) ->  | F226: =IF('入力シート(記録会)'!$H286="","",B226) ->  | G226: =IF('入力シート(記録会)'!$H286="","",'入力シート(記録会)'!H286) ->  | J226: =IF('入力シート(記録会)'!$H286="","",IF('入力シート(記録会)'!K286="","",'入力シート(記録会)'!K286)) -> 
A227: =IF('入力シート(記録会)'!$H287="","","4000006") ->  | B227: =IF('入力シート(記録会)'!$H287="","",IF('入力シート(記録会)'!$B287="男",0,1)) ->  | C227: =IF('入力シート(記録会)'!$H287="","",'入力シート(記録会)'!C287) ->  | D227: =IF('入力シート(記録会)'!$H287="","",'入力シート(記録会)'!$E287) ->  | E227: =IF('入力シート(記録会)'!$H287="","",学校番号) ->  | F227: =IF('入力シート(記録会)'!$H287="","",B227) ->  | G227: =IF('入力シート(記録会)'!$H287="","",'入力シート(記録会)'!H287) ->  | J227: =IF('入力シート(記録会)'!$H287="","",IF('入力シート(記録会)'!K287="","",'入力シート(記録会)'!K287)) -> 
A228: =IF('入力シート(記録会)'!$H288="","","4000006") ->  | B228: =IF('入力シート(記録会)'!$H288="","",IF('入力シート(記録会)'!$B288="男",0,1)) ->  | C228: =IF('入力シート(記録会)'!$H288="","",'入力シート(記録会)'!C288) ->  | D228: =IF('入力シート(記録会)'!$H288="","",'入力シート(記録会)'!$E288) ->  | E228: =IF('入力シート(記録会)'!$H288="","",学校番号) ->  | F228: =IF('入力シート(記録会)'!$H288="","",B228) ->  | G228: =IF('入力シート(記録会)'!$H288="","",'入力シート(記録会)'!H288) ->  | J228: =IF('入力シート(記録会)'!$H288="","",IF('入力シート(記録会)'!K288="","",'入力シート(記録会)'!K288)) -> 
A229: =IF('入力シート(記録会)'!$H289="","","4000006") ->  | B229: =IF('入力シート(記録会)'!$H289="","",IF('入力シート(記録会)'!$B289="男",0,1)) ->  | C229: =IF('入力シート(記録会)'!$H289="","",'入力シート(記録会)'!C289) ->  | D229: =IF('入力シート(記録会)'!$H289="","",'入力シート(記録会)'!$E289) ->  | E229: =IF('入力シート(記録会)'!$H289="","",学校番号) ->  | F229: =IF('入力シート(記録会)'!$H289="","",B229) ->  | G229: =IF('入力シート(記録会)'!$H289="","",'入力シート(記録会)'!H289) ->  | J229: =IF('入力シート(記録会)'!$H289="","",IF('入力シート(記録会)'!K289="","",'入力シート(記録会)'!K289)) -> 
A230: =IF('入力シート(記録会)'!$H290="","","4000006") ->  | B230: =IF('入力シート(記録会)'!$H290="","",IF('入力シート(記録会)'!$B290="男",0,1)) ->  | C230: =IF('入力シート(記録会)'!$H290="","",'入力シート(記録会)'!C290) ->  | D230: =IF('入力シート(記録会)'!$H290="","",'入力シート(記録会)'!$E290) ->  | E230: =IF('入力シート(記録会)'!$H290="","",学校番号) ->  | F230: =IF('入力シート(記録会)'!$H290="","",B230) ->  | G230: =IF('入力シート(記録会)'!$H290="","",'入力シート(記録会)'!H290) ->  | J230: =IF('入力シート(記録会)'!$H290="","",IF('入力シート(記録会)'!K290="","",'入力シート(記録会)'!K290)) -> 
A231: =IF('入力シート(記録会)'!$H291="","","4000006") ->  | B231: =IF('入力シート(記録会)'!$H291="","",IF('入力シート(記録会)'!$B291="男",0,1)) ->  | C231: =IF('入力シート(記録会)'!$H291="","",'入力シート(記録会)'!C291) ->  | D231: =IF('入力シート(記録会)'!$H291="","",'入力シート(記録会)'!$E291) ->  | E231: =IF('入力シート(記録会)'!$H291="","",学校番号) ->  | F231: =IF('入力シート(記録会)'!$H291="","",B231) ->  | G231: =IF('入力シート(記録会)'!$H291="","",'入力シート(記録会)'!H291) ->  | J231: =IF('入力シート(記録会)'!$H291="","",IF('入力シート(記録会)'!K291="","",'入力シート(記録会)'!K291)) -> 
A232: =IF('入力シート(記録会)'!$H292="","","4000006") ->  | B232: =IF('入力シート(記録会)'!$H292="","",IF('入力シート(記録会)'!$B292="男",0,1)) ->  | C232: =IF('入力シート(記録会)'!$H292="","",'入力シート(記録会)'!C292) ->  | D232: =IF('入力シート(記録会)'!$H292="","",'入力シート(記録会)'!$E292) ->  | E232: =IF('入力シート(記録会)'!$H292="","",学校番号) ->  | F232: =IF('入力シート(記録会)'!$H292="","",B232) ->  | G232: =IF('入力シート(記録会)'!$H292="","",'入力シート(記録会)'!H292) ->  | J232: =IF('入力シート(記録会)'!$H292="","",IF('入力シート(記録会)'!K292="","",'入力シート(記録会)'!K292)) -> 
A233: =IF('入力シート(記録会)'!$H293="","","4000006") ->  | B233: =IF('入力シート(記録会)'!$H293="","",IF('入力シート(記録会)'!$B293="男",0,1)) ->  | C233: =IF('入力シート(記録会)'!$H293="","",'入力シート(記録会)'!C293) ->  | D233: =IF('入力シート(記録会)'!$H293="","",'入力シート(記録会)'!$E293) ->  | E233: =IF('入力シート(記録会)'!$H293="","",学校番号) ->  | F233: =IF('入力シート(記録会)'!$H293="","",B233) ->  | G233: =IF('入力シート(記録会)'!$H293="","",'入力シート(記録会)'!H293) ->  | J233: =IF('入力シート(記録会)'!$H293="","",IF('入力シート(記録会)'!K293="","",'入力シート(記録会)'!K293)) -> 

Sheet 入力シート(新人) (hidden)
A1: 性別 | B1: 性別 | C1: 種別コード | D1: 種別 | E1: 種目コード | F1: 種目 | G1: 学校番号 | H1: 個人番号 | I1: 氏名 | J1: 学年 | K1: 申込記録 | L1: 計測区分 | M1: 大会名
A2: 男子 | B2: 男 | C2: 1 | D2: =VLOOKUP(C2,出場種別,2,FALSE) -> １年 | E2: 001 | F2: =VLOOKUP(E2,種目コード,2,FALSE) -> １００ｍ | G2: =学校番号 -> 0 | I2: =IF(H2="","",VLOOKUP(P2,部員データ,3,FALSE)&" "&VLOOKUP(P2,部員データ,4,FALSE)) ->  | J2: =IF(H2="","",VLOOKUP(P2,部員データ,2,FALSE)) ->  | P2: =IF(H2="","",B2&DBCS(TEXT(H2,"００"))) ->  | Q2: =COUNTIF($P$2:$P$19,P2)+COUNTIF($P$26:$P$47,P2) -> 40 | R2: =IF(VLOOKUP(E2,男子標準記録,C2+3,FALSE)="","",VLOOKUP(E2,男子標準記録,C2+3,FALSE)) ->  | S2: =VLOOKUP(E2,種目コード,4,FALSE) -> 10 | T2: =IF(FIND(".",TEXT(K2,"#.00"))>3,MID(TEXT(K2,"#.00"),FIND(".",TEXT(K2,"#.00"))-2,2)/1,"") -> 
B3: 男 | C3: 1 | D3: １年 | E3: 001 | F3: １００ｍ | G3: 0 | I3: =IF(H3="","",VLOOKUP(P3,部員データ,3,FALSE)&" "&VLOOKUP(P3,部員データ,4,FALSE)) ->  | Q3: =COUNTIF($P$2:$P$19,P3)+COUNTIF($P$26:$P$47,P3) -> 40 | S3: 10 | T3: =IF(FIND(".",TEXT(K3,"#.00"))>3,MID(TEXT(K3,"#.00"),FIND(".",TEXT(K3,"#.00"))-2,2)/1,"") -> 
B4: 男 | C4: 1 | D4: １年 | E4: 015 | F4: １５００ｍ | G4: 0 | I4: =IF(H4="","",VLOOKUP(P4,部員データ,3,FALSE)&" "&VLOOKUP(P4,部員データ,4,FALSE)) ->  | Q4: 40 | S4: 340
B5: 男 | C5: 1 | D5: １年 | E5: 015 | F5: １５００ｍ | G5: 0 | Q5: 40 | S5: 340
B6: 男 | C6: 2 | D6: ２年 | E6: 001 | F6: １００ｍ | G6: 0 | Q6: 40 | S6: 10
B7: 男 | C7: 2 | D7: ２年 | E7: 001 | F7: １００ｍ | G7: 0 | Q7: 40 | S7: 10
B8: 男 | C8: 2 | D8: ２年 | E8: 015 | F8: １５００ｍ | G8: 0 | Q8: 40 | S8: 340
B9: 男 | C9: 2 | D9: ２年 | E9: 015 | F9: １５００ｍ | G9: 0 | Q9: 40 | S9: 340
B10: 男 | C10: 0 | D10: 共通 | E10: 002 | F10: ２００ｍ | G10: 0 | Q10: 40 | S10: 20.5
B11: 男 | C11: 0 | D11: 共通 | E11: 002 | F11: ２００ｍ | G11: 0 | Q11: 40 | S11: 20.5
B12: 男 | C12: 0 | D12: 共通 | E12: 004 | F12: ４００ｍ | G12: 0 | Q12: 40 | S12: 42
B13: 男 | C13: 0 | D13: 共通 | E13: 004 | F13: ４００ｍ | G13: 0 | Q13: 40 | S13: 42
B14: 男 | C14: 0 | D14: 共通 | E14: 008 | F14: ８００ｍ | G14: 0 | Q14: 40 | S14: 150
B15: 男 | C15: 0 | D15: 共通 | E15: 008 | F15: ８００ｍ | G15: 0 | Q15: 40 | S15: 150
B16: 男 | C16: 0 | D16: =VLOOKUP(C16,出場種別,2,FALSE) -> 共通 | E16: 030 | F16: =VLOOKUP(E16,種目コード,2,FALSE) -> ３０００ｍ | G16: 0 | I16: =IF(H16="","",VLOOKUP(P16,部員データ,3,FALSE)&" "&VLOOKUP(P16,部員データ,4,FALSE)) ->  | J16: =IF(H16="","",VLOOKUP(P16,部員データ,2,FALSE)) ->  | P16: =IF(H16="","",B16&DBCS(TEXT(H16,"００"))) ->  | Q16: =COUNTIF($P$2:$P$19,P16)+COUNTIF($P$26:$P$47,P16) -> 40 | R16: =IF(VLOOKUP(E16,男子標準記録,C16+3,FALSE)="","",VLOOKUP(E16,男子標準記録,C16+3,FALSE)) ->  | S16: =VLOOKUP(E16,種目コード,4,FALSE) -> 800 | T16: =IF(FIND(".",TEXT(K16,"#.00"))>3,MID(TEXT(K16,"#.00"),FIND(".",TEXT(K16,"#.00"))-2,2)/1,"") -> 
B17: 男 | C17: 0 | D17: =VLOOKUP(C17,出場種別,2,FALSE) -> 共通 | E17: 030 | F17: =VLOOKUP(E17,種目コード,2,FALSE) -> ３０００ｍ | G17: 0 | I17: =IF(H17="","",VLOOKUP(P17,部員データ,3,FALSE)&" "&VLOOKUP(P17,部員データ,4,FALSE)) ->  | J17: =IF(H17="","",VLOOKUP(P17,部員データ,2,FALSE)) ->  | P17: =IF(H17="","",B17&DBCS(TEXT(H17,"００"))) ->  | Q17: =COUNTIF($P$2:$P$19,P17)+COUNTIF($P$26:$P$47,P17) -> 40 | R17: =IF(VLOOKUP(E17,男子標準記録,C17+3,FALSE)="","",VLOOKUP(E17,男子標準記録,C17+3,FALSE)) ->  | S17: =VLOOKUP(E17,種目コード,4,FALSE) -> 800 | T17: =IF(FIND(".",TEXT(K17,"#.00"))>3,MID(TEXT(K17,"#.00"),FIND(".",TEXT(K17,"#.00"))-2,2)/1,"") -> 
B18: 男 | C18: 0 | D18: 共通 | E18: 111 | F18: １１０ｍＨ | G18: 0 | Q18: 40 | S18: 12
B19: 男 | C19: 0 | D19: 共通 | E19: 111 | F19: １１０ｍＨ | G19: 0 | Q19: 40 | S19: 12
B20: 男 | C20: 0 | D20: 共通 | E20: 410 | F20: ４×１００ｍＲ | G20: 0 | S20: 38
B21: 男 | C21: 0 | D21: 共通 | E21: 410 | F21: ４×１００ｍＲ | G21: 0
B22: 男 | C22: 0 | D22: 共通 | E22: 410 | F22: ４×１００ｍＲ | G22: 0
B23: 男 | C23: 0 | D23: 共通 | E23: 410 | F23: ４×１００ｍＲ | G23: 0
B24: 男 | C24: 0 | D24: 共通 | E24: 410 | F24: ４×１００ｍＲ | G24: 0
B25: 男 | C25: 0 | D25: 共通 | E25: 410 | F25: ４×１００ｍＲ | G25: 0
B26: 男 | C26: 0 | D26: 共通 | E26: 510 | F26: 走高跳 | G26: 0 | Q26: 40 | R26: =IF(VLOOKUP(E26,男子標準記録,C26+3,FALSE)="","",VLOOKUP(E26,男子標準記録,C26+3,FALSE)) ->  | S26: =VLOOKUP(E26,種目コード,4,FALSE) -> 2.4
B27: 男 | C27: 0 | D27: 共通 | E27: 510 | F27: 走高跳 | G27: 0 | Q27: 40 | S27: 2.4
B28: 男 | C28: 0 | D28: 共通 | E28: 520 | F28: 棒高跳 | G28: 0 | Q28: 40 | S28: 5.5
B29: 男 | C29: 0 | D29: 共通 | E29: 520 | F29: 棒高跳 | G29: 0 | Q29: 40 | S29: 5.5
B30: 男 | C30: 0 | D30: 共通 | E30: 530 | F30: 走幅跳 | G30: 0 | Q30: 40 | S30: 8
B31: 男 | C31: 0 | D31: 共通 | E31: 530 | F31: 走幅跳 | G31: 0 | Q31: 40 | S31: 8
B32: 男 | C32: 0 | D32: 共通 | E32: 540 | F32: 三段跳 | G32: 0 | Q32: 40 | S32: 17
B33: 男 | C33: 0 | D33: 共通 | E33: 540 | F33: 三段跳 | G33: 0 | Q33: 40 | S33: 17
B34: 男 | C34: 0 | D34: 共通 | E34: 562 | F34: 砲丸投(5.0㎏) | G34: 0 | Q34: 40 | S34: 20
B35: 男 | C35: 0 | D35: 共通 | E35: 562 | F35: 砲丸投(5.0㎏) | G35: 0 | Q35: 40 | S35: 20
B36: 男 | C36: 0 | D36: 共通 | E36: 551 | F36: 円盤投(1.5㎏) | G36: 0 | P36: =IF(H36="","",B36&DBCS(TEXT(H36,"００"))) ->  | Q36: 40 | S36: 70
B37: 男 | C37: 0 | D37: 共通 | E37: 551 | F37: 円盤投(1.5㎏) | G37: 0 | Q37: 40 | S37: 70
B38: 男 | C38: 0 | D38: 共通 | E38: 710 | F38: 男子四種競技 | G38: 0 | Q38: =COUNTIF($P$2:$P$19,P38)+COUNTIF($P$26:$P$47,P38) -> 40 | S38: 3800
I39: １１０ｍH
I40: 砲丸投げ
I41: 走高跳
I42: ４００ｍ
B43: 男 | C43: 0 | D43: =VLOOKUP(C43,出場種別,2,FALSE) -> 共通 | E43: 710 | F43: =VLOOKUP(E43,種目コード,2,FALSE) -> 男子四種競技 | G43: =学校番号 -> 0 | I43: =IF(H43="","",VLOOKUP(P43,部員データ,3,FALSE)&" "&VLOOKUP(P43,部員データ,4,FALSE)) ->  | J43: =IF(H43="","",VLOOKUP(P43,部員データ,2,FALSE)) ->  | Q43: =COUNTIF($P$2:$P$19,P43)+COUNTIF($P$26:$P$47,P43) -> 40 | R43: =IF(VLOOKUP(E43,男子標準記録,C43+3,FALSE)="","",VLOOKUP(E43,男子標準記録,C43+3,FALSE)) ->  | S43: =VLOOKUP(E43,種目コード,4,FALSE) -> 3800
I44: １１０ｍH
I45: 砲丸投げ
I46: 走高跳
I47: ４００ｍ
A48: 女子 | B48: 女 | C48: 1 | D48: =VLOOKUP(C48,出場種別,2,FALSE) -> １年 | E48: 001 | F48: =VLOOKUP(E48,種目コード,2,FALSE) -> １００ｍ | G48: =学校番号 -> 0 | I48: =IF(H48="","",VLOOKUP(P48,部員データ,3,FALSE)&" "&VLOOKUP(P48,部員データ,4,FALSE)) ->  | J48: =IF(H48="","",VLOOKUP(P48,部員データ,2,FALSE)) ->  | Q48: =COUNTIF($P$48:$P$59,P48)+COUNTIF($P$68:$P$85,P48) -> 30 | R48: =IF(VLOOKUP(E48,女子標準記録,C48+3,FALSE)="","",VLOOKUP(E48,女子標準記録,C48+3,FALSE)) ->  | S48: =VLOOKUP(E48,種目コード,6,FALSE) -> 11
B49: 女 | C49: 1 | D49: １年 | E49: 001 | F49: １００ｍ | G49: 0 | Q49: =COUNTIF($P$48:$P$59,P49)+COUNTIF($P$68:$P$85,P49) -> 30 | S49: 11
B50: 女 | C50: 1 | D50: １年 | E50: 008 | F50: ８００ｍ | G50: 0 | Q50: 30 | S50: 200
B51: 女 | C51: 1 | D51: １年 | E51: 008 | F51: ８００ｍ | G51: 0 | Q51: 30 | S51: 200
B52: 女 | C52: 2 | D52: ２年 | E52: 001 | F52: １００ｍ | G52: 0 | Q52: 30 | S52: 11
B53: 女 | C53: 2 | D53: ２年 | E53: 001 | F53: １００ｍ | G53: 0 | Q53: 30 | S53: 11
B54: 女 | C54: 2 | D54: ２年 | E54: 008 | F54: ８００ｍ | G54: 0 | Q54: 30 | S54: 200
B55: 女 | C55: 2 | D55: ２年 | E55: 008 | F55: ８００ｍ | G55: 0 | Q55: 30 | S55: 200
B56: 女 | C56: 0 | D56: 共通 | E56: 002 | F56: ２００ｍ | G56: 0 | Q56: 30 | S56: 22
B57: 女 | C57: 0 | D57: 共通 | E57: 002 | F57: ２００ｍ | G57: 0 | Q57: 30 | S57: 22
B58: 女 | C58: 0 | D58: 共通 | E58: 015 | F58: １５００ｍ | G58: 0 | Q58: 30 | S58: 400
B59: 女 | C59: 0 | D59: 共通 | E59: 015 | F59: １５００ｍ | G59: 0 | Q59: 30 | S59: 400
B60: 女 | C60: 0 | D60: =VLOOKUP(C60,出場種別,2,FALSE) -> 共通 | E60: 110 | F60: =VLOOKUP(E60,種目コード,2,FALSE) -> １００ｍＨ | G60: 0 | I60: =IF(H60="","",VLOOKUP(P60,部員データ,3,FALSE)&" "&VLOOKUP(P60,部員データ,4,FALSE)) ->  | J60: =IF(H60="","",VLOOKUP(P60,部員データ,2,FALSE)) ->  | P60: =IF(H60="","",B60&DBCS(TEXT(H60,"００"))) ->  | Q60: =COUNTIF($P$48:$P$59,P60)+COUNTIF($P$68:$P$85,P60) -> 30 | R60: =IF(VLOOKUP(E60,女子標準記録,C60+3,FALSE)="","",VLOOKUP(E60,女子標準記録,C60+3,FALSE)) ->  | S60: =VLOOKUP(E60,種目コード,6,FALSE) -> 12 | T60: =IF(FIND(".",TEXT(K60,"#.00"))>3,MID(TEXT(K60,"#.00"),FIND(".",TEXT(K60,"#.00"))-2,2)/1,"") -> 
B61: 女 | C61: 0 | D61: =VLOOKUP(C61,出場種別,2,FALSE) -> 共通 | E61: 110 | F61: =VLOOKUP(E61,種目コード,2,FALSE) -> １００ｍＨ | G61: 0 | I61: =IF(H61="","",VLOOKUP(P61,部員データ,3,FALSE)&" "&VLOOKUP(P61,部員データ,4,FALSE)) ->  | J61: =IF(H61="","",VLOOKUP(P61,部員データ,2,FALSE)) ->  | P61: =IF(H61="","",B61&DBCS(TEXT(H61,"００"))) ->  | Q61: =COUNTIF($P$48:$P$59,P61)+COUNTIF($P$68:$P$85,P61) -> 30 | R61: =IF(VLOOKUP(E61,女子標準記録,C61+3,FALSE)="","",VLOOKUP(E61,女子標準記録,C61+3,FALSE)) ->  | S61: =VLOOKUP(E61,種目コード,6,FALSE) -> 12 | T61: =IF(FIND(".",TEXT(K61,"#.00"))>3,MID(TEXT(K61,"#.00"),FIND(".",TEXT(K61,"#.00"))-2,2)/1,"") -> 
B62: 女 | C62: 0 | D62: 共通 | E62: 410 | F62: ４×１００ｍＲ | G62: 0 | S62: 41
B63: 女 | C63: 0 | D63: 共通 | E63: 410 | F63: ４×１００ｍＲ | G63: 0
B64: 女 | C64: 0 | D64: 共通 | E64: 410 | F64: ４×１００ｍＲ | G64: 0
B65: 女 | C65: 0 | D65: 共通 | E65: 410 | F65: ４×１００ｍＲ | G65: 0
B66: 女 | C66: 0 | D66: 共通 | E66: 410 | F66: ４×１００ｍＲ | G66: 0
B67: 女 | C67: 0 | D67: 共通 | E67: 410 | F67: ４×１００ｍＲ | G67: 0
B68: 女 | C68: 0 | D68: 共通 | E68: 510 | F68: 走高跳 | G68: 0 | Q68: 30 | S68: =VLOOKUP(E68,種目コード,6,FALSE) -> 1.9
B69: 女 | C69: 0 | D69: 共通 | E69: 510 | F69: 走高跳 | G69: 0 | Q69: 30 | S69: 1.9
B70: 女 | C70: 0 | D70: 共通 | E70: 530 | F70: 走幅跳 | G70: 0 | P70: =IF(H70="","",B70&DBCS(TEXT(H70,"００"))) ->  | Q70: 30 | S70: 7
B71: 女 | C71: 0 | D71: 共通 | E71: 530 | F71: 走幅跳 | G71: 0 | Q71: 30 | S71: 7 | T71: =IF(FIND(".",TEXT(K71,"#.00"))>3,MID(TEXT(K71,"#.00"),FIND(".",TEXT(K71,"#.00"))-2,2)/1,"") -> 
B72: 女 | C72: 0 | D72: 共通 | E72: 560 | F72: 砲丸投 | G72: 0 | Q72: 30 | S72: 18
B73: 女 | C73: 0 | D73: 共通 | E73: 560 | F73: 砲丸投 | G73: 0 | Q73: 30 | S73: 18
B74: 女 | C74: 0 | D74: 共通 | E74: 550 | F74: 円盤投 | G74: 0 | Q74: 30 | S74: 45
B75: 女 | C75: 0 | D75: 共通 | E75: 550 | F75: 円盤投 | G75: 0 | Q75: 30 | S75: 45
B76: 女 | C76: 0 | D76: 共通 | E76: 760 | F76: 女子四種競技 | G76: 0 | Q76: 30 | S76: 4000
I77: １００ｍH
I78: 走高跳
I79: 砲丸投
I80: ２００ｍ
B81: 女 | C81: 0 | D81: =VLOOKUP(C81,出場種別,2,FALSE) -> 共通 | E81: 760 | F81: =VLOOKUP(E81,種目コード,2,FALSE) -> 女子四種競技 | G81: =学校番号 -> 0 | I81: =IF(H81="","",VLOOKUP(P81,部員データ,3,FALSE)&" "&VLOOKUP(P81,部員データ,4,FALSE)) ->  | J81: =IF(H81="","",VLOOKUP(P81,部員データ,2,FALSE)) ->  | Q81: 30 | R81: =IF(VLOOKUP(E81,女子標準記録,C81+3,FALSE)="","",VLOOKUP(E81,女子標準記録,C81+3,FALSE)) ->  | S81: =VLOOKUP(E81,種目コード,6,FALSE) -> 4000
I82: １００ｍH
I83: 走高跳
I84: 砲丸投
I85: ２００ｍ

Sheet 新人 (hidden)
A1: 1 | B1: 2 | C1: 3 | D1: 4 | E1: 5 | F1: 6 | G1: 7 | H1: 8 | I1: 9 | J1: 10 | K1: 11 | L1: 12 | M1: 13 | N1: 14 | O1: 15 | P1: 16 | Q1: 17 | R1: 18 | S1: 19 | T1: 20 | U1: 21 | V1: 22 | W1: 23 | X1: 24 | Y1: 25 | Z1: 26 | AA1: 27 | AB1: 28 | AC1: 29 | AD1: 30 | AE1: 31 | AF1: 32 | AG1: 33 | AH1: 34 | AI1: 35 | AJ1: 36 | AK1: 37 | AL1: 38 | AM1: 39 | AN1: 40 | AO1: 41 | AP1: 42 | AQ1: 43 | AR1: 44 | AS1: 45 | AT1: 46 | AU1: 47 | AV1: 48 | AW1: 49 | AX1: 50 | AY1: 51 | AZ1: 52 | BA1: 53 | BB1: 54 | BC1: 55 | BD1: 56 | BE1: 57 | BF1: 58 | BG1: 59 | BH1: 60 | BI1: 61 | BJ1: 62 | BK1: 63 | BL1: 64 | BM1: 65 | BN1: 66 | BO1: 67 | BP1: 68 | BQ1: 69 | BR1: 70 | BS1: 71 | BT1: 72 | BU1: 73 | BV1: 74 | BW1: 75 | BX1: 76 | BY1: 77 | BZ1: 78 | CA1: 79 | CB1: 80 | CC1: 81 | CD1: 82 | CE1: 83 | CF1: 84 | CG1: 85 | CH1: 86 | CI1: 87 | CJ1: 88 | CK1: 89 | CL1: 90 | CM1: 91 | CN1: 92 | CO1: 93 | CP1: 94 | CQ1: 95 | CR1: 96 | CS1: 97 | CT1: 98 | CU1: 99 | CV1: 100 | CW1: 101 | CX1: 102 | CY1: 103 | CZ1: 104 | DA1: 105 | DB1: 106 | DC1: 107 | DD1: 108 | DE1: 109 | DF1: 110 | DG1: 111 | DH1: 112 | DI1: 113 | DJ1: 114 | DK1: 115 | DL1: 116 | DM1: 117 | DN1: 118 | DO1: 119 | DP1: 120 | DQ1: 121 | DR1: 122 | DS1: 123 | DT1: 124 | DU1: 125 | DV1: 126 | DW1: 127 | DX1: 128 | DY1: 129 | DZ1: 130 | EA1: 131 | EB1: 132 | EC1: 133 | ED1: 134 | EE1: 135 | EF1: 136 | EG1: 137 | EH1: 138 | EI1: 139 | EJ1: 140
B2: 平成27年度 第21回 中播地区中学校新人大会陸上競技の部
B3: 申込一覧表 （Ａ）
DN4: 2部提出
C5: （ 共 ＝ １・２年種目 ） | BW5: 学校番号 | CI5: （ | CJ5: =学校番号 -> 0 | CV5: ） | CY5: 学 校 名 | DJ5: （ | DK5: =略称 -> 0 | EF5: ）
C6: 〔 男 子 〕 １日目実施● | BT6: 〔 女 子 〕 １日目実施●
B8: 種 目 | L8: 個人 番号 | R8: 名 前 | AJ8: 学年 | AN8: 個人 番号 | AT8: 名 前 | BL8: 学年 | BS8: 種 目 | CC8: 個人 番号 | CI8: 名 前 | DA8: 学年 | DE8: 個人 番号 | DK8: 名 前 | EC8: 学年
B9: ●１年 | L9: =IF('入力シート(新人)'!$H2="","",'入力シート(新人)'!$H2) ->  | R9: =IF(L9<>"",VLOOKUP(EM9,部員データ,3,FALSE)&" "&VLOOKUP(EM9,部員データ,4,FALSE),"") ->  | AJ9: 1 | AN9: =IF('入力シート(新人)'!$H3="","",'入力シート(新人)'!$H3) ->  | AT9: =IF(AN9<>"",VLOOKUP(EN9,部員データ,3,FALSE)&" "&VLOOKUP(EN9,部員データ,4,FALSE),"") ->  | BL9: 1 | BS9: ●１年 | CC9: =IF('入力シート(新人)'!$H48="","",'入力シート(新人)'!$H48) ->  | CI9: =IF(CC9<>"",VLOOKUP(EO9,部員データ,3,FALSE)&" "&VLOOKUP(EO9,部員データ,4,FALSE),"") ->  | DA9: 1 | DE9: =IF('入力シート(新人)'!$H49="","",'入力シート(新人)'!$H49) ->  | DK9: =IF(DE9<>"",VLOOKUP(EP9,部員データ,3,FALSE)&" "&VLOOKUP(EP9,部員データ,4,FALSE),"") ->  | EC9: 1 | EM9: ="男"&DBCS(TEXT(L9,"00")) -> 男 | EN9: ="男"&DBCS(TEXT(AN9,"00")) -> 男 | EO9: ="女"&DBCS(TEXT(CC9,"00")) -> 女 | EP9: ="女"&DBCS(TEXT(DE9,"00")) -> 女 | EQ9: =IF(OR(EM9="男",EM9=""),"",COUNTIF($EM$9:$EN$42,EM9)) ->  | ES9: =IF(OR(EO9="女",EO9=""),"",COUNTIF($EO$9:$EP$39,EO9)) -> 
B10: 100m | R10: =IF(L9="","",IF('入力シート(新人)'!$K2="","",format_kiroku('入力シート(新人)'!$K2,$B10))) ->  | AT10: =IF(AN9="","",IF('入力シート(新人)'!$K3="","",format_kiroku('入力シート(新人)'!$K3,$B10))) ->  | BS10: 100m | CI10: =IF(CC9="","",IF('入力シート(新人)'!$K48="","",format_kiroku('入力シート(新人)'!$K48,$BS10))) ->  | DK10: =IF(DE9="","",IF('入力シート(新人)'!$K49="","",format_kiroku('入力シート(新人)'!$K49,$BS10))) -> 
B11: ●１年 | L11: =IF('入力シート(新人)'!$H4="","",'入力シート(新人)'!$H4) ->  | R11: =IF(L11<>"",VLOOKUP(EM11,部員データ,3,FALSE)&" "&VLOOKUP(EM11,部員データ,4,FALSE),"") ->  | AJ11: 1 | AN11: =IF('入力シート(新人)'!$H5="","",'入力シート(新人)'!$H5) ->  | AT11: =IF(AN11<>"",VLOOKUP(EN11,部員データ,3,FALSE)&" "&VLOOKUP(EN11,部員データ,4,FALSE),"") ->  | BL11: 1 | BS11: １年 | CC11: =IF('入力シート(新人)'!$H50="","",'入力シート(新人)'!$H50) ->  | CI11: =IF(CC11<>"",VLOOKUP(EO11,部員データ,3,FALSE)&" "&VLOOKUP(EO11,部員データ,4,FALSE),"") ->  | DA11: 1 | DE11: =IF('入力シート(新人)'!$H51="","",'入力シート(新人)'!$H51) ->  | DK11: =IF(DE11<>"",VLOOKUP(EP11,部員データ,3,FALSE)&" "&VLOOKUP(EP11,部員データ,4,FALSE),"") ->  | EC11: 1 | EM11: ="男"&DBCS(TEXT(L11,"00")) -> 男 | EN11: ="男"&DBCS(TEXT(AN11,"00")) -> 男 | EO11: ="女"&DBCS(TEXT(CC11,"00")) -> 女 | EP11: ="女"&DBCS(TEXT(DE11,"00")) -> 女
B12: 1500m | R12: =IF(L11="","",IF('入力シート(新人)'!$K4="","",format_kiroku('入力シート(新人)'!$K4,$B12))) ->  | AT12: =IF(AN11="","",IF('入力シート(新人)'!$K5="","",format_kiroku('入力シート(新人)'!$K5,$B12))) ->  | BS12: 800ｍ | CI12: =IF(CC11="","",IF('入力シート(新人)'!$K50="","",format_kiroku('入力シート(新人)'!$K50,$BS12))) ->  | DK12: =IF(DE11="","",IF('入力シート(新人)'!$K51="","",format_kiroku('入力シート(新人)'!$K51,$BS12))) -> 
B13: ●2年 | L13: =IF('入力シート(新人)'!$H6="","",'入力シート(新人)'!$H6) ->  | R13: =IF(L13<>"",VLOOKUP(EM13,部員データ,3,FALSE)&" "&VLOOKUP(EM13,部員データ,4,FALSE),"") ->  | AJ13: 2 | AN13: =IF('入力シート(新人)'!$H7="","",'入力シート(新人)'!$H7) ->  | AT13: =IF(AN13<>"",VLOOKUP(EN13,部員データ,3,FALSE)&" "&VLOOKUP(EN13,部員データ,4,FALSE),"") ->  | BL13: 2 | BS13: ●2年 | CC13: =IF('入力シート(新人)'!$H52="","",'入力シート(新人)'!$H52) ->  | CI13: =IF(CC13<>"",VLOOKUP(EO13,部員データ,3,FALSE)&" "&VLOOKUP(EO13,部員データ,4,FALSE),"") ->  | DA13: 2 | DE13: =IF('入力シート(新人)'!$H53="","",'入力シート(新人)'!$H53) ->  | DK13: =IF(DE13<>"",VLOOKUP(EP13,部員データ,3,FALSE)&" "&VLOOKUP(EP13,部員データ,4,FALSE),"") ->  | EC13: 2 | EM13: 男 | EN13: 男 | EO13: 女 | EP13: 女
B14: 100m | R14: =IF(L13="","",IF('入力シート(新人)'!$K6="","",format_kiroku('入力シート(新人)'!$K6,$B14))) ->  | AT14: =IF(AN13="","",IF('入力シート(新人)'!$K7="","",format_kiroku('入力シート(新人)'!$K7,$B14))) ->  | BS14: 100m | CI14: =IF(CC13="","",IF('入力シート(新人)'!$K52="","",format_kiroku('入力シート(新人)'!$K52,$BS14))) ->  | DK14: =IF(DE13="","",IF('入力シート(新人)'!$K53="","",format_kiroku('入力シート(新人)'!$K53,$BS14))) -> 
B15: ●2年 | L15: =IF('入力シート(新人)'!$H8="","",'入力シート(新人)'!$H8) ->  | R15: =IF(L15<>"",VLOOKUP(EM15,部員データ,3,FALSE)&" "&VLOOKUP(EM15,部員データ,4,FALSE),"") ->  | AJ15: 2 | AN15: =IF('入力シート(新人)'!$H9="","",'入力シート(新人)'!$H9) ->  | AT15: =IF(AN15<>"",VLOOKUP(EN15,部員データ,3,FALSE)&" "&VLOOKUP(EN15,部員データ,4,FALSE),"") ->  | BL15: 2 | BS15: ２年 | CC15: =IF('入力シート(新人)'!$H54="","",'入力シート(新人)'!$H54) ->  | CI15: =IF(CC15<>"",VLOOKUP(EO15,部員データ,3,FALSE)&" "&VLOOKUP(EO15,部員データ,4,FALSE),"") ->  | DA15: 2 | DE15: =IF('入力シート(新人)'!$H55="","",'入力シート(新人)'!$H55) ->  | DK15: =IF(DE15<>"",VLOOKUP(EP15,部員データ,3,FALSE)&" "&VLOOKUP(EP15,部員データ,4,FALSE),"") ->  | EC15: 2 | EM15: 男 | EN15: 男 | EO15: 女 | EP15: 女
B16: 1500m | R16: =IF(L15="","",IF('入力シート(新人)'!$K8="","",format_kiroku('入力シート(新人)'!$K8,$B16))) ->  | AT16: =IF(AN15="","",IF('入力シート(新人)'!$K9="","",format_kiroku('入力シート(新人)'!$K9,$B16))) ->  | BS16: 800ｍ | CI16: =IF(CC15="","",IF('入力シート(新人)'!$K54="","",format_kiroku('入力シート(新人)'!$K54,$BS16))) ->  | DK16: =IF(DE15="","",IF('入力シート(新人)'!$K55="","",format_kiroku('入力シート(新人)'!$K55,$BS16))) -> 
B17: 共通 | L17: =IF('入力シート(新人)'!$H10="","",'入力シート(新人)'!$H10) ->  | R17: =IF(L17<>"",VLOOKUP(EM17,部員データ,3,FALSE)&" "&VLOOKUP(EM17,部員データ,4,FALSE),"") ->  | AJ17: =IF(L17<>"",VLOOKUP(EM17,部員データ,2,FALSE),"") ->  | AN17: =IF('入力シート(新人)'!$H11="","",'入力シート(新人)'!$H11) ->  | AT17: =IF(AN17<>"",VLOOKUP(EN17,部員データ,3,FALSE)&" "&VLOOKUP(EN17,部員データ,4,FALSE),"") ->  | BL17: =IF(AN17<>"",VLOOKUP(EN17,部員データ,2,FALSE),"") ->  | BS17: 共通 | CC17: =IF('入力シート(新人)'!$H56="","",'入力シート(新人)'!$H56) ->  | CI17: =IF(CC17<>"",VLOOKUP(EO17,部員データ,3,FALSE)&" "&VLOOKUP(EO17,部員データ,4,FALSE),"") ->  | DA17: =IF(CC17<>"",VLOOKUP(EO17,部員データ,2,FALSE),"") ->  | DE17: =IF('入力シート(新人)'!$H57="","",'入力シート(新人)'!$H57) ->  | DK17: =IF(DE17<>"",VLOOKUP(EP17,部員データ,3,FALSE)&" "&VLOOKUP(EP17,部員データ,4,FALSE),"") ->  | EC17: =IF(DE17<>"",VLOOKUP(EP17,部員データ,2,FALSE),"") ->  | EM17: 男 | EN17: 男 | EO17: 女 | EP17: 女
B18: 200m | R18: =IF(L17="","",IF('入力シート(新人)'!$K10="","",format_kiroku('入力シート(新人)'!$K10,$B18))) ->  | AT18: =IF(AN17="","",IF('入力シート(新人)'!$K11="","",format_kiroku('入力シート(新人)'!$K11,$B18))) ->  | BS18: 200m | CI18: =IF(CC17="","",IF('入力シート(新人)'!$K56="","",format_kiroku('入力シート(新人)'!$K56,$BS18))) ->  | DK18: =IF(DE17="","",IF('入力シート(新人)'!$K57="","",format_kiroku('入力シート(新人)'!$K57,$BS18))) -> 
B19: ●共通 | L19: =IF('入力シート(新人)'!$H12="","",'入力シート(新人)'!$H12) ->  | R19: =IF(L19<>"",VLOOKUP(EM19,部員データ,3,FALSE)&" "&VLOOKUP(EM19,部員データ,4,FALSE),"") ->  | AJ19: =IF(L19<>"",VLOOKUP(EM19,部員データ,2,FALSE),"") ->  | AN19: =IF('入力シート(新人)'!$H13="","",'入力シート(新人)'!$H13) ->  | AT19: =IF(AN19<>"",VLOOKUP(EN19,部員データ,3,FALSE)&" "&VLOOKUP(EN19,部員データ,4,FALSE),"") ->  | BL19: =IF(AN19<>"",VLOOKUP(EN19,部員データ,2,FALSE),"") ->  | BS19: ●共通 | CC19: =IF('入力シート(新人)'!$H58="","",'入力シート(新人)'!$H58) ->  | CI19: =IF(CC19<>"",VLOOKUP(EO19,部員データ,3,FALSE)&" "&VLOOKUP(EO19,部員データ,4,FALSE),"") ->  | DA19: =IF(CC19<>"",VLOOKUP(EO19,部員データ,2,FALSE),"") ->  | DE19: =IF('入力シート(新人)'!$H59="","",'入力シート(新人)'!$H59) ->  | DK19: =IF(DE19<>"",VLOOKUP(EP19,部員データ,3,FALSE)&" "&VLOOKUP(EP19,部員データ,4,FALSE),"") ->  | EC19: =IF(DE19<>"",VLOOKUP(EP19,部員データ,2,FALSE),"") ->  | EM19: 男 | EN19: 男 | EO19: 女 | EP19: 女
B20: 400ｍ | R20: =IF(L19="","",IF('入力シート(新人)'!$K12="","",format_kiroku('入力シート(新人)'!$K12,$B20))) ->  | AT20: =IF(AN19="","",IF('入力シート(新人)'!$K13="","",format_kiroku('入力シート(新人)'!$K13,$B20))) ->  | BS20: 1500m | CI20: =IF(CC19="","",IF('入力シート(新人)'!$K58="","",format_kiroku('入力シート(新人)'!$K58,$BS20))) ->  | DK20: =IF(DE19="","",IF('入力シート(新人)'!$K59="","",format_kiroku('入力シート(新人)'!$K59,$BS20))) -> 
B21: 共通 | L21: =IF('入力シート(新人)'!$H14="","",'入力シート(新人)'!$H14) ->  | R21: =IF(L21<>"",VLOOKUP(EM21,部員データ,3,FALSE)&" "&VLOOKUP(EM21,部員データ,4,FALSE),"") ->  | AJ21: =IF(L21<>"",VLOOKUP(EM21,部員データ,2,FALSE),"") ->  | AN21: =IF('入力シート(新人)'!$H15="","",'入力シート(新人)'!$H15) ->  | AT21: =IF(AN21<>"",VLOOKUP(EN21,部員データ,3,FALSE)&" "&VLOOKUP(EN21,部員データ,4,FALSE),"") ->  | BL21: =IF(AN21<>"",VLOOKUP(EN21,部員データ,2,FALSE),"") ->  | BS21: 共通 | CC21: =IF('入力シート(新人)'!$H60="","",'入力シート(新人)'!$H60) ->  | CI21: =IF(CC21<>"",VLOOKUP(EO21,部員データ,3,FALSE)&" "&VLOOKUP(EO21,部員データ,4,FALSE),"") ->  | DA21: =IF(CC21<>"",VLOOKUP(EO21,部員データ,2,FALSE),"") ->  | DE21: =IF('入力シート(新人)'!$H61="","",'入力シート(新人)'!$H61) ->  | DK21: =IF(DE21<>"",VLOOKUP(EP21,部員データ,3,FALSE)&" "&VLOOKUP(EP21,部員データ,4,FALSE),"") ->  | EC21: =IF(DE21<>"",VLOOKUP(EP21,部員データ,2,FALSE),"") ->  | EM21: 男 | EN21: 男 | EO21: 女 | EP21: 女
B22: 800m | R22: =IF(L21="","",IF('入力シート(新人)'!$K14="","",format_kiroku('入力シート(新人)'!$K14,$B22))) ->  | AT22: =IF(AN21="","",IF('入力シート(新人)'!$K15="","",format_kiroku('入力シート(新人)'!$K15,$B22))) ->  | BS22: 100mH | CI22: =IF(CC21="","",IF('入力シート(新人)'!$K60="","",format_kiroku('入力シート(新人)'!$K60,$BS22))) ->  | DK22: =IF(DE21="","",IF('入力シート(新人)'!$K61="","",format_kiroku('入力シート(新人)'!$K61,$BS22))) -> 
B23: 共通 | L23: =IF('入力シート(新人)'!$H16="","",'入力シート(新人)'!$H16) ->  | R23: =IF(L23<>"",VLOOKUP(EM23,部員データ,3,FALSE)&" "&VLOOKUP(EM23,部員データ,4,FALSE),"") ->  | AJ23: =IF(L23<>"",VLOOKUP(EM23,部員データ,2,FALSE),"") ->  | AN23: =IF('入力シート(新人)'!$H17="","",'入力シート(新人)'!$H17) ->  | AT23: =IF(AN23<>"",VLOOKUP(EN23,部員データ,3,FALSE)&" "&VLOOKUP(EN23,部員データ,4,FALSE),"") ->  | BL23: =IF(AN23<>"",VLOOKUP(EN23,部員データ,2,FALSE),"") ->  | BS23: 共通 | CC23: =IF('入力シート(新人)'!$H68="","",'入力シート(新人)'!$H68) ->  | CI23: =IF(CC23<>"",VLOOKUP(EO23,部員データ,3,FALSE)&" "&VLOOKUP(EO23,部員データ,4,FALSE),"") ->  | DA23: =IF(CC23<>"",VLOOKUP(EO23,部員データ,2,FALSE),"") ->  | DE23: =IF('入力シート(新人)'!$H69="","",'入力シート(新人)'!$H69) ->  | DK23: =IF(DE23<>"",VLOOKUP(EP23,部員データ,3,FALSE)&" "&VLOOKUP(EP23,部員データ,4,FALSE),"") ->  | EC23: =IF(DE23<>"",VLOOKUP(EP23,部員データ,2,FALSE),"") ->  | EM23: 男 | EN23: 男 | EO23: 女 | EP23: 女
B24: 3000m | R24: =IF(L23="","",IF('入力シート(新人)'!$K16="","",format_kiroku('入力シート(新人)'!$K16,$B24))) ->  | AT24: =IF(AN23="","",IF('入力シート(新人)'!$K17="","",format_kiroku('入力シート(新人)'!$K17,$B24))) ->  | BS24: 走高跳 | CI24: =IF(CC23="","",IF('入力シート(新人)'!$K68="","",format_kiroku('入力シート(新人)'!$K68,$BS24))) ->  | DK24: =IF(DE23="","",IF('入力シート(新人)'!$K69="","",format_kiroku('入力シート(新人)'!$K69,$BS24))) -> 
B25: 共通 | L25: =IF('入力シート(新人)'!$H18="","",'入力シート(新人)'!$H18) ->  | R25: =IF(L25<>"",VLOOKUP(EM25,部員データ,3,FALSE)&" "&VLOOKUP(EM25,部員データ,4,FALSE),"") ->  | AJ25: =IF(L25<>"",VLOOKUP(EM25,部員データ,2,FALSE),"") ->  | AN25: =IF('入力シート(新人)'!$H19="","",'入力シート(新人)'!$H19) ->  | AT25: =IF(AN25<>"",VLOOKUP(EN25,部員データ,3,FALSE)&" "&VLOOKUP(EN25,部員データ,4,FALSE),"") ->  | BL25: =IF(AN25<>"",VLOOKUP(EN25,部員データ,2,FALSE),"") ->  | BS25: ●共通 | CC25: =IF('入力シート(新人)'!$H70="","",'入力シート(新人)'!$H70) ->  | CI25: =IF(CC25<>"",VLOOKUP(EO25,部員データ,3,FALSE)&" "&VLOOKUP(EO25,部員データ,4,FALSE),"") ->  | DA25: =IF(CC25<>"",VLOOKUP(EO25,部員データ,2,FALSE),"") ->  | DE25: =IF('入力シート(新人)'!$H71="","",'入力シート(新人)'!$H71) ->  | DK25: =IF(DE25<>"",VLOOKUP(EP25,部員データ,3,FALSE)&" "&VLOOKUP(EP25,部員データ,4,FALSE),"") ->  | EC25: =IF(DE25<>"",VLOOKUP(EP25,部員データ,2,FALSE),"") ->  | EM25: 男 | EN25: 男 | EO25: 女 | EP25: 女 | EQ25: =IF(OR(EM25="男",EM25=""),"",COUNTIF($EM$9:$EN$42,EM25)) ->  | ES25: =IF(OR(EO25="女",EO25=""),"",COUNTIF($EO$9:$EP$39,EO25)) -> 
B26: 110mＨ | R26: =IF(L25="","",IF('入力シート(新人)'!$K18="","",format_kiroku('入力シート(新人)'!$K18,$B26))) ->  | AT26: =IF(AN25="","",IF('入力シート(新人)'!$K19="","",format_kiroku('入力シート(新人)'!$K19,$B26))) ->  | BS26: 走幅跳 | CI26: =IF(CC25="","",IF('入力シート(新人)'!$K70="","",format_kiroku('入力シート(新人)'!$K70,$BS26))) ->  | DK26: =IF(DE25="","",IF('入力シート(新人)'!$K71="","",format_kiroku('入力シート(新人)'!$K71,$BS26))) -> 
B27: 共通 | L27: =IF('入力シート(新人)'!$H26="","",'入力シート(新人)'!$H26) ->  | R27: =IF(L27<>"",VLOOKUP(EM27,部員データ,3,FALSE)&" "&VLOOKUP(EM27,部員データ,4,FALSE),"") ->  | AJ27: =IF(L27<>"",VLOOKUP(EM27,部員データ,2,FALSE),"") ->  | AN27: =IF('入力シート(新人)'!$H27="","",'入力シート(新人)'!$H27) ->  | AT27: =IF(AN27<>"",VLOOKUP(EN27,部員データ,3,FALSE)&" "&VLOOKUP(EN27,部員データ,4,FALSE),"") ->  | BL27: =IF(AN27<>"",VLOOKUP(EN27,部員データ,2,FALSE),"") ->  | BS27: 共通 | CC27: =IF('入力シート(新人)'!$H72="","",'入力シート(新人)'!$H72) ->  | CI27: =IF(CC27<>"",VLOOKUP(EO27,部員データ,3,FALSE)&" "&VLOOKUP(EO27,部員データ,4,FALSE),"") ->  | DA27: =IF(CC27<>"",VLOOKUP(EO27,部員データ,2,FALSE),"") ->  | DE27: =IF('入力シート(新人)'!$H73="","",'入力シート(新人)'!$H73) ->  | DK27: =IF(DE27<>"",VLOOKUP(EP27,部員データ,3,FALSE)&" "&VLOOKUP(EP27,部員データ,4,FALSE),"") ->  | EC27: =IF(DE27<>"",VLOOKUP(EP27,部員データ,2,FALSE),"") ->  | EM27: 男 | EN27: 男 | EO27: 女 | EP27: 女
B28: 走高跳 | R28: =IF(L27="","",IF('入力シート(新人)'!$K26="","",format_kiroku('入力シート(新人)'!$K26,$B28))) ->  | AT28: =IF(AN27="","",IF('入力シート(新人)'!$K27="","",format_kiroku('入力シート(新人)'!$K27,$B28))) ->  | BS28: 砲丸投 | CI28: =IF(CC27="","",IF('入力シート(新人)'!$K72="","",format_kiroku('入力シート(新人)'!$K72,$BS28))) ->  | DK28: =IF(DE27="","",IF('入力シート(新人)'!$K73="","",format_kiroku('入力シート(新人)'!$K73,$BS28))) -> 
B29: ●共通 | L29: =IF('入力シート(新人)'!$H28="","",'入力シート(新人)'!$H28) ->  | R29: =IF(L29<>"",VLOOKUP(EM29,部員データ,3,FALSE)&" "&VLOOKUP(EM29,部員データ,4,FALSE),"") ->  | AJ29: =IF(L29<>"",VLOOKUP(EM29,部員データ,2,FALSE),"") ->  | AN29: =IF('入力シート(新人)'!$H29="","",'入力シート(新人)'!$H29) ->  | AT29: =IF(AN29<>"",VLOOKUP(EN29,部員データ,3,FALSE)&" "&VLOOKUP(EN29,部員データ,4,FALSE),"") ->  | BL29: =IF(AN29<>"",VLOOKUP(EN29,部員データ,2,FALSE),"") ->  | BS29: ●共通 | CC29: =IF('入力シート(新人)'!$H74="","",'入力シート(新人)'!$H74) ->  | CI29: =IF(CC29<>"",VLOOKUP(EO29,部員データ,3,FALSE)&" "&VLOOKUP(EO29,部員データ,4,FALSE),"") ->  | DA29: =IF(CC29<>"",VLOOKUP(EO29,部員データ,2,FALSE),"") ->  | DE29: =IF('入力シート(新人)'!$H75="","",'入力シート(新人)'!$H75) ->  | DK29: =IF(DE29<>"",VLOOKUP(EP29,部員データ,3,FALSE)&" "&VLOOKUP(EP29,部員データ,4,FALSE),"") ->  | EC29: =IF(DE29<>"",VLOOKUP(EP29,部員データ,2,FALSE),"") ->  | EM29: 男 | EN29: 男 | EO29: 女 | EP29: 女
B30: 棒高跳 | R30: =IF(L29="","",IF('入力シート(新人)'!$K28="","",format_kiroku('入力シート(新人)'!$K28,$B30))) ->  | AT30: =IF(AN29="","",IF('入力シート(新人)'!$K29="","",format_kiroku('入力シート(新人)'!$K29,$B30))) ->  | BS30: 円盤投 | CI30: =IF(CC29="","",IF('入力シート(新人)'!$K74="","",format_kiroku('入力シート(新人)'!$K74,$BS30))) ->  | DK30: =IF(DE29="","",IF('入力シート(新人)'!$K75="","",format_kiroku('入力シート(新人)'!$K75,$BS30))) -> 
B31: ●共通 | L31: =IF('入力シート(新人)'!$H30="","",'入力シート(新人)'!$H30) ->  | R31: =IF(L31<>"",VLOOKUP(EM31,部員データ,3,FALSE)&" "&VLOOKUP(EM31,部員データ,4,FALSE),"") ->  | AJ31: =IF(L31<>"",VLOOKUP(EM31,部員データ,2,FALSE),"") ->  | AN31: =IF('入力シート(新人)'!$H31="","",'入力シート(新人)'!$H31) ->  | AT31: =IF(AN31<>"",VLOOKUP(EN31,部員データ,3,FALSE)&" "&VLOOKUP(EN31,部員データ,4,FALSE),"") ->  | BL31: =IF(AN31<>"",VLOOKUP(EN31,部員データ,2,FALSE),"") ->  | BS31: ●共通 | CC31: =IF('入力シート(新人)'!$H76="","",'入力シート(新人)'!$H76) ->  | CI31: =IF(CC31<>"",VLOOKUP(EO31,部員データ,3,FALSE)&" "&VLOOKUP(EO31,部員データ,4,FALSE),"") ->  | DA31: =IF(CC31<>"",VLOOKUP(EO31,部員データ,2,FALSE),"") ->  | DE31: =IF('入力シート(新人)'!$H81="","",'入力シート(新人)'!$H81) ->  | DK31: =IF(DE31<>"",VLOOKUP(EP31,部員データ,3,FALSE)&" "&VLOOKUP(EP31,部員データ,4,FALSE),"") ->  | EC31: =IF(DE31<>"",VLOOKUP(EP31,部員データ,2,FALSE),"") ->  | EM31: 男 | EN31: 男 | EO31: 女 | EP31: 女
B32: 走幅跳 | R32: =IF(L31="","",IF('入力シート(新人)'!$K30="","",format_kiroku('入力シート(新人)'!$K30,$B32))) ->  | AT32: =IF(AN31="","",IF('入力シート(新人)'!$K31="","",format_kiroku('入力シート(新人)'!$K31,$B32))) ->  | BS32: 四種競技 | CI32: =IF(CC31="","",IF('入力シート(新人)'!$K76="","",format_kiroku('入力シート(新人)'!$K76,$BS32))) ->  | DK32: =IF(DE31="","",IF('入力シート(新人)'!$K81="","",format_kiroku('入力シート(新人)'!$K81,$BS32))) -> 
B33: 共通 | L33: =IF('入力シート(新人)'!$H32="","",'入力シート(新人)'!$H32) ->  | R33: =IF(L33<>"",VLOOKUP(EM33,部員データ,3,FALSE)&" "&VLOOKUP(EM33,部員データ,4,FALSE),"") ->  | AJ33: =IF(L33<>"",VLOOKUP(EM33,部員データ,2,FALSE),"") ->  | AN33: =IF('入力シート(新人)'!$H33="","",'入力シート(新人)'!$H33) ->  | AT33: =IF(AN33<>"",VLOOKUP(EN33,部員データ,3,FALSE)&" "&VLOOKUP(EN33,部員データ,4,FALSE),"") ->  | BL33: =IF(AN33<>"",VLOOKUP(EN33,部員データ,2,FALSE),"") ->  | BS33: 共通 4×100mR | CC33: =IF('入力シート(新人)'!$H62="","",'入力シート(新人)'!$H62) ->  | CI33: =IF(CC33<>"",VLOOKUP(EO33,部員データ,3,FALSE)&" "&VLOOKUP(EO33,部員データ,4,FALSE),"") ->  | DA33: =IF(CC33<>"",VLOOKUP(EO33,部員データ,2,FALSE),"") ->  | DE33: =IF('入力シート(新人)'!$H63="","",'入力シート(新人)'!$H63) ->  | DK33: =IF(DE33<>"",VLOOKUP(EP33,部員データ,3,FALSE)&" "&VLOOKUP(EP33,部員データ,4,FALSE),"") ->  | EC33: =IF(DE33<>"",VLOOKUP(EP33,部員データ,2,FALSE),"") ->  | EM33: 男 | EN33: 男 | EO33: 女 | EP33: 女
B34: 三段跳 | R34: =IF(L33="","",IF('入力シート(新人)'!$K32="","",format_kiroku('入力シート(新人)'!$K32,$B34))) ->  | AT34: =IF(AN33="","",IF('入力シート(新人)'!$K33="","",format_kiroku('入力シート(新人)'!$K33,$B34))) -> 
B35: 共通 | L35: =IF('入力シート(新人)'!$H34="","",'入力シート(新人)'!$H34) ->  | R35: =IF(L35<>"",VLOOKUP(EM35,部員データ,3,FALSE)&" "&VLOOKUP(EM35,部員データ,4,FALSE),"") ->  | AJ35: =IF(L35<>"",VLOOKUP(EM35,部員データ,2,FALSE),"") ->  | AN35: =IF('入力シート(新人)'!$H35="","",'入力シート(新人)'!$H35) ->  | AT35: =IF(AN35<>"",VLOOKUP(EN35,部員データ,3,FALSE)&" "&VLOOKUP(EN35,部員データ,4,FALSE),"") ->  | BL35: =IF(AN35<>"",VLOOKUP(EN35,部員データ,2,FALSE),"") ->  | CC35: =IF('入力シート(新人)'!$H64="","",'入力シート(新人)'!$H64) ->  | CI35: =IF(CC35<>"",VLOOKUP(EO35,部員データ,3,FALSE)&" "&VLOOKUP(EO35,部員データ,4,FALSE),"") ->  | DA35: =IF(CC35<>"",VLOOKUP(EO35,部員データ,2,FALSE),"") ->  | DE35: =IF('入力シート(新人)'!$H65="","",'入力シート(新人)'!$H65) ->  | DK35: =IF(DE35<>"",VLOOKUP(EP35,部員データ,3,FALSE)&" "&VLOOKUP(EP35,部員データ,4,FALSE),"") ->  | EC35: =IF(DE35<>"",VLOOKUP(EP35,部員データ,2,FALSE),"") ->  | EI35: =COUNTA(L9:Q37,AN9:AS37) -> 30 | EJ35: =COUNTA(CC9:CH29,DE9:DJ29) -> 22 | EM35: 男 | EN35: 男 | EO35: 女 | EP35: 女
B36: 砲丸投 | R36: =IF(L35="","",IF('入力シート(新人)'!$K34="","",format_kiroku('入力シート(新人)'!$K34,$B36))) ->  | AT36: =IF(AN35="","",IF('入力シート(新人)'!$K35="","",format_kiroku('入力シート(新人)'!$K35,$B36))) -> 
B37: ●共通 | L37: =IF('入力シート(新人)'!$H36="","",'入力シート(新人)'!$H36) ->  | R37: =IF(L37<>"",VLOOKUP(EM37,部員データ,3,FALSE)&" "&VLOOKUP(EM37,部員データ,4,FALSE),"") ->  | AJ37: =IF(L37<>"",VLOOKUP(EM37,部員データ,2,FALSE),"") ->  | AN37: =IF('入力シート(新人)'!$H37="","",'入力シート(新人)'!$H37) ->  | AT37: =IF(AN37<>"",VLOOKUP(EN37,部員データ,3,FALSE)&" "&VLOOKUP(EN37,部員データ,4,FALSE),"") ->  | BL37: =IF(AN37<>"",VLOOKUP(EN37,部員データ,2,FALSE),"") ->  | CC37: =IF('入力シート(新人)'!$H66="","",'入力シート(新人)'!$H66) ->  | CI37: =IF(CC37<>"",VLOOKUP(EO37,部員データ,3,FALSE)&" "&VLOOKUP(EO37,部員データ,4,FALSE),"") ->  | DA37: =IF(CC37<>"",VLOOKUP(EO37,部員データ,2,FALSE),"") ->  | DE37: =IF('入力シート(新人)'!$H67="","",'入力シート(新人)'!$H67) ->  | DK37: =IF(DE37<>"",VLOOKUP(EP37,部員データ,3,FALSE)&" "&VLOOKUP(EP37,部員データ,4,FALSE),"") ->  | EC37: =IF(DE37<>"",VLOOKUP(EP37,部員データ,2,FALSE),"") ->  | EI37: =COUNTA(L39,AN39) -> 2 | EJ37: =COUNTA(CC31,DE31) -> 2 | EM37: 男 | EN37: 男 | EO37: 女 | EP37: 女
B38: 円盤投 | R38: =IF(L37="","",IF('入力シート(新人)'!$K36="","",format_kiroku('入力シート(新人)'!$K36,$B38))) ->  | AT38: =IF(AN37="","",IF('入力シート(新人)'!$K37="","",format_kiroku('入力シート(新人)'!$K37,$B38))) ->  | BS38: =IF(CC33="","",IF('入力シート(新人)'!$K62="","",format_kiroku('入力シート(新人)'!$K62,$BS33))) -> 
B39: ●共通 | L39: =IF('入力シート(新人)'!$H38="","",'入力シート(新人)'!$H38) ->  | R39: =IF(L39<>"",VLOOKUP(EM39,部員データ,3,FALSE)&" "&VLOOKUP(EM39,部員データ,4,FALSE),"") ->  | AJ39: =IF(L39<>"",VLOOKUP(EM39,部員データ,2,FALSE),"") ->  | AN39: =IF('入力シート(新人)'!$H43="","",'入力シート(新人)'!$H43) ->  | AT39: =IF(AN39<>"",VLOOKUP(EN39,部員データ,3,FALSE)&" "&VLOOKUP(EN39,部員データ,4,FALSE),"") ->  | BL39: =IF(AN39<>"",VLOOKUP(EN39,部員データ,2,FALSE),"") ->  | EI39: =COUNTA(L41) -> 1 | EJ39: =COUNTA(CC33) -> 1 | EM39: 男 | EN39: 男
B40: 四種競技 | R40: =IF(L39="","",IF('入力シート(新人)'!$K32="","",format_kiroku('入力シート(新人)'!$K38,$B40))) ->  | AT40: =IF(AN39="","",IF('入力シート(新人)'!$K33="","",format_kiroku('入力シート(新人)'!$K43,$B40))) -> 
B41: 共通 4×100mR | L41: =IF('入力シート(新人)'!$H20="","",'入力シート(新人)'!$H20) ->  | R41: =IF(L41<>"",VLOOKUP(EM41,部員データ,3,FALSE)&" "&VLOOKUP(EM41,部員データ,4,FALSE),"") ->  | AJ41: =IF(L41<>"",VLOOKUP(EM41,部員データ,2,FALSE),"") ->  | AN41: =IF('入力シート(新人)'!$H21="","",'入力シート(新人)'!$H21) ->  | AT41: =IF(AN41<>"",VLOOKUP(EN41,部員データ,3,FALSE)&" "&VLOOKUP(EN41,部員データ,4,FALSE),"") ->  | BL41: =IF(AN41<>"",VLOOKUP(EN41,部員データ,2,FALSE),"") ->  | BU41: =振込月 -> 0 | CB41: 月 | CI41: =振込日 -> 0 | CP41: 日 | CW41: =郵便局 -> 0 | DN41: 郵便局振込 | EM41: 男 | EN41: 男
L43: =IF('入力シート(新人)'!$H22="","",'入力シート(新人)'!$H22) ->  | R43: =IF(L43<>"",VLOOKUP(EM43,部員データ,3,FALSE)&" "&VLOOKUP(EM43,部員データ,4,FALSE),"") ->  | AJ43: =IF(L43<>"",VLOOKUP(EM43,部員データ,2,FALSE),"") ->  | AN43: =IF('入力シート(新人)'!$H23="","",'入力シート(新人)'!$H23) ->  | AT43: =IF(AN43<>"",VLOOKUP(EN43,部員データ,3,FALSE)&" "&VLOOKUP(EN43,部員データ,4,FALSE),"") ->  | BL43: =IF(AN43<>"",VLOOKUP(EN43,部員データ,2,FALSE),"") ->  | BU43: 振込受領書貼り付け | EM43: 男 | EN43: 男 | EQ43: =COUNTIF($EQ$9:$ER$41,">0") -> 0 | ER43: =COUNTIF($EQ$9:$ER$41,"2") -> 0 | ES43: =COUNTIF($ES$9:$ET$39,">0") -> 0 | ET43: =COUNTIF($ES$9:$ET$39,"2") -> 0
ER44: =COUNTIF($EQ$9:$ER$41,"3") -> 0 | ET44: =COUNTIF($ES$9:$ET$39,"3") -> 0
L45: =IF('入力シート(新人)'!$H24="","",'入力シート(新人)'!$H24) ->  | R45: =IF(L45<>"",VLOOKUP(EM45,部員データ,3,FALSE)&" "&VLOOKUP(EM45,部員データ,4,FALSE),"") ->  | AJ45: =IF(L45<>"",VLOOKUP(EM45,部員データ,2,FALSE),"") ->  | AN45: =IF('入力シート(新人)'!$H25="","",'入力シート(新人)'!$H25) ->  | AT45: =IF(AN45<>"",VLOOKUP(EN45,部員データ,3,FALSE)&" "&VLOOKUP(EN45,部員データ,4,FALSE),"") ->  | BL45: =IF(AN45<>"",VLOOKUP(EN45,部員データ,2,FALSE),"") ->  | EM45: 男 | EN45: 男 | ER45: =COUNTIF($EQ$9:$ER$41,"4") -> 0 | ET45: =COUNTIF($ES$9:$ET$39,"4") -> 0
B46: =IF(L41="","",IF('入力シート(新人)'!$K20="","",format_kiroku('入力シート(新人)'!$K20,$B41))) ->  | EQ46: =EQ43-ER43/2 -> 0 | ES46: =ES43-ET43/2-ET44/3-ET45/4 -> 0
L48: 男子 | Y48: 女子 | AL48: 合計 | AY48: 申込料
B49: 個人種目 | L49: =COUNTIF(L9:Q38,">=0")+COUNTIF(AN9:AS38,">=0") -> 0 | S49: 枚 | Y49: =COUNTIF(CC9:CH30,">=0")+COUNTIF(DE9:DJ30,">=0") -> 0 | AF49: 枚 | AL49: =L49+Y49 -> 0 | AS49: 枚 | AY49: 400円 | BE49: × | BH49: =AL49 -> 0 | BO49: 枚 | BR49: ＝ | BU49: =400*BH49 -> 0 | CE49: 円 | EI49: =EI35+EJ35 -> 52 | EJ49: =EI49 -> 52 | EK49: =EJ49*400 -> 20800
B50: 四種競技 | L50: =COUNTIF(L39,">=0")+COUNTIF(AN39,">=0") -> 0 | S50: 枚 | Y50: =COUNTIF(CC31,">=0")+COUNTIF(DE31,">=0") -> 0 | AF50: 枚 | AL50: =L50+Y50 -> 0 | AS50: 枚 | AY50: 600円 | BE50: × | BH50: =AL50 -> 0 | BO50: 枚 | BR50: ＝ | BU50: =600*BH50 -> 0 | CE50: 円 | EI50: =EI37+EJ37 -> 4 | EJ50: =EI50 -> 4 | EK50: =EJ50*600 -> 2400
B51: リレー種目 | L51: =IF(COUNTIF(L41:Q46,">=0")+COUNTIF(AN41:AS46,">=0")>=4,1,0) -> 0 | S51: チーム | Y51: =IF(COUNTIF(CC33:CH38,">=0")+COUNTIF(DE33:DJ38,">=0")>=4,1,0) -> 0 | AF51: チーム | AL51: =L51+Y51 -> 0 | AS51: チーム | AY51: 600円 | BE51: × | BH51: =AL51 -> 0 | BO51: 枚 | BR51: ＝ | BU51: =600*BH51 -> 0 | CE51: 円 | EI51: =EI39+EJ39 -> 2 | EJ51: =EI51 -> 2 | EK51: =EJ51*600 -> 1200
B52: 実参加人数 | L52: =D_参加数 -> 0 | S52: 人 | Y52: =J_参加数 -> 0 | AF52: 人 | AL52: =L52+Y52 -> 0 | AS52: 人 | AY52: 合計金額 | BJ52: =SUM(BU49:CD51) -> 0 | CE52: 円 | EI52: =L52+Y52 -> 0 | EJ52: =EI52 -> 0 | EK52: =SUM(EK49:EK51) -> 24400
E54: 上記の生徒を本校代表として、参加を認めます。また、本競技大会の参加申し込みに際し、大会要項記載内容を確認し、個人情報の取り扱いについて同意を得ています。
E56: 平成 | K56: =TEXT(TODAY(),"e") -> 28 | Q56: 年 | U56: =TEXT(TODAY(),"m") -> 8 | AC56: 月 | AG56: =TEXT(TODAY(),"d") -> 17 | AQ56: 日 | AW56: =学校名 -> 0 | BR56: 中学校 | CD56: 学校長 | CQ56: =学校長 ->  | DY56: 印
C58: 審判員 | L58: （ | N58: =IF(基礎データ!$N21=TRUE,基礎データ!$N17,"") ->  | AM58: ） | AQ58: （ | AS58: =IF(基礎データ!$N22=TRUE,基礎データ!$N18,"") ->  | BR58: ） | BV58: （ | BX58: =IF(基礎データ!$N23=TRUE,基礎データ!$N19,"") ->  | CW58: ） | DA58: （ | DC58: =IF(基礎データ!$N24=TRUE,基礎データ!$N20,"") ->  | EB58: ）
D60: 注 審判員が不足していますので、顧問全員の方に審判を依頼します。審判員の箇所には顧問全員の氏名を記入してください。

Sheet 送信データ(新人) (hidden)
A1: 大会コード | B1: 性別 | C1: 学年 | D1: 競技種目コード | E1: 学校コード | F1: 性別1 | G1: 選手コード | H1: 組 | I1: レーン | J1: エントリ記録 | K1: 当日記録 | L1: 順位 | M1: 条件項目 | N1: 計測区分 | O1: 未記録区分 | P1: 大会順位
A2: =IF('入力シート(新人)'!$H2="","","4000005") ->  | B2: =IF('入力シート(新人)'!$H2="","",IF('入力シート(新人)'!$B2="男",0,1)) ->  | C2: =IF('入力シート(新人)'!$H2="","",'入力シート(新人)'!C2) ->  | D2: =IF('入力シート(新人)'!$H2="","",TEXT('入力シート(新人)'!$E2,"000")) ->  | E2: =IF('入力シート(新人)'!$H2="","",学校番号) ->  | F2: =IF('入力シート(新人)'!$H2="","",B2) ->  | G2: =IF('入力シート(新人)'!$H2="","",TEXT('入力シート(新人)'!$H2,"00")) ->  | J2: =IF('入力シート(新人)'!$H2="","",IF('入力シート(新人)'!K2="","",'入力シート(新人)'!K2)) ->  | N2: =IF('入力シート(新人)'!$H2="","",IF('入力シート(新人)'!L2="","",IF('入力シート(新人)'!L2="電気",0,1))) -> 
A3: =IF('入力シート(新人)'!$H3="","","4000005") ->  | B3: =IF('入力シート(新人)'!$H3="","",IF('入力シート(新人)'!$B3="男",0,1)) ->  | C3: =IF('入力シート(新人)'!$H3="","",'入力シート(新人)'!C3) ->  | D3: =IF('入力シート(新人)'!$H3="","",TEXT('入力シート(新人)'!$E3,"000")) ->  | E3: =IF('入力シート(新人)'!$H3="","",学校番号) ->  | F3: =IF('入力シート(新人)'!$H3="","",B3) ->  | G3: =IF('入力シート(新人)'!$H3="","",TEXT('入力シート(新人)'!$H3,"00")) ->  | J3: =IF('入力シート(新人)'!$H3="","",IF('入力シート(新人)'!K3="","",'入力シート(新人)'!K3)) ->  | N3: =IF('入力シート(新人)'!$H3="","",IF('入力シート(新人)'!L3="","",IF('入力シート(新人)'!L3="電気",0,1))) -> 
A4: =IF('入力シート(新人)'!$H4="","","4000005") ->  | B4: =IF('入力シート(新人)'!$H4="","",IF('入力シート(新人)'!$B4="男",0,1)) ->  | C4: =IF('入力シート(新人)'!$H4="","",'入力シート(新人)'!C4) ->  | D4: =IF('入力シート(新人)'!$H4="","",TEXT('入力シート(新人)'!$E4,"000")) ->  | E4: =IF('入力シート(新人)'!$H4="","",学校番号) ->  | F4: =IF('入力シート(新人)'!$H4="","",B4) ->  | G4: =IF('入力シート(新人)'!$H4="","",TEXT('入力シート(新人)'!$H4,"00")) ->  | J4: =IF('入力シート(新人)'!$H4="","",IF('入力シート(新人)'!K4="","",'入力シート(新人)'!K4)) ->  | N4: =IF('入力シート(新人)'!$H4="","",IF('入力シート(新人)'!L4="","",IF('入力シート(新人)'!L4="電気",0,1))) -> 
A5: =IF('入力シート(新人)'!$H5="","","4000005") ->  | B5: =IF('入力シート(新人)'!$H5="","",IF('入力シート(新人)'!$B5="男",0,1)) ->  | C5: =IF('入力シート(新人)'!$H5="","",'入力シート(新人)'!C5) ->  | D5: =IF('入力シート(新人)'!$H5="","",TEXT('入力シート(新人)'!$E5,"000")) ->  | E5: =IF('入力シート(新人)'!$H5="","",学校番号) ->  | F5: =IF('入力シート(新人)'!$H5="","",B5) ->  | G5: =IF('入力シート(新人)'!$H5="","",TEXT('入力シート(新人)'!$H5,"00")) ->  | J5: =IF('入力シート(新人)'!$H5="","",IF('入力シート(新人)'!K5="","",'入力シート(新人)'!K5)) ->  | N5: =IF('入力シート(新人)'!$H5="","",IF('入力シート(新人)'!L5="","",IF('入力シート(新人)'!L5="電気",0,1))) -> 
A6: =IF('入力シート(新人)'!$H6="","","4000005") ->  | B6: =IF('入力シート(新人)'!$H6="","",IF('入力シート(新人)'!$B6="男",0,1)) ->  | C6: =IF('入力シート(新人)'!$H6="","",'入力シート(新人)'!C6) ->  | D6: =IF('入力シート(新人)'!$H6="","",TEXT('入力シート(新人)'!$E6,"000")) ->  | E6: =IF('入力シート(新人)'!$H6="","",学校番号) ->  | F6: =IF('入力シート(新人)'!$H6="","",B6) ->  | G6: =IF('入力シート(新人)'!$H6="","",TEXT('入力シート(新人)'!$H6,"00")) ->  | J6: =IF('入力シート(新人)'!$H6="","",IF('入力シート(新人)'!K6="","",'入力シート(新人)'!K6)) ->  | N6: =IF('入力シート(新人)'!$H6="","",IF('入力シート(新人)'!L6="","",IF('入力シート(新人)'!L6="電気",0,1))) -> 
A7: =IF('入力シート(新人)'!$H7="","","4000005") ->  | B7: =IF('入力シート(新人)'!$H7="","",IF('入力シート(新人)'!$B7="男",0,1)) ->  | C7: =IF('入力シート(新人)'!$H7="","",'入力シート(新人)'!C7) ->  | D7: =IF('入力シート(新人)'!$H7="","",TEXT('入力シート(新人)'!$E7,"000")) ->  | E7: =IF('入力シート(新人)'!$H7="","",学校番号) ->  | F7: =IF('入力シート(新人)'!$H7="","",B7) ->  | G7: =IF('入力シート(新人)'!$H7="","",TEXT('入力シート(新人)'!$H7,"00")) ->  | J7: =IF('入力シート(新人)'!$H7="","",IF('入力シート(新人)'!K7="","",'入力シート(新人)'!K7)) ->  | N7: =IF('入力シート(新人)'!$H7="","",IF('入力シート(新人)'!L7="","",IF('入力シート(新人)'!L7="電気",0,1))) -> 
A8: =IF('入力シート(新人)'!$H8="","","4000005") ->  | B8: =IF('入力シート(新人)'!$H8="","",IF('入力シート(新人)'!$B8="男",0,1)) ->  | C8: =IF('入力シート(新人)'!$H8="","",'入力シート(新人)'!C8) ->  | D8: =IF('入力シート(新人)'!$H8="","",TEXT('入力シート(新人)'!$E8,"000")) ->  | E8: =IF('入力シート(新人)'!$H8="","",学校番号) ->  | F8: =IF('入力シート(新人)'!$H8="","",B8) ->  | G8: =IF('入力シート(新人)'!$H8="","",TEXT('入力シート(新人)'!$H8,"00")) ->  | J8: =IF('入力シート(新人)'!$H8="","",IF('入力シート(新人)'!K8="","",'入力シート(新人)'!K8)) ->  | N8: =IF('入力シート(新人)'!$H8="","",IF('入力シート(新人)'!L8="","",IF('入力シート(新人)'!L8="電気",0,1))) -> 
A9: =IF('入力シート(新人)'!$H9="","","4000005") ->  | B9: =IF('入力シート(新人)'!$H9="","",IF('入力シート(新人)'!$B9="男",0,1)) ->  | C9: =IF('入力シート(新人)'!$H9="","",'入力シート(新人)'!C9) ->  | D9: =IF('入力シート(新人)'!$H9="","",TEXT('入力シート(新人)'!$E9,"000")) ->  | E9: =IF('入力シート(新人)'!$H9="","",学校番号) ->  | F9: =IF('入力シート(新人)'!$H9="","",B9) ->  | G9: =IF('入力シート(新人)'!$H9="","",TEXT('入力シート(新人)'!$H9,"00")) ->  | J9: =IF('入力シート(新人)'!$H9="","",IF('入力シート(新人)'!K9="","",'入力シート(新人)'!K9)) ->  | N9: =IF('入力シート(新人)'!$H9="","",IF('入力シート(新人)'!L9="","",IF('入力シート(新人)'!L9="電気",0,1))) -> 
A10: =IF('入力シート(新人)'!$H10="","","4000005") ->  | B10: =IF('入力シート(新人)'!$H10="","",IF('入力シート(新人)'!$B10="男",0,1)) ->  | C10: =IF('入力シート(新人)'!$H10="","",'入力シート(新人)'!C10) ->  | D10: =IF('入力シート(新人)'!$H10="","",TEXT('入力シート(新人)'!$E10,"000")) ->  | E10: =IF('入力シート(新人)'!$H10="","",学校番号) ->  | F10: =IF('入力シート(新人)'!$H10="","",B10) ->  | G10: =IF('入力シート(新人)'!$H10="","",TEXT('入力シート(新人)'!$H10,"00")) ->  | J10: =IF('入力シート(新人)'!$H10="","",IF('入力シート(新人)'!K10="","",'入力シート(新人)'!K10)) ->  | N10: =IF('入力シート(新人)'!$H10="","",IF('入力シート(新人)'!L10="","",IF('入力シート(新人)'!L10="電気",0,1))) -> 
A11: =IF('入力シート(新人)'!$H11="","","4000005") ->  | B11: =IF('入力シート(新人)'!$H11="","",IF('入力シート(新人)'!$B11="男",0,1)) ->  | C11: =IF('入力シート(新人)'!$H11="","",'入力シート(新人)'!C11) ->  | D11: =IF('入力シート(新人)'!$H11="","",TEXT('入力シート(新人)'!$E11,"000")) ->  | E11: =IF('入力シート(新人)'!$H11="","",学校番号) ->  | F11: =IF('入力シート(新人)'!$H11="","",B11) ->  | G11: =IF('入力シート(新人)'!$H11="","",TEXT('入力シート(新人)'!$H11,"00")) ->  | J11: =IF('入力シート(新人)'!$H11="","",IF('入力シート(新人)'!K11="","",'入力シート(新人)'!K11)) ->  | N11: =IF('入力シート(新人)'!$H11="","",IF('入力シート(新人)'!L11="","",IF('入力シート(新人)'!L11="電気",0,1))) -> 
A12: =IF('入力シート(新人)'!$H12="","","4000005") ->  | B12: =IF('入力シート(新人)'!$H12="","",IF('入力シート(新人)'!$B12="男",0,1)) ->  | C12: =IF('入力シート(新人)'!$H12="","",'入力シート(新人)'!C12) ->  | D12: =IF('入力シート(新人)'!$H12="","",TEXT('入力シート(新人)'!$E12,"000")) ->  | E12: =IF('入力シート(新人)'!$H12="","",学校番号) ->  | F12: =IF('入力シート(新人)'!$H12="","",B12) ->  | G12: =IF('入力シート(新人)'!$H12="","",TEXT('入力シート(新人)'!$H12,"00")) ->  | J12: =IF('入力シート(新人)'!$H12="","",IF('入力シート(新人)'!K12="","",'入力シート(新人)'!K12)) ->  | N12: =IF('入力シート(新人)'!$H12="","",IF('入力シート(新人)'!L12="","",IF('入力シート(新人)'!L12="電気",0,1))) -> 
A13: =IF('入力シート(新人)'!$H13="","","4000005") ->  | B13: =IF('入力シート(新人)'!$H13="","",IF('入力シート(新人)'!$B13="男",0,1)) ->  | C13: =IF('入力シート(新人)'!$H13="","",'入力シート(新人)'!C13) ->  | D13: =IF('入力シート(新人)'!$H13="","",TEXT('入力シート(新人)'!$E13,"000")) ->  | E13: =IF('入力シート(新人)'!$H13="","",学校番号) ->  | F13: =IF('入力シート(新人)'!$H13="","",B13) ->  | G13: =IF('入力シート(新人)'!$H13="","",TEXT('入力シート(新人)'!$H13,"00")) ->  | J13: =IF('入力シート(新人)'!$H13="","",IF('入力シート(新人)'!K13="","",'入力シート(新人)'!K13)) ->  | N13: =IF('入力シート(新人)'!$H13="","",IF('入力シート(新人)'!L13="","",IF('入力シート(新人)'!L13="電気",0,1))) -> 
A14: =IF('入力シート(新人)'!$H14="","","4000005") ->  | B14: =IF('入力シート(新人)'!$H14="","",IF('入力シート(新人)'!$B14="男",0,1)) ->  | C14: =IF('入力シート(新人)'!$H14="","",'入力シート(新人)'!C14) ->  | D14: =IF('入力シート(新人)'!$H14="","",TEXT('入力シート(新人)'!$E14,"000")) ->  | E14: =IF('入力シート(新人)'!$H14="","",学校番号) ->  | F14: =IF('入力シート(新人)'!$H14="","",B14) ->  | G14: =IF('入力シート(新人)'!$H14="","",TEXT('入力シート(新人)'!$H14,"00")) ->  | J14: =IF('入力シート(新人)'!$H14="","",IF('入力シート(新人)'!K14="","",'入力シート(新人)'!K14)) ->  | N14: =IF('入力シート(新人)'!$H14="","",IF('入力シート(新人)'!L14="","",IF('入力シート(新人)'!L14="電気",0,1))) -> 
A15: =IF('入力シート(新人)'!$H15="","","4000005") ->  | B15: =IF('入力シート(新人)'!$H15="","",IF('入力シート(新人)'!$B15="男",0,1)) ->  | C15: =IF('入力シート(新人)'!$H15="","",'入力シート(新人)'!C15) ->  | D15: =IF('入力シート(新人)'!$H15="","",TEXT('入力シート(新人)'!$E15,"000")) ->  | E15: =IF('入力シート(新人)'!$H15="","",学校番号) ->  | F15: =IF('入力シート(新人)'!$H15="","",B15) ->  | G15: =IF('入力シート(新人)'!$H15="","",TEXT('入力シート(新人)'!$H15,"00")) ->  | J15: =IF('入力シート(新人)'!$H15="","",IF('入力シート(新人)'!K15="","",'入力シート(新人)'!K15)) ->  | N15: =IF('入力シート(新人)'!$H15="","",IF('入力シート(新人)'!L15="","",IF('入力シート(新人)'!L15="電気",0,1))) -> 
A16: =IF('入力シート(新人)'!$H16="","","4000005") ->  | B16: =IF('入力シート(新人)'!$H16="","",IF('入力シート(新人)'!$B16="男",0,1)) ->  | C16: =IF('入力シート(新人)'!$H16="","",'入力シート(新人)'!C16) ->  | D16: =IF('入力シート(新人)'!$H16="","",TEXT('入力シート(新人)'!$E16,"000")) ->  | E16: =IF('入力シート(新人)'!$H16="","",学校番号) ->  | F16: =IF('入力シート(新人)'!$H16="","",B16) ->  | G16: =IF('入力シート(新人)'!$H16="","",TEXT('入力シート(新人)'!$H16,"00")) ->  | J16: =IF('入力シート(新人)'!$H16="","",IF('入力シート(新人)'!K16="","",'入力シート(新人)'!K16)) ->  | N16: =IF('入力シート(新人)'!$H16="","",IF('入力シート(新人)'!L16="","",IF('入力シート(新人)'!L16="電気",0,1))) -> 
A17: =IF('入力シート(新人)'!$H17="","","4000005") ->  | B17: =IF('入力シート(新人)'!$H17="","",IF('入力シート(新人)'!$B17="男",0,1)) ->  | C17: =IF('入力シート(新人)'!$H17="","",'入力シート(新人)'!C17) ->  | D17: =IF('入力シート(新人)'!$H17="","",TEXT('入力シート(新人)'!$E17,"000")) ->  | E17: =IF('入力シート(新人)'!$H17="","",学校番号) ->  | F17: =IF('入力シート(新人)'!$H17="","",B17) ->  | G17: =IF('入力シート(新人)'!$H17="","",TEXT('入力シート(新人)'!$H17,"00")) ->  | J17: =IF('入力シート(新人)'!$H17="","",IF('入力シート(新人)'!K17="","",'入力シート(新人)'!K17)) ->  | N17: =IF('入力シート(新人)'!$H17="","",IF('入力シート(新人)'!L17="","",IF('入力シート(新人)'!L17="電気",0,1))) -> 
A18: =IF('入力シート(新人)'!$H18="","","4000005") ->  | B18: =IF('入力シート(新人)'!$H18="","",IF('入力シート(新人)'!$B18="男",0,1)) ->  | C18: =IF('入力シート(新人)'!$H18="","",'入力シート(新人)'!C18) ->  | D18: =IF('入力シート(新人)'!$H18="","",TEXT('入力シート(新人)'!$E18,"000")) ->  | E18: =IF('入力シート(新人)'!$H18="","",学校番号) ->  | F18: =IF('入力シート(新人)'!$H18="","",B18) ->  | G18: =IF('入力シート(新人)'!$H18="","",TEXT('入力シート(新人)'!$H18,"00")) ->  | J18: =IF('入力シート(新人)'!$H18="","",IF('入力シート(新人)'!K18="","",'入力シート(新人)'!K18)) ->  | N18: =IF('入力シート(新人)'!$H18="","",IF('入力シート(新人)'!L18="","",IF('入力シート(新人)'!L18="電気",0,1))) -> 
A19: =IF('入力シート(新人)'!$H19="","","4000005") ->  | B19: =IF('入力シート(新人)'!$H19="","",IF('入力シート(新人)'!$B19="男",0,1)) ->  | C19: =IF('入力シート(新人)'!$H19="","",'入力シート(新人)'!C19) ->  | D19: =IF('入力シート(新人)'!$H19="","",TEXT('入力シート(新人)'!$E19,"000")) ->  | E19: =IF('入力シート(新人)'!$H19="","",学校番号) ->  | F19: =IF('入力シート(新人)'!$H19="","",B19) ->  | G19: =IF('入力シート(新人)'!$H19="","",TEXT('入力シート(新人)'!$H19,"00")) ->  | J19: =IF('入力シート(新人)'!$H19="","",IF('入力シート(新人)'!K19="","",'入力シート(新人)'!K19)) ->  | N19: =IF('入力シート(新人)'!$H19="","",IF('入力シート(新人)'!L19="","",IF('入力シート(新人)'!L19="電気",0,1))) -> 
A20: =IF('入力シート(新人)'!$H26="","","4000005") ->  | B20: =IF('入力シート(新人)'!$H26="","",IF('入力シート(新人)'!$B26="男",0,1)) ->  | C20: =IF('入力シート(新人)'!$H26="","",'入力シート(新人)'!C26) ->  | D20: =IF('入力シート(新人)'!$H26="","",TEXT('入力シート(新人)'!$E26,"000")) ->  | E20: =IF('入力シート(新人)'!$H26="","",学校番号) ->  | F20: =IF('入力シート(新人)'!$H26="","",B20) ->  | G20: =IF('入力シート(新人)'!$H26="","",TEXT('入力シート(新人)'!$H26,"00")) ->  | J20: =IF('入力シート(新人)'!$H26="","",IF('入力シート(新人)'!K26="","",'入力シート(新人)'!K26)) ->  | N20: =IF('入力シート(新人)'!$H26="","",IF('入力シート(新人)'!L26="","",IF('入力シート(新人)'!L26="電気",0,1))) -> 
A21: =IF('入力シート(新人)'!$H27="","","4000005") ->  | B21: =IF('入力シート(新人)'!$H27="","",IF('入力シート(新人)'!$B27="男",0,1)) ->  | C21: =IF('入力シート(新人)'!$H27="","",'入力シート(新人)'!C27) ->  | D21: =IF('入力シート(新人)'!$H27="","",TEXT('入力シート(新人)'!$E27,"000")) ->  | E21: =IF('入力シート(新人)'!$H27="","",学校番号) ->  | F21: =IF('入力シート(新人)'!$H27="","",B21) ->  | G21: =IF('入力シート(新人)'!$H27="","",TEXT('入力シート(新人)'!$H27,"00")) ->  | J21: =IF('入力シート(新人)'!$H27="","",IF('入力シート(新人)'!K27="","",'入力シート(新人)'!K27)) ->  | N21: =IF('入力シート(新人)'!$H27="","",IF('入力シート(新人)'!L27="","",IF('入力シート(新人)'!L27="電気",0,1))) -> 
A22: =IF('入力シート(新人)'!$H28="","","4000005") ->  | B22: =IF('入力シート(新人)'!$H28="","",IF('入力シート(新人)'!$B28="男",0,1)) ->  | C22: =IF('入力シート(新人)'!$H28="","",'入力シート(新人)'!C28) ->  | D22: =IF('入力シート(新人)'!$H28="","",TEXT('入力シート(新人)'!$E28,"000")) ->  | E22: =IF('入力シート(新人)'!$H28="","",学校番号) ->  | F22: =IF('入力シート(新人)'!$H28="","",B22) ->  | G22: =IF('入力シート(新人)'!$H28="","",TEXT('入力シート(新人)'!$H28,"00")) ->  | J22: =IF('入力シート(新人)'!$H28="","",IF('入力シート(新人)'!K28="","",'入力シート(新人)'!K28)) ->  | N22: =IF('入力シート(新人)'!$H28="","",IF('入力シート(新人)'!L28="","",IF('入力シート(新人)'!L28="電気",0,1))) -> 
A23: =IF('入力シート(新人)'!$H29="","","4000005") ->  | B23: =IF('入力シート(新人)'!$H29="","",IF('入力シート(新人)'!$B29="男",0,1)) ->  | C23: =IF('入力シート(新人)'!$H29="","",'入力シート(新人)'!C29) ->  | D23: =IF('入力シート(新人)'!$H29="","",TEXT('入力シート(新人)'!$E29,"000")) ->  | E23: =IF('入力シート(新人)'!$H29="","",学校番号) ->  | F23: =IF('入力シート(新人)'!$H29="","",B23) ->  | G23: =IF('入力シート(新人)'!$H29="","",TEXT('入力シート(新人)'!$H29,"00")) ->  | J23: =IF('入力シート(新人)'!$H29="","",IF('入力シート(新人)'!K29="","",'入力シート(新人)'!K29)) ->  | N23: =IF('入力シート(新人)'!$H29="","",IF('入力シート(新人)'!L29="","",IF('入力シート(新人)'!L29="電気",0,1))) -> 
A24: =IF('入力シート(新人)'!$H30="","","4000005") ->  | B24: =IF('入力シート(新人)'!$H30="","",IF('入力シート(新人)'!$B30="男",0,1)) ->  | C24: =IF('入力シート(新人)'!$H30="","",'入力シート(新人)'!C30) ->  | D24: =IF('入力シート(新人)'!$H30="","",TEXT('入力シート(新人)'!$E30,"000")) ->  | E24: =IF('入力シート(新人)'!$H30="","",学校番号) ->  | F24: =IF('入力シート(新人)'!$H30="","",B24) ->  | G24: =IF('入力シート(新人)'!$H30="","",TEXT('入力シート(新人)'!$H30,"00")) ->  | J24: =IF('入力シート(新人)'!$H30="","",IF('入力シート(新人)'!K30="","",'入力シート(新人)'!K30)) ->  | N24: =IF('入力シート(新人)'!$H30="","",IF('入力シート(新人)'!L30="","",IF('入力シート(新人)'!L30="電気",0,1))) -> 
A25: =IF('入力シート(新人)'!$H31="","","4000005") ->  | B25: =IF('入力シート(新人)'!$H31="","",IF('入力シート(新人)'!$B31="男",0,1)) ->  | C25: =IF('入力シート(新人)'!$H31="","",'入力シート(新人)'!C31) ->  | D25: =IF('入力シート(新人)'!$H31="","",TEXT('入力シート(新人)'!$E31,"000")) ->  | E25: =IF('入力シート(新人)'!$H31="","",学校番号) ->  | F25: =IF('入力シート(新人)'!$H31="","",B25) ->  | G25: =IF('入力シート(新人)'!$H31="","",TEXT('入力シート(新人)'!$H31,"00")) ->  | J25: =IF('入力シート(新人)'!$H31="","",IF('入力シート(新人)'!K31="","",'入力シート(新人)'!K31)) ->  | N25: =IF('入力シート(新人)'!$H31="","",IF('入力シート(新人)'!L31="","",IF('入力シート(新人)'!L31="電気",0,1))) -> 
A26: =IF('入力シート(新人)'!$H32="","","4000005") ->  | B26: =IF('入力シート(新人)'!$H32="","",IF('入力シート(新人)'!$B32="男",0,1)) ->  | C26: =IF('入力シート(新人)'!$H32="","",'入力シート(新人)'!C32) ->  | D26: =IF('入力シート(新人)'!$H32="","",TEXT('入力シート(新人)'!$E32,"000")) ->  | E26: =IF('入力シート(新人)'!$H32="","",学校番号) ->  | F26: =IF('入力シート(新人)'!$H32="","",B26) ->  | G26: =IF('入力シート(新人)'!$H32="","",TEXT('入力シート(新人)'!$H32,"00")) ->  | J26: =IF('入力シート(新人)'!$H32="","",IF('入力シート(新人)'!K32="","",'入力シート(新人)'!K32)) ->  | N26: =IF('入力シート(新人)'!$H32="","",IF('入力シート(新人)'!L32="","",IF('入力シート(新人)'!L32="電気",0,1))) -> 
A27: =IF('入力シート(新人)'!$H33="","","4000005") ->  | B27: =IF('入力シート(新人)'!$H33="","",IF('入力シート(新人)'!$B33="男",0,1)) ->  | C27: =IF('入力シート(新人)'!$H33="","",'入力シート(新人)'!C33) ->  | D27: =IF('入力シート(新人)'!$H33="","",TEXT('入力シート(新人)'!$E33,"000")) ->  | E27: =IF('入力シート(新人)'!$H33="","",学校番号) ->  | F27: =IF('入力シート(新人)'!$H33="","",B27) ->  | G27: =IF('入力シート(新人)'!$H33="","",TEXT('入力シート(新人)'!$H33,"00")) ->  | J27: =IF('入力シート(新人)'!$H33="","",IF('入力シート(新人)'!K33="","",'入力シート(新人)'!K33)) ->  | N27: =IF('入力シート(新人)'!$H33="","",IF('入力シート(新人)'!L33="","",IF('入力シート(新人)'!L33="電気",0,1))) -> 
A28: =IF('入力シート(新人)'!$H34="","","4000005") ->  | B28: =IF('入力シート(新人)'!$H34="","",IF('入力シート(新人)'!$B34="男",0,1)) ->  | C28: =IF('入力シート(新人)'!$H34="","",'入力シート(新人)'!C34) ->  | D28: =IF('入力シート(新人)'!$H34="","",TEXT('入力シート(新人)'!$E34,"000")) ->  | E28: =IF('入力シート(新人)'!$H34="","",学校番号) ->  | F28: =IF('入力シート(新人)'!$H34="","",B28) ->  | G28: =IF('入力シート(新人)'!$H34="","",TEXT('入力シート(新人)'!$H34,"00")) ->  | J28: =IF('入力シート(新人)'!$H34="","",IF('入力シート(新人)'!K34="","",'入力シート(新人)'!K34)) ->  | N28: =IF('入力シート(新人)'!$H34="","",IF('入力シート(新人)'!L34="","",IF('入力シート(新人)'!L34="電気",0,1))) -> 
A29: =IF('入力シート(新人)'!$H35="","","4000005") ->  | B29: =IF('入力シート(新人)'!$H35="","",IF('入力シート(新人)'!$B35="男",0,1)) ->  | C29: =IF('入力シート(新人)'!$H35="","",'入力シート(新人)'!C35) ->  | D29: =IF('入力シート(新人)'!$H35="","",TEXT('入力シート(新人)'!$E35,"000")) ->  | E29: =IF('入力シート(新人)'!$H35="","",学校番号) ->  | F29: =IF('入力シート(新人)'!$H35="","",B29) ->  | G29: =IF('入力シート(新人)'!$H35="","",TEXT('入力シート(新人)'!$H35,"00")) ->  | J29: =IF('入力シート(新人)'!$H35="","",IF('入力シート(新人)'!K35="","",'入力シート(新人)'!K35)) ->  | N29: =IF('入力シート(新人)'!$H35="","",IF('入力シート(新人)'!L35="","",IF('入力シート(新人)'!L35="電気",0,1))) -> 
A30: =IF('入力シート(新人)'!$H36="","","4000005") ->  | B30: =IF('入力シート(新人)'!$H36="","",IF('入力シート(新人)'!$B36="男",0,1)) ->  | C30: =IF('入力シート(新人)'!$H36="","",'入力シート(新人)'!C36) ->  | D30: =IF('入力シート(新人)'!$H36="","",TEXT('入力シート(新人)'!$E36,"000")) ->  | E30: =IF('入力シート(新人)'!$H36="","",学校番号) ->  | F30: =IF('入力シート(新人)'!$H36="","",B30) ->  | G30: =IF('入力シート(新人)'!$H36="","",TEXT('入力シート(新人)'!$H36,"00")) ->  | J30: =IF('入力シート(新人)'!$H36="","",IF('入力シート(新人)'!K36="","",'入力シート(新人)'!K36)) ->  | N30: =IF('入力シート(新人)'!$H36="","",IF('入力シート(新人)'!L36="","",IF('入力シート(新人)'!L36="電気",0,1))) -> 
A31: =IF('入力シート(新人)'!$H37="","","4000005") ->  | B31: =IF('入力シート(新人)'!$H37="","",IF('入力シート(新人)'!$B37="男",0,1)) ->  | C31: =IF('入力シート(新人)'!$H37="","",'入力シート(新人)'!C37) ->  | D31: =IF('入力シート(新人)'!$H37="","",TEXT('入力シート(新人)'!$E37,"000")) ->  | E31: =IF('入力シート(新人)'!$H37="","",学校番号) ->  | F31: =IF('入力シート(新人)'!$H37="","",B31) ->  | G31: =IF('入力シート(新人)'!$H37="","",TEXT('入力シート(新人)'!$H37,"00")) ->  | J31: =IF('入力シート(新人)'!$H37="","",IF('入力シート(新人)'!K37="","",'入力シート(新人)'!K37)) ->  | N31: =IF('入力シート(新人)'!$H37="","",IF('入力シート(新人)'!L37="","",IF('入力シート(新人)'!L37="電気",0,1))) -> 
A32: =IF('入力シート(新人)'!$H48="","","4000005") ->  | B32: =IF('入力シート(新人)'!$H48="","",IF('入力シート(新人)'!$B48="男",0,1)) ->  | C32: =IF('入力シート(新人)'!$H48="","",'入力シート(新人)'!C48) ->  | D32: =IF('入力シート(新人)'!$H48="","",TEXT('入力シート(新人)'!$E48,"000")) ->  | E32: =IF('入力シート(新人)'!$H48="","",学校番号) ->  | F32: =IF('入力シート(新人)'!$H48="","",B32) ->  | G32: =IF('入力シート(新人)'!$H48="","",TEXT('入力シート(新人)'!$H48,"00")) ->  | J32: =IF('入力シート(新人)'!$H48="","",IF('入力シート(新人)'!K48="","",'入力シート(新人)'!K48)) ->  | N32: =IF('入力シート(新人)'!$H48="","",IF('入力シート(新人)'!L48="","",IF('入力シート(新人)'!L48="電気",0,1))) -> 
A33: =IF('入力シート(新人)'!$H49="","","4000005") ->  | B33: =IF('入力シート(新人)'!$H49="","",IF('入力シート(新人)'!$B49="男",0,1)) ->  | C33: =IF('入力シート(新人)'!$H49="","",'入力シート(新人)'!C49) ->  | D33: =IF('入力シート(新人)'!$H49="","",TEXT('入力シート(新人)'!$E49,"000")) ->  | E33: =IF('入力シート(新人)'!$H49="","",学校番号) ->  | F33: =IF('入力シート(新人)'!$H49="","",B33) ->  | G33: =IF('入力シート(新人)'!$H49="","",TEXT('入力シート(新人)'!$H49,"00")) ->  | J33: =IF('入力シート(新人)'!$H49="","",IF('入力シート(新人)'!K49="","",'入力シート(新人)'!K49)) ->  | N33: =IF('入力シート(新人)'!$H49="","",IF('入力シート(新人)'!L49="","",IF('入力シート(新人)'!L49="電気",0,1))) -> 
A34: =IF('入力シート(新人)'!$H50="","","4000005") ->  | B34: =IF('入力シート(新人)'!$H50="","",IF('入力シート(新人)'!$B50="男",0,1)) ->  | C34: =IF('入力シート(新人)'!$H50="","",'入力シート(新人)'!C50) ->  | D34: =IF('入力シート(新人)'!$H50="","",TEXT('入力シート(新人)'!$E50,"000")) ->  | E34: =IF('入力シート(新人)'!$H50="","",学校番号) ->  | F34: =IF('入力シート(新人)'!$H50="","",B34) ->  | G34: =IF('入力シート(新人)'!$H50="","",TEXT('入力シート(新人)'!$H50,"00")) ->  | J34: =IF('入力シート(新人)'!$H50="","",IF('入力シート(新人)'!K50="","",'入力シート(新人)'!K50)) ->  | N34: =IF('入力シート(新人)'!$H50="","",IF('入力シート(新人)'!L50="","",IF('入力シート(新人)'!L50="電気",0,1))) -> 
A35: =IF('入力シート(新人)'!$H51="","","4000005") ->  | B35: =IF('入力シート(新人)'!$H51="","",IF('入力シート(新人)'!$B51="男",0,1)) ->  | C35: =IF('入力シート(新人)'!$H51="","",'入力シート(新人)'!C51) ->  | D35: =IF('入力シート(新人)'!$H51="","",TEXT('入力シート(新人)'!$E51,"000")) ->  | E35: =IF('入力シート(新人)'!$H51="","",学校番号) ->  | F35: =IF('入力シート(新人)'!$H51="","",B35) ->  | G35: =IF('入力シート(新人)'!$H51="","",TEXT('入力シート(新人)'!$H51,"00")) ->  | J35: =IF('入力シート(新人)'!$H51="","",IF('入力シート(新人)'!K51="","",'入力シート(新人)'!K51)) ->  | N35: =IF('入力シート(新人)'!$H51="","",IF('入力シート(新人)'!L51="","",IF('入力シート(新人)'!L51="電気",0,1))) -> 
A36: =IF('入力シート(新人)'!$H52="","","4000005") ->  | B36: =IF('入力シート(新人)'!$H52="","",IF('入力シート(新人)'!$B52="男",0,1)) ->  | C36: =IF('入力シート(新人)'!$H52="","",'入力シート(新人)'!C52) ->  | D36: =IF('入力シート(新人)'!$H52="","",TEXT('入力シート(新人)'!$E52,"000")) ->  | E36: =IF('入力シート(新人)'!$H52="","",学校番号) ->  | F36: =IF('入力シート(新人)'!$H52="","",B36) ->  | G36: =IF('入力シート(新人)'!$H52="","",TEXT('入力シート(新人)'!$H52,"00")) ->  | J36: =IF('入力シート(新人)'!$H52="","",IF('入力シート(新人)'!K52="","",'入力シート(新人)'!K52)) ->  | N36: =IF('入力シート(新人)'!$H52="","",IF('入力シート(新人)'!L52="","",IF('入力シート(新人)'!L52="電気",0,1))) -> 
A37: =IF('入力シート(新人)'!$H53="","","4000005") ->  | B37: =IF('入力シート(新人)'!$H53="","",IF('入力シート(新人)'!$B53="男",0,1)) ->  | C37: =IF('入力シート(新人)'!$H53="","",'入力シート(新人)'!C53) ->  | D37: =IF('入力シート(新人)'!$H53="","",TEXT('入力シート(新人)'!$E53,"000")) ->  | E37: =IF('入力シート(新人)'!$H53="","",学校番号) ->  | F37: =IF('入力シート(新人)'!$H53="","",B37) ->  | G37: =IF('入力シート(新人)'!$H53="","",TEXT('入力シート(新人)'!$H53,"00")) ->  | J37: =IF('入力シート(新人)'!$H53="","",IF('入力シート(新人)'!K53="","",'入力シート(新人)'!K53)) ->  | N37: =IF('入力シート(新人)'!$H53="","",IF('入力シート(新人)'!L53="","",IF('入力シート(新人)'!L53="電気",0,1))) -> 
A38: =IF('入力シート(新人)'!$H54="","","4000005") ->  | B38: =IF('入力シート(新人)'!$H54="","",IF('入力シート(新人)'!$B54="男",0,1)) ->  | C38: =IF('入力シート(新人)'!$H54="","",'入力シート(新人)'!C54) ->  | D38: =IF('入力シート(新人)'!$H54="","",TEXT('入力シート(新人)'!$E54,"000")) ->  | E38: =IF('入力シート(新人)'!$H54="","",学校番号) ->  | F38: =IF('入力シート(新人)'!$H54="","",B38) ->  | G38: =IF('入力シート(新人)'!$H54="","",TEXT('入力シート(新人)'!$H54,"00")) ->  | J38: =IF('入力シート(新人)'!$H54="","",IF('入力シート(新人)'!K54="","",'入力シート(新人)'!K54)) ->  | N38: =IF('入力シート(新人)'!$H54="","",IF('入力シート(新人)'!L54="","",IF('入力シート(新人)'!L54="電気",0,1))) -> 
A39: =IF('入力シート(新人)'!$H55="","","4000005") ->  | B39: =IF('入力シート(新人)'!$H55="","",IF('入力シート(新人)'!$B55="男",0,1)) ->  | C39: =IF('入力シート(新人)'!$H55="","",'入力シート(新人)'!C55) ->  | D39: =IF('入力シート(新人)'!$H55="","",TEXT('入力シート(新人)'!$E55,"000")) ->  | E39: =IF('入力シート(新人)'!$H55="","",学校番号) ->  | F39: =IF('入力シート(新人)'!$H55="","",B39) ->  | G39: =IF('入力シート(新人)'!$H55="","",TEXT('入力シート(新人)'!$H55,"00")) ->  | J39: =IF('入力シート(新人)'!$H55="","",IF('入力シート(新人)'!K55="","",'入力シート(新人)'!K55)) ->  | N39: =IF('入力シート(新人)'!$H55="","",IF('入力シート(新人)'!L55="","",IF('入力シート(新人)'!L55="電気",0,1))) -> 
A40: =IF('入力シート(新人)'!$H56="","","4000005") ->  | B40: =IF('入力シート(新人)'!$H56="","",IF('入力シート(新人)'!$B56="男",0,1)) ->  | C40: =IF('入力シート(新人)'!$H56="","",'入力シート(新人)'!C56) ->  | D40: =IF('入力シート(新人)'!$H56="","",TEXT('入力シート(新人)'!$E56,"000")) ->  | E40: =IF('入力シート(新人)'!$H56="","",学校番号) ->  | F40: =IF('入力シート(新人)'!$H56="","",B40) ->  | G40: =IF('入力シート(新人)'!$H56="","",TEXT('入力シート(新人)'!$H56,"00")) ->  | J40: =IF('入力シート(新人)'!$H56="","",IF('入力シート(新人)'!K56="","",'入力シート(新人)'!K56)) ->  | N40: =IF('入力シート(新人)'!$H56="","",IF('入力シート(新人)'!L56="","",IF('入力シート(新人)'!L56="電気",0,1))) -> 
A41: =IF('入力シート(新人)'!$H57="","","4000005") ->  | B41: =IF('入力シート(新人)'!$H57="","",IF('入力シート(新人)'!$B57="男",0,1)) ->  | C41: =IF('入力シート(新人)'!$H57="","",'入力シート(新人)'!C57) ->  | D41: =IF('入力シート(新人)'!$H57="","",TEXT('入力シート(新人)'!$E57,"000")) ->  | E41: =IF('入力シート(新人)'!$H57="","",学校番号) ->  | F41: =IF('入力シート(新人)'!$H57="","",B41) ->  | G41: =IF('入力シート(新人)'!$H57="","",TEXT('入力シート(新人)'!$H57,"00")) ->  | J41: =IF('入力シート(新人)'!$H57="","",IF('入力シート(新人)'!K57="","",'入力シート(新人)'!K57)) ->  | N41: =IF('入力シート(新人)'!$H57="","",IF('入力シート(新人)'!L57="","",IF('入力シート(新人)'!L57="電気",0,1))) -> 
A42: =IF('入力シート(新人)'!$H58="","","4000005") ->  | B42: =IF('入力シート(新人)'!$H58="","",IF('入力シート(新人)'!$B58="男",0,1)) ->  | C42: =IF('入力シート(新人)'!$H58="","",'入力シート(新人)'!C58) ->  | D42: =IF('入力シート(新人)'!$H58="","",TEXT('入力シート(新人)'!$E58,"000")) ->  | E42: =IF('入力シート(新人)'!$H58="","",学校番号) ->  | F42: =IF('入力シート(新人)'!$H58="","",B42) ->  | G42: =IF('入力シート(新人)'!$H58="","",TEXT('入力シート(新人)'!$H58,"00")) ->  | J42: =IF('入力シート(新人)'!$H58="","",IF('入力シート(新人)'!K58="","",'入力シート(新人)'!K58)) ->  | N42: =IF('入力シート(新人)'!$H58="","",IF('入力シート(新人)'!L58="","",IF('入力シート(新人)'!L58="電気",0,1))) -> 
A43: =IF('入力シート(新人)'!$H59="","","4000005") ->  | B43: =IF('入力シート(新人)'!$H59="","",IF('入力シート(新人)'!$B59="男",0,1)) ->  | C43: =IF('入力シート(新人)'!$H59="","",'入力シート(新人)'!C59) ->  | D43: =IF('入力シート(新人)'!$H59="","",TEXT('入力シート(新人)'!$E59,"000")) ->  | E43: =IF('入力シート(新人)'!$H59="","",学校番号) ->  | F43: =IF('入力シート(新人)'!$H59="","",B43) ->  | G43: =IF('入力シート(新人)'!$H59="","",TEXT('入力シート(新人)'!$H59,"00")) ->  | J43: =IF('入力シート(新人)'!$H59="","",IF('入力シート(新人)'!K59="","",'入力シート(新人)'!K59)) ->  | N43: =IF('入力シート(新人)'!$H59="","",IF('入力シート(新人)'!L59="","",IF('入力シート(新人)'!L59="電気",0,1))) -> 
A44: =IF('入力シート(新人)'!$H60="","","4000005") ->  | B44: =IF('入力シート(新人)'!$H60="","",IF('入力シート(新人)'!$B60="男",0,1)) ->  | C44: =IF('入力シート(新人)'!$H60="","",'入力シート(新人)'!C60) ->  | D44: =IF('入力シート(新人)'!$H60="","",TEXT('入力シート(新人)'!$E60,"000")) ->  | E44: =IF('入力シート(新人)'!$H60="","",学校番号) ->  | F44: =IF('入力シート(新人)'!$H60="","",B44) ->  | G44: =IF('入力シート(新人)'!$H60="","",TEXT('入力シート(新人)'!$H60,"00")) ->  | J44: =IF('入力シート(新人)'!$H60="","",IF('入力シート(新人)'!K60="","",'入力シート(新人)'!K60)) ->  | N44: =IF('入力シート(新人)'!$H60="","",IF('入力シート(新人)'!L60="","",IF('入力シート(新人)'!L60="電気",0,1))) -> 
A45: =IF('入力シート(新人)'!$H61="","","4000005") ->  | B45: =IF('入力シート(新人)'!$H61="","",IF('入力シート(新人)'!$B61="男",0,1)) ->  | C45: =IF('入力シート(新人)'!$H61="","",'入力シート(新人)'!C61) ->  | D45: =IF('入力シート(新人)'!$H61="","",TEXT('入力シート(新人)'!$E61,"000")) ->  | E45: =IF('入力シート(新人)'!$H61="","",学校番号) ->  | F45: =IF('入力シート(新人)'!$H61="","",B45) ->  | G45: =IF('入力シート(新人)'!$H61="","",TEXT('入力シート(新人)'!$H61,"00")) ->  | J45: =IF('入力シート(新人)'!$H61="","",IF('入力シート(新人)'!K61="","",'入力シート(新人)'!K61)) ->  | N45: =IF('入力シート(新人)'!$H61="","",IF('入力シート(新人)'!L61="","",IF('入力シート(新人)'!L61="電気",0,1))) -> 
A46: =IF('入力シート(新人)'!$H68="","","4000005") ->  | B46: =IF('入力シート(新人)'!$H68="","",IF('入力シート(新人)'!$B68="男",0,1)) ->  | C46: =IF('入力シート(新人)'!$H68="","",'入力シート(新人)'!C68) ->  | D46: =IF('入力シート(新人)'!$H68="","",TEXT('入力シート(新人)'!$E68,"000")) ->  | E46: =IF('入力シート(新人)'!$H68="","",学校番号) ->  | F46: =IF('入力シート(新人)'!$H68="","",B46) ->  | G46: =IF('入力シート(新人)'!$H68="","",TEXT('入力シート(新人)'!$H68,"00")) ->  | J46: =IF('入力シート(新人)'!$H68="","",IF('入力シート(新人)'!K68="","",'入力シート(新人)'!K68)) ->  | N46: =IF('入力シート(新人)'!$H68="","",IF('入力シート(新人)'!L68="","",IF('入力シート(新人)'!L68="電気",0,1))) -> 
A47: =IF('入力シート(新人)'!$H69="","","4000005") ->  | B47: =IF('入力シート(新人)'!$H69="","",IF('入力シート(新人)'!$B69="男",0,1)) ->  | C47: =IF('入力シート(新人)'!$H69="","",'入力シート(新人)'!C69) ->  | D47: =IF('入力シート(新人)'!$H69="","",TEXT('入力シート(新人)'!$E69,"000")) ->  | E47: =IF('入力シート(新人)'!$H69="","",学校番号) ->  | F47: =IF('入力シート(新人)'!$H69="","",B47) ->  | G47: =IF('入力シート(新人)'!$H69="","",TEXT('入力シート(新人)'!$H69,"00")) ->  | J47: =IF('入力シート(新人)'!$H69="","",IF('入力シート(新人)'!K69="","",'入力シート(新人)'!K69)) ->  | N47: =IF('入力シート(新人)'!$H69="","",IF('入力シート(新人)'!L69="","",IF('入力シート(新人)'!L69="電気",0,1))) -> 
A48: =IF('入力シート(新人)'!$H70="","","4000005") ->  | B48: =IF('入力シート(新人)'!$H70="","",IF('入力シート(新人)'!$B70="男",0,1)) ->  | C48: =IF('入力シート(新人)'!$H70="","",'入力シート(新人)'!C70) ->  | D48: =IF('入力シート(新人)'!$H70="","",TEXT('入力シート(新人)'!$E70,"000")) ->  | E48: =IF('入力シート(新人)'!$H70="","",学校番号) ->  | F48: =IF('入力シート(新人)'!$H70="","",B48) ->  | G48: =IF('入力シート(新人)'!$H70="","",TEXT('入力シート(新人)'!$H70,"00")) ->  | J48: =IF('入力シート(新人)'!$H70="","",IF('入力シート(新人)'!K70="","",'入力シート(新人)'!K70)) ->  | N48: =IF('入力シート(新人)'!$H70="","",IF('入力シート(新人)'!L70="","",IF('入力シート(新人)'!L70="電気",0,1))) -> 
A49: =IF('入力シート(新人)'!$H71="","","4000005") ->  | B49: =IF('入力シート(新人)'!$H71="","",IF('入力シート(新人)'!$B71="男",0,1)) ->  | C49: =IF('入力シート(新人)'!$H71="","",'入力シート(新人)'!C71) ->  | D49: =IF('入力シート(新人)'!$H71="","",TEXT('入力シート(新人)'!$E71,"000")) ->  | E49: =IF('入力シート(新人)'!$H71="","",学校番号) ->  | F49: =IF('入力シート(新人)'!$H71="","",B49) ->  | G49: =IF('入力シート(新人)'!$H71="","",TEXT('入力シート(新人)'!$H71,"00")) ->  | J49: =IF('入力シート(新人)'!$H71="","",IF('入力シート(新人)'!K71="","",'入力シート(新人)'!K71)) ->  | N49: =IF('入力シート(新人)'!$H71="","",IF('入力シート(新人)'!L71="","",IF('入力シート(新人)'!L71="電気",0,1))) -> 
A50: =IF('入力シート(新人)'!$H72="","","4000005") ->  | B50: =IF('入力シート(新人)'!$H72="","",IF('入力シート(新人)'!$B72="男",0,1)) ->  | C50: =IF('入力シート(新人)'!$H72="","",'入力シート(新人)'!C72) ->  | D50: =IF('入力シート(新人)'!$H72="","",TEXT('入力シート(新人)'!$E72,"000")) ->  | E50: =IF('入力シート(新人)'!$H72="","",学校番号) ->  | F50: =IF('入力シート(新人)'!$H72="","",B50) ->  | G50: =IF('入力シート(新人)'!$H72="","",TEXT('入力シート(新人)'!$H72,"00")) ->  | J50: =IF('入力シート(新人)'!$H72="","",IF('入力シート(新人)'!K72="","",'入力シート(新人)'!K72)) ->  | N50: =IF('入力シート(新人)'!$H72="","",IF('入力シート(新人)'!L72="","",IF('入力シート(新人)'!L72="電気",0,1))) -> 
A51: =IF('入力シート(新人)'!$H73="","","4000005") ->  | B51: =IF('入力シート(新人)'!$H73="","",IF('入力シート(新人)'!$B73="男",0,1)) ->  | C51: =IF('入力シート(新人)'!$H73="","",'入力シート(新人)'!C73) ->  | D51: =IF('入力シート(新人)'!$H73="","",TEXT('入力シート(新人)'!$E73,"000")) ->  | E51: =IF('入力シート(新人)'!$H73="","",学校番号) ->  | F51: =IF('入力シート(新人)'!$H73="","",B51) ->  | G51: =IF('入力シート(新人)'!$H73="","",TEXT('入力シート(新人)'!$H73,"00")) ->  | J51: =IF('入力シート(新人)'!$H73="","",IF('入力シート(新人)'!K73="","",'入力シート(新人)'!K73)) ->  | N51: =IF('入力シート(新人)'!$H73="","",IF('入力シート(新人)'!L73="","",IF('入力シート(新人)'!L73="電気",0,1))) -> 
A52: =IF('入力シート(新人)'!$H74="","","4000005") ->  | B52: =IF('入力シート(新人)'!$H74="","",IF('入力シート(新人)'!$B74="男",0,1)) ->  | C52: =IF('入力シート(新人)'!$H74="","",'入力シート(新人)'!C74) ->  | D52: =IF('入力シート(新人)'!$H74="","",TEXT('入力シート(新人)'!$E74,"000")) ->  | E52: =IF('入力シート(新人)'!$H74="","",学校番号) ->  | F52: =IF('入力シート(新人)'!$H74="","",B52) ->  | G52: =IF('入力シート(新人)'!$H74="","",TEXT('入力シート(新人)'!$H74,"00")) ->  | J52: =IF('入力シート(新人)'!$H74="","",IF('入力シート(新人)'!K74="","",'入力シート(新人)'!K74)) ->  | N52: =IF('入力シート(新人)'!$H74="","",IF('入力シート(新人)'!L74="","",IF('入力シート(新人)'!L74="電気",0,1))) -> 
A53: =IF('入力シート(新人)'!$H75="","","4000005") ->  | B53: =IF('入力シート(新人)'!$H75="","",IF('入力シート(新人)'!$B75="男",0,1)) ->  | C53: =IF('入力シート(新人)'!$H75="","",'入力シート(新人)'!C75) ->  | D53: =IF('入力シート(新人)'!$H75="","",TEXT('入力シート(新人)'!$E75,"000")) ->  | E53: =IF('入力シート(新人)'!$H75="","",学校番号) ->  | F53: =IF('入力シート(新人)'!$H75="","",B53) ->  | G53: =IF('入力シート(新人)'!$H75="","",TEXT('入力シート(新人)'!$H75,"00")) ->  | J53: =IF('入力シート(新人)'!$H75="","",IF('入力シート(新人)'!K75="","",'入力シート(新人)'!K75)) ->  | N53: =IF('入力シート(新人)'!$H75="","",IF('入力シート(新人)'!L75="","",IF('入力シート(新人)'!L75="電気",0,1))) -> 
A100: 大会コード | B100: 性別 | C100: 学年 | D100: 競技種目コード | E100: 学校コード | F100: 性別1 | G100: 選手コード | H100: エントリ記録 | I100: 当日記録 | J100: 順位 | K100: 順番 | L100: 条件項目 | M100: 競技－１記録 | N100: 競技－１得点 | O100: 競技－１試技順番 | P100: 競技－１組 | Q100: 競技－１条件項目 | R100: 計測区分1 | S100: 未記録区分１ | T100: 最高記録１ | U100: 公認最高記録１ | V100: 三種最高記録１ | W100: 最高条件項目１ | X100: 公認最高条件項目１ | Y100: 三種最高条件項目１ | Z100: 競技－２記録 | AA100: 競技－２得点 | AB100: 競技－２試技順番 | AC100: 競技－２組 | AD100: 競技－２条件項目 | AE100: 計測区分２ | AF100: 未記録区分２ | AG100: 最高記録２ | AH100: 公認最高記録２ | AI100: 三種最高記録２ | AJ100: 最高条件項目２ | AK100: 公認最高条件項目２ | AL100: 三種最高条件項目２ | AM100: 競技－３記録 | AN100: 競技－３得点 | AO100: 競技－３試技順番 | AP100: 競技－３組 | AQ100: 競技－３条件項目 | AR100: 計測区分３ | AS100: 未記録区分３ | AT100: 最高記録３ | AU100: 公認最高記録３ | AV100: 三種最高記録３ | AW100: 最高条件項目３ | AX100: 公認最高条件項目３ | AY100: 三種最高条件項目３ | AZ100: 競技－４記録 | BA100: 競技－４得点 | BB100: 競技－４試技順番 | BC100: 競技－４組 | BD100: 競技－４条件項目 | BE100: 計測区分４ | BF100: 未記録区分４ | BG100: 最高記録４ | BH100: 公認最高記録４ | BI100: 三種最高記録４ | BJ100: 最高条件項目４ | BK100: 公認最高条件項目４ | BL100: 三種最高条件項目４ | BM100: 競技－５記録 | BN100: 競技－５得点 | BO100: 競技－５試技順番 | BP100: 競技－５組 | BQ100: 競技－５条件項目 | BR100: 大会順位 | BS100: 公認記録
A101: =IF('入力シート(新人)'!$H38="","","4000005") ->  | B101: =IF('入力シート(新人)'!$H38="","",IF('入力シート(新人)'!$B38="男",0,1)) ->  | C101: =IF('入力シート(新人)'!$H38="","",'入力シート(新人)'!C38) ->  | D101: =IF('入力シート(新人)'!$H38="","",TEXT('入力シート(新人)'!$E38,"000")) ->  | E101: =IF('入力シート(新人)'!$H38="","",学校番号) ->  | F101: =IF('入力シート(新人)'!$H38="","",B101) ->  | G101: =IF('入力シート(新人)'!$H38="","",TEXT('入力シート(新人)'!$H38,"00")) ->  | H101: =IF('入力シート(新人)'!$H38="","",IF('入力シート(新人)'!$K38="","",'入力シート(新人)'!$K38)) ->  | M101: =IF('入力シート(新人)'!$H38="","",IF('入力シート(新人)'!$K39="","",'入力シート(新人)'!$K39)) ->  | Z101: =IF('入力シート(新人)'!$H38="","",IF('入力シート(新人)'!$K40="","",'入力シート(新人)'!$K40)) ->  | AM101: =IF('入力シート(新人)'!$H38="","",IF('入力シート(新人)'!$K41="","",'入力シート(新人)'!$K41)) ->  | AZ101: =IF('入力シート(新人)'!$H38="","",IF('入力シート(新人)'!$K42="","",'入力シート(新人)'!$K42)) -> 
A102: =IF('入力シート(新人)'!$H43="","","4000005") ->  | B102: =IF('入力シート(新人)'!$H43="","",IF('入力シート(新人)'!$B43="男",0,1)) ->  | C102: =IF('入力シート(新人)'!$H43="","",'入力シート(新人)'!C43) ->  | D102: =IF('入力シート(新人)'!$H43="","",TEXT('入力シート(新人)'!$E43,"000")) ->  | E102: =IF('入力シート(新人)'!$H43="","",学校番号) ->  | F102: =IF('入力シート(新人)'!$H43="","",B102) ->  | G102: =IF('入力シート(新人)'!$H43="","",TEXT('入力シート(新人)'!$H43,"00")) ->  | H102: =IF('入力シート(新人)'!$H43="","",IF('入力シート(新人)'!$K43="","",'入力シート(新人)'!$K43)) ->  | M102: =IF('入力シート(新人)'!$H43="","",IF('入力シート(新人)'!$K44="","",'入力シート(新人)'!$K44)) ->  | Z102: =IF('入力シート(新人)'!$H43="","",IF('入力シート(新人)'!$K45="","",'入力シート(新人)'!$K45)) ->  | AM102: =IF('入力シート(新人)'!$H43="","",IF('入力シート(新人)'!$K46="","",'入力シート(新人)'!$K46)) ->  | AZ102: =IF('入力シート(新人)'!$H43="","",IF('入力シート(新人)'!$K47="","",'入力シート(新人)'!$K47)) -> 
A103: =IF('入力シート(新人)'!$H76="","","4000005") ->  | B103: =IF('入力シート(新人)'!$H76="","",IF('入力シート(新人)'!$B76="男",0,1)) ->  | C103: =IF('入力シート(新人)'!$H76="","",'入力シート(新人)'!C76) ->  | D103: =IF('入力シート(新人)'!$H76="","",TEXT('入力シート(新人)'!$E76,"000")) ->  | E103: =IF('入力シート(新人)'!$H76="","",学校番号) ->  | F103: =IF('入力シート(新人)'!$H76="","",B103) ->  | G103: =IF('入力シート(新人)'!$H76="","",TEXT('入力シート(新人)'!$H76,"00")) ->  | H103: =IF('入力シート(新人)'!$H76="","",IF('入力シート(新人)'!$K76="","",'入力シート(新人)'!$K76)) ->  | M103: =IF('入力シート(新人)'!$H76="","",IF('入力シート(新人)'!$K77="","",'入力シート(新人)'!$K77)) ->  | Z103: =IF('入力シート(新人)'!$H76="","",IF('入力シート(新人)'!$K78="","",'入力シート(新人)'!$K78)) ->  | AM103: =IF('入力シート(新人)'!$H76="","",IF('入力シート(新人)'!$K79="","",'入力シート(新人)'!$K79)) ->  | AZ103: =IF('入力シート(新人)'!$H76="","",IF('入力シート(新人)'!$K80="","",'入力シート(新人)'!$K80)) -> 
A104: =IF('入力シート(新人)'!$H81="","","4000005") ->  | B104: =IF('入力シート(新人)'!$H81="","",IF('入力シート(新人)'!$B81="男",0,1)) ->  | C104: =IF('入力シート(新人)'!$H81="","",'入力シート(新人)'!C81) ->  | D104: =IF('入力シート(新人)'!$H81="","",TEXT('入力シート(新人)'!$E81,"000")) ->  | E104: =IF('入力シート(新人)'!$H81="","",学校番号) ->  | F104: =IF('入力シート(新人)'!$H81="","",B104) ->  | G104: =IF('入力シート(新人)'!$H81="","",TEXT('入力シート(新人)'!$H81,"00")) ->  | H104: =IF('入力シート(新人)'!$H81="","",IF('入力シート(新人)'!$K81="","",'入力シート(新人)'!$K81)) ->  | M104: =IF('入力シート(新人)'!$H81="","",IF('入力シート(新人)'!$K82="","",'入力シート(新人)'!$K82)) ->  | Z104: =IF('入力シート(新人)'!$H81="","",IF('入力シート(新人)'!$K83="","",'入力シート(新人)'!$K83)) ->  | AM104: =IF('入力シート(新人)'!$H81="","",IF('入力シート(新人)'!$K84="","",'入力シート(新人)'!$K84)) ->  | AZ104: =IF('入力シート(新人)'!$H81="","",IF('入力シート(新人)'!$K85="","",'入力シート(新人)'!$K85)) -> 
A130: 大会コード | B130: 性別 | C130: 学年 | D130: 競技種目コード | E130: 組 | F130: レーン | G130: 学校コード | H130: エントリ記録 | I130: 当日記録 | J130: 順位 | K130: 条件項目 | L130: 選手コード１ | M130: 出場区分１ | N130: 選手コード２ | O130: 出場区分２ | P130: 選手コード３ | Q130: 出場区分３ | R130: 選手コード４ | S130: 出場区分４ | T130: 選手コード５ | U130: 出場区分５ | V130: 選手コード６ | W130: 出場区分６ | X130: 計測区分 | Y130: 未記録区分 | Z130: 大会順位
A131: =IF('入力シート(新人)'!$H20="","","4000005") ->  | B131: =IF('入力シート(新人)'!$H20="","",IF('入力シート(新人)'!$B20="男",0,1)) ->  | C131: =IF('入力シート(新人)'!$H20="","",'入力シート(新人)'!C20) ->  | D131: =IF('入力シート(新人)'!$H20="","",TEXT('入力シート(新人)'!$E20,"000")) ->  | G131: =IF('入力シート(新人)'!$H20="","",学校番号) ->  | H131: =IF('入力シート(新人)'!$H20="","",'入力シート(新人)'!$K20) ->  | L131: =IF('入力シート(新人)'!$H20="","",TEXT('入力シート(新人)'!$H20,"00")) ->  | N131: =IF('入力シート(新人)'!$H21="","",TEXT('入力シート(新人)'!$H21,"00")) ->  | P131: =IF('入力シート(新人)'!$H22="","",TEXT('入力シート(新人)'!$H22,"00")) ->  | R131: =IF('入力シート(新人)'!$H23="","",TEXT('入力シート(新人)'!$H23,"00")) ->  | T131: =IF('入力シート(新人)'!$H24="","",TEXT('入力シート(新人)'!$H24,"00")) ->  | V131: =IF('入力シート(新人)'!$H25="","",TEXT('入力シート(新人)'!$H25,"00")) -> 
A132: =IF('入力シート(新人)'!$H62="","","4000005") ->  | B132: =IF('入力シート(新人)'!$H62="","",IF('入力シート(新人)'!$B62="男",0,1)) ->  | C132: =IF('入力シート(新人)'!$H62="","",'入力シート(新人)'!C62) ->  | D132: =IF('入力シート(新人)'!$H62="","",TEXT('入力シート(新人)'!$E62,"000")) ->  | G132: =IF('入力シート(新人)'!$H62="","",学校番号) ->  | H132: =IF('入力シート(新人)'!$H62="","",'入力シート(新人)'!$K62) ->  | L132: =IF('入力シート(新人)'!$H62="","",TEXT('入力シート(新人)'!$H62,"00")) ->  | N132: =IF('入力シート(新人)'!$H63="","",TEXT('入力シート(新人)'!$H63,"00")) ->  | P132: =IF('入力シート(新人)'!$H64="","",TEXT('入力シート(新人)'!$H64,"00")) ->  | R132: =IF('入力シート(新人)'!$H65="","",TEXT('入力シート(新人)'!$H65,"00")) ->  | T132: =IF('入力シート(新人)'!$H66="","",TEXT('入力シート(新人)'!$H66,"00")) ->  | V132: =IF('入力シート(新人)'!$H67="","",TEXT('入力シート(新人)'!$H67,"00")) -> 
A212: =IF('入力シート(新人)'!$H272="","","4000005") ->  | B212: =IF('入力シート(新人)'!$H272="","",IF('入力シート(新人)'!$B272="男",0,1)) ->  | C212: =IF('入力シート(新人)'!$H272="","",'入力シート(新人)'!C272) ->  | D212: =IF('入力シート(新人)'!$H272="","",'入力シート(新人)'!$E272) ->  | E212: =IF('入力シート(新人)'!$H272="","",学校番号) ->  | F212: =IF('入力シート(新人)'!$H272="","",B212) ->  | G212: =IF('入力シート(新人)'!$H272="","",'入力シート(新人)'!H272) ->  | J212: =IF('入力シート(新人)'!$H272="","",IF('入力シート(新人)'!K272="","",'入力シート(新人)'!K272)) -> 
A213: =IF('入力シート(新人)'!$H273="","","4000005") ->  | B213: =IF('入力シート(新人)'!$H273="","",IF('入力シート(新人)'!$B273="男",0,1)) ->  | C213: =IF('入力シート(新人)'!$H273="","",'入力シート(新人)'!C273) ->  | D213: =IF('入力シート(新人)'!$H273="","",'入力シート(新人)'!$E273) ->  | E213: =IF('入力シート(新人)'!$H273="","",学校番号) ->  | F213: =IF('入力シート(新人)'!$H273="","",B213) ->  | G213: =IF('入力シート(新人)'!$H273="","",'入力シート(新人)'!H273) ->  | J213: =IF('入力シート(新人)'!$H273="","",IF('入力シート(新人)'!K273="","",'入力シート(新人)'!K273)) -> 
A214: =IF('入力シート(新人)'!$H274="","","4000005") ->  | B214: =IF('入力シート(新人)'!$H274="","",IF('入力シート(新人)'!$B274="男",0,1)) ->  | C214: =IF('入力シート(新人)'!$H274="","",'入力シート(新人)'!C274) ->  | D214: =IF('入力シート(新人)'!$H274="","",'入力シート(新人)'!$E274) ->  | E214: =IF('入力シート(新人)'!$H274="","",学校番号) ->  | F214: =IF('入力シート(新人)'!$H274="","",B214) ->  | G214: =IF('入力シート(新人)'!$H274="","",'入力シート(新人)'!H274) ->  | J214: =IF('入力シート(新人)'!$H274="","",IF('入力シート(新人)'!K274="","",'入力シート(新人)'!K274)) -> 
A215: =IF('入力シート(新人)'!$H275="","","4000005") ->  | B215: =IF('入力シート(新人)'!$H275="","",IF('入力シート(新人)'!$B275="男",0,1)) ->  | C215: =IF('入力シート(新人)'!$H275="","",'入力シート(新人)'!C275) ->  | D215: =IF('入力シート(新人)'!$H275="","",'入力シート(新人)'!$E275) ->  | E215: =IF('入力シート(新人)'!$H275="","",学校番号) ->  | F215: =IF('入力シート(新人)'!$H275="","",B215) ->  | G215: =IF('入力シート(新人)'!$H275="","",'入力シート(新人)'!H275) ->  | J215: =IF('入力シート(新人)'!$H275="","",IF('入力シート(新人)'!K275="","",'入力シート(新人)'!K275)) -> 
A216: =IF('入力シート(新人)'!$H276="","","4000005") ->  | B216: =IF('入力シート(新人)'!$H276="","",IF('入力シート(新人)'!$B276="男",0,1)) ->  | C216: =IF('入力シート(新人)'!$H276="","",'入力シート(新人)'!C276) ->  | D216: =IF('入力シート(新人)'!$H276="","",'入力シート(新人)'!$E276) ->  | E216: =IF('入力シート(新人)'!$H276="","",学校番号) ->  | F216: =IF('入力シート(新人)'!$H276="","",B216) ->  | G216: =IF('入力シート(新人)'!$H276="","",'入力シート(新人)'!H276) ->  | J216: =IF('入力シート(新人)'!$H276="","",IF('入力シート(新人)'!K276="","",'入力シート(新人)'!K276)) -> 
A217: =IF('入力シート(新人)'!$H277="","","4000005") ->  | B217: =IF('入力シート(新人)'!$H277="","",IF('入力シート(新人)'!$B277="男",0,1)) ->  | C217: =IF('入力シート(新人)'!$H277="","",'入力シート(新人)'!C277) ->  | D217: =IF('入力シート(新人)'!$H277="","",'入力シート(新人)'!$E277) ->  | E217: =IF('入力シート(新人)'!$H277="","",学校番号) ->  | F217: =IF('入力シート(新人)'!$H277="","",B217) ->  | G217: =IF('入力シート(新人)'!$H277="","",'入力シート(新人)'!H277) ->  | J217: =IF('入力シート(新人)'!$H277="","",IF('入力シート(新人)'!K277="","",'入力シート(新人)'!K277)) -> 
A218: =IF('入力シート(新人)'!$H278="","","4000005") ->  | B218: =IF('入力シート(新人)'!$H278="","",IF('入力シート(新人)'!$B278="男",0,1)) ->  | C218: =IF('入力シート(新人)'!$H278="","",'入力シート(新人)'!C278) ->  | D218: =IF('入力シート(新人)'!$H278="","",'入力シート(新人)'!$E278) ->  | E218: =IF('入力シート(新人)'!$H278="","",学校番号) ->  | F218: =IF('入力シート(新人)'!$H278="","",B218) ->  | G218: =IF('入力シート(新人)'!$H278="","",'入力シート(新人)'!H278) ->  | J218: =IF('入力シート(新人)'!$H278="","",IF('入力シート(新人)'!K278="","",'入力シート(新人)'!K278)) -> 
A219: =IF('入力シート(新人)'!$H279="","","4000005") ->  | B219: =IF('入力シート(新人)'!$H279="","",IF('入力シート(新人)'!$B279="男",0,1)) ->  | C219: =IF('入力シート(新人)'!$H279="","",'入力シート(新人)'!C279) ->  | D219: =IF('入力シート(新人)'!$H279="","",'入力シート(新人)'!$E279) ->  | E219: =IF('入力シート(新人)'!$H279="","",学校番号) ->  | F219: =IF('入力シート(新人)'!$H279="","",B219) ->  | G219: =IF('入力シート(新人)'!$H279="","",'入力シート(新人)'!H279) ->  | J219: =IF('入力シート(新人)'!$H279="","",IF('入力シート(新人)'!K279="","",'入力シート(新人)'!K279)) -> 
A220: =IF('入力シート(新人)'!$H280="","","4000005") ->  | B220: =IF('入力シート(新人)'!$H280="","",IF('入力シート(新人)'!$B280="男",0,1)) ->  | C220: =IF('入力シート(新人)'!$H280="","",'入力シート(新人)'!C280) ->  | D220: =IF('入力シート(新人)'!$H280="","",'入力シート(新人)'!$E280) ->  | E220: =IF('入力シート(新人)'!$H280="","",学校番号) ->  | F220: =IF('入力シート(新人)'!$H280="","",B220) ->  | G220: =IF('入力シート(新人)'!$H280="","",'入力シート(新人)'!H280) ->  | J220: =IF('入力シート(新人)'!$H280="","",IF('入力シート(新人)'!K280="","",'入力シート(新人)'!K280)) -> 
A221: =IF('入力シート(新人)'!$H281="","","4000005") ->  | B221: =IF('入力シート(新人)'!$H281="","",IF('入力シート(新人)'!$B281="男",0,1)) ->  | C221: =IF('入力シート(新人)'!$H281="","",'入力シート(新人)'!C281) ->  | D221: =IF('入力シート(新人)'!$H281="","",'入力シート(新人)'!$E281) ->  | E221: =IF('入力シート(新人)'!$H281="","",学校番号) ->  | F221: =IF('入力シート(新人)'!$H281="","",B221) ->  | G221: =IF('入力シート(新人)'!$H281="","",'入力シート(新人)'!H281) ->  | J221: =IF('入力シート(新人)'!$H281="","",IF('入力シート(新人)'!K281="","",'入力シート(新人)'!K281)) -> 
A222: =IF('入力シート(新人)'!$H282="","","4000005") ->  | B222: =IF('入力シート(新人)'!$H282="","",IF('入力シート(新人)'!$B282="男",0,1)) ->  | C222: =IF('入力シート(新人)'!$H282="","",'入力シート(新人)'!C282) ->  | D222: =IF('入力シート(新人)'!$H282="","",'入力シート(新人)'!$E282) ->  | E222: =IF('入力シート(新人)'!$H282="","",学校番号) ->  | F222: =IF('入力シート(新人)'!$H282="","",B222) ->  | G222: =IF('入力シート(新人)'!$H282="","",'入力シート(新人)'!H282) ->  | J222: =IF('入力シート(新人)'!$H282="","",IF('入力シート(新人)'!K282="","",'入力シート(新人)'!K282)) -> 
A223: =IF('入力シート(新人)'!$H283="","","4000005") ->  | B223: =IF('入力シート(新人)'!$H283="","",IF('入力シート(新人)'!$B283="男",0,1)) ->  | C223: =IF('入力シート(新人)'!$H283="","",'入力シート(新人)'!C283) ->  | D223: =IF('入力シート(新人)'!$H283="","",'入力シート(新人)'!$E283) ->  | E223: =IF('入力シート(新人)'!$H283="","",学校番号) ->  | F223: =IF('入力シート(新人)'!$H283="","",B223) ->  | G223: =IF('入力シート(新人)'!$H283="","",'入力シート(新人)'!H283) ->  | J223: =IF('入力シート(新人)'!$H283="","",IF('入力シート(新人)'!K283="","",'入力シート(新人)'!K283)) -> 
A224: =IF('入力シート(新人)'!$H284="","","4000005") ->  | B224: =IF('入力シート(新人)'!$H284="","",IF('入力シート(新人)'!$B284="男",0,1)) ->  | C224: =IF('入力シート(新人)'!$H284="","",'入力シート(新人)'!C284) ->  | D224: =IF('入力シート(新人)'!$H284="","",'入力シート(新人)'!$E284) ->  | E224: =IF('入力シート(新人)'!$H284="","",学校番号) ->  | F224: =IF('入力シート(新人)'!$H284="","",B224) ->  | G224: =IF('入力シート(新人)'!$H284="","",'入力シート(新人)'!H284) ->  | J224: =IF('入力シート(新人)'!$H284="","",IF('入力シート(新人)'!K284="","",'入力シート(新人)'!K284)) -> 
A225: =IF('入力シート(新人)'!$H285="","","4000005") ->  | B225: =IF('入力シート(新人)'!$H285="","",IF('入力シート(新人)'!$B285="男",0,1)) ->  | C225: =IF('入力シート(新人)'!$H285="","",'入力シート(新人)'!C285) ->  | D225: =IF('入力シート(新人)'!$H285="","",'入力シート(新人)'!$E285) ->  | E225: =IF('入力シート(新人)'!$H285="","",学校番号) ->  | F225: =IF('入力シート(新人)'!$H285="","",B225) ->  | G225: =IF('入力シート(新人)'!$H285="","",'入力シート(新人)'!H285) ->  | J225: =IF('入力シート(新人)'!$H285="","",IF('入力シート(新人)'!K285="","",'入力シート(新人)'!K285)) -> 
A226: =IF('入力シート(新人)'!$H286="","","4000005") ->  | B226: =IF('入力シート(新人)'!$H286="","",IF('入力シート(新人)'!$B286="男",0,1)) ->  | C226: =IF('入力シート(新人)'!$H286="","",'入力シート(新人)'!C286) ->  | D226: =IF('入力シート(新人)'!$H286="","",'入力シート(新人)'!$E286) ->  | E226: =IF('入力シート(新人)'!$H286="","",学校番号) ->  | F226: =IF('入力シート(新人)'!$H286="","",B226) ->  | G226: =IF('入力シート(新人)'!$H286="","",'入力シート(新人)'!H286) ->  | J226: =IF('入力シート(新人)'!$H286="","",IF('入力シート(新人)'!K286="","",'入力シート(新人)'!K286)) -> 
A227: =IF('入力シート(新人)'!$H287="","","4000005") ->  | B227: =IF('入力シート(新人)'!$H287="","",IF('入力シート(新人)'!$B287="男",0,1)) ->  | C227: =IF('入力シート(新人)'!$H287="","",'入力シート(新人)'!C287) ->  | D227: =IF('入力シート(新人)'!$H287="","",'入力シート(新人)'!$E287) ->  | E227: =IF('入力シート(新人)'!$H287="","",学校番号) ->  | F227: =IF('入力シート(新人)'!$H287="","",B227) ->  | G227: =IF('入力シート(新人)'!$H287="","",'入力シート(新人)'!H287) ->  | J227: =IF('入力シート(新人)'!$H287="","",IF('入力シート(新人)'!K287="","",'入力シート(新人)'!K287)) -> 
A228: =IF('入力シート(新人)'!$H288="","","4000005") ->  | B228: =IF('入力シート(新人)'!$H288="","",IF('入力シート(新人)'!$B288="男",0,1)) ->  | C228: =IF('入力シート(新人)'!$H288="","",'入力シート(新人)'!C288) ->  | D228: =IF('入力シート(新人)'!$H288="","",'入力シート(新人)'!$E288) ->  | E228: =IF('入力シート(新人)'!$H288="","",学校番号) ->  | F228: =IF('入力シート(新人)'!$H288="","",B228) ->  | G228: =IF('入力シート(新人)'!$H288="","",'入力シート(新人)'!H288) ->  | J228: =IF('入力シート(新人)'!$H288="","",IF('入力シート(新人)'!K288="","",'入力シート(新人)'!K288)) -> 
A229: =IF('入力シート(新人)'!$H289="","","4000005") ->  | B229: =IF('入力シート(新人)'!$H289="","",IF('入力シート(新人)'!$B289="男",0,1)) ->  | C229: =IF('入力シート(新人)'!$H289="","",'入力シート(新人)'!C289) ->  | D229: =IF('入力シート(新人)'!$H289="","",'入力シート(新人)'!$E289) ->  | E229: =IF('入力シート(新人)'!$H289="","",学校番号) ->  | F229: =IF('入力シート(新人)'!$H289="","",B229) ->  | G229: =IF('入力シート(新人)'!$H289="","",'入力シート(新人)'!H289) ->  | J229: =IF('入力シート(新人)'!$H289="","",IF('入力シート(新人)'!K289="","",'入力シート(新人)'!K289)) -> 
A230: =IF('入力シート(新人)'!$H290="","","4000005") ->  | B230: =IF('入力シート(新人)'!$H290="","",IF('入力シート(新人)'!$B290="男",0,1)) ->  | C230: =IF('入力シート(新人)'!$H290="","",'入力シート(新人)'!C290) ->  | D230: =IF('入力シート(新人)'!$H290="","",'入力シート(新人)'!$E290) ->  | E230: =IF('入力シート(新人)'!$H290="","",学校番号) ->  | F230: =IF('入力シート(新人)'!$H290="","",B230) ->  | G230: =IF('入力シート(新人)'!$H290="","",'入力シート(新人)'!H290) ->  | J230: =IF('入力シート(新人)'!$H290="","",IF('入力シート(新人)'!K290="","",'入力シート(新人)'!K290)) -> 
A231: =IF('入力シート(新人)'!$H291="","","4000005") ->  | B231: =IF('入力シート(新人)'!$H291="","",IF('入力シート(新人)'!$B291="男",0,1)) ->  | C231: =IF('入力シート(新人)'!$H291="","",'入力シート(新人)'!C291) ->  | D231: =IF('入力シート(新人)'!$H291="","",'入力シート(新人)'!$E291) ->  | E231: =IF('入力シート(新人)'!$H291="","",学校番号) ->  | F231: =IF('入力シート(新人)'!$H291="","",B231) ->  | G231: =IF('入力シート(新人)'!$H291="","",'入力シート(新人)'!H291) ->  | J231: =IF('入力シート(新人)'!$H291="","",IF('入力シート(新人)'!K291="","",'入力シート(新人)'!K291)) -> 
A232: =IF('入力シート(新人)'!$H292="","","4000005") ->  | B232: =IF('入力シート(新人)'!$H292="","",IF('入力シート(新人)'!$B292="男",0,1)) ->  | C232: =IF('入力シート(新人)'!$H292="","",'入力シート(新人)'!C292) ->  | D232: =IF('入力シート(新人)'!$H292="","",'入力シート(新人)'!$E292) ->  | E232: =IF('入力シート(新人)'!$H292="","",学校番号) ->  | F232: =IF('入力シート(新人)'!$H292="","",B232) ->  | G232: =IF('入力シート(新人)'!$H292="","",'入力シート(新人)'!H292) ->  | J232: =IF('入力シート(新人)'!$H292="","",IF('入力シート(新人)'!K292="","",'入力シート(新人)'!K292)) -> 
A233: =IF('入力シート(新人)'!$H293="","","4000005") ->  | B233: =IF('入力シート(新人)'!$H293="","",IF('入力シート(新人)'!$B293="男",0,1)) ->  | C233: =IF('入力シート(新人)'!$H293="","",'入力シート(新人)'!C293) ->  | D233: =IF('入力シート(新人)'!$H293="","",'入力シート(新人)'!$E293) ->  | E233: =IF('入力シート(新人)'!$H293="","",学校番号) ->  | F233: =IF('入力シート(新人)'!$H293="","",B233) ->  | G233: =IF('入力シート(新人)'!$H293="","",'入力シート(新人)'!H293) ->  | J233: =IF('入力シート(新人)'!$H293="","",IF('入力シート(新人)'!K293="","",'入力シート(新人)'!K293)) -> 

Sheet 入力シート(総体) (hidden)
A1: 性別 | B1: 性別 | C1: 種別コード | D1: 種別 | E1: 種目コード | F1: 種目 | G1: 学校番号 | H1: 個人番号 | I1: 氏名 | J1: 学年 | K1: 申込記録 | L1: 計測区分 | M1: 大会名 | Z1: 1 | AA1: 2 | AB1: 3
A2: 男子 | B2: 男 | C2: 1 | D2: =VLOOKUP(C2,出場種別,2,FALSE) -> １年 | E2: 001 | F2: =VLOOKUP(E2,種目コード,2,FALSE) -> １００ｍ | G2: =学校番号 -> 0 | I2: =IF(H2="","",VLOOKUP(P2,部員データ,3,FALSE)&" "&VLOOKUP(P2,部員データ,4,FALSE)) ->  | J2: =IF(H2="","",VLOOKUP(P2,部員データ,2,FALSE)) ->  | P2: =IF(H2="","",B2&DBCS(TEXT(H2,"００"))) ->  | Q2: =COUNTIF($P$2:$P$9,P2)+COUNTIF($P$34:$P$51,P2)+COUNTIF($P$16:$P$27,P2) -> 38 | R2: =IF(VLOOKUP(E2,男子標準記録,C2+3,FALSE)="","",VLOOKUP(E2,男子標準記録,C2+3,FALSE)) ->  | S2: =VLOOKUP(E2,種目コード,4,FALSE) -> 10 | T2: =IF(FIND(".",TEXT(K2,"#.00"))>3,MID(TEXT(K2,"#.00"),FIND(".",TEXT(K2,"#.00"))-2,2)/1,"") ->  | V2: =IF(COUNTIF($P$2:P2,P2)>1,"*",1) -> 1 | Y2: 男 | Z2: =COUNTIFS($J$2:$J$51,$Z$1,$V$2:$V$51,Z1) -> 0 | AA2: =COUNTIFS($J$2:$J$51,$AA$1,$V$2:$V$51,1) -> 0 | AB2: =COUNTIFS($J$2:$J$51,$AB$1,$V$2:$V$51,1) -> 0
B3: 男 | C3: 1 | D3: １年 | E3: 001 | F3: １００ｍ | G3: 0 | I3: =IF(H3="","",VLOOKUP(P3,部員データ,3,FALSE)&" "&VLOOKUP(P3,部員データ,4,FALSE)) ->  | Q3: 38 | S3: 10 | T3: =IF(FIND(".",TEXT(K3,"#.00"))>3,MID(TEXT(K3,"#.00"),FIND(".",TEXT(K3,"#.00"))-2,2)/1,"") ->  | V3: =IF(COUNTIF($P$2:P3,P3)>1,"*",1) -> * | Y3: 女 | Z3: =COUNTIFS($J$56:$J$95,$Z$1,$V$56:$V$95,1) -> 0 | AA3: =COUNTIFS($J$56:$J$95,$AA$1,$V$56:$V$95,1) -> 0 | AB3: =COUNTIFS($J$56:$J$95,$AB$1,$V$56:$V$95,1) -> 0
B4: 男 | C4: 1 | D4: １年 | E4: 015 | F4: １５００ｍ | G4: 0 | I4: =IF(H4="","",VLOOKUP(P4,部員データ,3,FALSE)&" "&VLOOKUP(P4,部員データ,4,FALSE)) ->  | Q4: 38 | S4: 340 | V4: =IF(COUNTIF($P$2:P4,P4)>1,"*",1) -> *
B5: 男 | C5: 1 | D5: １年 | E5: 015 | F5: １５００ｍ | G5: 0 | Q5: 38 | S5: 340 | V5: =IF(COUNTIF($P$2:P5,P5)>1,"*",1) -> *
B6: 男 | C6: 2 | D6: ２年 | E6: 001 | F6: １００ｍ | G6: 0 | Q6: 38 | S6: 10 | V6: =IF(COUNTIF($P$2:P6,P6)>1,"*",1) -> *
B7: 男 | C7: 2 | D7: ２年 | E7: 001 | F7: １００ｍ | G7: 0 | Q7: 38 | S7: 10 | V7: =IF(COUNTIF($P$2:P7,P7)>1,"*",1) -> *
B8: 男 | C8: 3 | D8: ３年 | E8: 001 | F8: １００ｍ | G8: 0 | Q8: 38 | S8: 10 | V8: =IF(COUNTIF($P$2:P8,P8)>1,"*",1) -> *
B9: 男 | C9: 3 | D9: ３年 | E9: 001 | F9: １００ｍ | G9: 0 | Q9: 38 | S9: 10 | V9: =IF(COUNTIF($P$2:P9,P9)>1,"*",1) -> *
B10: 男 | C10: 6 | D10: =VLOOKUP(C10,出場種別,2,FALSE) -> 低学年 | E10: 410 | F10: =VLOOKUP(E10,種目コード,2,FALSE) -> ４×１００ｍＲ | G10: 0 | I10: =IF(H10="","",VLOOKUP(P10,部員データ,3,FALSE)&" "&VLOOKUP(P10,部員データ,4,FALSE)) ->  | J10: =IF(H10="","",VLOOKUP(P10,部員データ,2,FALSE)) ->  | P10: =IF(H10="","",B10&DBCS(TEXT(H10,"００"))) ->  | Q10: =COUNTIF($P$10:$P$15,P10)+COUNTIF($P$28:$P$33,P10) -> 12 | R10: =IF(VLOOKUP(E10,男子標準記録,C10+3,FALSE)="","",VLOOKUP(E10,男子標準記録,C10+3,FALSE)) ->  | S10: =VLOOKUP(E10,種目コード,4,FALSE) -> 38 | T10: =IF(FIND(".",TEXT(K10,"#.00"))>3,MID(TEXT(K10,"#.00"),FIND(".",TEXT(K10,"#.00"))-2,2)/1,"") ->  | V10: =IF(COUNTIF($P$2:P10,P10)>1,"*",1) -> *
B11: 男 | C11: 6 | D11: 低学年 | E11: 410 | F11: ４×１００ｍＲ | G11: 0 | Q11: 12 | V11: =IF(COUNTIF($P$2:P11,P11)>1,"*",1) -> *
B12: 男 | C12: 6 | D12: 低学年 | E12: 410 | F12: ４×１００ｍＲ | G12: 0 | Q12: 12 | V12: =IF(COUNTIF($P$2:P12,P12)>1,"*",1) -> *
B13: 男 | C13: 6 | D13: 低学年 | E13: 410 | F13: ４×１００ｍＲ | G13: 0 | Q13: 12 | V13: =IF(COUNTIF($P$2:P13,P13)>1,"*",1) -> *
B14: 男 | C14: 6 | D14: 低学年 | E14: 410 | F14: ４×１００ｍＲ | G14: 0 | Q14: 12 | V14: =IF(COUNTIF($P$2:P14,P14)>1,"*",1) -> *
B15: 男 | C15: 6 | D15: 低学年 | E15: 410 | F15: ４×１００ｍＲ | G15: 0 | Q15: 12 | V15: =IF(COUNTIF($P$2:P15,P15)>1,"*",1) -> *
B16: 男 | C16: 0 | D16: 共通 | E16: 002 | F16: ２００ｍ | G16: 0 | Q16: 38 | S16: 20.5 | V16: =IF(COUNTIF($P$2:P16,P16)>1,"*",1) -> *
B17: 男 | C17: 0 | D17: 共通 | E17: 002 | F17: ２００ｍ | G17: 0 | Q17: 38 | S17: 20.5 | V17: =IF(COUNTIF($P$2:P17,P17)>1,"*",1) -> *
B18: 男 | C18: 0 | D18: 共通 | E18: 004 | F18: ４００ｍ | G18: 0 | Q18: 38 | S18: 42 | V18: =IF(COUNTIF($P$2:P18,P18)>1,"*",1) -> *
B19: 男 | C19: 0 | D19: 共通 | E19: 004 | F19: ４００ｍ | G19: 0 | Q19: 38 | S19: 42 | V19: =IF(COUNTIF($P$2:P19,P19)>1,"*",1) -> *
B20: 男 | C20: 0 | D20: 共通 | E20: 008 | F20: ８００ｍ | G20: 0 | Q20: 38 | S20: 150 | V20: =IF(COUNTIF($P$2:P20,P20)>1,"*",1) -> *
B21: 男 | C21: 0 | D21: 共通 | E21: 008 | F21: ８００ｍ | G21: 0 | Q21: 38 | S21: 150 | V21: =IF(COUNTIF($P$2:P21,P21)>1,"*",1) -> *
B22: 男 | C22: 0 | D22: =VLOOKUP(C22,出場種別,2,FALSE) -> 共通 | E22: 015 | F22: =VLOOKUP(E22,種目コード,2,FALSE) -> １５００ｍ | G22: 0 | I22: =IF(H22="","",VLOOKUP(P22,部員データ,3,FALSE)&" "&VLOOKUP(P22,部員データ,4,FALSE)) ->  | J22: =IF(H22="","",VLOOKUP(P22,部員データ,2,FALSE)) ->  | P22: =IF(H22="","",B22&DBCS(TEXT(H22,"００"))) ->  | Q22: 38 | R22: =IF(VLOOKUP(E22,男子標準記録,C22+3,FALSE)="","",VLOOKUP(E22,男子標準記録,C22+3,FALSE)) ->  | S22: =VLOOKUP(E22,種目コード,4,FALSE) -> 340 | T22: =IF(FIND(".",TEXT(K22,"#.00"))>3,MID(TEXT(K22,"#.00"),FIND(".",TEXT(K22,"#.00"))-2,2)/1,"") ->  | V22: =IF(COUNTIF($P$2:P22,P22)>1,"*",1) -> *
B23: 男 | C23: 0 | D23: =VLOOKUP(C23,出場種別,2,FALSE) -> 共通 | E23: 015 | F23: =VLOOKUP(E23,種目コード,2,FALSE) -> １５００ｍ | G23: 0 | I23: =IF(H23="","",VLOOKUP(P23,部員データ,3,FALSE)&" "&VLOOKUP(P23,部員データ,4,FALSE)) ->  | J23: =IF(H23="","",VLOOKUP(P23,部員データ,2,FALSE)) ->  | P23: =IF(H23="","",B23&DBCS(TEXT(H23,"００"))) ->  | Q23: 38 | R23: =IF(VLOOKUP(E23,男子標準記録,C23+3,FALSE)="","",VLOOKUP(E23,男子標準記録,C23+3,FALSE)) ->  | S23: =VLOOKUP(E23,種目コード,4,FALSE) -> 340 | T23: =IF(FIND(".",TEXT(K23,"#.00"))>3,MID(TEXT(K23,"#.00"),FIND(".",TEXT(K23,"#.00"))-2,2)/1,"") ->  | V23: =IF(COUNTIF($P$2:P23,P23)>1,"*",1) -> *
B24: 男 | C24: 0 | D24: 共通 | E24: 030 | F24: ３０００ｍ | G24: 0 | Q24: 38 | S24: 800 | V24: =IF(COUNTIF($P$2:P24,P24)>1,"*",1) -> *
B25: 男 | C25: 0 | D25: 共通 | E25: 030 | F25: ３０００ｍ | G25: 0 | Q25: 38 | S25: 800 | V25: =IF(COUNTIF($P$2:P25,P25)>1,"*",1) -> *
B26: 男 | C26: 0 | D26: 共通 | E26: 111 | F26: １１０ｍＨ | G26: 0 | Q26: 38 | S26: 12 | V26: =IF(COUNTIF($P$2:P26,P26)>1,"*",1) -> *
B27: 男 | C27: 0 | D27: 共通 | E27: 111 | F27: １１０ｍＨ | G27: 0 | Q27: 38 | S27: 12 | V27: =IF(COUNTIF($P$2:P27,P27)>1,"*",1) -> *
B28: 男 | C28: 0 | D28: 共通 | E28: 410 | F28: ４×１００ｍＲ | G28: 0 | Q28: =COUNTIF($P$10:$P$15,P28)+COUNTIF($P$28:$P$33,P28) -> 12 | S28: 38 | V28: =IF(COUNTIF($P$2:P28,P28)>1,"*",1) -> *
B29: 男 | C29: 0 | D29: 共通 | E29: 410 | F29: ４×１００ｍＲ | G29: 0 | Q29: 12 | V29: =IF(COUNTIF($P$2:P29,P29)>1,"*",1) -> *
B30: 男 | C30: 0 | D30: 共通 | E30: 410 | F30: =VLOOKUP(E30,種目コード,2,FALSE) -> ４×１００ｍＲ | G30: 0 | Q30: 12 | V30: =IF(COUNTIF($P$2:P30,P30)>1,"*",1) -> *
B31: 男 | C31: 0 | D31: 共通 | E31: 410 | F31: ４×１００ｍＲ | G31: 0 | Q31: 12 | V31: =IF(COUNTIF($P$2:P31,P31)>1,"*",1) -> *
B32: 男 | C32: 0 | D32: 共通 | E32: 410 | F32: ４×１００ｍＲ | G32: 0 | Q32: 12 | V32: =IF(COUNTIF($P$2:P32,P32)>1,"*",1) -> *
B33: 男 | C33: 0 | D33: 共通 | E33: 410 | F33: ４×１００ｍＲ | G33: 0 | Q33: 12 | V33: =IF(COUNTIF($P$2:P33,P33)>1,"*",1) -> *
B34: 男 | C34: 0 | D34: 共通 | E34: 510 | F34: 走高跳 | G34: 0 | Q34: 38 | R34: =IF(VLOOKUP(E34,男子標準記録,C34+3,FALSE)="","",VLOOKUP(E34,男子標準記録,C34+3,FALSE)) ->  | S34: =VLOOKUP(E34,種目コード,4,FALSE) -> 2.4 | V34: =IF(COUNTIF($P$2:P34,P34)>1,"*",1) -> *
B35: 男 | C35: 0 | D35: 共通 | E35: 510 | F35: 走高跳 | G35: 0 | Q35: 38 | S35: 2.4 | V35: =IF(COUNTIF($P$2:P35,P35)>1,"*",1) -> *
B36: 男 | C36: 0 | D36: 共通 | E36: 520 | F36: 棒高跳 | G36: 0 | Q36: 38 | S36: 5.5 | V36: =IF(COUNTIF($P$2:P36,P36)>1,"*",1) -> *
B37: 男 | C37: 0 | D37: 共通 | E37: 520 | F37: 棒高跳 | G37: 0 | Q37: 38 | S37: 5.5 | V37: =IF(COUNTIF($P$2:P37,P37)>1,"*",1) -> *
B38: 男 | C38: 0 | D38: 共通 | E38: 530 | F38: 走幅跳 | G38: 0 | Q38: 38 | S38: 8 | V38: =IF(COUNTIF($P$2:P38,P38)>1,"*",1) -> *
B39: 男 | C39: 0 | D39: 共通 | E39: 530 | F39: 走幅跳 | G39: 0 | Q39: 38 | S39: 8 | V39: =IF(COUNTIF($P$2:P39,P39)>1,"*",1) -> *
B40: 男 | C40: 0 | D40: 共通 | E40: 540 | F40: 三段跳 | G40: 0 | Q40: 38 | S40: 17 | V40: =IF(COUNTIF($P$2:P40,P40)>1,"*",1) -> *
B41: 男 | C41: 0 | D41: 共通 | E41: 540 | F41: 三段跳 | G41: 0 | Q41: 38 | S41: 17 | V41: =IF(COUNTIF($P$2:P41,P41)>1,"*",1) -> *
B42: 男 | C42: 0 | D42: 共通 | E42: 562 | F42: 砲丸投(5.0㎏) | G42: 0 | Q42: 38 | S42: 20 | V42: =IF(COUNTIF($P$2:P42,P42)>1,"*",1) -> *
B43: 男 | C43: 0 | D43: 共通 | E43: 562 | F43: 砲丸投(5.0㎏) | G43: 0 | Q43: 38 | S43: 20 | V43: =IF(COUNTIF($P$2:P43,P43)>1,"*",1) -> *
B44: 男 | C44: 0 | D44: 共通 | E44: 551 | F44: 円盤投(1.5㎏) | G44: 0 | Q44: 38 | S44: 70 | V44: =IF(COUNTIF($P$2:P44,P44)>1,"*",1) -> *
B45: 男 | C45: 0 | D45: 共通 | E45: 551 | F45: 円盤投(1.5㎏) | G45: 0 | Q45: 38 | S45: 70 | V45: =IF(COUNTIF($P$2:P45,P45)>1,"*",1) -> *
B46: 男 | C46: 0 | D46: 共通 | E46: 710 | F46: 男子四種競技 | G46: 0 | Q46: 38 | S46: 3800 | V46: =IF(COUNTIF($P$2:P46,P46)>1,"*",1) -> *
I47: １１０ｍH | Q47: 0 | V47: =IF(COUNTIF($P$2:P47,P47)>1,"*",1) -> 1
I48: 砲丸投げ | Q48: 0 | V48: =IF(COUNTIF($P$2:P48,P48)>1,"*",1) -> 1
I49: 走高跳 | Q49: 0 | V49: =IF(COUNTIF($P$2:P49,P49)>1,"*",1) -> 1
I50: ４００ｍ | Q50: 0 | V50: =IF(COUNTIF($P$2:P50,P50)>1,"*",1) -> 1
B51: 男 | C51: 0 | D51: =VLOOKUP(C51,出場種別,2,FALSE) -> 共通 | E51: 710 | F51: =VLOOKUP(E51,種目コード,2,FALSE) -> 男子四種競技 | G51: =学校番号 -> 0 | I51: =IF(H51="","",VLOOKUP(P51,部員データ,3,FALSE)&" "&VLOOKUP(P51,部員データ,4,FALSE)) ->  | J51: =IF(H51="","",VLOOKUP(P51,部員データ,2,FALSE)) ->  | Q51: 38 | R51: =IF(VLOOKUP(E51,男子標準記録,C51+3,FALSE)="","",VLOOKUP(E51,男子標準記録,C51+3,FALSE)) ->  | S51: =VLOOKUP(E51,種目コード,4,FALSE) -> 3800 | V51: =IF(COUNTIF($P$2:P51,P51)>1,"*",1) -> *
I52: １１０ｍH | V52: =IF(COUNTIF($P$2:P52,P52)>1,"*",1) -> 1
I53: 砲丸投げ | V53: =IF(COUNTIF($P$2:P53,P53)>1,"*",1) -> 1
I54: 走高跳 | V54: =IF(COUNTIF($P$2:P54,P54)>1,"*",1) -> 1
I55: ４００ｍ | V55: =IF(COUNTIF($P$2:P55,P55)>1,"*",1) -> 1
A56: 女子 | B56: 女 | C56: 1 | D56: =VLOOKUP(C56,出場種別,2,FALSE) -> １年 | E56: 001 | F56: =VLOOKUP(E56,種目コード,2,FALSE) -> １００ｍ | G56: =学校番号 -> 0 | I56: =IF(H56="","",VLOOKUP(P56,部員データ,3,FALSE)&" "&VLOOKUP(P56,部員データ,4,FALSE)) ->  | J56: =IF(H56="","",VLOOKUP(P56,部員データ,2,FALSE)) ->  | Q56: =COUNTIF($P$56:$P$61,P56)+COUNTIF($P$82:$P$95,P56)+COUNTIF($P$68:$P$75,P56) -> 28 | R56: =IF(VLOOKUP(E56,女子標準記録,C56+3,FALSE)="","",VLOOKUP(E56,女子標準記録,C56+3,FALSE)) ->  | S56: =VLOOKUP(E56,種目コード,6,FALSE) -> 11 | V56: =IF(COUNTIF($P$2:P56,P56)>1,"*",1) -> *
B57: 女 | C57: 1 | D57: １年 | E57: 001 | F57: １００ｍ | G57: 0 | Q57: 28 | S57: 11 | V57: =IF(COUNTIF($P$2:P57,P57)>1,"*",1) -> *
B58: 女 | C58: 2 | D58: ２年 | E58: 001 | F58: １００ｍ | G58: 0 | Q58: 28 | S58: 11 | V58: =IF(COUNTIF($P$2:P58,P58)>1,"*",1) -> *
B59: 女 | C59: 2 | D59: ２年 | E59: 001 | F59: １００ｍ | G59: 0 | Q59: 28 | S59: 11 | V59: =IF(COUNTIF($P$2:P59,P59)>1,"*",1) -> *
B60: 女 | C60: 3 | D60: ３年 | E60: 001 | F60: １００ｍ | G60: 0 | Q60: 28 | S60: 11 | V60: =IF(COUNTIF($P$2:P60,P60)>1,"*",1) -> *
B61: 女 | C61: 3 | D61: ３年 | E61: 001 | F61: １００ｍ | G61: 0 | Q61: =COUNTIF($P$56:$P$61,P61)+COUNTIF($P$82:$P$95,P61)+COUNTIF($P$68:$P$75,P61) -> 28 | S61: 11 | V61: =IF(COUNTIF($P$2:P61,P61)>1,"*",1) -> *
B62: 女 | C62: 6 | D62: =VLOOKUP(C62,出場種別,2,FALSE) -> 低学年 | E62: 410 | F62: =VLOOKUP(E62,種目コード,2,FALSE) -> ４×１００ｍＲ | G62: 0 | I62: =IF(H62="","",VLOOKUP(P62,部員データ,3,FALSE)&" "&VLOOKUP(P62,部員データ,4,FALSE)) ->  | J62: =IF(H62="","",VLOOKUP(P62,部員データ,2,FALSE)) ->  | P62: =IF(H62="","",B62&DBCS(TEXT(H62,"００"))) ->  | Q62: =COUNTIF($P$62:$P$67,P62)+COUNTIF($P$76:$P$81,P62) -> 12 | R62: =IF(VLOOKUP(E62,女子標準記録,C62+3,FALSE)="","",VLOOKUP(E62,女子標準記録,C62+3,FALSE)) ->  | S62: =VLOOKUP(E62,種目コード,6,FALSE) -> 41 | T62: =IF(FIND(".",TEXT(K62,"#.00"))>3,MID(TEXT(K62,"#.00"),FIND(".",TEXT(K62,"#.00"))-2,2)/1,"") ->  | V62: =IF(COUNTIF($P$2:P62,P62)>1,"*",1) -> *
B63: 女 | C63: 6 | D63: 低学年 | E63: 410 | F63: ４×１００ｍＲ | G63: 0 | Q63: 12 | V63: =IF(COUNTIF($P$2:P63,P63)>1,"*",1) -> *
B64: 女 | C64: 6 | D64: 低学年 | E64: 410 | F64: ４×１００ｍＲ | G64: 0 | Q64: 12 | V64: =IF(COUNTIF($P$2:P64,P64)>1,"*",1) -> *
B65: 女 | C65: 6 | D65: 低学年 | E65: 410 | F65: ４×１００ｍＲ | G65: 0 | Q65: 12 | V65: =IF(COUNTIF($P$2:P65,P65)>1,"*",1) -> *
B66: 女 | C66: 6 | D66: 低学年 | E66: 410 | F66: ４×１００ｍＲ | G66: 0 | Q66: 12 | V66: =IF(COUNTIF($P$2:P66,P66)>1,"*",1) -> *
B67: 女 | C67: 6 | D67: 低学年 | E67: 410 | F67: ４×１００ｍＲ | G67: 0 | Q67: 12 | V67: =IF(COUNTIF($P$2:P67,P67)>1,"*",1) -> *
B68: 女 | C68: 0 | D68: 共通 | E68: 002 | F68: ２００ｍ | G68: 0 | Q68: 28 | S68: 22 | V68: =IF(COUNTIF($P$2:P68,P68)>1,"*",1) -> *
B69: 女 | C69: 0 | D69: 共通 | E69: 002 | F69: ２００ｍ | G69: 0 | Q69: 28 | S69: 22 | V69: =IF(COUNTIF($P$2:P69,P69)>1,"*",1) -> *
B70: 女 | C70: 0 | D70: =VLOOKUP(C70,出場種別,2,FALSE) -> 共通 | E70: 008 | F70: =VLOOKUP(E70,種目コード,2,FALSE) -> ８００ｍ | G70: 0 | I70: =IF(H70="","",VLOOKUP(P70,部員データ,3,FALSE)&" "&VLOOKUP(P70,部員データ,4,FALSE)) ->  | J70: =IF(H70="","",VLOOKUP(P70,部員データ,2,FALSE)) ->  | P70: =IF(H70="","",B70&DBCS(TEXT(H70,"００"))) ->  | Q70: 28 | R70: =IF(VLOOKUP(E70,女子標準記録,C70+3,FALSE)="","",VLOOKUP(E70,女子標準記録,C70+3,FALSE)) ->  | S70: =VLOOKUP(E70,種目コード,6,FALSE) -> 200 | T70: =IF(FIND(".",TEXT(K70,"#.00"))>3,MID(TEXT(K70,"#.00"),FIND(".",TEXT(K70,"#.00"))-2,2)/1,"") ->  | V70: =IF(COUNTIF($P$2:P70,P70)>1,"*",1) -> *
B71: 女 | C71: 0 | D71: =VLOOKUP(C71,出場種別,2,FALSE) -> 共通 | E71: 008 | F71: =VLOOKUP(E71,種目コード,2,FALSE) -> ８００ｍ | G71: 0 | I71: =IF(H71="","",VLOOKUP(P71,部員データ,3,FALSE)&" "&VLOOKUP(P71,部員データ,4,FALSE)) ->  | J71: =IF(H71="","",VLOOKUP(P71,部員データ,2,FALSE)) ->  | P71: =IF(H71="","",B71&DBCS(TEXT(H71,"００"))) ->  | Q71: 28 | R71: =IF(VLOOKUP(E71,女子標準記録,C71+3,FALSE)="","",VLOOKUP(E71,女子標準記録,C71+3,FALSE)) ->  | S71: =VLOOKUP(E71,種目コード,6,FALSE) -> 200 | T71: =IF(FIND(".",TEXT(K71,"#.00"))>3,MID(TEXT(K71,"#.00"),FIND(".",TEXT(K71,"#.00"))-2,2)/1,"") ->  | V71: =IF(COUNTIF($P$2:P71,P71)>1,"*",1) -> *
B72: 女 | C72: 0 | D72: 共通 | E72: 015 | F72: １５００ｍ | G72: 0 | Q72: 28 | S72: 400 | V72: =IF(COUNTIF($P$2:P72,P72)>1,"*",1) -> *
B73: 女 | C73: 0 | D73: 共通 | E73: 015 | F73: １５００ｍ | G73: 0 | Q73: 28 | S73: 400 | V73: =IF(COUNTIF($P$2:P73,P73)>1,"*",1) -> *
B74: 女 | C74: 0 | D74: 共通 | E74: 110 | F74: １００ｍＨ | G74: 0 | Q74: 28 | S74: 12 | V74: =IF(COUNTIF($P$2:P74,P74)>1,"*",1) -> *
B75: 女 | C75: 0 | D75: 共通 | E75: 110 | F75: １００ｍＨ | G75: 0 | Q75: 28 | S75: 12 | V75: =IF(COUNTIF($P$2:P75,P75)>1,"*",1) -> *
B76: 女 | C76: 0 | D76: 共通 | E76: 410 | F76: ４×１００ｍＲ | G76: 0 | Q76: =COUNTIF($P$62:$P$67,P76)+COUNTIF($P$76:$P$81,P76) -> 12 | S76: 41 | V76: =IF(COUNTIF($P$2:P76,P76)>1,"*",1) -> *
B77: 女 | C77: 0 | D77: 共通 | E77: 410 | F77: ４×１００ｍＲ | G77: 0 | Q77: 12 | V77: =IF(COUNTIF($P$2:P77,P77)>1,"*",1) -> *
B78: 女 | C78: 0 | D78: 共通 | E78: 410 | F78: ４×１００ｍＲ | G78: 0 | Q78: 12 | V78: =IF(COUNTIF($P$2:P78,P78)>1,"*",1) -> *
B79: 女 | C79: 0 | D79: 共通 | E79: 410 | F79: ４×１００ｍＲ | G79: 0 | Q79: 12 | V79: =IF(COUNTIF($P$2:P79,P79)>1,"*",1) -> *
B80: 女 | C80: 0 | D80: 共通 | E80: 410 | F80: ４×１００ｍＲ | G80: 0 | P80: =IF(H80="","",B80&DBCS(TEXT(H80,"００"))) ->  | Q80: 12 | V80: =IF(COUNTIF($P$2:P80,P80)>1,"*",1) -> *
B81: 女 | C81: 0 | D81: 共通 | E81: 410 | F81: ４×１００ｍＲ | G81: 0 | Q81: 12 | V81: =IF(COUNTIF($P$2:P81,P81)>1,"*",1) -> *
B82: 女 | C82: 0 | D82: 共通 | E82: 510 | F82: 走高跳 | G82: 0 | Q82: 28 | S82: =VLOOKUP(E82,種目コード,6,FALSE) -> 1.9 | V82: =IF(COUNTIF($P$2:P82,P82)>1,"*",1) -> *
B83: 女 | C83: 0 | D83: 共通 | E83: 510 | F83: 走高跳 | G83: 0 | Q83: 28 | S83: 1.9 | V83: =IF(COUNTIF($P$2:P83,P83)>1,"*",1) -> *
B84: 女 | C84: 0 | D84: 共通 | E84: 530 | F84: 走幅跳 | G84: 0 | Q84: 28 | S84: 7 | V84: =IF(COUNTIF($P$2:P84,P84)>1,"*",1) -> *
B85: 女 | C85: 0 | D85: 共通 | E85: 530 | F85: 走幅跳 | G85: 0 | Q85: 28 | S85: 7 | T85: =IF(FIND(".",TEXT(K85,"#.00"))>3,MID(TEXT(K85,"#.00"),FIND(".",TEXT(K85,"#.00"))-2,2)/1,"") ->  | V85: =IF(COUNTIF($P$2:P85,P85)>1,"*",1) -> *
B86: 女 | C86: 0 | D86: 共通 | E86: 560 | F86: 砲丸投 | G86: 0 | Q86: 28 | S86: 18 | V86: =IF(COUNTIF($P$2:P86,P86)>1,"*",1) -> *
B87: 女 | C87: 0 | D87: 共通 | E87: 560 | F87: 砲丸投 | G87: 0 | Q87: 28 | S87: 18 | V87: =IF(COUNTIF($P$2:P87,P87)>1,"*",1) -> *
B88: 女 | C88: 0 | D88: 共通 | E88: 550 | F88: 円盤投 | G88: 0 | Q88: 28 | S88: 45 | V88: =IF(COUNTIF($P$2:P88,P88)>1,"*",1) -> *
B89: 女 | C89: 0 | D89: 共通 | E89: 550 | F89: 円盤投 | G89: 0 | Q89: 28 | S89: 45 | V89: =IF(COUNTIF($P$2:P89,P89)>1,"*",1) -> *
B90: 女 | C90: 0 | D90: 共通 | E90: 760 | F90: 女子四種競技 | G90: 0 | Q90: 28 | S90: 4000 | V90: =IF(COUNTIF($P$2:P90,P90)>1,"*",1) -> *
I91: １００ｍH | V91: =IF(COUNTIF($P$2:P91,P91)>1,"*",1) -> 1
I92: 走高跳 | V92: =IF(COUNTIF($P$2:P92,P92)>1,"*",1) -> 1
I93: 砲丸投 | V93: =IF(COUNTIF($P$2:P93,P93)>1,"*",1) -> 1
I94: ２００ｍ | V94: =IF(COUNTIF($P$2:P94,P94)>1,"*",1) -> 1
B95: 女 | C95: 0 | D95: =VLOOKUP(C95,出場種別,2,FALSE) -> 共通 | E95: 760 | F95: =VLOOKUP(E95,種目コード,2,FALSE) -> 女子四種競技 | G95: =学校番号 -> 0 | I95: =IF(H95="","",VLOOKUP(P95,部員データ,3,FALSE)&" "&VLOOKUP(P95,部員データ,4,FALSE)) ->  | J95: =IF(H95="","",VLOOKUP(P95,部員データ,2,FALSE)) ->  | Q95: 28 | R95: =IF(VLOOKUP(E95,女子標準記録,C95+3,FALSE)="","",VLOOKUP(E95,女子標準記録,C95+3,FALSE)) ->  | S95: =VLOOKUP(E95,種目コード,6,FALSE) -> 4000 | V95: =IF(COUNTIF($P$2:P95,P95)>1,"*",1) -> *
I96: １００ｍH
I97: 走高跳
I98: 砲丸投
I99: ２００ｍ

Sheet 総体 (hidden)
A1: 1 | B1: 2 | C1: 3 | D1: 4 | E1: 5 | F1: 6 | G1: 7 | H1: 8 | I1: 9 | J1: 10 | K1: 11 | L1: 12 | M1: 13 | N1: 14 | O1: 15 | P1: 16 | Q1: 17 | R1: 18 | S1: 19 | T1: 20 | U1: 21 | V1: 22 | W1: 23 | X1: 24 | Y1: 25 | Z1: 26 | AA1: 27 | AB1: 28 | AC1: 29 | AD1: 30 | AE1: 31 | AF1: 32 | AG1: 33 | AH1: 34 | AI1: 35 | AJ1: 36 | AK1: 37 | AL1: 38 | AM1: 39 | AN1: 40 | AO1: 41 | AP1: 42 | AQ1: 43 | AR1: 44 | AS1: 45 | AT1: 46 | AU1: 47 | AV1: 48 | AW1: 49 | AX1: 50 | AY1: 51 | AZ1: 52 | BA1: 53 | BB1: 54 | BC1: 55 | BD1: 56 | BE1: 57 | BF1: 58 | BG1: 59 | BH1: 60 | BI1: 61 | BJ1: 62 | BK1: 63 | BL1: 64 | BM1: 65 | BN1: 66 | BO1: 67 | BP1: 68 | BQ1: 69 | BR1: 70 | BS1: 71 | BT1: 72 | BU1: 73 | BV1: 74 | BW1: 75 | BX1: 76 | BY1: 77 | BZ1: 78 | CA1: 79 | CB1: 80 | CC1: 81 | CD1: 82 | CE1: 83 | CF1: 84 | CG1: 85 | CH1: 86 | CI1: 87 | CJ1: 88 | CK1: 89 | CL1: 90 | CM1: 91 | CN1: 92 | CO1: 93 | CP1: 94 | CQ1: 95 | CR1: 96 | CS1: 97 | CT1: 98 | CU1: 99 | CV1: 100 | CW1: 101 | CX1: 102 | CY1: 103 | CZ1: 104 | DA1: 105 | DB1: 106 | DC1: 107 | DD1: 108 | DE1: 109 | DF1: 110 | DG1: 111 | DH1: 112 | DI1: 113 | DJ1: 114 | DK1: 115 | DL1: 116 | DM1: 117 | DN1: 118 | DO1: 119 | DP1: 120 | DQ1: 121 | DR1: 122 | DS1: 123 | DT1: 124 | DU1: 125 | DV1: 126 | DW1: 127 | DX1: 128 | DY1: 129 | DZ1: 130 | EA1: 131 | EB1: 132 | EC1: 133 | ED1: 134 | EE1: 135 | EF1: 136 | EG1: 137 | EH1: 138 | EI1: 139 | EJ1: 140
B2: 平成28年度 中播地区中学校総合体育大会 第60回 中播地区中学校陸上競技大会 参加申込書
B3: 第60回 中播地区中学校陸上競技大会 参加申込書
DN4: 2部提出
C5: （ 共通 ＝ １，２，３年種目 ） | BW5: 学校番号 | CI5: （ | CJ5: =学校番号 -> 0 | CV5: ） | CY5: 学 校 名 | DJ5: （ | DK5: =略称 -> 0 | EF5: ）
C6: 〔 男 子 〕 １日目実施● | BT6: 〔 女 子 〕 １日目実施●
B8: 種 目 | L8: 個人 番号 | R8: 名 前 | AJ8: 学年 | AN8: 個人 番号 | AT8: 名 前 | BL8: 学年 | BS8: 種 目 | CC8: 個人 番号 | CI8: 名 前 | DA8: 学年 | DE8: 個人 番号 | DK8: 名 前 | EC8: 学年
B9: １年 | L9: =IF('入力シート(総体)'!$H2="","",'入力シート(総体)'!$H2) ->  | R9: =IF(L9<>"",VLOOKUP(EM9,部員データ,3,FALSE)&" "&VLOOKUP(EM9,部員データ,4,FALSE),"") ->  | AJ9: 1 | AN9: =IF('入力シート(総体)'!$H3="","",'入力シート(総体)'!$H3) ->  | AT9: =IF(AN9<>"",VLOOKUP(EN9,部員データ,3,FALSE)&" "&VLOOKUP(EN9,部員データ,4,FALSE),"") ->  | BL9: 1 | BS9: １年 | CC9: =IF('入力シート(総体)'!$H56="","",'入力シート(総体)'!$H56) ->  | CI9: =IF(CC9<>"",VLOOKUP(EO9,部員データ,3,FALSE)&" "&VLOOKUP(EO9,部員データ,4,FALSE),"") ->  | DA9: 1 | DE9: =IF('入力シート(総体)'!$H57="","",'入力シート(総体)'!$H57) ->  | DK9: =IF(DE9<>"",VLOOKUP(EP9,部員データ,3,FALSE)&" "&VLOOKUP(EP9,部員データ,4,FALSE),"") ->  | EC9: 1 | EM9: ="男"&DBCS(TEXT(L9,"00")) -> 男 | EN9: ="男"&DBCS(TEXT(AN9,"00")) -> 男 | EO9: ="女"&DBCS(TEXT(CC9,"00")) -> 女 | EP9: ="女"&DBCS(TEXT(DE9,"00")) -> 女 | EQ9: =IF(OR(EM9="男",EM9=""),"",COUNTIF($EM$9:$EN$50,EM9)) ->  | ER9: =IF(OR(EN9="男",EN9=""),"",COUNTIF($EM$9:$EN$50,EN9)) ->  | ES9: =IF(OR(EO9="女",EO9=""),"",COUNTIF($EO$9:$EP$47,EO9)) ->  | ET9: =IF(OR(EP9="女",EP9=""),"",COUNTIF($EO$9:$EP$47,EP9)) -> 
B10: 100m | R10: =IF(L9="","",IF('入力シート(総体)'!$K2="","",format_kiroku('入力シート(総体)'!$K2,$B10))) ->  | AT10: =IF(AN9="","",IF('入力シート(総体)'!$K3="","",format_kiroku('入力シート(総体)'!$K3,$B10))) ->  | BS10: 100m | CI10: =IF(CC9="","",IF('入力シート(総体)'!$K56="","",format_kiroku('入力シート(総体)'!$K56,$BS10))) ->  | DK10: =IF(DE9="","",IF('入力シート(総体)'!$K57="","",format_kiroku('入力シート(総体)'!$K57,$BS10))) -> 
B11: ●１年 | L11: =IF('入力シート(総体)'!$H4="","",'入力シート(総体)'!$H4) ->  | R11: =IF(L11<>"",VLOOKUP(EM11,部員データ,3,FALSE)&" "&VLOOKUP(EM11,部員データ,4,FALSE),"") ->  | AJ11: 1 | AN11: =IF('入力シート(総体)'!$H5="","",'入力シート(総体)'!$H5) ->  | AT11: =IF(AN11<>"",VLOOKUP(EN11,部員データ,3,FALSE)&" "&VLOOKUP(EN11,部員データ,4,FALSE),"") ->  | BL11: 1 | BS11: ●2年 | CC11: =IF('入力シート(総体)'!$H58="","",'入力シート(総体)'!$H58) ->  | CI11: =IF(CC11<>"",VLOOKUP(EO11,部員データ,3,FALSE)&" "&VLOOKUP(EO11,部員データ,4,FALSE),"") ->  | DA11: 2 | DE11: =IF('入力シート(総体)'!$H59="","",'入力シート(総体)'!$H59) ->  | DK11: =IF(DE11<>"",VLOOKUP(EP11,部員データ,3,FALSE)&" "&VLOOKUP(EP11,部員データ,4,FALSE),"") ->  | EC11: 2 | EM11: ="男"&DBCS(TEXT(L11,"00")) -> 男 | EN11: ="男"&DBCS(TEXT(AN11,"00")) -> 男 | EO11: ="女"&DBCS(TEXT(CC11,"00")) -> 女 | EP11: ="女"&DBCS(TEXT(DE11,"00")) -> 女
B12: 1500m | R12: =IF(L11="","",IF('入力シート(総体)'!$K4="","",format_kiroku('入力シート(総体)'!$K4,$B12))) ->  | AT12: =IF(AN11="","",IF('入力シート(総体)'!$K5="","",format_kiroku('入力シート(総体)'!$K5,$B12))) ->  | BS12: 100m | CI12: =IF(CC11="","",IF('入力シート(総体)'!$K58="","",format_kiroku('入力シート(総体)'!$K58,$BS12))) ->  | DK12: =IF(DE11="","",IF('入力シート(総体)'!$K59="","",format_kiroku('入力シート(総体)'!$K59,$BS12))) -> 
B13: ●2年 | L13: =IF('入力シート(総体)'!$H6="","",'入力シート(総体)'!$H6) ->  | R13: =IF(L13<>"",VLOOKUP(EM13,部員データ,3,FALSE)&" "&VLOOKUP(EM13,部員データ,4,FALSE),"") ->  | AJ13: 2 | AN13: =IF('入力シート(総体)'!$H7="","",'入力シート(総体)'!$H7) ->  | AT13: =IF(AN13<>"",VLOOKUP(EN13,部員データ,3,FALSE)&" "&VLOOKUP(EN13,部員データ,4,FALSE),"") ->  | BL13: 2 | BS13: ●3年 | CC13: =IF('入力シート(総体)'!$H60="","",'入力シート(総体)'!$H60) ->  | CI13: =IF(CC13<>"",VLOOKUP(EO13,部員データ,3,FALSE)&" "&VLOOKUP(EO13,部員データ,4,FALSE),"") ->  | DA13: 3 | DE13: =IF('入力シート(総体)'!$H61="","",'入力シート(総体)'!$H61) ->  | DK13: =IF(DE13<>"",VLOOKUP(EP13,部員データ,3,FALSE)&" "&VLOOKUP(EP13,部員データ,4,FALSE),"") ->  | EC13: 3 | EM13: ="男"&DBCS(TEXT(L13,"00")) -> 男 | EN13: ="男"&DBCS(TEXT(AN13,"00")) -> 男 | EO13: ="女"&DBCS(TEXT(CC13,"00")) -> 女 | EP13: ="女"&DBCS(TEXT(DE13,"00")) -> 女
B14: 100m | R14: =IF(L13="","",IF('入力シート(総体)'!$K6="","",format_kiroku('入力シート(総体)'!$K6,$B14))) ->  | AT14: =IF(AN13="","",IF('入力シート(総体)'!$K7="","",format_kiroku('入力シート(総体)'!$K7,$B14))) ->  | BS14: 100m | CI14: =IF(CC13="","",IF('入力シート(総体)'!$K60="","",format_kiroku('入力シート(総体)'!$K60,$BS14))) ->  | DK14: =IF(DE13="","",IF('入力シート(総体)'!$K61="","",format_kiroku('入力シート(総体)'!$K61,$BS14))) -> 
B15: ●３年 | L15: =IF('入力シート(総体)'!$H8="","",'入力シート(総体)'!$H8) ->  | R15: =IF(L15<>"",VLOOKUP(EM15,部員データ,3,FALSE)&" "&VLOOKUP(EM15,部員データ,4,FALSE),"") ->  | AJ15: 3 | AN15: =IF('入力シート(総体)'!$H9="","",'入力シート(総体)'!$H9) ->  | AT15: =IF(AN15<>"",VLOOKUP(EN15,部員データ,3,FALSE)&" "&VLOOKUP(EN15,部員データ,4,FALSE),"") ->  | BL15: 3 | BS15: ●低学年 4×100mR | CC15: =IF('入力シート(総体)'!$H62="","",'入力シート(総体)'!$H62) ->  | CI15: =IF(CC15<>"",VLOOKUP(EO15,部員データ,3,FALSE)&" "&VLOOKUP(EO15,部員データ,4,FALSE),"") ->  | DA15: =IF(CC15<>"",VLOOKUP(EO15,部員データ,2,FALSE),"") ->  | DE15: =IF('入力シート(総体)'!$H63="","",'入力シート(総体)'!$H63) ->  | DK15: =IF(DE15<>"",VLOOKUP(EP15,部員データ,3,FALSE)&" "&VLOOKUP(EP15,部員データ,4,FALSE),"") ->  | EC15: =IF(DE15<>"",VLOOKUP(EP15,部員データ,2,FALSE),"") ->  | EM15: ="男"&DBCS(TEXT(L15,"00")) -> 男 | EN15: ="男"&DBCS(TEXT(AN15,"00")) -> 男 | EO15: ="女"&DBCS(TEXT(CC15,"00")) -> 女 | EP15: ="女"&DBCS(TEXT(DE15,"00")) -> 女
B16: 100m | R16: =IF(L15="","",IF('入力シート(総体)'!$K8="","",format_kiroku('入力シート(総体)'!$K8,$B16))) ->  | AT16: =IF(AN15="","",IF('入力シート(総体)'!$K9="","",format_kiroku('入力シート(総体)'!$K9,$B16))) -> 
B17: ●低学年 4×100mR | L17: =IF('入力シート(総体)'!$H10="","",'入力シート(総体)'!$H10) ->  | R17: =IF(L17<>"",VLOOKUP(EM17,部員データ,3,FALSE)&" "&VLOOKUP(EM17,部員データ,4,FALSE),"") ->  | AJ17: =IF(L17<>"",VLOOKUP(EM17,部員データ,2,FALSE),"") ->  | AN17: =IF('入力シート(総体)'!$H11="","",'入力シート(総体)'!$H11) ->  | AT17: =IF(AN17<>"",VLOOKUP(EN17,部員データ,3,FALSE)&" "&VLOOKUP(EN17,部員データ,4,FALSE),"") ->  | BL17: =IF(AN17<>"",VLOOKUP(EN17,部員データ,2,FALSE),"") ->  | CC17: =IF('入力シート(総体)'!$H64="","",'入力シート(総体)'!$H64) ->  | CI17: =IF(CC17<>"",VLOOKUP(EO17,部員データ,3,FALSE)&" "&VLOOKUP(EO17,部員データ,4,FALSE),"") ->  | DA17: =IF(CC17<>"",VLOOKUP(EO17,部員データ,2,FALSE),"") ->  | DE17: =IF('入力シート(総体)'!$H65="","",'入力シート(総体)'!$H65) ->  | DK17: =IF(DE17<>"",VLOOKUP(EP17,部員データ,3,FALSE)&" "&VLOOKUP(EP17,部員データ,4,FALSE),"") ->  | EC17: =IF(DE17<>"",VLOOKUP(EP17,部員データ,2,FALSE),"") ->  | EI17: =COUNTA(#REF!,#REF!) -> 2 | EJ17: =COUNTA(#REF!,#REF!) -> 2 | EM17: ="男"&DBCS(TEXT(L17,"00")) -> 男 | EN17: ="男"&DBCS(TEXT(AN17,"00")) -> 男 | EO17: ="女"&DBCS(TEXT(CC17,"00")) -> 女 | EP17: ="女"&DBCS(TEXT(DE17,"00")) -> 女
L19: =IF('入力シート(総体)'!$H12="","",'入力シート(総体)'!$H12) ->  | R19: =IF(L19<>"",VLOOKUP(EM19,部員データ,3,FALSE)&" "&VLOOKUP(EM19,部員データ,4,FALSE),"") ->  | AJ19: =IF(L19<>"",VLOOKUP(EM19,部員データ,2,FALSE),"") ->  | AN19: =IF('入力シート(総体)'!$H13="","",'入力シート(総体)'!$H13) ->  | AT19: =IF(AN19<>"",VLOOKUP(EN19,部員データ,3,FALSE)&" "&VLOOKUP(EN19,部員データ,4,FALSE),"") ->  | BL19: =IF(AN19<>"",VLOOKUP(EN19,部員データ,2,FALSE),"") ->  | CC19: =IF('入力シート(総体)'!$H66="","",'入力シート(総体)'!$H66) ->  | CI19: =IF(CC19<>"",VLOOKUP(EO19,部員データ,3,FALSE)&" "&VLOOKUP(EO19,部員データ,4,FALSE),"") ->  | DA19: =IF(CC19<>"",VLOOKUP(EO19,部員データ,2,FALSE),"") ->  | DE19: =IF('入力シート(総体)'!$H67="","",'入力シート(総体)'!$H67) ->  | DK19: =IF(DE19<>"",VLOOKUP(EP19,部員データ,3,FALSE)&" "&VLOOKUP(EP19,部員データ,4,FALSE),"") ->  | EC19: =IF(DE19<>"",VLOOKUP(EP19,部員データ,2,FALSE),"") ->  | EI19: =COUNTA(L21,AN21) -> 2 | EJ19: =COUNTA(CC13,DE13) -> 2 | EM19: ="男"&DBCS(TEXT(L19,"00")) -> 男 | EN19: ="男"&DBCS(TEXT(AN19,"00")) -> 男 | EO19: ="女"&DBCS(TEXT(CC19,"00")) -> 女 | EP19: ="女"&DBCS(TEXT(DE19,"00")) -> 女
BS20: =IF(CC15="","",IF('入力シート(総体)'!$K62="","",format_kiroku('入力シート(総体)'!$K62,$BS15))) -> 
L21: =IF('入力シート(総体)'!$H14="","",'入力シート(総体)'!$H14) ->  | R21: =IF(L21<>"",VLOOKUP(EM21,部員データ,3,FALSE)&" "&VLOOKUP(EM21,部員データ,4,FALSE),"") ->  | AJ21: =IF(L21<>"",VLOOKUP(EM21,部員データ,2,FALSE),"") ->  | AN21: =IF('入力シート(総体)'!$H15="","",'入力シート(総体)'!$H15) ->  | AT21: =IF(AN21<>"",VLOOKUP(EN21,部員データ,3,FALSE)&" "&VLOOKUP(EN21,部員データ,4,FALSE),"") ->  | BL21: =IF(AN21<>"",VLOOKUP(EN21,部員データ,2,FALSE),"") ->  | BS21: 共通 | CC21: =IF('入力シート(総体)'!$H68="","",'入力シート(総体)'!$H68) ->  | CI21: =IF(CC21<>"",VLOOKUP(EO21,部員データ,3,FALSE)&" "&VLOOKUP(EO21,部員データ,4,FALSE),"") ->  | DA21: =IF(CC21<>"",VLOOKUP(EO21,部員データ,2,FALSE),"") ->  | DE21: =IF('入力シート(総体)'!$H69="","",'入力シート(総体)'!$H69) ->  | DK21: =IF(DE21<>"",VLOOKUP(EP21,部員データ,3,FALSE)&" "&VLOOKUP(EP21,部員データ,4,FALSE),"") ->  | EC21: =IF(DE21<>"",VLOOKUP(EP21,部員データ,2,FALSE),"") ->  | EM21: ="男"&DBCS(TEXT(L21,"00")) -> 男 | EN21: ="男"&DBCS(TEXT(AN21,"00")) -> 男 | EO21: ="女"&DBCS(TEXT(CC21,"00")) -> 女 | EP21: ="女"&DBCS(TEXT(DE21,"00")) -> 女
B22: =IF(L17="","",IF('入力シート(総体)'!$K10="","",format_kiroku('入力シート(総体)'!$K10,$B17))) ->  | BS22: 200m | CI22: =IF(CC21="","",IF('入力シート(総体)'!$K68="","",format_kiroku('入力シート(総体)'!$K68,$BS22))) ->  | DK22: =IF(DE21="","",IF('入力シート(総体)'!$K69="","",format_kiroku('入力シート(総体)'!$K69,$BS22))) -> 
B23: 共通 | L23: =IF('入力シート(総体)'!$H16="","",'入力シート(総体)'!$H16) ->  | R23: =IF(L23<>"",VLOOKUP(EM23,部員データ,3,FALSE)&" "&VLOOKUP(EM23,部員データ,4,FALSE),"") ->  | AJ23: =IF(L23<>"",VLOOKUP(EM23,部員データ,2,FALSE),"") ->  | AN23: =IF('入力シート(総体)'!$H17="","",'入力シート(総体)'!$H17) ->  | AT23: =IF(AN23<>"",VLOOKUP(EN23,部員データ,3,FALSE)&" "&VLOOKUP(EN23,部員データ,4,FALSE),"") ->  | BL23: =IF(AN23<>"",VLOOKUP(EN23,部員データ,2,FALSE),"") ->  | BS23: 共通 | CC23: =IF('入力シート(総体)'!$H70="","",'入力シート(総体)'!$H70) ->  | CI23: =IF(CC23<>"",VLOOKUP(EO23,部員データ,3,FALSE)&" "&VLOOKUP(EO23,部員データ,4,FALSE),"") ->  | DA23: =IF(CC23<>"",VLOOKUP(EO23,部員データ,2,FALSE),"") ->  | DE23: =IF('入力シート(総体)'!$H71="","",'入力シート(総体)'!$H71) ->  | DK23: =IF(DE23<>"",VLOOKUP(EP23,部員データ,3,FALSE)&" "&VLOOKUP(EP23,部員データ,4,FALSE),"") ->  | EC23: =IF(DE23<>"",VLOOKUP(EP23,部員データ,2,FALSE),"") ->  | EM23: ="男"&DBCS(TEXT(L23,"00")) -> 男 | EN23: ="男"&DBCS(TEXT(AN23,"00")) -> 男 | EO23: ="女"&DBCS(TEXT(CC23,"00")) -> 女 | EP23: ="女"&DBCS(TEXT(DE23,"00")) -> 女
B24: 200m | R24: =IF(L23="","",IF('入力シート(総体)'!$K16="","",format_kiroku('入力シート(総体)'!$K16,$B24))) ->  | AT24: =IF(AN23="","",IF('入力シート(総体)'!$K17="","",format_kiroku('入力シート(総体)'!$K17,$B24))) ->  | BS24: 800m | CI24: =IF(CC23="","",IF('入力シート(総体)'!$K70="","",format_kiroku('入力シート(総体)'!$K70,$BS24))) ->  | DK24: =IF(DE23="","",IF('入力シート(総体)'!$K71="","",format_kiroku('入力シート(総体)'!$K71,$BS24))) -> 
B25: ●共通 | L25: =IF('入力シート(総体)'!$H18="","",'入力シート(総体)'!$H18) ->  | R25: =IF(L25<>"",VLOOKUP(EM25,部員データ,3,FALSE)&" "&VLOOKUP(EM25,部員データ,4,FALSE),"") ->  | AJ25: =IF(L25<>"",VLOOKUP(EM25,部員データ,2,FALSE),"") ->  | AN25: =IF('入力シート(総体)'!$H19="","",'入力シート(総体)'!$H19) ->  | AT25: =IF(AN25<>"",VLOOKUP(EN25,部員データ,3,FALSE)&" "&VLOOKUP(EN25,部員データ,4,FALSE),"") ->  | BL25: =IF(AN25<>"",VLOOKUP(EN25,部員データ,2,FALSE),"") ->  | BS25: ●共通 | CC25: =IF('入力シート(総体)'!$H72="","",'入力シート(総体)'!$H72) ->  | CI25: =IF(CC25<>"",VLOOKUP(EO25,部員データ,3,FALSE)&" "&VLOOKUP(EO25,部員データ,4,FALSE),"") ->  | DA25: =IF(CC25<>"",VLOOKUP(EO25,部員データ,2,FALSE),"") ->  | DE25: =IF('入力シート(総体)'!$H73="","",'入力シート(総体)'!$H73) ->  | DK25: =IF(DE25<>"",VLOOKUP(EP25,部員データ,3,FALSE)&" "&VLOOKUP(EP25,部員データ,4,FALSE),"") ->  | EC25: =IF(DE25<>"",VLOOKUP(EP25,部員データ,2,FALSE),"") ->  | EM25: ="男"&DBCS(TEXT(L25,"00")) -> 男 | EN25: ="男"&DBCS(TEXT(AN25,"00")) -> 男 | EO25: ="女"&DBCS(TEXT(CC25,"00")) -> 女 | EP25: ="女"&DBCS(TEXT(DE25,"00")) -> 女
B26: 400ｍ | R26: =IF(L25="","",IF('入力シート(総体)'!$K18="","",format_kiroku('入力シート(総体)'!$K18,$B26))) ->  | AT26: =IF(AN25="","",IF('入力シート(総体)'!$K19="","",format_kiroku('入力シート(総体)'!$K19,$B26))) ->  | BS26: 1500m | CI26: =IF(CC25="","",IF('入力シート(総体)'!$K72="","",format_kiroku('入力シート(総体)'!$K72,$BS26))) ->  | DK26: =IF(DE25="","",IF('入力シート(総体)'!$K73="","",format_kiroku('入力シート(総体)'!$K73,$BS26))) -> 
B27: 共通 | L27: =IF('入力シート(総体)'!$H20="","",'入力シート(総体)'!$H20) ->  | R27: =IF(L27<>"",VLOOKUP(EM27,部員データ,3,FALSE)&" "&VLOOKUP(EM27,部員データ,4,FALSE),"") ->  | AJ27: =IF(L27<>"",VLOOKUP(EM27,部員データ,2,FALSE),"") ->  | AN27: =IF('入力シート(総体)'!$H21="","",'入力シート(総体)'!$H21) ->  | AT27: =IF(AN27<>"",VLOOKUP(EN27,部員データ,3,FALSE)&" "&VLOOKUP(EN27,部員データ,4,FALSE),"") ->  | BL27: =IF(AN27<>"",VLOOKUP(EN27,部員データ,2,FALSE),"") ->  | BS27: 共通 | CC27: =IF('入力シート(総体)'!$H74="","",'入力シート(総体)'!$H74) ->  | CI27: =IF(CC27<>"",VLOOKUP(EO27,部員データ,3,FALSE)&" "&VLOOKUP(EO27,部員データ,4,FALSE),"") ->  | DA27: =IF(CC27<>"",VLOOKUP(EO27,部員データ,2,FALSE),"") ->  | DE27: =IF('入力シート(総体)'!$H75="","",'入力シート(総体)'!$H75) ->  | DK27: =IF(DE27<>"",VLOOKUP(EP27,部員データ,3,FALSE)&" "&VLOOKUP(EP27,部員データ,4,FALSE),"") ->  | EC27: =IF(DE27<>"",VLOOKUP(EP27,部員データ,2,FALSE),"") ->  | EM27: ="男"&DBCS(TEXT(L27,"00")) -> 男 | EN27: ="男"&DBCS(TEXT(AN27,"00")) -> 男 | EO27: ="女"&DBCS(TEXT(CC27,"00")) -> 女 | EP27: ="女"&DBCS(TEXT(DE27,"00")) -> 女
B28: 800m | R28: =IF(L27="","",IF('入力シート(総体)'!$K20="","",format_kiroku('入力シート(総体)'!$K20,$B28))) ->  | AT28: =IF(AN27="","",IF('入力シート(総体)'!$K21="","",format_kiroku('入力シート(総体)'!$K21,$B28))) ->  | BS28: 100mH | CI28: =IF(CC27="","",IF('入力シート(総体)'!$K74="","",format_kiroku('入力シート(総体)'!$K74,$BS28))) ->  | DK28: =IF(DE27="","",IF('入力シート(総体)'!$K75="","",format_kiroku('入力シート(総体)'!$K75,$BS28))) -> 
B29: ●共通 | L29: =IF('入力シート(総体)'!$H22="","",'入力シート(総体)'!$H22) ->  | R29: =IF(L29<>"",VLOOKUP(EM29,部員データ,3,FALSE)&" "&VLOOKUP(EM29,部員データ,4,FALSE),"") ->  | AJ29: =IF(L29<>"",VLOOKUP(EM29,部員データ,2,FALSE),"") ->  | AN29: =IF('入力シート(総体)'!$H23="","",'入力シート(総体)'!$H23) ->  | AT29: =IF(AN29<>"",VLOOKUP(EN29,部員データ,3,FALSE)&" "&VLOOKUP(EN29,部員データ,4,FALSE),"") ->  | BL29: =IF(AN29<>"",VLOOKUP(EN29,部員データ,2,FALSE),"") ->  | BS29: 共通 | CC29: =IF('入力シート(総体)'!$H82="","",'入力シート(総体)'!$H82) ->  | CI29: =IF(CC29<>"",VLOOKUP(EO29,部員データ,3,FALSE)&" "&VLOOKUP(EO29,部員データ,4,FALSE),"") ->  | DA29: =IF(CC29<>"",VLOOKUP(EO29,部員データ,2,FALSE),"") ->  | DE29: =IF('入力シート(総体)'!$H83="","",'入力シート(総体)'!$H83) ->  | DK29: =IF(DE29<>"",VLOOKUP(EP29,部員データ,3,FALSE)&" "&VLOOKUP(EP29,部員データ,4,FALSE),"") ->  | EC29: =IF(DE29<>"",VLOOKUP(EP29,部員データ,2,FALSE),"") ->  | EM29: ="男"&DBCS(TEXT(L29,"00")) -> 男 | EN29: ="男"&DBCS(TEXT(AN29,"00")) -> 男 | EO29: ="女"&DBCS(TEXT(CC29,"00")) -> 女 | EP29: ="女"&DBCS(TEXT(DE29,"00")) -> 女
B30: 1500m | R30: =IF(L29="","",IF('入力シート(総体)'!$K22="","",format_kiroku('入力シート(総体)'!$K22,$B30))) ->  | AT30: =IF(AN29="","",IF('入力シート(総体)'!$K23="","",format_kiroku('入力シート(総体)'!$K23,$B30))) ->  | BS30: 走高跳 | CI30: =IF(CC29="","",IF('入力シート(総体)'!$K82="","",format_kiroku('入力シート(総体)'!$K82,$BS30))) ->  | DK30: =IF(DE29="","",IF('入力シート(総体)'!$K83="","",format_kiroku('入力シート(総体)'!$K83,$BS30))) -> 
B31: 共通 | L31: =IF('入力シート(総体)'!$H24="","",'入力シート(総体)'!$H24) ->  | R31: =IF(L31<>"",VLOOKUP(EM31,部員データ,3,FALSE)&" "&VLOOKUP(EM31,部員データ,4,FALSE),"") ->  | AJ31: =IF(L31<>"",VLOOKUP(EM31,部員データ,2,FALSE),"") ->  | AN31: =IF('入力シート(総体)'!$H25="","",'入力シート(総体)'!$H25) ->  | AT31: =IF(AN31<>"",VLOOKUP(EN31,部員データ,3,FALSE)&" "&VLOOKUP(EN31,部員データ,4,FALSE),"") ->  | BL31: =IF(AN31<>"",VLOOKUP(EN31,部員データ,2,FALSE),"") ->  | BS31: ●共通 | CC31: =IF('入力シート(総体)'!$H84="","",'入力シート(総体)'!$H84) ->  | CI31: =IF(CC31<>"",VLOOKUP(EO31,部員データ,3,FALSE)&" "&VLOOKUP(EO31,部員データ,4,FALSE),"") ->  | DA31: =IF(CC31<>"",VLOOKUP(EO31,部員データ,2,FALSE),"") ->  | DE31: =IF('入力シート(総体)'!$H85="","",'入力シート(総体)'!$H85) ->  | DK31: =IF(DE31<>"",VLOOKUP(EP31,部員データ,3,FALSE)&" "&VLOOKUP(EP31,部員データ,4,FALSE),"") ->  | EC31: =IF(DE31<>"",VLOOKUP(EP31,部員データ,2,FALSE),"") ->  | EM31: ="男"&DBCS(TEXT(L31,"00")) -> 男 | EN31: ="男"&DBCS(TEXT(AN31,"00")) -> 男 | EO31: ="女"&DBCS(TEXT(CC31,"00")) -> 女 | EP31: ="女"&DBCS(TEXT(DE31,"00")) -> 女
